Workbook

Sheet Benvenuto
P3: LEGENDA
P4: Campi Non Editabili | Q4: Campi Editabili
P6: Opzioni 20% | Q6: Qtà 20%
P8: Errore nella Selezione | Q8: Verifica Positiva

Sheet Lotto4_R7525_1
K2: Convenzione Tecnologie Server 4 - Lotto 4 | M2: =IF(W108>1,"ERRORE NELLA CONFIGURAZIONE","") ->  | P2: =IF(Riepilogo_Ordine!K141>Riepilogo_Ordine!G141,"Superata Quota 20%","") ->  | AD2: SALVAPDF
P3: Articoli 20% Totali | S3: Check HD 2 | T3: Check HDD Nut | U3: Check CPU | V3: Check RAM | W3: Check NVME | X3: Check PCI | Y3: Check Win | Z3: Check Warr | AA3: Check nVME | AB3: Check Tot | AD3: =IF(N8>0,1,0) -> 0
K4: =IF(Z11="Nutanix","Selezionando la soluzione Nutanix si accetta la sostituzione del server base con la versione XC comprensivo di HBA355 (Non RAID), BOSS Card e LAN 10 GB su slot OCP",IF(W15="vsan","Selezionando la soluzione vSAN si accetta la sostituzione del controller 745 con il HBA355 (Non RAID), comprensivo di BOSS Card","Selezionare Il server Base e cliccare su 'Compila Configurazione' per inserire le opzioni necessarie e obbligatorie a soddisfare la configurazione selezionata")) -> Selezionare Il server Base e cliccare su 'Compila Configurazione' per inserire le opzioni necessarie e obbligatorie a soddisfare la configurazione selezionata | M4: =IF(AB4>1,"Errori nella Configurazione",IF(AA4>0,"Troppi Dischi nVME",IF(S4>0,"Troppi Dischi SAS",IF(U4>0,"Errore nella Selezione della CPU",IF(V4>0,"Errore Nella Selezione della RAM",IF(W4>0,"Errore Nella selezione dello Chassis per Dischi nVME",IF(X4>0,"Errore nella Selezione Slot PCI",IF(Y4>0,"Errore nella Selezione Licenze Windows",IF(Z4>0,"Errore Selezione Garanzia o HDD Retention",IF(T4>0,"Errore Selezione Dischi",IF(T6=1,"Errore Selezione dischi NVMe",""))))))))))) ->  | N4: Totale Altre Opzioni | P4: =Riepilogo_Ordine!K141 -> 0 | S4: =IF(N44<0,1,0) -> 0 | T4: =IF(AND(Z11="Nutanix",AF46>1),1,0) -> 0 | U4: =IF(N22<>"",1,0) -> 0 | V4: =IF(N25<>"",1,0) -> 0 | W4: =IF(M61<>"",1,0) -> 0 | X4: =IF(M86<>"",1,0) -> 0 | Y4: =IF(N28<>"",1,0) -> 0 | Z4: =IF(N145<>"",1,0) -> 0 | AA4: =IF(N63<0,1,0) -> 0 | AB4: =SUM(S4:AA4)+T6 -> 0
N5: ='Altre Opzioni'!L3 -> 0 | P5: Quota Residua 20 % | T5: Check NVMe GPU
M6: Guida alla Convenzione | N6: Totale Configurazione | P6: =Riepilogo_Ordine!G142 -> 0 | T6: =IF(AND(N64=0,AA11="GPUReady"),1,0) -> 0
I7: =IF(AND(Y11="Vsan",N73=""),"Utilizzando il controller HBA355 in una soluzione vSAN, per il boot si deve utilizzare la 'BOSS Card'",IF(AND(Z11="Nutanix",N73=""),"Utilizzando il controller HBA355 in una soluzione Nutanix, per il boot si deve utilizzare la 'BOSS Card'","")) ->  | K7: =IF(Riepilogo_Ordine!P8>0,"Compilare i Dati nel Foglio Riepilogo per Stampare in PDF","") -> Compilare i Dati nel Foglio Riepilogo per Stampare in PDF | N7: =N148+N149 -> 0 | P7: Totale Ordine Iva Esclusa | T7: =N7+Lotto4_R7525_2!L7 -> 0
K8: DELL POWEREDGE R7525 | M8: Quantità Server | N8: 0 | P8: =Riepilogo_Ordine!K142 -> 0
K10: Base | W10: =IF(N127<>0,"JBOD","") ->  | X10: PowerEdge R7525 Server (General Purpose) | Y10: =IF(AND(X11="",Y11="vSAN"),1,IF(AND(X11="nvme",Y11=""),3,2)) -> 2
K11: PowerEdge R7525 Server (General Purpose) | M11: =IF($N$8=0,"",VLOOKUP(K11,TS4L4_Base,13,FALSE)) ->  | N11: =IF($N$8>0,1,"") ->  | P11: =T11 -> 3637.17 | T11: =VLOOKUP($K$11,TS4L4_Base,10,FALSE) -> 3637.17 | V11: =VLOOKUP($K11,TS4L4_Base,12,FALSE) -> L4N01 | X11: =IF(AND(K11=ConfigurationTS4L4!A13,N23=""),"nVME1",IF(AND(K11=ConfigurationTS4L4!A13,N23=1),"nVME2","")) ->  | Y11: =IF(K11=ConfigurationTS4L4!A14,512,IF(K11=ConfigurationTS4L4!A15,1024,IF(K11=ConfigurationTS4L4!A16,2048,""))) ->  | Z11: =IF(K11=ConfigurationTS4L4!A17,"Nutanix","") ->  | AA11: =IF(K11=ConfigurationTS4L4!A9,"GPUReady","") -> 
K15: =IF(SUM(N64:N70)>0,IF(K11=ConfigurationTS4L4!A3,"▲ Selezionare chassis NVME, vSAN, Nutanix o ▲ GPUReady per Abilitare nVME ",""),"") ->  | W15: =IF(Y11<>"","vsan","") ->  | X15: =IF(AND(Y15="GP1",K26>512),"Selezionare RAM Corretta","") ->  | Y15: =IF(AND(K11=ConfigurationTS4L4!A12,N23=""),"GP1",IF(AND(K11=ConfigurationTS4L4!A12,N23=1),"GP2","")) -> GP1
K16: Chassis Configuration | M16: =IF($X$82="SW","MAX 4 GPU",IF($X$82="DW","MAX 2 GPU","")) -> 
K17: =IF(N23=1,VLOOKUP($K$11,TS4L4_Chassis,3,FALSE),VLOOKUP($K$11,TS4L4_Chassis,2,FALSE)) -> Chassis with Up to 16 x 2.5 Hard Drives for 1CPU Configuration | M17: =IF($N$23=1,VLOOKUP($K$11,TS4L4_Chassis,11,FALSE),VLOOKUP($K$11,TS4L4_Chassis,9,FALSE)) -> TS4L4-Opz1CPU | N17: =VLOOKUP(K11,TS4L4_Chassis,7,0) -> 0 | P17: =T17+U17 -> 0 | U17: =VLOOKUP($K$11,TS4L4_Chassis,10,FALSE)*N17 -> 0 | V17: =IF(N17=0,"",(VLOOKUP($K11,TS4L4_Chassis,12,FALSE))) ->  | X17: Chassis with Up to 24 x 2.5'' Hard Drives for 2CPU Configuration | Y17: 1
K19: Processor
K20: AMD7413 2.65GHz,24C/48T,128M,180W,3200CK | T20: =IF(N17=1,VLOOKUP($K$20,TS4L4_CPU,11,FALSE),VLOOKUP($K$20,TS4L4_CPU,11,FALSE)) -> 0 | U20: =IF(N17=1,VLOOKUP($K$20,TS4L4_CPU,11,FALSE),VLOOKUP($K$20,TS4L4_CPU,11,FALSE)) -> 0 | V20: =IF(U20=0,0,VLOOKUP($K20,TS4L4_CPU,12,FALSE)) -> 0
K22: Additional Processor | N22: =IF(AND(Y11=512,N23=""),"Selezionare Processore Aggiuntivo per Configurazione vSAN",IF(AND(X11="nVME1",N23=""),"Selezionare Processore Aggiuntivo per Configurazione nVME",IF(AND(Y11=1024,N23=""),"Selezionare Processore Aggiuntivo per Configurazione vSAN",IF(AND(Y11=2048,N23=""),"Selezionare Processore Aggiuntivo per Configurazione vSAN",IF(AND(Z11="Nutanix",N23=""),"Selezionare Processore Aggiuntivo per Configurazione Nutanix",IF(AND(AA11="GPUReady",N23=""),"Selezionare Processore Aggiuntivo per Configurazione GPUReady","")))))) -> 
I23: =IF(AND(K23="No Additional Processor",SUM(L90:L105)>0),"Selezionare Processore Aggiuntivo o Deselezionare Schede PCI","") ->  | K23: No Additional Processor | M23: =IF(N17=1,VLOOKUP($K$20,TS4L4_CPU,13,FALSE),VLOOKUP($K$23,TS4L4_CPU,13,FALSE)) ->  | N23: =IF(N17=1,VLOOKUP($K$23,TS4L4_CPU,7,FALSE),VLOOKUP($K$23,TS4L4_CPU,7,FALSE)) ->  | P23: =T23 -> 0 | T23: =IF(N17=1,VLOOKUP($K$20,TS4L4_CPU,10,FALSE),VLOOKUP($K$23,TS4L4_CPU,10,FALSE)) -> 0 | U23: =IF(N17=1,VLOOKUP($K$20,TS4L4_CPU,11,FALSE),VLOOKUP($K$23,TS4L4_CPU,11,FALSE)) -> 0 | V23: =IF(N17=1,VLOOKUP(K20,TS4L4_CPU,12,FALSE),VLOOKUP($K23,TS4L4_CPU,12,FALSE)) ->  | X23: =IF(N23=1,"AMD7413 2.65GHz,24C/48T,128M,180W,3200CK",K23) -> No Additional Processor
K25: Memory Capacity (GB) | N25: =IF(AND(Y11=512,K26<>512),"Selezionare 512 GB Ram'",IF(AND(Y11=1024,K26<>1024),"Selezionare 1 TB RAM",IF(AND(Y11=2048,K26<>2048),"Selezionare 2 TB RAM",IF(AND(Z11="Nutanix",K26<>2048),"Selezionare 2TB RAM",IF(AND(Y15="GP1",K26>512),"Selezionare RAM Corretta",IF(AND(Y15="GP2",K26>1536),"Selezionare RAM Corretta",IF(AND(X11="nVME1",K26>512),"Selezionare RAM Corretta",IF(AND(X11="nVME2",K26>1536),"Selezionare RAM Corretta",IF(AND(AA11="GPUReady",K26<>2048),"Selezionare Base GPUReady e cliccare su 'Compila Configurazione'",""))))))))) -> 
K26: 256 | M26: =IF(K23="No Additional Processor",VLOOKUP(K26,TS4L4_RAM2CPU,13,FALSE),VLOOKUP(K26,TS4L4_RAM2CPU,13,FALSE)) -> TS4L4-RAM32 | N26: =IF(N25<>"",0,Y26) -> 0 | P26: =T26 -> 0 | T26: =IF(N25<>"",0,IF(K23="No Additional Processor",VLOOKUP(K26,TS4L4_RAM2CPU,10,FALSE),VLOOKUP(K26,TS4L4_RAM2CPU,10,FALSE))) -> 0 | V26: =IF(N25<>"",0,AA26) ->  | X26: =IF($N$23=1,VLOOKUP($K$26,TS4L4_RAM2CPU,13,FALSE),VLOOKUP($K$26,TS4L4_RAM1Cpu,13,FALSE)) -> TS4L4-RAM32 | Y26: =IF($N$23=1,VLOOKUP($K$26,TS4L4_RAM2CPU,7,FALSE),VLOOKUP($K$26,TS4L4_RAM1Cpu,7,FALSE)) -> 0 | Z26: =IF($N$23=1,VLOOKUP($K$26,TS4L4_RAM2CPU,10,FALSE),VLOOKUP($K$26,TS4L4_RAM1Cpu,10,FALSE)) -> 0 | AA26: =IF($N$23=1,VLOOKUP($K$26,TS4L4_RAM2CPU,12,FALSE),VLOOKUP($K$26,TS4L4_RAM1Cpu,12,FALSE)) -> 
K28: Operating System STANDARD | N28: =IF(AND(K29="No Operating System",N29>0),"Selezionare Sistema Operativo",IF(AND(K29="Ubuntu 22.04 LTS 64 Bit",N29>1),"Selezionare Licenze Corrette",IF(AND(K29="Ubuntu 22.04 LTS 64 Bit",N23=1),"",IF(AND(N23=1,K29="No Operating System"),"",IF(AND(N23=1,N29<3),"Selezionare Licenze Corrette",IF(AND(N23<>1,N29>4),"Selezionare Licenze Corrette",IF(AND(K29="Windows Server 2022,Standard,ROK,16CORE",N29=""),"Selezionare numero Licenze",""))))))) -> 
K29: No Operating System | M29: =VLOOKUP($K$29,TS4L4_OS,13,FALSE) ->  | N29: 0 | P29: =T29 -> 0 | T29: =IF(N33>0,0,VLOOKUP($K$29,TS4L4_OS,10,FALSE))*N29 -> 0 | U29: =VLOOKUP($K$29,TS4L4_OS,11,FALSE) -> 0 | V29: =IF(N33>0,0,VLOOKUP($K29,TS4L4_OS,12,FALSE)) ->  | X29: =IF(AND(K23="No Additional Processor",N29>=3),TRUE,FALSE) -> FALSE
K30: Windows Server 2022 Standard Edition, Add License,2CORE | M30: =VLOOKUP($K$30,TS4L4_OS,13,FALSE) -> TS4L4-WINSRV2C | N30: =IF(K29="No Operating System",0,IF(AND(K29="Windows Server 2022,Standard,ROK,16CORE",N29=0),0,IF($K$29="Ubuntu 22.04 LTS 64 Bit",0,IF(N29=1,VLOOKUP($K$29,TS4L4_OS,7,FALSE)*4,IF(N29=3,0,IF(N29=6,0,IF(N29=9,0,IF(N29="",0,IF(N29=4,4))))))))) -> 0 | P30: =T30 -> 0 | T30: =VLOOKUP($K$30,TS4L4_OS,10,FALSE)*N30 -> 0 | U30: =VLOOKUP($K$29,TS4L4_OS,11,FALSE) -> 0 | V30: =IF(N33>0,0,VLOOKUP($K30,TS4L4_OS,12,FALSE)) -> L4N25 | X30: =IF(AND(K23<>"No Additional Processor",N29>=3),TRUE,FALSE) -> FALSE
K32: Operating System DATACENTER
K33: No Operating System | M33: =VLOOKUP($K$33,ConfigurationTS4L4!A67:W76,13,FALSE) ->  | N33: =IF(K33="Windows Server 2022,Datacenter,ROK,16CORE",1,0) -> 0 | P33: =T33 -> 0 | T33: =IF(N29>0,0,VLOOKUP($K$33,TS4L4_OS,10,FALSE))*N33 -> 0 | U33: =VLOOKUP($K$29,TS4L4_OS,11,FALSE) -> 0 | V33: =IF(N29>0,0,VLOOKUP($K33,TS4L4_OS,12,FALSE)) ->  | X33: =IF(AND(N23=1,N33=1),16,IF(AND(N23=1,N33=""),0,IF(AND(N23="",N33=1),4,FALSE))) -> FALSE
K34: Windows Server 2022 / 2019 Datacenter Edition,Add License,2CORE | M34: =VLOOKUP($K$34,TS4L4_OS,13,FALSE) -> TS4L4-WinServDC2core | N34: =IF(AND(N23=1,N33=1),16,IF(AND(N23=1,N33=""),0,IF(AND(N23="",N33=1),4,IF(AND(N23="",N33=""),0,"0")))) -> 0 | P34: =T34 -> 0 | T34: =IF(N29>0,0,VLOOKUP($K$34,TS4L4_OS,10,FALSE))*N34 -> 0 | U34: =VLOOKUP($K$29,TS4L4_OS,11,FALSE) -> 0 | V34: =IF(N29>0,0,VLOOKUP($K34,TS4L4_OS,12,FALSE)) -> L4N28
K36: Operating System Device CAL / User CAL
K37: 1-pack of Windows Server 2022/2019 Device CALs (STD or DC) | M37: =VLOOKUP($K$37,ConfigurationTS4L4!A72:W73,13,FALSE) -> TS4L4-WINDEVCAL | N37: 0 | P37: =T37 -> 0 | T37: =VLOOKUP($K$37,ConfigurationTS4L4!A72:N73,10,FALSE)*N37 -> 0 | U37: =VLOOKUP($K$29,TS4L4_OS,11,FALSE) -> 0 | V37: =VLOOKUP($K37,TS4L4_OS,12,FALSE) -> L4N23
K38: 1-pack of Windows Server 2022/2019 User CALs (STD or DC) | M38: =VLOOKUP($K$38,ConfigurationTS4L4!A73:W74,13,FALSE) -> TS4L4-WINUSRCAL | N38: 0 | P38: =T38 -> 0 | T38: =VLOOKUP($K$38,ConfigurationTS4L4!A73:N74,10,FALSE)*N38 -> 0 | U38: =VLOOKUP($K$29,TS4L4_OS,11,FALSE) -> 0 | V38: =VLOOKUP($K38,TS4L4_OS,12,FALSE) -> L4N24
K40: Disk Controller | M40: =IF(AND(Y11="Vsan",N73=""),"Utilizzando il controller HBA355 in una soluzione vSAN, per il boot si deve utilizzare la 'BOSS Card'",IF(AND(Z11="Nutanix",N73=""),"Utilizzando il controller HBA355 in una soluzione Nutanix per il boot si deve utilizzare la 'BOSS Card'","")) -> 
K41: =IF(Y11=512,ConfigurationTS4L4!A98,IF(Y11=1024,ConfigurationTS4L4!A98,IF(Y11=2048,ConfigurationTS4L4!A98,IF(Z11="Nutanix",ConfigurationTS4L4!A98,IF(AA11="GPUReady",ConfigurationTS4L4!A98,ConfigurationTS4L4!A97))))) -> PERC H745 Controller | M41: =VLOOKUP(K41,TS4L4_CRTL,13,FALSE) ->  | N41: =VLOOKUP($K41,TS4L4_CRTL,7,FALSE) ->  | P41: =U41 -> 0 | T41: =IF(K41=ConfigurationTS4L4!A46,0,VLOOKUP($K41,TS4L4_CRTL,10,FALSE)) -> 0 | U41: =IF($AA$11="GPUReady",0,IF(W15="vsan",0,IF(Z11="Nutanix",0,VLOOKUP($K41,TS4L4_CRTL,11,FALSE)))) -> 0 | V41: =IF(W15="vsan",0,IF(Z11="Nutanix",0,VLOOKUP($K41,TS4L4_CRTL,12,FALSE))) -> L4N44 | X41: =IF(K11="PowerEdge R7525 Server (vSAN Ready)","Vsan","") -> 
K43: Hard Drivers Bays n° 16 - 2 bay occupate dai dischi 960GB SSD di base | M43: Usati | N43: Disponibili | P43: =IF(AND(Z11="Nutanix",AF46>1),"E' Possibile selezionare solo un modello di Disco",IF(Z11="Nutanix","In una soluzione Nutanix i dischi devono necessariamente essere dello stesso modello","")) -> 
M44: =N46+N48+N50+N56+N58+N52+N54+N60 -> 2 | N44: =16-M44 -> 14
AF45: Totale
K46: =ConfigurationTS4L4!A79 -> 2.4TB 10k SAS ISE 12Gbps | M46: =VLOOKUP($K46,TS4L4_HDD,13,FALSE) -> TS4L4-HDD2TB | N46: 0 | P46: =T46 -> 0 | T46: =IF(N44<0,0,IF(AND(AF46>1,Z11="nutanix"),0,VLOOKUP($K46,TS4L4_HDD,10,FALSE))*N46) -> 0 | U46: =IF(N44<0,0,VLOOKUP($K46,TS4L4_HDD,11,FALSE)) -> 0 | V46: =IF(N44<0,"",IF(AND(AF46>1,Z11="nutanix"),"",VLOOKUP($K46,TS4L4_HDD,12,FALSE))) -> L4N11 | X46: =IF(N46>0,1,0) -> 0 | Y46: =IF(N48>0,1,0) -> 0 | Z46: =IF(N50>0,1,0) -> 0 | AA46: =IF(N52>0,1,0) -> 0 | AB46: =IF(N54>0,1,0) -> 0 | AC46: =IF(N56>0,1,0) -> 1 | AD46: =IF(N58>0,1,0) -> 0 | AE46: =IF(N60>0,1,0) -> 0 | AF46: =SUM(X46:AE46) -> 1
K48: =ConfigurationTS4L4!A80 -> 1.2TB 10K RPM SAS ISE 12Gbps | M48: =VLOOKUP($K48,TS4L4_HDD,13,FALSE) -> TS4L4-HDD1TB | N48: 0 | P48: =T48 -> 0 | T48: =IF(N44<0,0,IF(AND(AF46>1,Z11="nutanix"),0,VLOOKUP($K48,TS4L4_HDD,10,FALSE))*N48) -> 0 | U48: =IF(N44<0,0,VLOOKUP($K48,TS4L4_HDD,11,FALSE)) -> 0 | V48: =IF(N44<0,"",IF(AND(AF46>1,Z11="nutanix"),"",VLOOKUP($K48,TS4L4_HDD,12,FALSE))) -> L4N12
K50: =ConfigurationTS4L4!A81 -> 3.84TB SSD SAS ISE RI 12Gbps | M50: =VLOOKUP($K50,TS4L4_HDD,13,FALSE) -> TS4L4-SSD-RI3,8TB | N50: 0 | P50: =T50 -> 0 | T50: =IF(N44<0,0,IF(AND(AF46>1,Z11="nutanix"),0,VLOOKUP($K50,TS4L4_HDD,10,FALSE))*N50) -> 0 | U50: =IF(N44<0,0,VLOOKUP($K50,TS4L4_HDD,11,FALSE)) -> 0 | V50: =IF(N44<0,"",IF(AND(AF46>1,Z11="nutanix"),"",VLOOKUP($K50,TS4L4_HDD,12,FALSE))) -> L4N13
K52: =ConfigurationTS4L4!A82 -> 1.92TB SSD SAS ISE RI 12Gbps | M52: =VLOOKUP($K52,TS4L4_HDD,13,FALSE) -> TS4L4-SSD-RI1,6TB | N52: 0 | P52: =T52 -> 0 | T52: =IF(N44<0,0,IF(AND(AF46>1,Z11="nutanix"),0,VLOOKUP($K52,TS4L4_HDD,10,FALSE))*N52) -> 0 | U52: =VLOOKUP($K52,TS4L4_HDD,11,FALSE) -> 0 | V52: =IF(N44<0,"",IF(AND(AF46>1,Z11="nutanix"),"",VLOOKUP($K52,TS4L4_HDD,12,FALSE))) -> L4N14
K54: =ConfigurationTS4L4!A83 -> 1.6TB SSD SAS ISE MU 12Gbps | M54: =VLOOKUP($K54,TS4L4_HDD,13,FALSE) -> TS4L4-SSD-MU1,6TB | N54: 0 | P54: =T54 -> 0 | T54: =IF(N44<0,0,IF(AND(AF46>1,Z11="nutanix"),0,VLOOKUP($K54,TS4L4_HDD,10,FALSE))*N54) -> 0 | U54: =VLOOKUP($K54,TS4L4_HDD,11,FALSE) -> 0 | V54: =IF(N44<0,"",IF(AND(AF46>1,Z11="nutanix"),"",VLOOKUP($K54,TS4L4_HDD,12,FALSE))) -> L4N15
K56: =ConfigurationTS4L4!A84 -> 960GB SSD SAS ISE RI 12Gbps | M56: =VLOOKUP($K56,TS4L4_HDD,13,FALSE) -> TS4L4-SSD-RI800GB | N56: 2 | P56: =T56 -> 0 | T56: =IF(N44<0,0,IF(AND(AF46>1,Z11="nutanix"),0,IF(N56>2,(VLOOKUP($K56,TS4L4_HDD,10,FALSE)*(N56-2)),0))) -> 0 | U56: =VLOOKUP($K56,TS4L4_HDD,11,FALSE)*N56 -> 0 | V56: =IF(N44<0,"",IF(AND(AF46>1,Z11="nutanix"),"",VLOOKUP($K56,TS4L4_HDD,12,FALSE))) -> L4N16
K58: =ConfigurationTS4L4!A85 -> 800GB SSD SAS ISE Mix Use 12Gbps | M58: =VLOOKUP($K58,TS4L4_HDD,13,FALSE) -> TS4L4-SSD-MU800GB | N58: 0 | P58: =T58 -> 0 | T58: =IF(N44<0,0,IF(AND(AF46>1,Z11="nutanix"),0,VLOOKUP($K58,TS4L4_HDD,10,FALSE))*N58) -> 0 | U58: =VLOOKUP($K58,TS4L4_HDD,11,FALSE)*N58 -> 0 | V58: =IF(N44<0,"",IF(AND(AF46>1,Z11="nutanix"),"",VLOOKUP($K58,TS4L4_HDD,12,FALSE))) -> L4N17
K60: =ConfigurationTS4L4!A87 -> 7.68TB SSD RI SAS ISE 12Gbps | M60: =VLOOKUP($K60,TS4L4_HDD,13,FALSE) -> TS4L4-SSD7.68RI | N60: 0 | P60: =U60 -> 0 | U60: =IF(N44<0,0,IF(AND(AF46>1,Z11="nutanix"),0,VLOOKUP($K60,TS4L4_HDD,11,FALSE))*N60) -> 0 | V60: =IF(N44<0,"",IF(AND(AF46>1,Z11="nutanix"),"",VLOOKUP($K60,TS4L4_HDD,12,FALSE))) -> L4N32
M61: =IF(SUM(N64:N70)>0,IF(K11=ConfigurationTS4L4!A3,"▲ Selezionare chassis NVME, vSAN, Nutanix o GPU Ready ▲ per abilitare dischi nVME",""),"") ->  | P61: =IF(AND(N64<2,AA11="GPUReady"),"Selezionare almeno 2 dischi NVMe 1.6",IF(N63<0,"Troppi Dischi NVMe",IF(SUM(N64:N70)>0,"Sui dischi NVMe non è supportato il RAID Hardware",""))) -> 
K62: NVMe Bays N° 8 | M62: Usati | N62: Disponibili
M63: =SUM(N64:N70) -> 0 | N63: =8-(N64+N66+N68+N70) -> 8
K64: =ConfigurationTS4L4!A86 -> 1.6TB Enterprise NVMe Mixed Use Drive U.2 | M64: =VLOOKUP($K64,TS4L4_HDD,13,FALSE) -> TS4L4-NVME1,6TB | N64: 0 | O64: =IF(AND(N64>0,M61<>""),"!","") ->  | P64: =T64 -> 0 | T64: =IF(N63<0,0,IF(AND(K11="PowerEdge R7525 Server (General Purpose)",SUM(N64:N70)>0),0,VLOOKUP($K64,TS4L4_HDD,10,FALSE))*N64) -> 0 | U64: =VLOOKUP($K64,TS4L4_HDD,11,FALSE) -> 0 | V64: =IF(N63<0,"",IF(AND(K11="PowerEdge R7525 Server (General Purpose)",SUM(N64:N70)>0),"",VLOOKUP($K64,TS4L4_HDD,12,FALSE))) -> L4N18
K66: =ConfigurationTS4L4!A88 -> 3.2TB, Enterprise, NVMe, Mixed Use | M66: =VLOOKUP($K66,TS4L4_HDD,13,FALSE) -> TS4L4-NVMe3.2MU | N66: 0 | O66: =IF(AND(N66>0,M61<>""),"!","") ->  | P66: =U66 -> 0 | U66: =IF(N63<0,0,IF(AND(K11="PowerEdge R7525 Server (General Purpose)",SUM(N64:N70)>0),0,VLOOKUP($K66,TS4L4_HDD,11,FALSE))*N66) -> 0 | V66: =IF(N63<0,"",IF(AND(K11="PowerEdge R7525 Server (General Purpose)",SUM(N64:N70)>0),"",VLOOKUP($K66,TS4L4_HDD,12,FALSE))) -> L4N33
K68: =ConfigurationTS4L4!A89 -> 1.92TB, Enterprise, NVMe, Read Intensive | M68: =VLOOKUP($K68,TS4L4_HDD,13,FALSE) -> TS4L4-NVMe1.92RI | N68: 0 | O68: =IF(AND(N68>0,M61<>""),"!","") ->  | P68: =U68 -> 0 | U68: =IF(N63<0,0,IF(AND(K11="PowerEdge R7525 Server (General Purpose)",SUM(N64:N70)>0),0,VLOOKUP($K68,TS4L4_HDD,11,FALSE))*N68) -> 0 | V68: =IF(N63<0,"",IF(AND(K11="PowerEdge R7525 Server (General Purpose)",SUM(N64:N70)>0),"",VLOOKUP($K68,TS4L4_HDD,12,FALSE))) -> L4N34
K70: =ConfigurationTS4L4!A90 -> 3.84TB, Enterprise, NVMe, Read Intensive | M70: =VLOOKUP($K70,TS4L4_HDD,13,FALSE) -> TS4L4-NVMe3.84RI | N70: 0 | O70: =IF(AND(N70>0,M61<>""),"!","") ->  | P70: =U70 -> 0 | U70: =IF(N63<0,0,IF(AND(K11="PowerEdge R7525 Server (General Purpose)",SUM(N64:N70)>0),0,VLOOKUP($K70,TS4L4_HDD,11,FALSE))*N70) -> 0 | V70: =IF(N63<0,"",IF(AND(K11="PowerEdge R7525 Server (General Purpose)",SUM(N64:N70)>0),"",VLOOKUP($K70,TS4L4_HDD,12,FALSE))) -> L4N35
K72: BOSS controller card
K73: =IF(N41=1,ConfigurationTS4L4!A108,ConfigurationTS4L4!A107) -> No Boss card | M73: =IF(U73>0,VLOOKUP($K73,TS4L4_BOSS,13,FALSE),"") ->  | N73: =VLOOKUP($K73,TS4L4_BOSS,7,FALSE) ->  | P73: =U73 -> 0 | T73: =VLOOKUP($K73,TS4L4_BOSS,10,FALSE) -> 0 | U73: =IF(W10="JBOD",0,IF(W15="vsan",0,IF(Z11="Nutanix",0,VLOOKUP($K73,TS4L4_BOSS,11,FALSE)))) -> 0 | V73: =IF(W15="vsan",0,IF(Z11="Nutanix",0,VLOOKUP($K73,TS4L4_BOSS,12,FALSE))) -> 
J75: =IF(N75="","",U76) ->  | K75: Power Supply | L75: =IF(P75="","",W76) -> 
K76: =IF(Y17=1,"Dual, Hot-plug Power Supply (1+1), 1400W",IF($M$17="TS3L4-GPUDW","Dual, Hot-plug Power Supply (1+1), 2000W",IF($M$17="TS3L4-GPUSW","Dual, Hot-plug Power Supply (1+1), 2000W","Dual, Hot-plug, Redundant Power Supply (1+1), 750W"))) -> Dual, Hot-plug Power Supply (1+1), 1400W | M76: =VLOOKUP($K76,TS4L4_PSU,13,FALSE) -> TS4L4-PSU1400W | N76: =VLOOKUP($K76,TS4L4_PSU,7,FALSE) -> 1 | T76: =VLOOKUP($K76,TS4L4_PSU,10,FALSE) -> 0 | U76: =VLOOKUP($K76,TS4L4_PSU,11,FALSE) -> 0 | V76: =VLOOKUP($K76,TS4L4_PSU,12,FALSE) -> L4N49
K78: Embedded Systems Management
K79: iDRAC9,Enterprise
K83: Slot PCI In questa sezione è possibile selezionare la configurazione degli Slot PCI
I86: =IF(AA11="GPUReady","Slot per GPU 1 Double Wide (Occupa 2 Slot PCI, 1 e 2)","") ->  | K86: PCI Slot 1 Processor 1 x8 PCIe Gen4 for HL/FH | M86: =IF(AND(K23="No Additional Processor",SUM(N93:N108)>0),"Selezionare Processore Aggiuntivo o Deselezionare Schede PCI",IF(AND(K87="Nvidia A30",$AA$11<>"GPUReady"),"Selezionare server GPU Ready o deselezionare Scheda GPU",IF(AND(K87="Nvidia A40",$AA$11<>"GPUReady"),"Selezionare server GPU Ready o deselezionare Scheda GPU",IF(AND(AA11="GPUReady",(SUM(W87:X87))=0,K87<>"Slot non utilizzato"),"Deselezionare scheda PCI o Selezionare GPU","")))) -> 
K87: Slot Non Utilizzato | M87: =IF(AND($AA$11<>"GPUReady",K87="Nvidia A30"),"",IF(AND($AA$11<>"GPUReady",K87="Nvidia A40"),"",IF(AND($AA$11="GPUReady",(SUM(W87:X87)=0)),"",IF(AND($AA$11="GPUReady",(SUM(W87:X87)>0)),VLOOKUP($K87,TS4L4_GPU,13,FALSE),VLOOKUP($K87,TS4L4_PCI,13,))))) ->  | N87: =IF(AND($AA$11<>"GPUReady",K87="Nvidia A30"),"",IF(AND($AA$11<>"GPUReady",K87="Nvidia A40"),"",IF(AND($AA$11="GPUReady",(SUM(W87:X87)=0)),"",IF(AND($AA$11="GPUReady",(SUM(W87:X87)>0)),VLOOKUP($K87,TS4L4_GPU,7,FALSE),VLOOKUP($K87,TS4L4_PCI,7,FALSE))))) ->  | P87: =T87+U87 -> 0 | T87: =IF(AND($AA$11<>"GPUReady",K87="Nvidia A30"),0,IF(AND($AA$11<>"GPUReady",K87="Nvidia A40"),0,IF(AND($AA$11="GPUReady",(SUM(W87:X87)=0)),0,IF(AND($AA$11="GPUReady",(SUM(W87:X87)>0)),VLOOKUP($K87,TS4L4_GPU,10,FALSE),VLOOKUP($K87,TS4L4_PCI,10,FALSE))))) -> 0 | U87: =IF(AND($AA$11<>"GPUReady",K87="Nvidia A30"),0,IF(AND($AA$11<>"GPUReady",K87="Nvidia A40"),0,IF(AND($AA$11="GPUReady",(SUM(W87:X87)=0)),0,IF(AND($AA$11="GPUReady",(SUM(W87:X87)>0)),VLOOKUP($K87,TS4L4_GPU,11,FALSE),VLOOKUP($K87,TS4L4_PCI,11,FALSE))))) -> 0 | V87: =IF(AND($AA$11<>"GPUReady",K87="Nvidia A30"),"",IF(AND($AA$11<>"GPUReady",K87="Nvidia A40"),"",IF(AND($AA$11="GPUReady",(SUM(W87:X87)=0)),"",IF(AND($AA$11="GPUReady",(SUM(W87:X87)>0)),VLOOKUP($K87,TS4L4_GPU,12,FALSE),VLOOKUP($K87,TS4L4_PCI,12,FALSE))))) ->  | W87: =IF(K87="Nvidia A30",1,0) -> 0 | X87: =IF(K87="Nvidia A40",2,0) -> 0
K89: PCI Slot 2 Processor 1 x8 PCIe Gen4 for HL/FH | W89: =IF(AND(AA11="GPUReady",(SUM(W87:X87))=0,K87<>"Slot non utilizzato"),"Deselezionare scheda PCI o Selezionare GPU","") -> 
K90: Slot Non Utilizzato | M90: =IF(AND(AA11="GPUReady",K90<>"Slot non utilizzato"),"",VLOOKUP($K90,TS4L4_PCI,13,FALSE)) ->  | N90: =IF(AND(AA11="GPUReady",K90<>"Slot non utilizzato"),"",VLOOKUP($K90,TS4L4_PCI,7,FALSE)) ->  | P90: =T90+U90 -> 0 | T90: =IF(AND(AA11="GPUReady",K90<>"Slot non utilizzato"),0,VLOOKUP($K90,TS4L4_PCI,10,FALSE)) -> 0 | U90: =IF(AND(AA11="GPUReady",K90<>"Slot non utilizzato"),0,VLOOKUP($K90,TS4L4_PCI,11,FALSE)) -> 0 | V90: =IF(AND(AA11="GPUReady",K90<>"Slot non utilizzato"),"",VLOOKUP($K90,TS4L4_PCI,12,FALSE)) -> 
K92: PCI Slot 3 Processor 1 x16 PCIe Gen4 for HL/LP | M92: =IF(AND(N127<>0,SUM(S102,S93)=0),"Slot Controller H840 per JBOD",IF(SUM(S93,S102)>1,"Selezionare un solo controller H840 a scelta tra slot 3 e 6",IF(AND(K93="PERC H840 RAID Adapter for External JBOD Only",N127<>1),"Il controller H840 è compatibile esclusivamente con il JBOD, aggiungere JBOD nelle successive opzioni",IF(AND(K93<>"Slot non Utilizzato",N23<>1),"Selezionare Processore Aggiuntivo per Abilitare Ulteriori Slot PCI","")))) -> 
K93: Slot Non Utilizzato | M93: =IF($Z$11="nutanix","",VLOOKUP($K93,TS4L4_PCI_LP,13,FALSE)) ->  | N93: =IF($Z$11="nutanix","",VLOOKUP($K93,TS4L4_PCI_LP,7,FALSE)) ->  | P93: =T93+U93 -> 0 | S93: =IF(K93="PERC H840 RAID Adapter for External JBOD Only",1,0) -> 0 | T93: =IF($Z$11="nutanix",0,VLOOKUP($K93,TS4L4_PCI_LP,10,FALSE)) -> 0 | U93: =IF($Z$11="nutanix",0,VLOOKUP($K93,TS4L4_PCI_LP,11,FALSE)) -> 0 | V93: =IF($Z$11="nutanix","",VLOOKUP($K93,TS4L4_PCI_LP,12,FALSE)) -> 0
I95: =IF(AA11="GPUReady","Slot per GPU 2 Double Wide (Occupa 2 Slot PCI, 4 e 5)","") ->  | J95: =IF($X$82="SW","GPU Slot",IF($X$82="DW","GPU Slot","")) ->  | K95: PCI Slot 4 Processor 2 x8 PCIe Gen4 for HL/FH | L95: =IF($X$82="SW","GPU Slot",IF($X$82="DW","GPU Slot","")) ->  | M95: =IF(AND(K96="Nvidia A30",$AA$11<>"GPUReady"),"Selezionare server GPU Ready o deselezionare Scheda GPU",IF(AND(K96="Nvidia A40",$AA$11<>"GPUReady"),"Selezionare server GPU Ready o deselezionare Scheda GPU","")) -> 
K96: Slot Non Utilizzato | M96: =IF(AND($AA$11<>"GPUREADY",K96="Nvidia A30"),"",IF(AND($AA$11<>"GPUREADY",K96="Nvidia A40"),"",IF($AA$11="GPUReady",VLOOKUP($K96,TS4L4_GPU,13,FALSE),VLOOKUP($K96,TS4L4_PCI,13,)))) ->  | N96: =IF(AND($AA$11<>"GPUREADY",K96="Nvidia A30"),"",IF(AND($AA$11<>"GPUREADY",K96="Nvidia A40"),"",IF($AA$11="GPUReady",VLOOKUP($K96,TS4L4_GPU,7,FALSE),VLOOKUP($K96,TS4L4_PCI,7,FALSE)))) ->  | P96: =T96+U96 -> 0 | T96: =IF(AND($AA$11<>"GPUREADY",K96="Nvidia A30"),0,IF(AND($AA$11<>"GPUREADY",K96="Nvidia A40"),0,IF($AA$11="GPUReady",VLOOKUP($K96,TS4L4_GPU,10,FALSE),VLOOKUP($K96,TS4L4_PCI,10,FALSE)))) -> 0 | U96: =IF(AND($AA$11<>"GPUREADY",K96="Nvidia A30"),0,IF(AND($AA$11<>"GPUREADY",K96="Nvidia A40"),0,IF($AA$11="GPUReady",VLOOKUP($K96,TS4L4_GPU,11,FALSE),VLOOKUP($K96,TS4L4_PCI,11,FALSE)))) -> 0 | V96: =IF(AND($AA$11<>"GPUREADY",K96="Nvidia A30"),"",IF(AND($AA$11<>"GPUREADY",K96="Nvidia A40"),"",IF($AA$11="GPUReady",VLOOKUP($K96,TS4L4_GPU,12,FALSE),VLOOKUP($K96,TS4L4_PCI,12,FALSE)))) -> 
J98: =IF($X$82="SW","GPU Slot","") ->  | K98: PCI Slot 5 Processor 2 x8 PCIe Gen4 for HL/FH | L98: =IF($X$82="SW","GPU Slot","") -> 
K99: Slot Non Utilizzato | M99: =IF(AND(AA11="GPUReady",K99<>"Slot non utilizzato"),"",VLOOKUP($K99,TS4L4_PCI,13,FALSE)) ->  | N99: =IF(AND(AA11="GPUReady",K99<>"Slot non utilizzato"),"",VLOOKUP($K99,TS4L4_PCI,7,FALSE)) ->  | P99: =T99+U99 -> 0 | T99: =IF(AND(AA11="GPUReady",K99<>"Slot non utilizzato"),0,VLOOKUP($K99,TS4L4_PCI,10,FALSE)) -> 0 | U99: =IF(AND(AA11="GPUReady",K99<>"Slot non utilizzato"),0,VLOOKUP($K99,TS4L4_PCI,11,FALSE)) -> 0 | V99: =IF(AND(AA11="GPUReady",K99<>"Slot non utilizzato"),"",VLOOKUP($K99,TS4L4_PCI,12,FALSE)) -> 
K101: PCI Slot 6 Processor 2 x16 PCIe Gen4 for HL/LP | M101: =IF(AND(N127<>0,SUM(S102,S93)=0),"Slot Controller H840 per JBOD",IF(SUM(S93,S102)>1,"Selezionare un solo controller H840 a scelta tra slot 3 e 6",IF(AND(K102="PERC H840 RAID Adapter for External JBOD Only",N127<>1),"Il controller H840 è compatibile esclusivamente con il JBOD, aggiungere JBOD nelle successive opzioni",IF(AND(N23<>1,K102<>"Slot non Utilizzato"),"Selezionare Processore Aggiuntivo per Abilitare Ulteriori Slot PCI","")))) -> 
K102: Slot Non Utilizzato | M102: =VLOOKUP($K102,TS4L4_PCI_LP,13,FALSE) ->  | N102: =VLOOKUP($K102,TS4L4_PCI_LP,7,FALSE) ->  | P102: =T102+U102 -> 0 | S102: =IF(K102="PERC H840 RAID Adapter for External JBOD Only",1,0) -> 0 | T102: =IF($Z$11="nutanix",0,VLOOKUP($K102,TS4L4_PCI_LP,10,FALSE)) -> 0 | U102: =IF($Z$11="nutanix",0,VLOOKUP($K102,TS4L4_PCI_LP,11,FALSE)) -> 0 | V102: =IF($Z$11="nutanix","",VLOOKUP($K102,TS4L4_PCI_LP,12,FALSE)) -> 0
I104: =IF(AA11="GPUReady","Slot per GPU 3 Double Wide (Occupa 2 Slot PCI,7 e 8)","") ->  | J104: =IF($X$82="SW","GPU Slot","") ->  | K104: PCI Slot 7 Processor 2 x8 PCIe Gen4 for HL/FH | L104: =IF($X$82="SW","GPU Slot","") ->  | M104: =IF(AND(K105="Nvidia A30",$AA$11<>"GPUReady"),"Selezionare server GPU Ready o deselezionare Scheda GPU",IF(AND(K105="Nvidia A40",$AA$11<>"GPUReady"),"Selezionare server GPU Ready o deselezionare Scheda GPU","")) -> 
K105: Slot Non Utilizzato | M105: =IF(AND($AA$11<>"GPUREADY",K105="Nvidia A30"),"",IF(AND($AA$11<>"GPUREADY",K105="Nvidia A40"),"",IF($AA$11="GPUReady",VLOOKUP($K105,TS4L4_GPU,13,FALSE),VLOOKUP($K105,TS4L4_PCI,13,)))) ->  | N105: =IF(AND($AA$11<>"GPUREADY",K105="Nvidia A30"),"",IF(AND($AA$11<>"GPUREADY",K105="Nvidia A40"),"",IF($AA$11="GPUReady",VLOOKUP($K105,TS4L4_GPU,7,FALSE),VLOOKUP($K105,TS4L4_PCI,7,FALSE)))) ->  | P105: =T105+U105 -> 0 | T105: =IF(AND($AA$11<>"GPUREADY",K105="Nvidia A30"),0,IF(AND($AA$11<>"GPUREADY",K105="Nvidia A40"),0,IF($AA$11="GPUReady",VLOOKUP($K105,TS4L4_GPU,10,FALSE),VLOOKUP($K105,TS4L4_PCI,10,FALSE)))) -> 0 | U105: =IF(AND($AA$11<>"GPUREADY",K105="Nvidia A30"),0,IF(AND($AA$11<>"GPUREADY",K105="Nvidia A40"),0,IF($AA$11="GPUReady",VLOOKUP($K105,TS4L4_GPU,11,FALSE),VLOOKUP($K105,TS4L4_PCI,11,FALSE)))) -> 0 | V105: =IF(AND($AA$11<>"GPUREADY",K105="Nvidia A30"),"",IF(AND($AA$11<>"GPUREADY",K105="Nvidia A40"),"",IF($AA$11="GPUReady",VLOOKUP($K105,TS4L4_GPU,12,FALSE),VLOOKUP($K105,TS4L4_PCI,12,FALSE)))) -> 
J107: =IF($X$82="SW","GPU Slot",IF($X$82="DW","GPU Slot","")) ->  | K107: PCI Slot 8 Processor 2 x8 PCIe Gen4 for HL/FH | L107: =IF($X$82="SW","GPU Slot",IF($X$82="DW","GPU Slot","")) -> 
K108: Slot Non Utilizzato | M108: =IF(AND(AA11="GPUReady",K108<>"Slot non utilizzato"),"",VLOOKUP($K108,TS4L4_PCI,13,FALSE)) ->  | N108: =IF(AND(AA11="GPUReady",K108<>"Slot non utilizzato"),"",VLOOKUP($K108,TS4L4_PCI,7,FALSE)) ->  | P108: =T108+U108 -> 0 | T108: =IF(AND(AA11="GPUReady",K108<>"Slot non utilizzato"),0,VLOOKUP($K108,TS4L4_PCI,10,FALSE)) -> 0 | U108: =IF(AND(AA11="GPUReady",K108<>"Slot non utilizzato"),0,VLOOKUP($K108,TS4L4_PCI,11,FALSE)) -> 0 | V108: =IF(AND(AA11="GPUReady",K108<>"Slot non utilizzato"),"",VLOOKUP($K108,TS4L4_PCI,12,FALSE)) -> 
P109: =IF(V108="L4N33",IF($W$108>1,"ERRORE: SOLO UNA BOSS CARD PUO' ESSERE CONFIGURATA",""),"") -> 
P111: =IF(V110="L4N33",IF($W$108>1,"ERRORE: SOLO UNA BOSS CARD PUO' ESSERE CONFIGURATA",""),"") -> 
I113: Transceiver per Schede LAN 20% (Mellanox HDR, Broadcom 57508) | K113: SFP+ Transceivers 10 Gbps
K114: =ConfigurationTS4L4!A136 -> SFP+ SR Optic for all SFP+ ports except High temperature Cards | M114: =VLOOKUP($K114,TS4L4_SFP,13,FALSE) -> TS4L4-OT10GB | N114: 0 | P114: =T114+U114 -> 0 | T114: =VLOOKUP($K114,TS4L4_SFP,10,FALSE) -> 0 | U114: =VLOOKUP($K114,TS4L4_SFP,11,FALSE)*ConfigurationTS4L4!G136*N114 -> 0 | V114: =VLOOKUP($K114,TS4L4_SFP,12,FALSE) -> L4N109
K116: SFP28 - 25GbE
K117: =ConfigurationTS4L4!A137 -> SFP28 SR Optic, 25GbE, 85C, for all SFP28 ports | M117: =VLOOKUP($K117,TS4L4_SFP,13,FALSE) -> TS4L4-OT25GB | N117: 0 | P117: =T117+U117 -> 0 | T117: =VLOOKUP($K117,TS4L4_SFP,10,FALSE) -> 0 | U117: =VLOOKUP($K117,TS4L4_SFP,11,FALSE)*N117 -> 0 | V117: =VLOOKUP($K117,TS4L4_SFP,12,FALSE) -> L4N110
K119: QSFP28 Transceivers
K120: =ConfigurationTS4L4!A138 -> Dell EMC PowerEdge QSFP28 SR4 100GbE 85C optic | M120: =VLOOKUP($K120,TS4L4_SFP,13,FALSE) -> TS4L4-OT100GB | N120: 0 | P120: =T120+U120 -> 0 | T120: =VLOOKUP($K120,TS4L4_SFP,10,FALSE) -> 0 | U120: =VLOOKUP($K120,TS4L4_SFP,11,FALSE)*N120 -> 0 | V120: =VLOOKUP($K120,TS4L4_SFP,12,FALSE) -> L4N111
K123: Enclosure JBOD da 12 Slot 3,5'' e dishi SAS da inserire nell'Enclosure. Una volta selezionato il JBOD e i dischi a corredo si deve obbligatoriamente compilare uno slot PCI a scelta tra lo Slot 3 e lo Slot 6 dove inserire il controller H840 compreso nel Kit JBOD
I126: Enclosure JBOD Esterno 2 RU comprensivo di connessione con Controller RAID H840 (solo per JBOD) Installabile su Slot PCI low Profile (Slot 3-6). I dischi da 12TB, 16TB e 20TB possono essere installati ESCLUSIVAMENTE nel JBOD | K126: Opz JBOD (NO DISK) | M126: =IF(AND(N127<>0,SUM(S102,S93)=0),"Selezionare Controller H840 negli slot PCI a scelta a tra 3 e 6",IF(AND(N127=0,SUM(N130:N136)>0),"Selezionare JBOD per aggiugere dischi SAS JBOD",IF(AND(N127<> 0,SUM(N130:N136)=0),"Il JBOD non ha dischi al suo interno, selezionare dischi da 12TB, 16TB o 20TB per un massimo di 12 dischi.",IF(AND(N127=1,SUM(N130:N136)>12),"Superato Numero dischi disponibili per JBOD","")))) -> 
K127: =Tabella_prezzi!H80 -> Enclosure di espansione JBOD 12 slot 3,5'' + HBA (H840) | M127: =VLOOKUP($K127,TS4L4_20X100,13,FALSE) -> TS4L4-JBOD | N127: 0 | P127: =T127+U127 -> 0 | T127: =VLOOKUP($K127,TS4L4_20X100,10,FALSE)*N127 -> 0 | U127: =VLOOKUP($K127,TS4L4_20X100,11,FALSE)*N127 -> 0 | V127: =VLOOKUP($K127,TS4L4_20X100,12,FALSE) -> L4N122
K129: Opz 12TB 7,2 RPM - per JBOD
K130: =Tabella_prezzi!H81 -> 12TB 7.2K RPM NLSAS ISE 12Gbps 512e 3.5in Hot-plug Hard Drive | M130: =VLOOKUP($K130,TS4L4_20X100,13,FALSE) -> TS4L4-12TBNLSAS | N130: 0 | O130: =IF(AND(M126="Superato numero dischi disponibili per JBOD",N130>0),"!","") ->  | P130: =T130+U130 -> 0 | T130: =VLOOKUP($K130,TS4L4_20X100,10,FALSE)*N130 -> 0 | U130: =IF(M126<>"",0,VLOOKUP($K130,TS4L4_20X100,11,FALSE)*N130) -> 0 | V130: =VLOOKUP($K130,TS4L4_20X100,12,FALSE) -> L4N123
K132: Opz 16TB 7,2 RPM - per JBOD
K133: =Tabella_prezzi!H82 -> 16TB Hard Drive SAS ISE 12Gbps 7.2K 512e 3.5in Hot-Plug | M133: =VLOOKUP($K133,TS4L4_20X100,13,FALSE) -> TS4L4-16TBSAS | N133: 0 | P133: =T133+U133 -> 0 | T133: =VLOOKUP($K133,TS4L4_20X100,10,FALSE)*N133 -> 0 | U133: =IF(M126<>"",0,VLOOKUP($K133,TS4L4_20X100,11,FALSE)*N133) -> 0 | V133: =VLOOKUP($K133,TS4L4_20X100,12,FALSE) -> L4N124
K135: Opz 20TB 7,2 RPM - per JBOD
K136: =Tabella_prezzi!H83 -> 20TB HDD SAS ISE 12Gbps 7.2K 512e 3.5in Hot-Plug | M136: =VLOOKUP($K136,TS4L4_20X100,13,FALSE) -> TS4L4-20TBSAS | N136: 0 | P136: =T136+U136 -> 0 | T136: =VLOOKUP($K136,TS4L4_20X100,10,FALSE)*N136 -> 0 | U136: =IF(M126<>"",0,VLOOKUP($K136,TS4L4_20X100,11,FALSE)*N136) -> 0 | V136: =VLOOKUP($K136,TS4L4_20X100,12,FALSE) -> L4N125
K139: Estensione di Garanzia e Hard Disk Retention
K142: Garanzia
K143: Manutenzione in garanzia (36 mesi) | M143: =VLOOKUP($K143,TS4L4_WARR,13,FALSE) ->  | N143: =VLOOKUP($K143,TS4L4_WARR,7,FALSE) ->  | P143: =T143 -> 0 | T143: =VLOOKUP($K143,TS4L4_WARR,10,FALSE) -> 0 | U143: =VLOOKUP($K143,TS4L4_WARR,11,FALSE) -> 0 | V143: =VLOOKUP($K143,TS4L4_WARR,12,FALSE) -> 
K145: Hard Disk Retention | N145: =IF(AND($K$146="Hard Disk Retention 60 mesi",$N$143=""),"Selezionare Estensione di Garanzia 24 Mesi","") -> 
K146: No Hard Disk Retention | M146: =VLOOKUP(K146,TS4L4_HDDRET,13,FALSE) ->  | N146: =IF(K146="No Hard Disk Retention","",1) ->  | P146: =T146 -> 0 | T146: =IF(AND(K146="Hard Disk Retention 60 mesi",N143=""),"",VLOOKUP(K146,TS4L4_HDDRET,10,FALSE)) -> 0 | U146: =IFERROR(Z146,VLOOKUP(K146,TS4L4_HDDRET,11,FALSE)) -> 0 | V146: =IF(AND(K146="Hard Disk Retention 60 mesi",N143=""),"",VLOOKUP(K146,TS4L4_HDDRET,12,FALSE)) -> 
M148: Configurazione | N148: =SUM(T11:T146)*N8 -> 0 | T148: =IF(AND($N$146=1,$N$143=""),"Selezionare Estensione di Garanzia 24 Mesi","") -> 
M149: 0.2 | N149: =SUM(U11:U146)*N8 -> 0
M150: Totale | N150: =SUM(N148:N149) -> 0
K152: NOTE

Sheet Lotto4_R7525_2
K2: Convenzione Tecnologie Server 4 - Lotto 4 | M2: =IF(W108>1,"ERRORE NELLA CONFIGURAZIONE","") ->  | P2: =IF(Riepilogo_Ordine!K141>Riepilogo_Ordine!G141,"Superata Quota 20%","") ->  | AD2: SALVAPDF
P3: Articoli 20% Totali | S3: Check HD 2 | T3: Check HDD Nut | U3: Check CPU | V3: Check RAM | W3: Check NVME | X3: Check PCI | Y3: Check Win | Z3: Check Warr | AA3: Check nVME | AB3: Check Tot | AD3: =IF(N8>0,1,0) -> 0
K4: =IF(Z11="Nutanix","Selezionando la soluzione Nutanix si accetta la sostituzione del server base con la versione XC comprensivo di HBA355 (Non RAID), BOSS Card e LAN 10 GB su slot OCP",IF(W15="vsan","Selezionando la soluzione vSAN si accetta la sostituzione del controller 745 con il HBA355 (Non RAID), comprensivo di BOSS Card","Selezionare Il server Base e cliccare su 'Compila Configurazione' per inserire le opzioni necessarie e obbligatorie a soddisfare la configurazione selezionata")) -> Selezionare Il server Base e cliccare su 'Compila Configurazione' per inserire le opzioni necessarie e obbligatorie a soddisfare la configurazione selezionata | M4: =IF(AB4>1,"Errori nella Configurazione",IF(AA4>0,"Troppi Dischi nVME",IF(S4>0,"Troppi Dischi SAS",IF(U4>0,"Errore nella Selezione della CPU",IF(V4>0,"Errore Nella Selezione della RAM",IF(W4>0,"Errore Nella selezione dello Chassis per Dischi nVME",IF(X4>0,"Errore nella Selezione Slot PCI",IF(Y4>0,"Errore nella Selezione Licenze Windows",IF(Z4>0,"Errore Selezione Garanzia o HDD Retention",IF(T4>0,"Errore Selezione Dischi",IF(T6=1,"Errore Selezione dischi NVMe",""))))))))))) ->  | N4: Totale Altre Opzioni | P4: =Riepilogo_Ordine!K141 -> 0 | S4: =IF(N44<0,1,0) -> 0 | T4: =IF(AND(Z11="Nutanix",AF46>1),1,0) -> 0 | U4: =IF(N22<>"",1,0) -> 0 | V4: =IF(N25<>"",1,0) -> 0 | W4: =IF(M61<>"",1,0) -> 0 | X4: =IF(M86<>"",1,0) -> 0 | Y4: =IF(N28<>"",1,0) -> 0 | Z4: =IF(N145<>"",1,0) -> 0 | AA4: =IF(N63<0,1,0) -> 0 | AB4: =SUM(S4:AA4)+T6 -> 0
N5: ='Altre Opzioni'!L3 -> 0 | P5: Quota Residua 20 % | T5: Check NVMe GPU
M6: Guida alla Convenzione | N6: Totale Configurazione | P6: =Riepilogo_Ordine!G142 -> 0 | T6: =IF(AND(N64=0,AA11="GPUReady"),1,0) -> 0
I7: =IF(AND(Y11="Vsan",N73=""),"Utilizzando il controller HBA355 in una soluzione vSAN, per il boot si deve utilizzare la 'BOSS Card'",IF(AND(Z11="Nutanix",N73=""),"Utilizzando il controller HBA355 in una soluzione Nutanix, per il boot si deve utilizzare la 'BOSS Card'","")) ->  | K7: =IF(Riepilogo_Ordine!P8>0,"Compilare i Dati nel Foglio Riepilogo per Stampare in PDF","") -> Compilare i Dati nel Foglio Riepilogo per Stampare in PDF | N7: =N148+N149 -> 0 | P7: Totale Ordine Iva Esclusa | T7: =N7+Lotto4_R7525_2!L7 -> 0
K8: DELL POWEREDGE R7525 | M8: Quantità Server | N8: 0 | P8: =Riepilogo_Ordine!K142 -> 0
K10: Base | W10: =IF(N127<>0,"JBOD","") ->  | X10: PowerEdge R7525 Server (General Purpose) | Y10: =IF(AND(X11="",Y11="vSAN"),1,IF(AND(X11="nvme",Y11=""),3,2)) -> 2
K11: PowerEdge R7525 Server (General Purpose) | M11: =IF($N$8=0,"",VLOOKUP(K11,TS4L4_Base,13,FALSE)) ->  | N11: =IF($N$8>0,1,"") ->  | P11: =T11 -> 3637.17 | T11: =VLOOKUP($K$11,TS4L4_Base,10,FALSE) -> 3637.17 | V11: =VLOOKUP($K11,TS4L4_Base,12,FALSE) -> L4N01 | X11: =IF(AND(K11=ConfigurationTS4L4!A13,N23=""),"nVME1",IF(AND(K11=ConfigurationTS4L4!A13,N23=1),"nVME2","")) ->  | Y11: =IF(K11=ConfigurationTS4L4!A14,512,IF(K11=ConfigurationTS4L4!A15,1024,IF(K11=ConfigurationTS4L4!A16,2048,""))) ->  | Z11: =IF(K11=ConfigurationTS4L4!A17,"Nutanix","") ->  | AA11: =IF(K11=ConfigurationTS4L4!A9,"GPUReady","") -> 
K15: =IF(SUM(N64:N70)>0,IF(K11=ConfigurationTS4L4!A3,"▲ Selezionare chassis NVME, vSAN, Nutanix o ▲ GPUReady per Abilitare nVME ",""),"") ->  | W15: =IF(Y11<>"","vsan","") ->  | X15: =IF(AND(Y15="GP1",K26>512),"Selezionare RAM Corretta","") ->  | Y15: =IF(AND(K11=ConfigurationTS4L4!A12,N23=""),"GP1",IF(AND(K11=ConfigurationTS4L4!A12,N23=1),"GP2","")) -> GP1
K16: Chassis Configuration | M16: =IF($X$82="SW","MAX 4 GPU",IF($X$82="DW","MAX 2 GPU","")) -> 
K17: =IF(N23=1,VLOOKUP($K$11,TS4L4_Chassis,3,FALSE),VLOOKUP($K$11,TS4L4_Chassis,2,FALSE)) -> Chassis with Up to 16 x 2.5 Hard Drives for 1CPU Configuration | M17: =IF($N$23=1,VLOOKUP($K$11,TS4L4_Chassis,11,FALSE),VLOOKUP($K$11,TS4L4_Chassis,9,FALSE)) -> TS4L4-Opz1CPU | N17: =VLOOKUP(K11,TS4L4_Chassis,7,0) -> 0 | P17: =T17+U17 -> 0 | U17: =VLOOKUP($K$11,TS4L4_Chassis,10,FALSE)*N17 -> 0 | V17: =IF(N17=0,"",(VLOOKUP($K11,TS4L4_Chassis,12,FALSE))) ->  | X17: Chassis with Up to 24 x 2.5'' Hard Drives for 2CPU Configuration | Y17: 1
K19: Processor
K20: AMD7413 2.65GHz,24C/48T,128M,180W,3200CK | T20: =IF(N17=1,VLOOKUP($K$20,TS4L4_CPU,11,FALSE),VLOOKUP($K$20,TS4L4_CPU,11,FALSE)) -> 0 | U20: =IF(N17=1,VLOOKUP($K$20,TS4L4_CPU,11,FALSE),VLOOKUP($K$20,TS4L4_CPU,11,FALSE)) -> 0 | V20: =IF(U20=0,0,VLOOKUP($K20,TS4L4_CPU,12,FALSE)) -> 0
K22: Additional Processor | N22: =IF(AND(Y11=512,N23=""),"Selezionare Processore Aggiuntivo per Configurazione vSAN",IF(AND(X11="nVME1",N23=""),"Selezionare Processore Aggiuntivo per Configurazione nVME",IF(AND(Y11=1024,N23=""),"Selezionare Processore Aggiuntivo per Configurazione vSAN",IF(AND(Y11=2048,N23=""),"Selezionare Processore Aggiuntivo per Configurazione vSAN",IF(AND(Z11="Nutanix",N23=""),"Selezionare Processore Aggiuntivo per Configurazione Nutanix",IF(AND(AA11="GPUReady",N23=""),"Selezionare Processore Aggiuntivo per Configurazione GPUReady","")))))) -> 
I23: =IF(AND(K23="No Additional Processor",SUM(L90:L105)>0),"Selezionare Processore Aggiuntivo o Deselezionare Schede PCI","") ->  | K23: No Additional Processor | M23: =IF(N17=1,VLOOKUP($K$20,TS4L4_CPU,13,FALSE),VLOOKUP($K$23,TS4L4_CPU,13,FALSE)) ->  | N23: =IF(N17=1,VLOOKUP($K$23,TS4L4_CPU,7,FALSE),VLOOKUP($K$23,TS4L4_CPU,7,FALSE)) ->  | P23: =T23 -> 0 | T23: =IF(N17=1,VLOOKUP($K$20,TS4L4_CPU,10,FALSE),VLOOKUP($K$23,TS4L4_CPU,10,FALSE)) -> 0 | U23: =IF(N17=1,VLOOKUP($K$20,TS4L4_CPU,11,FALSE),VLOOKUP($K$23,TS4L4_CPU,11,FALSE)) -> 0 | V23: =IF(N17=1,VLOOKUP(K20,TS4L4_CPU,12,FALSE),VLOOKUP($K23,TS4L4_CPU,12,FALSE)) ->  | X23: =IF(N23=1,"AMD7413 2.65GHz,24C/48T,128M,180W,3200CK",K23) -> No Additional Processor
K25: Memory Capacity (GB) | N25: =IF(AND(Y11=512,K26<>512),"Selezionare 512 GB Ram'",IF(AND(Y11=1024,K26<>1024),"Selezionare 1 TB RAM",IF(AND(Y11=2048,K26<>2048),"Selezionare 2 TB RAM",IF(AND(Z11="Nutanix",K26<>2048),"Selezionare 2TB RAM",IF(AND(Y15="GP1",K26>512),"Selezionare RAM Corretta",IF(AND(Y15="GP2",K26>1536),"Selezionare RAM Corretta",IF(AND(X11="nVME1",K26>512),"Selezionare RAM Corretta",IF(AND(X11="nVME2",K26>1536),"Selezionare RAM Corretta",IF(AND(AA11="GPUReady",K26<>2048),"Selezionare Base GPUReady e cliccare su 'Compila Configurazione'",""))))))))) -> 
K26: 256 | M26: =IF(K23="No Additional Processor",VLOOKUP(K26,TS4L4_RAM2CPU,13,FALSE),VLOOKUP(K26,TS4L4_RAM2CPU,13,FALSE)) -> TS4L4-RAM32 | N26: =IF(N25<>"",0,Y26) -> 0 | P26: =T26 -> 0 | T26: =IF(N25<>"",0,IF(K23="No Additional Processor",VLOOKUP(K26,TS4L4_RAM2CPU,10,FALSE),VLOOKUP(K26,TS4L4_RAM2CPU,10,FALSE))) -> 0 | V26: =IF(N25<>"",0,AA26) ->  | X26: =IF($N$23=1,VLOOKUP($K$26,TS4L4_RAM2CPU,13,FALSE),VLOOKUP($K$26,TS4L4_RAM1Cpu,13,FALSE)) -> TS4L4-RAM32 | Y26: =IF($N$23=1,VLOOKUP($K$26,TS4L4_RAM2CPU,7,FALSE),VLOOKUP($K$26,TS4L4_RAM1Cpu,7,FALSE)) -> 0 | Z26: =IF($N$23=1,VLOOKUP($K$26,TS4L4_RAM2CPU,10,FALSE),VLOOKUP($K$26,TS4L4_RAM1Cpu,10,FALSE)) -> 0 | AA26: =IF($N$23=1,VLOOKUP($K$26,TS4L4_RAM2CPU,12,FALSE),VLOOKUP($K$26,TS4L4_RAM1Cpu,12,FALSE)) -> 
K28: Operating System STANDARD | N28: =IF(AND(K29="No Operating System",N29>0),"Selezionare Sistema Operativo",IF(AND(K29="Ubuntu 22.04 LTS 64 Bit",N29>1),"Selezionare Licenze Corrette",IF(AND(K29="Ubuntu 22.04 LTS 64 Bit",N23=1),"",IF(AND(N23=1,K29="No Operating System"),"",IF(AND(N23=1,N29<3),"Selezionare Licenze Corrette",IF(AND(N23<>1,N29>4),"Selezionare Licenze Corrette",IF(AND(K29="Windows Server 2022,Standard,ROK,16CORE",N29=""),"Selezionare numero Licenze",""))))))) -> 
K29: No Operating System | M29: =VLOOKUP($K$29,TS4L4_OS,13,FALSE) ->  | N29: 0 | P29: =T29 -> 0 | T29: =IF(N33>0,0,VLOOKUP($K$29,TS4L4_OS,10,FALSE))*N29 -> 0 | U29: =VLOOKUP($K$29,TS4L4_OS,11,FALSE) -> 0 | V29: =IF(N33>0,0,VLOOKUP($K29,TS4L4_OS,12,FALSE)) ->  | X29: =IF(AND(K23="No Additional Processor",N29>=3),TRUE,FALSE) -> FALSE
K30: Windows Server 2022 Standard Edition, Add License,2CORE | M30: =VLOOKUP($K$30,TS4L4_OS,13,FALSE) -> TS4L4-WINSRV2C | N30: =IF(K29="No Operating System",0,IF(AND(K29="Windows Server 2022,Standard,ROK,16CORE",N29=0),0,IF($K$29="Ubuntu 22.04 LTS 64 Bit",0,IF(N29=1,VLOOKUP($K$29,TS4L4_OS,7,FALSE)*4,IF(N29=3,0,IF(N29=6,0,IF(N29=9,0,IF(N29="",0,IF(N29=4,4))))))))) -> 0 | P30: =T30 -> 0 | T30: =VLOOKUP($K$30,TS4L4_OS,10,FALSE)*N30 -> 0 | U30: =VLOOKUP($K$29,TS4L4_OS,11,FALSE) -> 0 | V30: =IF(N33>0,0,VLOOKUP($K30,TS4L4_OS,12,FALSE)) -> L4N25 | X30: =IF(AND(K23<>"No Additional Processor",N29>=3),TRUE,FALSE) -> FALSE
K32: Operating System DATACENTER
K33: No Operating System | M33: =VLOOKUP($K$33,ConfigurationTS4L4!A67:W76,13,FALSE) ->  | N33: =IF(K33="Windows Server 2022,Datacenter,ROK,16CORE",1,0) -> 0 | P33: =T33 -> 0 | T33: =IF(N29>0,0,VLOOKUP($K$33,TS4L4_OS,10,FALSE))*N33 -> 0 | U33: =VLOOKUP($K$29,TS4L4_OS,11,FALSE) -> 0 | V33: =IF(N29>0,0,VLOOKUP($K33,TS4L4_OS,12,FALSE)) ->  | X33: =IF(AND(N23=1,N33=1),16,IF(AND(N23=1,N33=""),0,IF(AND(N23="",N33=1),4,FALSE))) -> FALSE
K34: Windows Server 2022 / 2019 Datacenter Edition,Add License,2CORE | M34: =VLOOKUP($K$34,TS4L4_OS,13,FALSE) -> TS4L4-WinServDC2core | N34: =IF(AND(N23=1,N33=1),16,IF(AND(N23=1,N33=""),0,IF(AND(N23="",N33=1),4,IF(AND(N23="",N33=""),0,"0")))) -> 0 | P34: =T34 -> 0 | T34: =IF(N29>0,0,VLOOKUP($K$34,TS4L4_OS,10,FALSE))*N34 -> 0 | U34: =VLOOKUP($K$29,TS4L4_OS,11,FALSE) -> 0 | V34: =IF(N29>0,0,VLOOKUP($K34,TS4L4_OS,12,FALSE)) -> L4N28
K36: Operating System Device CAL / User CAL
K37: 1-pack of Windows Server 2022/2019 Device CALs (STD or DC) | M37: =VLOOKUP($K$37,ConfigurationTS4L4!A72:W73,13,FALSE) -> TS4L4-WINDEVCAL | N37: 0 | P37: =T37 -> 0 | T37: =VLOOKUP($K$37,ConfigurationTS4L4!A72:N73,10,FALSE)*N37 -> 0 | U37: =VLOOKUP($K$29,TS4L4_OS,11,FALSE) -> 0 | V37: =VLOOKUP($K37,TS4L4_OS,12,FALSE) -> L4N23
K38: 1-pack of Windows Server 2022/2019 User CALs (STD or DC) | M38: =VLOOKUP($K$38,ConfigurationTS4L4!A73:W74,13,FALSE) -> TS4L4-WINUSRCAL | N38: 0 | P38: =T38 -> 0 | T38: =VLOOKUP($K$38,ConfigurationTS4L4!A73:N74,10,FALSE)*N38 -> 0 | U38: =VLOOKUP($K$29,TS4L4_OS,11,FALSE) -> 0 | V38: =VLOOKUP($K38,TS4L4_OS,12,FALSE) -> L4N24
K40: Disk Controller | M40: =IF(AND(Y11="Vsan",N73=""),"Utilizzando il controller HBA355 in una soluzione vSAN, per il boot si deve utilizzare la 'BOSS Card'",IF(AND(Z11="Nutanix",N73=""),"Utilizzando il controller HBA355 in una soluzione Nutanix per il boot si deve utilizzare la 'BOSS Card'","")) -> 
K41: =IF(Y11=512,ConfigurationTS4L4!A98,IF(Y11=1024,ConfigurationTS4L4!A98,IF(Y11=2048,ConfigurationTS4L4!A98,IF(Z11="Nutanix",ConfigurationTS4L4!A98,IF(AA11="GPUReady",ConfigurationTS4L4!A98,ConfigurationTS4L4!A97))))) -> PERC H745 Controller | M41: =VLOOKUP(K41,TS4L4_CRTL,13,FALSE) ->  | N41: =VLOOKUP($K41,TS4L4_CRTL,7,FALSE) ->  | P41: =U41 -> 0 | T41: =IF(K41=ConfigurationTS4L4!A46,0,VLOOKUP($K41,TS4L4_CRTL,10,FALSE)) -> 0 | U41: =IF($AA$11="GPUReady",0,IF(W15="vsan",0,IF(Z11="Nutanix",0,VLOOKUP($K41,TS4L4_CRTL,11,FALSE)))) -> 0 | V41: =IF(W15="vsan",0,IF(Z11="Nutanix",0,VLOOKUP($K41,TS4L4_CRTL,12,FALSE))) -> L4N44 | X41: =IF(K11="PowerEdge R7525 Server (vSAN Ready)","Vsan","") -> 
K43: Hard Drivers Bays n° 16 - 2 bay occupate dai dischi 960GB SSD di base | M43: Usati | N43: Disponibili | P43: =IF(AND(Z11="Nutanix",AF46>1),"E' Possibile selezionare solo un modello di Disco",IF(Z11="Nutanix","In una soluzione Nutanix i dischi devono necessariamente essere dello stesso modello","")) -> 
M44: =N46+N48+N50+N56+N58+N52+N54+N60 -> 2 | N44: =16-M44 -> 14
AF45: Totale
K46: =ConfigurationTS4L4!A79 -> 2.4TB 10k SAS ISE 12Gbps | M46: =VLOOKUP($K46,TS4L4_HDD,13,FALSE) -> TS4L4-HDD2TB | N46: 0 | P46: =T46 -> 0 | T46: =IF(N44<0,0,IF(AND(AF46>1,Z11="nutanix"),0,VLOOKUP($K46,TS4L4_HDD,10,FALSE))*N46) -> 0 | U46: =IF(N44<0,0,VLOOKUP($K46,TS4L4_HDD,11,FALSE)) -> 0 | V46: =IF(N44<0,"",IF(AND(AF46>1,Z11="nutanix"),"",VLOOKUP($K46,TS4L4_HDD,12,FALSE))) -> L4N11 | X46: =IF(N46>0,1,0) -> 0 | Y46: =IF(N48>0,1,0) -> 0 | Z46: =IF(N50>0,1,0) -> 0 | AA46: =IF(N52>0,1,0) -> 0 | AB46: =IF(N54>0,1,0) -> 0 | AC46: =IF(N56>0,1,0) -> 1 | AD46: =IF(N58>0,1,0) -> 0 | AE46: =IF(N60>0,1,0) -> 0 | AF46: =SUM(X46:AE46) -> 1
K48: =ConfigurationTS4L4!A80 -> 1.2TB 10K RPM SAS ISE 12Gbps | M48: =VLOOKUP($K48,TS4L4_HDD,13,FALSE) -> TS4L4-HDD1TB | N48: 0 | P48: =T48 -> 0 | T48: =IF(N44<0,0,IF(AND(AF46>1,Z11="nutanix"),0,VLOOKUP($K48,TS4L4_HDD,10,FALSE))*N48) -> 0 | U48: =IF(N44<0,0,VLOOKUP($K48,TS4L4_HDD,11,FALSE)) -> 0 | V48: =IF(N44<0,"",IF(AND(AF46>1,Z11="nutanix"),"",VLOOKUP($K48,TS4L4_HDD,12,FALSE))) -> L4N12
K50: =ConfigurationTS4L4!A81 -> 3.84TB SSD SAS ISE RI 12Gbps | M50: =VLOOKUP($K50,TS4L4_HDD,13,FALSE) -> TS4L4-SSD-RI3,8TB | N50: 0 | P50: =T50 -> 0 | T50: =IF(N44<0,0,IF(AND(AF46>1,Z11="nutanix"),0,VLOOKUP($K50,TS4L4_HDD,10,FALSE))*N50) -> 0 | U50: =IF(N44<0,0,VLOOKUP($K50,TS4L4_HDD,11,FALSE)) -> 0 | V50: =IF(N44<0,"",IF(AND(AF46>1,Z11="nutanix"),"",VLOOKUP($K50,TS4L4_HDD,12,FALSE))) -> L4N13
K52: =ConfigurationTS4L4!A82 -> 1.92TB SSD SAS ISE RI 12Gbps | M52: =VLOOKUP($K52,TS4L4_HDD,13,FALSE) -> TS4L4-SSD-RI1,6TB | N52: 0 | P52: =T52 -> 0 | T52: =IF(N44<0,0,IF(AND(AF46>1,Z11="nutanix"),0,VLOOKUP($K52,TS4L4_HDD,10,FALSE))*N52) -> 0 | U52: =VLOOKUP($K52,TS4L4_HDD,11,FALSE) -> 0 | V52: =IF(N44<0,"",IF(AND(AF46>1,Z11="nutanix"),"",VLOOKUP($K52,TS4L4_HDD,12,FALSE))) -> L4N14
K54: =ConfigurationTS4L4!A83 -> 1.6TB SSD SAS ISE MU 12Gbps | M54: =VLOOKUP($K54,TS4L4_HDD,13,FALSE) -> TS4L4-SSD-MU1,6TB | N54: 0 | P54: =T54 -> 0 | T54: =IF(N44<0,0,IF(AND(AF46>1,Z11="nutanix"),0,VLOOKUP($K54,TS4L4_HDD,10,FALSE))*N54) -> 0 | U54: =VLOOKUP($K54,TS4L4_HDD,11,FALSE) -> 0 | V54: =IF(N44<0,"",IF(AND(AF46>1,Z11="nutanix"),"",VLOOKUP($K54,TS4L4_HDD,12,FALSE))) -> L4N15
K56: =ConfigurationTS4L4!A84 -> 960GB SSD SAS ISE RI 12Gbps | M56: =VLOOKUP($K56,TS4L4_HDD,13,FALSE) -> TS4L4-SSD-RI800GB | N56: 2 | P56: =T56 -> 0 | T56: =IF(N44<0,0,IF(AND(AF46>1,Z11="nutanix"),0,IF(N56>2,(VLOOKUP($K56,TS4L4_HDD,10,FALSE)*(N56-2)),0))) -> 0 | U56: =VLOOKUP($K56,TS4L4_HDD,11,FALSE)*N56 -> 0 | V56: =IF(N44<0,"",IF(AND(AF46>1,Z11="nutanix"),"",VLOOKUP($K56,TS4L4_HDD,12,FALSE))) -> L4N16
K58: =ConfigurationTS4L4!A85 -> 800GB SSD SAS ISE Mix Use 12Gbps | M58: =VLOOKUP($K58,TS4L4_HDD,13,FALSE) -> TS4L4-SSD-MU800GB | N58: 0 | P58: =T58 -> 0 | T58: =IF(N44<0,0,IF(AND(AF46>1,Z11="nutanix"),0,VLOOKUP($K58,TS4L4_HDD,10,FALSE))*N58) -> 0 | U58: =VLOOKUP($K58,TS4L4_HDD,11,FALSE)*N58 -> 0 | V58: =IF(N44<0,"",IF(AND(AF46>1,Z11="nutanix"),"",VLOOKUP($K58,TS4L4_HDD,12,FALSE))) -> L4N17
K60: =ConfigurationTS4L4!A87 -> 7.68TB SSD RI SAS ISE 12Gbps | M60: =VLOOKUP($K60,TS4L4_HDD,13,FALSE) -> TS4L4-SSD7.68RI | N60: 0 | P60: =U60 -> 0 | U60: =IF(N44<0,0,IF(AND(AF46>1,Z11="nutanix"),0,VLOOKUP($K60,TS4L4_HDD,11,FALSE))*N60) -> 0 | V60: =IF(N44<0,"",IF(AND(AF46>1,Z11="nutanix"),"",VLOOKUP($K60,TS4L4_HDD,12,FALSE))) -> L4N32
M61: =IF(SUM(N64:N70)>0,IF(K11=ConfigurationTS4L4!A3,"▲ Selezionare chassis NVME, vSAN, Nutanix o GPU Ready ▲ per abilitare dischi nVME",""),"") ->  | P61: =IF(AND(N64<2,AA11="GPUReady"),"Selezionare almeno 2 dischi NVMe 1.6",IF(N63<0,"Troppi Dischi NVMe",IF(SUM(N64:N70)>0,"Sui dischi NVMe non è supportato il RAID Hardware",""))) -> 
K62: NVMe Bays N° 8 | M62: Usati | N62: Disponibili
M63: =SUM(N64:N70) -> 0 | N63: =8-(N64+N66+N68+N70) -> 8
K64: =ConfigurationTS4L4!A86 -> 1.6TB Enterprise NVMe Mixed Use Drive U.2 | M64: =VLOOKUP($K64,TS4L4_HDD,13,FALSE) -> TS4L4-NVME1,6TB | N64: 0 | O64: =IF(AND(N64>0,M61<>""),"!","") ->  | P64: =T64 -> 0 | T64: =IF(N63<0,0,IF(AND(K11="PowerEdge R7525 Server (General Purpose)",SUM(N64:N70)>0),0,VLOOKUP($K64,TS4L4_HDD,10,FALSE))*N64) -> 0 | U64: =VLOOKUP($K64,TS4L4_HDD,11,FALSE) -> 0 | V64: =IF(N63<0,"",IF(AND(K11="PowerEdge R7525 Server (General Purpose)",SUM(N64:N70)>0),"",VLOOKUP($K64,TS4L4_HDD,12,FALSE))) -> L4N18
K66: =ConfigurationTS4L4!A88 -> 3.2TB, Enterprise, NVMe, Mixed Use | M66: =VLOOKUP($K66,TS4L4_HDD,13,FALSE) -> TS4L4-NVMe3.2MU | N66: 0 | O66: =IF(AND(N66>0,M61<>""),"!","") ->  | P66: =U66 -> 0 | U66: =IF(N63<0,0,IF(AND(K11="PowerEdge R7525 Server (General Purpose)",SUM(N64:N70)>0),0,VLOOKUP($K66,TS4L4_HDD,11,FALSE))*N66) -> 0 | V66: =IF(N63<0,"",IF(AND(K11="PowerEdge R7525 Server (General Purpose)",SUM(N64:N70)>0),"",VLOOKUP($K66,TS4L4_HDD,12,FALSE))) -> L4N33
K68: =ConfigurationTS4L4!A89 -> 1.92TB, Enterprise, NVMe, Read Intensive | M68: =VLOOKUP($K68,TS4L4_HDD,13,FALSE) -> TS4L4-NVMe1.92RI | N68: 0 | O68: =IF(AND(N68>0,M61<>""),"!","") ->  | P68: =U68 -> 0 | U68: =IF(N63<0,0,IF(AND(K11="PowerEdge R7525 Server (General Purpose)",SUM(N64:N70)>0),0,VLOOKUP($K68,TS4L4_HDD,11,FALSE))*N68) -> 0 | V68: =IF(N63<0,"",IF(AND(K11="PowerEdge R7525 Server (General Purpose)",SUM(N64:N70)>0),"",VLOOKUP($K68,TS4L4_HDD,12,FALSE))) -> L4N34
K70: =ConfigurationTS4L4!A90 -> 3.84TB, Enterprise, NVMe, Read Intensive | M70: =VLOOKUP($K70,TS4L4_HDD,13,FALSE) -> TS4L4-NVMe3.84RI | N70: 0 | O70: =IF(AND(N70>0,M61<>""),"!","") ->  | P70: =U70 -> 0 | U70: =IF(N63<0,0,IF(AND(K11="PowerEdge R7525 Server (General Purpose)",SUM(N64:N70)>0),0,VLOOKUP($K70,TS4L4_HDD,11,FALSE))*N70) -> 0 | V70: =IF(N63<0,"",IF(AND(K11="PowerEdge R7525 Server (General Purpose)",SUM(N64:N70)>0),"",VLOOKUP($K70,TS4L4_HDD,12,FALSE))) -> L4N35
K72: BOSS controller card
K73: =IF(N41=1,ConfigurationTS4L4!A108,ConfigurationTS4L4!A107) -> No Boss card | M73: =IF(U73>0,VLOOKUP($K73,TS4L4_BOSS,13,FALSE),"") ->  | N73: =VLOOKUP($K73,TS4L4_BOSS,7,FALSE) ->  | P73: =U73 -> 0 | T73: =VLOOKUP($K73,TS4L4_BOSS,10,FALSE) -> 0 | U73: =IF(W10="JBOD",0,IF(W15="vsan",0,IF(Z11="Nutanix",0,VLOOKUP($K73,TS4L4_BOSS,11,FALSE)))) -> 0 | V73: =IF(W15="vsan",0,IF(Z11="Nutanix",0,VLOOKUP($K73,TS4L4_BOSS,12,FALSE))) -> 
J75: =IF(N75="","",U76) ->  | K75: Power Supply | L75: =IF(P75="","",W76) -> 
K76: =IF(Y17=1,"Dual, Hot-plug Power Supply (1+1), 1400W",IF($M$17="TS3L4-GPUDW","Dual, Hot-plug Power Supply (1+1), 2000W",IF($M$17="TS3L4-GPUSW","Dual, Hot-plug Power Supply (1+1), 2000W","Dual, Hot-plug, Redundant Power Supply (1+1), 750W"))) -> Dual, Hot-plug Power Supply (1+1), 1400W | M76: =VLOOKUP($K76,TS4L4_PSU,13,FALSE) -> TS4L4-PSU1400W | N76: =VLOOKUP($K76,TS4L4_PSU,7,FALSE) -> 1 | T76: =VLOOKUP($K76,TS4L4_PSU,10,FALSE) -> 0 | U76: =VLOOKUP($K76,TS4L4_PSU,11,FALSE) -> 0 | V76: =VLOOKUP($K76,TS4L4_PSU,12,FALSE) -> L4N49
K78: Embedded Systems Management
K79: iDRAC9,Enterprise
K83: Slot PCI In questa sezione è possibile selezionare la configurazione degli Slot PCI
I86: =IF(AA11="GPUReady","Slot per GPU 1 Double Wide (Occupa 2 Slot PCI, 1 e 2)","") ->  | K86: PCI Slot 1 Processor 1 x8 PCIe Gen4 for HL/FH | M86: =IF(AND(K23="No Additional Processor",SUM(N93:N108)>0),"Selezionare Processore Aggiuntivo o Deselezionare Schede PCI",IF(AND(K87="Nvidia A30",$AA$11<>"GPUReady"),"Selezionare server GPU Ready o deselezionare Scheda GPU",IF(AND(K87="Nvidia A40",$AA$11<>"GPUReady"),"Selezionare server GPU Ready o deselezionare Scheda GPU",IF(AND(AA11="GPUReady",(SUM(W87:X87))=0,K87<>"Slot non utilizzato"),"Deselezionare scheda PCI o Selezionare GPU","")))) -> 
K87: Slot Non Utilizzato | M87: =IF(AND($AA$11<>"GPUReady",K87="Nvidia A30"),"",IF(AND($AA$11<>"GPUReady",K87="Nvidia A40"),"",IF(AND($AA$11="GPUReady",(SUM(W87:X87)=0)),"",IF(AND($AA$11="GPUReady",(SUM(W87:X87)>0)),VLOOKUP($K87,TS4L4_GPU,13,FALSE),VLOOKUP($K87,TS4L4_PCI,13,))))) ->  | N87: =IF(AND($AA$11<>"GPUReady",K87="Nvidia A30"),"",IF(AND($AA$11<>"GPUReady",K87="Nvidia A40"),"",IF(AND($AA$11="GPUReady",(SUM(W87:X87)=0)),"",IF(AND($AA$11="GPUReady",(SUM(W87:X87)>0)),VLOOKUP($K87,TS4L4_GPU,7,FALSE),VLOOKUP($K87,TS4L4_PCI,7,FALSE))))) ->  | P87: =T87+U87 -> 0 | T87: =IF(AND($AA$11<>"GPUReady",K87="Nvidia A30"),0,IF(AND($AA$11<>"GPUReady",K87="Nvidia A40"),0,IF(AND($AA$11="GPUReady",(SUM(W87:X87)=0)),0,IF(AND($AA$11="GPUReady",(SUM(W87:X87)>0)),VLOOKUP($K87,TS4L4_GPU,10,FALSE),VLOOKUP($K87,TS4L4_PCI,10,FALSE))))) -> 0 | U87: =IF(AND($AA$11<>"GPUReady",K87="Nvidia A30"),0,IF(AND($AA$11<>"GPUReady",K87="Nvidia A40"),0,IF(AND($AA$11="GPUReady",(SUM(W87:X87)=0)),0,IF(AND($AA$11="GPUReady",(SUM(W87:X87)>0)),VLOOKUP($K87,TS4L4_GPU,11,FALSE),VLOOKUP($K87,TS4L4_PCI,11,FALSE))))) -> 0 | V87: =IF(AND($AA$11<>"GPUReady",K87="Nvidia A30"),"",IF(AND($AA$11<>"GPUReady",K87="Nvidia A40"),"",IF(AND($AA$11="GPUReady",(SUM(W87:X87)=0)),"",IF(AND($AA$11="GPUReady",(SUM(W87:X87)>0)),VLOOKUP($K87,TS4L4_GPU,12,FALSE),VLOOKUP($K87,TS4L4_PCI,12,FALSE))))) ->  | W87: =IF(K87="Nvidia A30",1,0) -> 0 | X87: =IF(K87="Nvidia A40",2,0) -> 0
K89: PCI Slot 2 Processor 1 x8 PCIe Gen4 for HL/FH | W89: =IF(AND(AA11="GPUReady",(SUM(W87:X87))=0,K87<>"Slot non utilizzato"),"Deselezionare scheda PCI o Selezionare GPU","") -> 
K90: Slot Non Utilizzato | M90: =IF(AND(AA11="GPUReady",K90<>"Slot non utilizzato"),"",VLOOKUP($K90,TS4L4_PCI,13,FALSE)) ->  | N90: =IF(AND(AA11="GPUReady",K90<>"Slot non utilizzato"),"",VLOOKUP($K90,TS4L4_PCI,7,FALSE)) ->  | P90: =T90+U90 -> 0 | T90: =IF(AND(AA11="GPUReady",K90<>"Slot non utilizzato"),0,VLOOKUP($K90,TS4L4_PCI,10,FALSE)) -> 0 | U90: =IF(AND(AA11="GPUReady",K90<>"Slot non utilizzato"),0,VLOOKUP($K90,TS4L4_PCI,11,FALSE)) -> 0 | V90: =IF(AND(AA11="GPUReady",K90<>"Slot non utilizzato"),"",VLOOKUP($K90,TS4L4_PCI,12,FALSE)) -> 
K92: PCI Slot 3 Processor 1 x16 PCIe Gen4 for HL/LP | M92: =IF(AND(N127<>0,SUM(S102,S93)=0),"Slot Controller H840 per JBOD",IF(SUM(S93,S102)>1,"Selezionare un solo controller H840 a scelta tra slot 3 e 6",IF(AND(K102="PERC H840 RAID Adapter for External JBOD Only",N127<>1),"Il controller H840 è compatibile esclusivamente con il JBOD, aggiungere JBOD nelle successive opzioni",IF(AND(N23<>1,K102<>"Slot non Utilizzato"),"Selezionare Processore Aggiuntivo per Abilitare Ulteriori Slot PCI","")))) -> 
K93: Slot Non Utilizzato | M93: =IF($Z$11="nutanix","",VLOOKUP($K93,TS4L4_PCI_LP,13,FALSE)) ->  | N93: =IF($Z$11="nutanix","",VLOOKUP($K93,TS4L4_PCI_LP,7,FALSE)) ->  | P93: =T93+U93 -> 0 | S93: =IF(K93="PERC H840 RAID Adapter for External JBOD Only",1,0) -> 0 | T93: =IF($Z$11="nutanix",0,VLOOKUP($K93,TS4L4_PCI_LP,10,FALSE)) -> 0 | U93: =IF($Z$11="nutanix",0,VLOOKUP($K93,TS4L4_PCI_LP,11,FALSE)) -> 0 | V93: =IF($Z$11="nutanix","",VLOOKUP($K93,TS4L4_PCI_LP,12,FALSE)) -> 0
I95: =IF(AA11="GPUReady","Slot per GPU 2 Double Wide (Occupa 2 Slot PCI, 4 e 5)","") ->  | J95: =IF($X$82="SW","GPU Slot",IF($X$82="DW","GPU Slot","")) ->  | K95: PCI Slot 4 Processor 2 x8 PCIe Gen4 for HL/FH | L95: =IF($X$82="SW","GPU Slot",IF($X$82="DW","GPU Slot","")) ->  | M95: =IF(AND(K96="Nvidia A30",$AA$11<>"GPUReady"),"Selezionare server GPU Ready o deselezionare Scheda GPU",IF(AND(K96="Nvidia A40",$AA$11<>"GPUReady"),"Selezionare server GPU Ready o deselezionare Scheda GPU","")) -> 
K96: Slot Non Utilizzato | M96: =IF(AND($AA$11<>"GPUREADY",K96="Nvidia A30"),"",IF(AND($AA$11<>"GPUREADY",K96="Nvidia A40"),"",IF($AA$11="GPUReady",VLOOKUP($K96,TS4L4_GPU,13,FALSE),VLOOKUP($K96,TS4L4_PCI,13,)))) ->  | N96: =IF(AND($AA$11<>"GPUREADY",K96="Nvidia A30"),"",IF(AND($AA$11<>"GPUREADY",K96="Nvidia A40"),"",IF($AA$11="GPUReady",VLOOKUP($K96,TS4L4_GPU,7,FALSE),VLOOKUP($K96,TS4L4_PCI,7,FALSE)))) ->  | P96: =T96+U96 -> 0 | T96: =IF(AND($AA$11<>"GPUREADY",K96="Nvidia A30"),0,IF(AND($AA$11<>"GPUREADY",K96="Nvidia A40"),0,IF($AA$11="GPUReady",VLOOKUP($K96,TS4L4_GPU,10,FALSE),VLOOKUP($K96,TS4L4_PCI,10,FALSE)))) -> 0 | U96: =IF(AND($AA$11<>"GPUREADY",K96="Nvidia A30"),0,IF(AND($AA$11<>"GPUREADY",K96="Nvidia A40"),0,IF($AA$11="GPUReady",VLOOKUP($K96,TS4L4_GPU,11,FALSE),VLOOKUP($K96,TS4L4_PCI,11,FALSE)))) -> 0 | V96: =IF(AND($AA$11<>"GPUREADY",K96="Nvidia A30"),"",IF(AND($AA$11<>"GPUREADY",K96="Nvidia A40"),"",IF($AA$11="GPUReady",VLOOKUP($K96,TS4L4_GPU,12,FALSE),VLOOKUP($K96,TS4L4_PCI,12,FALSE)))) -> 
J98: =IF($X$82="SW","GPU Slot","") ->  | K98: PCI Slot 5 Processor 2 x8 PCIe Gen4 for HL/FH | L98: =IF($X$82="SW","GPU Slot","") -> 
K99: Slot Non Utilizzato | M99: =IF(AND(AA11="GPUReady",K99<>"Slot non utilizzato"),"",VLOOKUP($K99,TS4L4_PCI,13,FALSE)) ->  | N99: =IF(AND(AA11="GPUReady",K99<>"Slot non utilizzato"),"",VLOOKUP($K99,TS4L4_PCI,7,FALSE)) ->  | P99: =T99+U99 -> 0 | T99: =IF(AND(AA11="GPUReady",K99<>"Slot non utilizzato"),0,VLOOKUP($K99,TS4L4_PCI,10,FALSE)) -> 0 | U99: =IF(AND(AA11="GPUReady",K99<>"Slot non utilizzato"),0,VLOOKUP($K99,TS4L4_PCI,11,FALSE)) -> 0 | V99: =IF(AND(AA11="GPUReady",K99<>"Slot non utilizzato"),"",VLOOKUP($K99,TS4L4_PCI,12,FALSE)) -> 
K101: PCI Slot 6 Processor 2 x16 PCIe Gen4 for HL/LP | M101: =IF(AND(N127<>0,SUM(S102,S93)=0),"Slot Controller H840 per JBOD",IF(SUM(S93,S102)>1,"Selezionare un solo controller H840 a scelta tra slot 3 e 6",IF(AND(K102="PERC H840 RAID Adapter for External JBOD Only",N127<>1),"Il controller H840 è compatibile esclusivamente con il JBOD, aggiungere JBOD nelle successive opzioni",IF(AND(N23<>1,K102<>"Slot non Utilizzato"),"Selezionare Processore Aggiuntivo per Abilitare Ulteriori Slot PCI","")))) -> 
K102: Slot Non Utilizzato | M102: =VLOOKUP($K102,TS4L4_PCI_LP,13,FALSE) ->  | N102: =VLOOKUP($K102,TS4L4_PCI_LP,7,FALSE) ->  | P102: =T102+U102 -> 0 | S102: =IF(K102="PERC H840 RAID Adapter for External JBOD Only",1,0) -> 0 | T102: =IF($Z$11="nutanix",0,VLOOKUP($K102,TS4L4_PCI_LP,10,FALSE)) -> 0 | U102: =IF($Z$11="nutanix",0,VLOOKUP($K102,TS4L4_PCI_LP,11,FALSE)) -> 0 | V102: =IF($Z$11="nutanix","",VLOOKUP($K102,TS4L4_PCI_LP,12,FALSE)) -> 0
I104: =IF(AA11="GPUReady","Slot per GPU 3 Double Wide (Occupa 2 Slot PCI,7 e 8)","") ->  | J104: =IF($X$82="SW","GPU Slot","") ->  | K104: PCI Slot 7 Processor 2 x8 PCIe Gen4 for HL/FH | L104: =IF($X$82="SW","GPU Slot","") ->  | M104: =IF(AND(K105="Nvidia A30",$AA$11<>"GPUReady"),"Selezionare server GPU Ready o deselezionare Scheda GPU",IF(AND(K105="Nvidia A40",$AA$11<>"GPUReady"),"Selezionare server GPU Ready o deselezionare Scheda GPU","")) -> 
K105: Slot Non Utilizzato | M105: =IF(AND($AA$11<>"GPUREADY",K105="Nvidia A30"),"",IF(AND($AA$11<>"GPUREADY",K105="Nvidia A40"),"",IF($AA$11="GPUReady",VLOOKUP($K105,TS4L4_GPU,13,FALSE),VLOOKUP($K105,TS4L4_PCI,13,)))) ->  | N105: =IF(AND($AA$11<>"GPUREADY",K105="Nvidia A30"),"",IF(AND($AA$11<>"GPUREADY",K105="Nvidia A40"),"",IF($AA$11="GPUReady",VLOOKUP($K105,TS4L4_GPU,7,FALSE),VLOOKUP($K105,TS4L4_PCI,7,FALSE)))) ->  | P105: =T105+U105 -> 0 | T105: =IF(AND($AA$11<>"GPUREADY",K105="Nvidia A30"),0,IF(AND($AA$11<>"GPUREADY",K105="Nvidia A40"),0,IF($AA$11="GPUReady",VLOOKUP($K105,TS4L4_GPU,10,FALSE),VLOOKUP($K105,TS4L4_PCI,10,FALSE)))) -> 0 | U105: =IF(AND($AA$11<>"GPUREADY",K105="Nvidia A30"),0,IF(AND($AA$11<>"GPUREADY",K105="Nvidia A40"),0,IF($AA$11="GPUReady",VLOOKUP($K105,TS4L4_GPU,11,FALSE),VLOOKUP($K105,TS4L4_PCI,11,FALSE)))) -> 0 | V105: =IF(AND($AA$11<>"GPUREADY",K105="Nvidia A30"),"",IF(AND($AA$11<>"GPUREADY",K105="Nvidia A40"),"",IF($AA$11="GPUReady",VLOOKUP($K105,TS4L4_GPU,12,FALSE),VLOOKUP($K105,TS4L4_PCI,12,FALSE)))) -> 
J107: =IF($X$82="SW","GPU Slot",IF($X$82="DW","GPU Slot","")) ->  | K107: PCI Slot 8 Processor 2 x8 PCIe Gen4 for HL/FH | L107: =IF($X$82="SW","GPU Slot",IF($X$82="DW","GPU Slot","")) -> 
K108: Slot Non Utilizzato | M108: =IF(AND(AA11="GPUReady",K108<>"Slot non utilizzato"),"",VLOOKUP($K108,TS4L4_PCI,13,FALSE)) ->  | N108: =IF(AND(AA11="GPUReady",K108<>"Slot non utilizzato"),"",VLOOKUP($K108,TS4L4_PCI,7,FALSE)) ->  | P108: =T108+U108 -> 0 | T108: =IF(AND(AA11="GPUReady",K108<>"Slot non utilizzato"),0,VLOOKUP($K108,TS4L4_PCI,10,FALSE)) -> 0 | U108: =IF(AND(AA11="GPUReady",K108<>"Slot non utilizzato"),0,VLOOKUP($K108,TS4L4_PCI,11,FALSE)) -> 0 | V108: =IF(AND(AA11="GPUReady",K108<>"Slot non utilizzato"),"",VLOOKUP($K108,TS4L4_PCI,12,FALSE)) -> 
P109: =IF(V108="L4N33",IF($W$108>1,"ERRORE: SOLO UNA BOSS CARD PUO' ESSERE CONFIGURATA",""),"") -> 
P111: =IF(V110="L4N33",IF($W$108>1,"ERRORE: SOLO UNA BOSS CARD PUO' ESSERE CONFIGURATA",""),"") -> 
I113: Transceiver per Schede LAN 20% (Mellanox HDR, Broadcom 57508) | K113: SFP+ Transceivers 10 Gbps
K114: =ConfigurationTS4L4!A136 -> SFP+ SR Optic for all SFP+ ports except High temperature Cards | M114: =VLOOKUP($K114,TS4L4_SFP,13,FALSE) -> TS4L4-OT10GB | N114: 0 | P114: =T114+U114 -> 0 | T114: =VLOOKUP($K114,TS4L4_SFP,10,FALSE) -> 0 | U114: =VLOOKUP($K114,TS4L4_SFP,11,FALSE)*ConfigurationTS4L4!G136*N114 -> 0 | V114: =VLOOKUP($K114,TS4L4_SFP,12,FALSE) -> L4N109
K116: SFP28 - 25GbE
K117: =ConfigurationTS4L4!A137 -> SFP28 SR Optic, 25GbE, 85C, for all SFP28 ports | M117: =VLOOKUP($K117,TS4L4_SFP,13,FALSE) -> TS4L4-OT25GB | N117: 0 | P117: =T117+U117 -> 0 | T117: =VLOOKUP($K117,TS4L4_SFP,10,FALSE) -> 0 | U117: =VLOOKUP($K117,TS4L4_SFP,11,FALSE)*N117 -> 0 | V117: =VLOOKUP($K117,TS4L4_SFP,12,FALSE) -> L4N110
K119: QSFP28 Transceivers
K120: =ConfigurationTS4L4!A138 -> Dell EMC PowerEdge QSFP28 SR4 100GbE 85C optic | M120: =VLOOKUP($K120,TS4L4_SFP,13,FALSE) -> TS4L4-OT100GB | N120: 0 | P120: =T120+U120 -> 0 | T120: =VLOOKUP($K120,TS4L4_SFP,10,FALSE) -> 0 | U120: =VLOOKUP($K120,TS4L4_SFP,11,FALSE)*N120 -> 0 | V120: =VLOOKUP($K120,TS4L4_SFP,12,FALSE) -> L4N111
K123: Enclosure JBOD da 12 Slot 3,5'' e dishi SAS da inserire nell'Enclosure. Una volta selezionato il JBOD e i dischi a corredo si deve obbligatoriamente compilare uno slot PCI a scelta tra lo Slot 3 e lo Slot 6 dove inserire il controller H840 compreso nel Kit JBOD
I126: Enclosure JBOD Esterno 2 RU comprensivo di connessione con Controller RAID H840 (solo per JBOD) Installabile su Slot PCI low Profile (Slot 3-6). I dischi da 12TB, 16TB e 20TB possono essere installati ESCLUSIVAMENTE nel JBOD | K126: Opz JBOD (NO DISK) | M126: =IF(AND(N127<>0,SUM(S102,S93)=0),"Selezionare Controller H840 negli slot PCI a scelta a tra 3 e 6",IF(AND(N127=0,SUM(N130:N136)>0),"Selezionare JBOD per aggiugere dischi SAS JBOD",IF(AND(N127<> 0,SUM(N130:N136)=0),"Il JBOD non ha dischi al suo interno, selezionare dischi da 12TB, 16TB o 20TB per un massimo di 12 dischi.",IF(AND(N127=1,SUM(N130:N136)>12),"Superato Numero dischi disponibili per JBOD","")))) -> 
K127: =Tabella_prezzi!H80 -> Enclosure di espansione JBOD 12 slot 3,5'' + HBA (H840) | M127: =VLOOKUP($K127,TS4L4_20X100,13,FALSE) -> TS4L4-JBOD | N127: 0 | P127: =T127+U127 -> 0 | T127: =VLOOKUP($K127,TS4L4_20X100,10,FALSE)*N127 -> 0 | U127: =VLOOKUP($K127,TS4L4_20X100,11,FALSE)*N127 -> 0 | V127: =VLOOKUP($K127,TS4L4_20X100,12,FALSE) -> L4N122
K129: Opz 12TB 7,2 RPM - per JBOD
K130: =Tabella_prezzi!H81 -> 12TB 7.2K RPM NLSAS ISE 12Gbps 512e 3.5in Hot-plug Hard Drive | M130: =VLOOKUP($K130,TS4L4_20X100,13,FALSE) -> TS4L4-12TBNLSAS | N130: 0 | P130: =T130+U130 -> 0 | T130: =VLOOKUP($K130,TS4L4_20X100,10,FALSE)*N130 -> 0 | U130: =IF(M126<>"",0,VLOOKUP($K130,TS4L4_20X100,11,FALSE)*N130) -> 0 | V130: =VLOOKUP($K130,TS4L4_20X100,12,FALSE) -> L4N123
K132: Opz 16TB 7,2 RPM - per JBOD
K133: =Tabella_prezzi!H82 -> 16TB Hard Drive SAS ISE 12Gbps 7.2K 512e 3.5in Hot-Plug | M133: =VLOOKUP($K133,TS4L4_20X100,13,FALSE) -> TS4L4-16TBSAS | N133: 0 | P133: =T133+U133 -> 0 | T133: =VLOOKUP($K133,TS4L4_20X100,10,FALSE)*N133 -> 0 | U133: =IF(M126<>"",0,VLOOKUP($K133,TS4L4_20X100,11,FALSE)*N133) -> 0 | V133: =VLOOKUP($K133,TS4L4_20X100,12,FALSE) -> L4N124
K135: Opz 20TB 7,2 RPM - per JBOD
K136: =Tabella_prezzi!H83 -> 20TB HDD SAS ISE 12Gbps 7.2K 512e 3.5in Hot-Plug | M136: =VLOOKUP($K136,TS4L4_20X100,13,FALSE) -> TS4L4-20TBSAS | N136: 0 | P136: =T136+U136 -> 0 | T136: =VLOOKUP($K136,TS4L4_20X100,10,FALSE)*N136 -> 0 | U136: =IF(M126<>"",0,VLOOKUP($K136,TS4L4_20X100,11,FALSE)*N136) -> 0 | V136: =VLOOKUP($K136,TS4L4_20X100,12,FALSE) -> L4N125
K139: Estensione di Garanzia e Hard Disk Retention
K142: Garanzia
K143: Manutenzione in garanzia (36 mesi) | M143: =VLOOKUP($K143,TS4L4_WARR,13,FALSE) ->  | N143: =VLOOKUP($K143,TS4L4_WARR,7,FALSE) ->  | P143: =T143 -> 0 | T143: =VLOOKUP($K143,TS4L4_WARR,10,FALSE) -> 0 | U143: =VLOOKUP($K143,TS4L4_WARR,11,FALSE) -> 0 | V143: =VLOOKUP($K143,TS4L4_WARR,12,FALSE) -> 
K145: Hard Disk Retention | N145: =IF(AND($K$146="Hard Disk Retention 60 mesi",$N$143=""),"Selezionare Estensione di Garanzia 24 Mesi","") -> 
K146: No Hard Disk Retention | M146: =VLOOKUP(K146,TS4L4_HDDRET,13,FALSE) ->  | N146: =IF(K146="No Hard Disk Retention","",1) ->  | P146: =T146 -> 0 | T146: =IF(AND(K146="Hard Disk Retention 60 mesi",N143=""),"",VLOOKUP(K146,TS4L4_HDDRET,10,FALSE)) -> 0 | U146: =IFERROR(Z146,VLOOKUP(K146,TS4L4_HDDRET,11,FALSE)) -> 0 | V146: =IF(AND(K146="Hard Disk Retention 60 mesi",N143=""),"",VLOOKUP(K146,TS4L4_HDDRET,12,FALSE)) -> 
M148: Configurazione | N148: =SUM(T11:T146)*N8 -> 0 | T148: =IF(AND($N$146=1,$N$143=""),"Selezionare Estensione di Garanzia 24 Mesi","") -> 
M149: 0.2 | N149: =SUM(U11:U146)*N8 -> 0
M150: Totale | N150: =SUM(N148:N149) -> 0
K152: NOTE

Sheet Lotto4_R7525_3
K2: Convenzione Tecnologie Server 4 - Lotto 4 | M2: =IF(W108>1,"ERRORE NELLA CONFIGURAZIONE","") ->  | P2: =IF(Riepilogo_Ordine!K141>Riepilogo_Ordine!G141,"Superata Quota 20%","") ->  | AD2: SALVAPDF
P3: Articoli 20% Totali | S3: Check HD 2 | T3: Check HDD Nut | U3: Check CPU | V3: Check RAM | W3: Check NVME | X3: Check PCI | Y3: Check Win | Z3: Check Warr | AA3: Check nVME | AB3: Check Tot | AD3: =IF(N8>0,1,0) -> 0
K4: =IF(Z11="Nutanix","Selezionando la soluzione Nutanix si accetta la sostituzione del server base con la versione XC comprensivo di HBA355 (Non RAID), BOSS Card e LAN 10 GB su slot OCP",IF(W15="vsan","Selezionando la soluzione vSAN si accetta la sostituzione del controller 745 con il HBA355 (Non RAID), comprensivo di BOSS Card","Selezionare Il server Base e cliccare su 'Compila Configurazione' per inserire le opzioni necessarie e obbligatorie a soddisfare la configurazione selezionata")) -> Selezionare Il server Base e cliccare su 'Compila Configurazione' per inserire le opzioni necessarie e obbligatorie a soddisfare la configurazione selezionata | M4: =IF(AB4>1,"Errori nella Configurazione",IF(AA4>0,"Troppi Dischi nVME",IF(S4>0,"Troppi Dischi SAS",IF(U4>0,"Errore nella Selezione della CPU",IF(V4>0,"Errore Nella Selezione della RAM",IF(W4>0,"Errore Nella selezione dello Chassis per Dischi nVME",IF(X4>0,"Errore nella Selezione Slot PCI",IF(Y4>0,"Errore nella Selezione Licenze Windows",IF(Z4>0,"Errore Selezione Garanzia o HDD Retention",IF(T4>0,"Errore Selezione Dischi",IF(T6=1,"Errore Selezione dischi NVMe",""))))))))))) ->  | N4: Totale Altre Opzioni | P4: =Riepilogo_Ordine!K141 -> 0 | S4: =IF(N44<0,1,0) -> 0 | T4: =IF(AND(Z11="Nutanix",AF46>1),1,0) -> 0 | U4: =IF(N22<>"",1,0) -> 0 | V4: =IF(N25<>"",1,0) -> 0 | W4: =IF(M61<>"",1,0) -> 0 | X4: =IF(M86<>"",1,0) -> 0 | Y4: =IF(N28<>"",1,0) -> 0 | Z4: =IF(N145<>"",1,0) -> 0 | AA4: =IF(N63<0,1,0) -> 0 | AB4: =SUM(S4:AA4)+T6 -> 0
N5: ='Altre Opzioni'!L3 -> 0 | P5: Quota Residua 20 % | T5: Check NVMe GPU
M6: Guida alla Convenzione | N6: Totale Configurazione | P6: =Riepilogo_Ordine!G142 -> 0 | T6: =IF(AND(N64=0,AA11="GPUReady"),1,0) -> 0
I7: =IF(AND(Y11="Vsan",N73=""),"Utilizzando il controller HBA355 in una soluzione vSAN, per il boot si deve utilizzare la 'BOSS Card'",IF(AND(Z11="Nutanix",N73=""),"Utilizzando il controller HBA355 in una soluzione Nutanix, per il boot si deve utilizzare la 'BOSS Card'","")) ->  | K7: =IF(Riepilogo_Ordine!P8>0,"Compilare i Dati nel Foglio Riepilogo per Stampare in PDF","") -> Compilare i Dati nel Foglio Riepilogo per Stampare in PDF | N7: =N148+N149 -> 0 | P7: Totale Ordine Iva Esclusa | T7: =N7+Lotto4_R7525_2!L7 -> 0
K8: DELL POWEREDGE R7525 | M8: Quantità Server | N8: 0 | P8: =Riepilogo_Ordine!K142 -> 0
K10: Base | W10: =IF(N127<>0,"JBOD","") ->  | X10: PowerEdge R7525 Server (General Purpose) | Y10: =IF(AND(X11="",Y11="vSAN"),1,IF(AND(X11="nvme",Y11=""),3,2)) -> 2
K11: PowerEdge R7525 Server (General Purpose) | M11: =IF($N$8=0,"",VLOOKUP(K11,TS4L4_Base,13,FALSE)) ->  | N11: =IF($N$8>0,1,"") ->  | P11: =T11 -> 3637.17 | T11: =VLOOKUP($K$11,TS4L4_Base,10,FALSE) -> 3637.17 | V11: =VLOOKUP($K11,TS4L4_Base,12,FALSE) -> L4N01 | X11: =IF(AND(K11=ConfigurationTS4L4!A13,N23=""),"nVME1",IF(AND(K11=ConfigurationTS4L4!A13,N23=1),"nVME2","")) ->  | Y11: =IF(K11=ConfigurationTS4L4!A14,512,IF(K11=ConfigurationTS4L4!A15,1024,IF(K11=ConfigurationTS4L4!A16,2048,""))) ->  | Z11: =IF(K11=ConfigurationTS4L4!A17,"Nutanix","") ->  | AA11: =IF(K11=ConfigurationTS4L4!A9,"GPUReady","") -> 
K15: =IF(SUM(N64:N70)>0,IF(K11=ConfigurationTS4L4!A3,"▲ Selezionare chassis NVME, vSAN, Nutanix o ▲ GPUReady per Abilitare nVME ",""),"") ->  | W15: =IF(Y11<>"","vsan","") ->  | X15: =IF(AND(Y15="GP1",K26>512),"Selezionare RAM Corretta","") ->  | Y15: =IF(AND(K11=ConfigurationTS4L4!A12,N23=""),"GP1",IF(AND(K11=ConfigurationTS4L4!A12,N23=1),"GP2","")) -> GP1
K16: Chassis Configuration | M16: =IF($X$82="SW","MAX 4 GPU",IF($X$82="DW","MAX 2 GPU","")) -> 
K17: =IF(N23=1,VLOOKUP($K$11,TS4L4_Chassis,3,FALSE),VLOOKUP($K$11,TS4L4_Chassis,2,FALSE)) -> Chassis with Up to 16 x 2.5 Hard Drives for 1CPU Configuration | M17: =IF($N$23=1,VLOOKUP($K$11,TS4L4_Chassis,11,FALSE),VLOOKUP($K$11,TS4L4_Chassis,9,FALSE)) -> TS4L4-Opz1CPU | N17: =VLOOKUP(K11,TS4L4_Chassis,7,0) -> 0 | P17: =T17+U17 -> 0 | U17: =VLOOKUP($K$11,TS4L4_Chassis,10,FALSE)*N17 -> 0 | V17: =IF(N17=0,"",(VLOOKUP($K11,TS4L4_Chassis,12,FALSE))) ->  | X17: Chassis with Up to 24 x 2.5'' Hard Drives for 2CPU Configuration | Y17: 1
K19: Processor
K20: AMD7413 2.65GHz,24C/48T,128M,180W,3200CK | T20: =IF(N17=1,VLOOKUP($K$20,TS4L4_CPU,11,FALSE),VLOOKUP($K$20,TS4L4_CPU,11,FALSE)) -> 0 | U20: =IF(N17=1,VLOOKUP($K$20,TS4L4_CPU,11,FALSE),VLOOKUP($K$20,TS4L4_CPU,11,FALSE)) -> 0 | V20: =IF(U20=0,0,VLOOKUP($K20,TS4L4_CPU,12,FALSE)) -> 0
K22: Additional Processor | N22: =IF(AND(Y11=512,N23=""),"Selezionare Processore Aggiuntivo per Configurazione vSAN",IF(AND(X11="nVME1",N23=""),"Selezionare Processore Aggiuntivo per Configurazione nVME",IF(AND(Y11=1024,N23=""),"Selezionare Processore Aggiuntivo per Configurazione vSAN",IF(AND(Y11=2048,N23=""),"Selezionare Processore Aggiuntivo per Configurazione vSAN",IF(AND(Z11="Nutanix",N23=""),"Selezionare Processore Aggiuntivo per Configurazione Nutanix",IF(AND(AA11="GPUReady",N23=""),"Selezionare Processore Aggiuntivo per Configurazione GPUReady","")))))) -> 
I23: =IF(AND(K23="No Additional Processor",SUM(L90:L105)>0),"Selezionare Processore Aggiuntivo o Deselezionare Schede PCI","") ->  | K23: No Additional Processor | M23: =IF(N17=1,VLOOKUP($K$20,TS4L4_CPU,13,FALSE),VLOOKUP($K$23,TS4L4_CPU,13,FALSE)) ->  | N23: =IF(N17=1,VLOOKUP($K$23,TS4L4_CPU,7,FALSE),VLOOKUP($K$23,TS4L4_CPU,7,FALSE)) ->  | P23: =T23 -> 0 | T23: =IF(N17=1,VLOOKUP($K$20,TS4L4_CPU,10,FALSE),VLOOKUP($K$23,TS4L4_CPU,10,FALSE)) -> 0 | U23: =IF(N17=1,VLOOKUP($K$20,TS4L4_CPU,11,FALSE),VLOOKUP($K$23,TS4L4_CPU,11,FALSE)) -> 0 | V23: =IF(N17=1,VLOOKUP(K20,TS4L4_CPU,12,FALSE),VLOOKUP($K23,TS4L4_CPU,12,FALSE)) ->  | X23: =IF(N23=1,"AMD7413 2.65GHz,24C/48T,128M,180W,3200CK",K23) -> No Additional Processor
K25: Memory Capacity (GB) | N25: =IF(AND(Y11=512,K26<>512),"Selezionare 512 GB Ram'",IF(AND(Y11=1024,K26<>1024),"Selezionare 1 TB RAM",IF(AND(Y11=2048,K26<>2048),"Selezionare 2 TB RAM",IF(AND(Z11="Nutanix",K26<>2048),"Selezionare 2TB RAM",IF(AND(Y15="GP1",K26>512),"Selezionare RAM Corretta",IF(AND(Y15="GP2",K26>1536),"Selezionare RAM Corretta",IF(AND(X11="nVME1",K26>512),"Selezionare RAM Corretta",IF(AND(X11="nVME2",K26>1536),"Selezionare RAM Corretta",IF(AND(AA11="GPUReady",K26<>2048),"Selezionare Base GPUReady e cliccare su 'Compila Configurazione'",""))))))))) -> 
K26: 256 | M26: =IF(K23="No Additional Processor",VLOOKUP(K26,TS4L4_RAM2CPU,13,FALSE),VLOOKUP(K26,TS4L4_RAM2CPU,13,FALSE)) -> TS4L4-RAM32 | N26: =IF(N25<>"",0,Y26) -> 0 | P26: =T26 -> 0 | T26: =IF(N25<>"",0,IF(K23="No Additional Processor",VLOOKUP(K26,TS4L4_RAM2CPU,10,FALSE),VLOOKUP(K26,TS4L4_RAM2CPU,10,FALSE))) -> 0 | V26: =IF(N25<>"",0,AA26) ->  | X26: =IF($N$23=1,VLOOKUP($K$26,TS4L4_RAM2CPU,13,FALSE),VLOOKUP($K$26,TS4L4_RAM1Cpu,13,FALSE)) -> TS4L4-RAM32 | Y26: =IF($N$23=1,VLOOKUP($K$26,TS4L4_RAM2CPU,7,FALSE),VLOOKUP($K$26,TS4L4_RAM1Cpu,7,FALSE)) -> 0 | Z26: =IF($N$23=1,VLOOKUP($K$26,TS4L4_RAM2CPU,10,FALSE),VLOOKUP($K$26,TS4L4_RAM1Cpu,10,FALSE)) -> 0 | AA26: =IF($N$23=1,VLOOKUP($K$26,TS4L4_RAM2CPU,12,FALSE),VLOOKUP($K$26,TS4L4_RAM1Cpu,12,FALSE)) -> 
K28: Operating System STANDARD | N28: =IF(AND(K29="No Operating System",N29>0),"Selezionare Sistema Operativo",IF(AND(K29="Ubuntu 22.04 LTS 64 Bit",N29>1),"Selezionare Licenze Corrette",IF(AND(K29="Ubuntu 22.04 LTS 64 Bit",N23=1),"",IF(AND(N23=1,K29="No Operating System"),"",IF(AND(N23=1,N29<3),"Selezionare Licenze Corrette",IF(AND(N23<>1,N29>4),"Selezionare Licenze Corrette",IF(AND(K29="Windows Server 2022,Standard,ROK,16CORE",N29=""),"Selezionare numero Licenze",""))))))) -> 
K29: No Operating System | M29: =VLOOKUP($K$29,TS4L4_OS,13,FALSE) ->  | N29: 0 | P29: =T29 -> 0 | T29: =IF(N33>0,0,VLOOKUP($K$29,TS4L4_OS,10,FALSE))*N29 -> 0 | U29: =VLOOKUP($K$29,TS4L4_OS,11,FALSE) -> 0 | V29: =IF(N33>0,0,VLOOKUP($K29,TS4L4_OS,12,FALSE)) ->  | X29: =IF(AND(K23="No Additional Processor",N29>=3),TRUE,FALSE) -> FALSE
K30: Windows Server 2022 Standard Edition, Add License,2CORE | M30: =VLOOKUP($K$30,TS4L4_OS,13,FALSE) -> TS4L4-WINSRV2C | N30: =IF(K29="No Operating System",0,IF(AND(K29="Windows Server 2022,Standard,ROK,16CORE",N29=0),0,IF($K$29="Ubuntu 22.04 LTS 64 Bit",0,IF(N29=1,VLOOKUP($K$29,TS4L4_OS,7,FALSE)*4,IF(N29=3,0,IF(N29=6,0,IF(N29=9,0,IF(N29="",0,IF(N29=4,4))))))))) -> 0 | P30: =T30 -> 0 | T30: =VLOOKUP($K$30,TS4L4_OS,10,FALSE)*N30 -> 0 | U30: =VLOOKUP($K$29,TS4L4_OS,11,FALSE) -> 0 | V30: =IF(N33>0,0,VLOOKUP($K30,TS4L4_OS,12,FALSE)) -> L4N25 | X30: =IF(AND(K23<>"No Additional Processor",N29>=3),TRUE,FALSE) -> FALSE
K32: Operating System DATACENTER
K33: No Operating System | M33: =VLOOKUP($K$33,ConfigurationTS4L4!A67:W76,13,FALSE) ->  | N33: =IF(K33="Windows Server 2022,Datacenter,ROK,16CORE",1,0) -> 0 | P33: =T33 -> 0 | T33: =IF(N29>0,0,VLOOKUP($K$33,TS4L4_OS,10,FALSE))*N33 -> 0 | U33: =VLOOKUP($K$29,TS4L4_OS,11,FALSE) -> 0 | V33: =IF(N29>0,0,VLOOKUP($K33,TS4L4_OS,12,FALSE)) ->  | X33: =IF(AND(N23=1,N33=1),16,IF(AND(N23=1,N33=""),0,IF(AND(N23="",N33=1),4,FALSE))) -> FALSE
K34: Windows Server 2022 / 2019 Datacenter Edition,Add License,2CORE | M34: =VLOOKUP($K$34,TS4L4_OS,13,FALSE) -> TS4L4-WinServDC2core | N34: =IF(AND(N23=1,N33=1),16,IF(AND(N23=1,N33=""),0,IF(AND(N23="",N33=1),4,IF(AND(N23="",N33=""),0,"0")))) -> 0 | P34: =T34 -> 0 | T34: =IF(N29>0,0,VLOOKUP($K$34,TS4L4_OS,10,FALSE))*N34 -> 0 | U34: =VLOOKUP($K$29,TS4L4_OS,11,FALSE) -> 0 | V34: =IF(N29>0,0,VLOOKUP($K34,TS4L4_OS,12,FALSE)) -> L4N28
K36: Operating System Device CAL / User CAL
K37: 1-pack of Windows Server 2022/2019 Device CALs (STD or DC) | M37: =VLOOKUP($K$37,ConfigurationTS4L4!A72:W73,13,FALSE) -> TS4L4-WINDEVCAL | N37: 0 | P37: =T37 -> 0 | T37: =VLOOKUP($K$37,ConfigurationTS4L4!A72:N73,10,FALSE)*N37 -> 0 | U37: =VLOOKUP($K$29,TS4L4_OS,11,FALSE) -> 0 | V37: =VLOOKUP($K37,TS4L4_OS,12,FALSE) -> L4N23
K38: 1-pack of Windows Server 2022/2019 User CALs (STD or DC) | M38: =VLOOKUP($K$38,ConfigurationTS4L4!A73:W74,13,FALSE) -> TS4L4-WINUSRCAL | N38: 0 | P38: =T38 -> 0 | T38: =VLOOKUP($K$38,ConfigurationTS4L4!A73:N74,10,FALSE)*N38 -> 0 | U38: =VLOOKUP($K$29,TS4L4_OS,11,FALSE) -> 0 | V38: =VLOOKUP($K38,TS4L4_OS,12,FALSE) -> L4N24
K40: Disk Controller | M40: =IF(AND(Y11="Vsan",N73=""),"Utilizzando il controller HBA355 in una soluzione vSAN, per il boot si deve utilizzare la 'BOSS Card'",IF(AND(Z11="Nutanix",N73=""),"Utilizzando il controller HBA355 in una soluzione Nutanix per il boot si deve utilizzare la 'BOSS Card'","")) -> 
K41: =IF(Y11=512,ConfigurationTS4L4!A98,IF(Y11=1024,ConfigurationTS4L4!A98,IF(Y11=2048,ConfigurationTS4L4!A98,IF(Z11="Nutanix",ConfigurationTS4L4!A98,IF(AA11="GPUReady",ConfigurationTS4L4!A98,ConfigurationTS4L4!A97))))) -> PERC H745 Controller | M41: =VLOOKUP(K41,TS4L4_CRTL,13,FALSE) ->  | N41: =VLOOKUP($K41,TS4L4_CRTL,7,FALSE) ->  | P41: =U41 -> 0 | T41: =IF(K41=ConfigurationTS4L4!A46,0,VLOOKUP($K41,TS4L4_CRTL,10,FALSE)) -> 0 | U41: =IF($AA$11="GPUReady",0,IF(W15="vsan",0,IF(Z11="Nutanix",0,VLOOKUP($K41,TS4L4_CRTL,11,FALSE)))) -> 0 | V41: =IF(W15="vsan",0,IF(Z11="Nutanix",0,VLOOKUP($K41,TS4L4_CRTL,12,FALSE))) -> L4N44 | X41: =IF(K11="PowerEdge R7525 Server (vSAN Ready)","Vsan","") -> 
K43: Hard Drivers Bays n° 16 - 2 bay occupate dai dischi 960GB SSD di base | M43: Usati | N43: Disponibili | P43: =IF(AND(Z11="Nutanix",AF46>1),"E' Possibile selezionare solo un modello di Disco",IF(Z11="Nutanix","In una soluzione Nutanix i dischi devono necessariamente essere dello stesso modello","")) -> 
M44: =N46+N48+N50+N56+N58+N52+N54+N60 -> 2 | N44: =16-M44 -> 14
AF45: Totale
K46: =ConfigurationTS4L4!A79 -> 2.4TB 10k SAS ISE 12Gbps | M46: =VLOOKUP($K46,TS4L4_HDD,13,FALSE) -> TS4L4-HDD2TB | N46: 0 | P46: =T46 -> 0 | T46: =IF(N44<0,0,IF(AND(AF46>1,Z11="nutanix"),0,VLOOKUP($K46,TS4L4_HDD,10,FALSE))*N46) -> 0 | U46: =IF(N44<0,0,VLOOKUP($K46,TS4L4_HDD,11,FALSE)) -> 0 | V46: =IF(N44<0,"",IF(AND(AF46>1,Z11="nutanix"),"",VLOOKUP($K46,TS4L4_HDD,12,FALSE))) -> L4N11 | X46: =IF(N46>0,1,0) -> 0 | Y46: =IF(N48>0,1,0) -> 0 | Z46: =IF(N50>0,1,0) -> 0 | AA46: =IF(N52>0,1,0) -> 0 | AB46: =IF(N54>0,1,0) -> 0 | AC46: =IF(N56>0,1,0) -> 1 | AD46: =IF(N58>0,1,0) -> 0 | AE46: =IF(N60>0,1,0) -> 0 | AF46: =SUM(X46:AE46) -> 1
K48: =ConfigurationTS4L4!A80 -> 1.2TB 10K RPM SAS ISE 12Gbps | M48: =VLOOKUP($K48,TS4L4_HDD,13,FALSE) -> TS4L4-HDD1TB | N48: 0 | P48: =T48 -> 0 | T48: =IF(N44<0,0,IF(AND(AF46>1,Z11="nutanix"),0,VLOOKUP($K48,TS4L4_HDD,10,FALSE))*N48) -> 0 | U48: =IF(N44<0,0,VLOOKUP($K48,TS4L4_HDD,11,FALSE)) -> 0 | V48: =IF(N44<0,"",IF(AND(AF46>1,Z11="nutanix"),"",VLOOKUP($K48,TS4L4_HDD,12,FALSE))) -> L4N12
K50: =ConfigurationTS4L4!A81 -> 3.84TB SSD SAS ISE RI 12Gbps | M50: =VLOOKUP($K50,TS4L4_HDD,13,FALSE) -> TS4L4-SSD-RI3,8TB | N50: 0 | P50: =T50 -> 0 | T50: =IF(N44<0,0,IF(AND(AF46>1,Z11="nutanix"),0,VLOOKUP($K50,TS4L4_HDD,10,FALSE))*N50) -> 0 | U50: =IF(N44<0,0,VLOOKUP($K50,TS4L4_HDD,11,FALSE)) -> 0 | V50: =IF(N44<0,"",IF(AND(AF46>1,Z11="nutanix"),"",VLOOKUP($K50,TS4L4_HDD,12,FALSE))) -> L4N13
K52: =ConfigurationTS4L4!A82 -> 1.92TB SSD SAS ISE RI 12Gbps | M52: =VLOOKUP($K52,TS4L4_HDD,13,FALSE) -> TS4L4-SSD-RI1,6TB | N52: 0 | P52: =T52 -> 0 | T52: =IF(N44<0,0,IF(AND(AF46>1,Z11="nutanix"),0,VLOOKUP($K52,TS4L4_HDD,10,FALSE))*N52) -> 0 | U52: =VLOOKUP($K52,TS4L4_HDD,11,FALSE) -> 0 | V52: =IF(N44<0,"",IF(AND(AF46>1,Z11="nutanix"),"",VLOOKUP($K52,TS4L4_HDD,12,FALSE))) -> L4N14
K54: =ConfigurationTS4L4!A83 -> 1.6TB SSD SAS ISE MU 12Gbps | M54: =VLOOKUP($K54,TS4L4_HDD,13,FALSE) -> TS4L4-SSD-MU1,6TB | N54: 0 | P54: =T54 -> 0 | T54: =IF(N44<0,0,IF(AND(AF46>1,Z11="nutanix"),0,VLOOKUP($K54,TS4L4_HDD,10,FALSE))*N54) -> 0 | U54: =VLOOKUP($K54,TS4L4_HDD,11,FALSE) -> 0 | V54: =IF(N44<0,"",IF(AND(AF46>1,Z11="nutanix"),"",VLOOKUP($K54,TS4L4_HDD,12,FALSE))) -> L4N15
K56: =ConfigurationTS4L4!A84 -> 960GB SSD SAS ISE RI 12Gbps | M56: =VLOOKUP($K56,TS4L4_HDD,13,FALSE) -> TS4L4-SSD-RI800GB | N56: 2 | P56: =T56 -> 0 | T56: =IF(N44<0,0,IF(AND(AF46>1,Z11="nutanix"),0,IF(N56>2,(VLOOKUP($K56,TS4L4_HDD,10,FALSE)*(N56-2)),0))) -> 0 | U56: =VLOOKUP($K56,TS4L4_HDD,11,FALSE)*N56 -> 0 | V56: =IF(N44<0,"",IF(AND(AF46>1,Z11="nutanix"),"",VLOOKUP($K56,TS4L4_HDD,12,FALSE))) -> L4N16
K58: =ConfigurationTS4L4!A85 -> 800GB SSD SAS ISE Mix Use 12Gbps | M58: =VLOOKUP($K58,TS4L4_HDD,13,FALSE) -> TS4L4-SSD-MU800GB | N58: 0 | P58: =T58 -> 0 | T58: =IF(N44<0,0,IF(AND(AF46>1,Z11="nutanix"),0,VLOOKUP($K58,TS4L4_HDD,10,FALSE))*N58) -> 0 | U58: =VLOOKUP($K58,TS4L4_HDD,11,FALSE)*N58 -> 0 | V58: =IF(N44<0,"",IF(AND(AF46>1,Z11="nutanix"),"",VLOOKUP($K58,TS4L4_HDD,12,FALSE))) -> L4N17
K60: =ConfigurationTS4L4!A87 -> 7.68TB SSD RI SAS ISE 12Gbps | M60: =VLOOKUP($K60,TS4L4_HDD,13,FALSE) -> TS4L4-SSD7.68RI | N60: 0 | P60: =U60 -> 0 | U60: =IF(N44<0,0,IF(AND(AF46>1,Z11="nutanix"),0,VLOOKUP($K60,TS4L4_HDD,11,FALSE))*N60) -> 0 | V60: =IF(N44<0,"",IF(AND(AF46>1,Z11="nutanix"),"",VLOOKUP($K60,TS4L4_HDD,12,FALSE))) -> L4N32
M61: =IF(SUM(N64:N70)>0,IF(K11=ConfigurationTS4L4!A3,"▲ Selezionare chassis NVME, vSAN, Nutanix o GPU Ready ▲ per abilitare dischi nVME",""),"") ->  | P61: =IF(AND(N64<2,AA11="GPUReady"),"Selezionare almeno 2 dischi NVMe 1.6",IF(N63<0,"Troppi Dischi NVMe",IF(SUM(N64:N70)>0,"Sui dischi NVMe non è supportato il RAID Hardware",""))) -> 
K62: NVMe Bays N° 8 | M62: Usati | N62: Disponibili
M63: =SUM(N64:N70) -> 0 | N63: =8-(N64+N66+N68+N70) -> 8
K64: =ConfigurationTS4L4!A86 -> 1.6TB Enterprise NVMe Mixed Use Drive U.2 | M64: =VLOOKUP($K64,TS4L4_HDD,13,FALSE) -> TS4L4-NVME1,6TB | N64: 0 | O64: =IF(AND(N64>0,M61<>""),"!","") ->  | P64: =T64 -> 0 | T64: =IF(N63<0,0,IF(AND(K11="PowerEdge R7525 Server (General Purpose)",SUM(N64:N70)>0),0,VLOOKUP($K64,TS4L4_HDD,10,FALSE))*N64) -> 0 | U64: =VLOOKUP($K64,TS4L4_HDD,11,FALSE) -> 0 | V64: =IF(N63<0,"",IF(AND(K11="PowerEdge R7525 Server (General Purpose)",SUM(N64:N70)>0),"",VLOOKUP($K64,TS4L4_HDD,12,FALSE))) -> L4N18
K66: =ConfigurationTS4L4!A88 -> 3.2TB, Enterprise, NVMe, Mixed Use | M66: =VLOOKUP($K66,TS4L4_HDD,13,FALSE) -> TS4L4-NVMe3.2MU | N66: 0 | O66: =IF(AND(N66>0,M61<>""),"!","") ->  | P66: =U66 -> 0 | U66: =IF(N63<0,0,IF(AND(K11="PowerEdge R7525 Server (General Purpose)",SUM(N64:N70)>0),0,VLOOKUP($K66,TS4L4_HDD,11,FALSE))*N66) -> 0 | V66: =IF(N63<0,"",IF(AND(K11="PowerEdge R7525 Server (General Purpose)",SUM(N64:N70)>0),"",VLOOKUP($K66,TS4L4_HDD,12,FALSE))) -> L4N33
K68: =ConfigurationTS4L4!A89 -> 1.92TB, Enterprise, NVMe, Read Intensive | M68: =VLOOKUP($K68,TS4L4_HDD,13,FALSE) -> TS4L4-NVMe1.92RI | N68: 0 | O68: =IF(AND(N68>0,M61<>""),"!","") ->  | P68: =U68 -> 0 | U68: =IF(N63<0,0,IF(AND(K11="PowerEdge R7525 Server (General Purpose)",SUM(N64:N70)>0),0,VLOOKUP($K68,TS4L4_HDD,11,FALSE))*N68) -> 0 | V68: =IF(N63<0,"",IF(AND(K11="PowerEdge R7525 Server (General Purpose)",SUM(N64:N70)>0),"",VLOOKUP($K68,TS4L4_HDD,12,FALSE))) -> L4N34
K70: =ConfigurationTS4L4!A90 -> 3.84TB, Enterprise, NVMe, Read Intensive | M70: =VLOOKUP($K70,TS4L4_HDD,13,FALSE) -> TS4L4-NVMe3.84RI | N70: 0 | O70: =IF(AND(N70>0,M61<>""),"!","") ->  | P70: =U70 -> 0 | U70: =IF(N63<0,0,IF(AND(K11="PowerEdge R7525 Server (General Purpose)",SUM(N64:N70)>0),0,VLOOKUP($K70,TS4L4_HDD,11,FALSE))*N70) -> 0 | V70: =IF(N63<0,"",IF(AND(K11="PowerEdge R7525 Server (General Purpose)",SUM(N64:N70)>0),"",VLOOKUP($K70,TS4L4_HDD,12,FALSE))) -> L4N35
K72: BOSS controller card
K73: =IF(N41=1,ConfigurationTS4L4!A108,ConfigurationTS4L4!A107) -> No Boss card | M73: =IF(U73>0,VLOOKUP($K73,TS4L4_BOSS,13,FALSE),"") ->  | N73: =VLOOKUP($K73,TS4L4_BOSS,7,FALSE) ->  | P73: =U73 -> 0 | T73: =VLOOKUP($K73,TS4L4_BOSS,10,FALSE) -> 0 | U73: =IF(W10="JBOD",0,IF(W15="vsan",0,IF(Z11="Nutanix",0,VLOOKUP($K73,TS4L4_BOSS,11,FALSE)))) -> 0 | V73: =IF(W15="vsan",0,IF(Z11="Nutanix",0,VLOOKUP($K73,TS4L4_BOSS,12,FALSE))) -> 
J75: =IF(N75="","",U76) ->  | K75: Power Supply | L75: =IF(P75="","",W76) -> 
K76: =IF(Y17=1,"Dual, Hot-plug Power Supply (1+1), 1400W",IF($M$17="TS3L4-GPUDW","Dual, Hot-plug Power Supply (1+1), 2000W",IF($M$17="TS3L4-GPUSW","Dual, Hot-plug Power Supply (1+1), 2000W","Dual, Hot-plug, Redundant Power Supply (1+1), 750W"))) -> Dual, Hot-plug Power Supply (1+1), 1400W | M76: =VLOOKUP($K76,TS4L4_PSU,13,FALSE) -> TS4L4-PSU1400W | N76: =VLOOKUP($K76,TS4L4_PSU,7,FALSE) -> 1 | T76: =VLOOKUP($K76,TS4L4_PSU,10,FALSE) -> 0 | U76: =VLOOKUP($K76,TS4L4_PSU,11,FALSE) -> 0 | V76: =VLOOKUP($K76,TS4L4_PSU,12,FALSE) -> L4N49
K78: Embedded Systems Management
K79: iDRAC9,Enterprise
K83: Slot PCI In questa sezione è possibile selezionare la configurazione degli Slot PCI
I86: =IF(AA11="GPUReady","Slot per GPU 1 Double Wide (Occupa 2 Slot PCI, 1 e 2)","") ->  | K86: PCI Slot 1 Processor 1 x8 PCIe Gen4 for HL/FH | M86: =IF(AND(K23="No Additional Processor",SUM(N93:N108)>0),"Selezionare Processore Aggiuntivo o Deselezionare Schede PCI",IF(AND(K87="Nvidia A30",$AA$11<>"GPUReady"),"Selezionare server GPU Ready o deselezionare Scheda GPU",IF(AND(K87="Nvidia A40",$AA$11<>"GPUReady"),"Selezionare server GPU Ready o deselezionare Scheda GPU",IF(AND(AA11="GPUReady",(SUM(W87:X87))=0,K87<>"Slot non utilizzato"),"Deselezionare scheda PCI o Selezionare GPU","")))) -> 
K87: Slot Non Utilizzato | M87: =IF(AND($AA$11<>"GPUReady",K87="Nvidia A30"),"",IF(AND($AA$11<>"GPUReady",K87="Nvidia A40"),"",IF(AND($AA$11="GPUReady",(SUM(W87:X87)=0)),"",IF(AND($AA$11="GPUReady",(SUM(W87:X87)>0)),VLOOKUP($K87,TS4L4_GPU,13,FALSE),VLOOKUP($K87,TS4L4_PCI,13,))))) ->  | N87: =IF(AND($AA$11<>"GPUReady",K87="Nvidia A30"),"",IF(AND($AA$11<>"GPUReady",K87="Nvidia A40"),"",IF(AND($AA$11="GPUReady",(SUM(W87:X87)=0)),"",IF(AND($AA$11="GPUReady",(SUM(W87:X87)>0)),VLOOKUP($K87,TS4L4_GPU,7,FALSE),VLOOKUP($K87,TS4L4_PCI,7,FALSE))))) ->  | P87: =T87+U87 -> 0 | T87: =IF(AND($AA$11<>"GPUReady",K87="Nvidia A30"),0,IF(AND($AA$11<>"GPUReady",K87="Nvidia A40"),0,IF(AND($AA$11="GPUReady",(SUM(W87:X87)=0)),0,IF(AND($AA$11="GPUReady",(SUM(W87:X87)>0)),VLOOKUP($K87,TS4L4_GPU,10,FALSE),VLOOKUP($K87,TS4L4_PCI,10,FALSE))))) -> 0 | U87: =IF(AND($AA$11<>"GPUReady",K87="Nvidia A30"),0,IF(AND($AA$11<>"GPUReady",K87="Nvidia A40"),0,IF(AND($AA$11="GPUReady",(SUM(W87:X87)=0)),0,IF(AND($AA$11="GPUReady",(SUM(W87:X87)>0)),VLOOKUP($K87,TS4L4_GPU,11,FALSE),VLOOKUP($K87,TS4L4_PCI,11,FALSE))))) -> 0 | V87: =IF(AND($AA$11<>"GPUReady",K87="Nvidia A30"),"",IF(AND($AA$11<>"GPUReady",K87="Nvidia A40"),"",IF(AND($AA$11="GPUReady",(SUM(W87:X87)=0)),"",IF(AND($AA$11="GPUReady",(SUM(W87:X87)>0)),VLOOKUP($K87,TS4L4_GPU,12,FALSE),VLOOKUP($K87,TS4L4_PCI,12,FALSE))))) ->  | W87: =IF(K87="Nvidia A30",1,0) -> 0 | X87: =IF(K87="Nvidia A40",2,0) -> 0
K89: PCI Slot 2 Processor 1 x8 PCIe Gen4 for HL/FH | W89: =IF(AND(AA11="GPUReady",(SUM(W87:X87))=0,K87<>"Slot non utilizzato"),"Deselezionare scheda PCI o Selezionare GPU","") -> 
K90: Slot Non Utilizzato | M90: =IF(AND(AA11="GPUReady",K90<>"Slot non utilizzato"),"",VLOOKUP($K90,TS4L4_PCI,13,FALSE)) ->  | N90: =IF(AND(AA11="GPUReady",K90<>"Slot non utilizzato"),"",VLOOKUP($K90,TS4L4_PCI,7,FALSE)) ->  | P90: =T90+U90 -> 0 | T90: =IF(AND(AA11="GPUReady",K90<>"Slot non utilizzato"),0,VLOOKUP($K90,TS4L4_PCI,10,FALSE)) -> 0 | U90: =IF(AND(AA11="GPUReady",K90<>"Slot non utilizzato"),0,VLOOKUP($K90,TS4L4_PCI,11,FALSE)) -> 0 | V90: =IF(AND(AA11="GPUReady",K90<>"Slot non utilizzato"),"",VLOOKUP($K90,TS4L4_PCI,12,FALSE)) -> 
K92: PCI Slot 3 Processor 1 x16 PCIe Gen4 for HL/LP | M92: =IF(SUM(S93,S102)>1,"Selezionare un solo controller H840 a scelta tra slot 3 e 6",IF(AND(K93="PERC H840 RAID Adapter for External JBOD Only",N127<>1),"Il controller H840 è compatibile esclusivamente con il JBOD, aggiungere JBOD nelle successive opzioni",IF(AND(K93<>"Slot non Utilizzato",N23<>1),"Selezionare Processore Aggiuntivo per Abilitare Ulteriori Slot PCI",""))) -> 
K93: Slot Non Utilizzato | M93: =IF($Z$11="nutanix","",VLOOKUP($K93,TS4L4_PCI_LP,13,FALSE)) ->  | N93: =IF($Z$11="nutanix","",VLOOKUP($K93,TS4L4_PCI_LP,7,FALSE)) ->  | P93: =T93+U93 -> 0 | S93: =IF(K93="PERC H840 RAID Adapter for External JBOD Only",1,0) -> 0 | T93: =IF($Z$11="nutanix",0,VLOOKUP($K93,TS4L4_PCI_LP,10,FALSE)) -> 0 | U93: =IF($Z$11="nutanix",0,VLOOKUP($K93,TS4L4_PCI_LP,11,FALSE)) -> 0 | V93: =IF($Z$11="nutanix","",VLOOKUP($K93,TS4L4_PCI_LP,12,FALSE)) -> 0
I95: =IF(AA11="GPUReady","Slot per GPU 2 Double Wide (Occupa 2 Slot PCI, 4 e 5)","") ->  | J95: =IF($X$82="SW","GPU Slot",IF($X$82="DW","GPU Slot","")) ->  | K95: PCI Slot 4 Processor 2 x8 PCIe Gen4 for HL/FH | L95: =IF($X$82="SW","GPU Slot",IF($X$82="DW","GPU Slot","")) ->  | M95: =IF(AND(K96="Nvidia A30",$AA$11<>"GPUReady"),"Selezionare server GPU Ready o deselezionare Scheda GPU",IF(AND(K96="Nvidia A40",$AA$11<>"GPUReady"),"Selezionare server GPU Ready o deselezionare Scheda GPU","")) -> 
K96: Slot Non Utilizzato | M96: =IF(AND($AA$11<>"GPUREADY",K96="Nvidia A30"),"",IF(AND($AA$11<>"GPUREADY",K96="Nvidia A40"),"",IF($AA$11="GPUReady",VLOOKUP($K96,TS4L4_GPU,13,FALSE),VLOOKUP($K96,TS4L4_PCI,13,)))) ->  | N96: =IF(AND($AA$11<>"GPUREADY",K96="Nvidia A30"),"",IF(AND($AA$11<>"GPUREADY",K96="Nvidia A40"),"",IF($AA$11="GPUReady",VLOOKUP($K96,TS4L4_GPU,7,FALSE),VLOOKUP($K96,TS4L4_PCI,7,FALSE)))) ->  | P96: =T96+U96 -> 0 | T96: =IF(AND($AA$11<>"GPUREADY",K96="Nvidia A30"),0,IF(AND($AA$11<>"GPUREADY",K96="Nvidia A40"),0,IF($AA$11="GPUReady",VLOOKUP($K96,TS4L4_GPU,10,FALSE),VLOOKUP($K96,TS4L4_PCI,10,FALSE)))) -> 0 | U96: =IF(AND($AA$11<>"GPUREADY",K96="Nvidia A30"),0,IF(AND($AA$11<>"GPUREADY",K96="Nvidia A40"),0,IF($AA$11="GPUReady",VLOOKUP($K96,TS4L4_GPU,11,FALSE),VLOOKUP($K96,TS4L4_PCI,11,FALSE)))) -> 0 | V96: =IF(AND($AA$11<>"GPUREADY",K96="Nvidia A30"),"",IF(AND($AA$11<>"GPUREADY",K96="Nvidia A40"),"",IF($AA$11="GPUReady",VLOOKUP($K96,TS4L4_GPU,12,FALSE),VLOOKUP($K96,TS4L4_PCI,12,FALSE)))) -> 
J98: =IF($X$82="SW","GPU Slot","") ->  | K98: PCI Slot 5 Processor 2 x8 PCIe Gen4 for HL/FH | L98: =IF($X$82="SW","GPU Slot","") -> 
K99: Slot Non Utilizzato | M99: =IF(AND(AA11="GPUReady",K99<>"Slot non utilizzato"),"",VLOOKUP($K99,TS4L4_PCI,13,FALSE)) ->  | N99: =IF(AND(AA11="GPUReady",K99<>"Slot non utilizzato"),"",VLOOKUP($K99,TS4L4_PCI,7,FALSE)) ->  | P99: =T99+U99 -> 0 | T99: =IF(AND(AA11="GPUReady",K99<>"Slot non utilizzato"),0,VLOOKUP($K99,TS4L4_PCI,10,FALSE)) -> 0 | U99: =IF(AND(AA11="GPUReady",K99<>"Slot non utilizzato"),0,VLOOKUP($K99,TS4L4_PCI,11,FALSE)) -> 0 | V99: =IF(AND(AA11="GPUReady",K99<>"Slot non utilizzato"),"",VLOOKUP($K99,TS4L4_PCI,12,FALSE)) -> 
K101: PCI Slot 6 Processor 2 x16 PCIe Gen4 for HL/LP | M101: =IF(SUM(S93,S102)>1,"Selezionare un solo controller H840 a scelta tra slot 3 e 6",IF(AND(K102="PERC H840 RAID Adapter for External JBOD Only",N127<>1),"Il controller H840 è compatibile esclusivamente con il JBOD, aggiungere JBOD nelle successive opzioni",IF(AND(N23<>1,K102<>"Slot non Utilizzato"),"Selezionare Processore Aggiuntivo per Abilitare Ulteriori Slot PCI",""))) -> 
K102: Slot Non Utilizzato | M102: =VLOOKUP($K102,TS4L4_PCI_LP,13,FALSE) ->  | N102: =VLOOKUP($K102,TS4L4_PCI_LP,7,FALSE) ->  | P102: =T102+U102 -> 0 | S102: =IF(K102="PERC H840 RAID Adapter for External JBOD Only",1,0) -> 0 | T102: =IF($Z$11="nutanix",0,VLOOKUP($K102,TS4L4_PCI_LP,10,FALSE)) -> 0 | U102: =IF($Z$11="nutanix",0,VLOOKUP($K102,TS4L4_PCI_LP,11,FALSE)) -> 0 | V102: =IF($Z$11="nutanix","",VLOOKUP($K102,TS4L4_PCI_LP,12,FALSE)) -> 0
I104: =IF(AA11="GPUReady","Slot per GPU 3 Double Wide (Occupa 2 Slot PCI,7 e 8)","") ->  | J104: =IF($X$82="SW","GPU Slot","") ->  | K104: PCI Slot 7 Processor 2 x8 PCIe Gen4 for HL/FH | L104: =IF($X$82="SW","GPU Slot","") ->  | M104: =IF(AND(K105="Nvidia A30",$AA$11<>"GPUReady"),"Selezionare server GPU Ready o deselezionare Scheda GPU",IF(AND(K105="Nvidia A40",$AA$11<>"GPUReady"),"Selezionare server GPU Ready o deselezionare Scheda GPU","")) -> 
K105: Slot Non Utilizzato | M105: =IF(AND($AA$11<>"GPUREADY",K105="Nvidia A30"),"",IF(AND($AA$11<>"GPUREADY",K105="Nvidia A40"),"",IF($AA$11="GPUReady",VLOOKUP($K105,TS4L4_GPU,13,FALSE),VLOOKUP($K105,TS4L4_PCI,13,)))) ->  | N105: =IF(AND($AA$11<>"GPUREADY",K105="Nvidia A30"),"",IF(AND($AA$11<>"GPUREADY",K105="Nvidia A40"),"",IF($AA$11="GPUReady",VLOOKUP($K105,TS4L4_GPU,7,FALSE),VLOOKUP($K105,TS4L4_PCI,7,FALSE)))) ->  | P105: =T105+U105 -> 0 | T105: =IF(AND($AA$11<>"GPUREADY",K105="Nvidia A30"),0,IF(AND($AA$11<>"GPUREADY",K105="Nvidia A40"),0,IF($AA$11="GPUReady",VLOOKUP($K105,TS4L4_GPU,10,FALSE),VLOOKUP($K105,TS4L4_PCI,10,FALSE)))) -> 0 | U105: =IF(AND($AA$11<>"GPUREADY",K105="Nvidia A30"),0,IF(AND($AA$11<>"GPUREADY",K105="Nvidia A40"),0,IF($AA$11="GPUReady",VLOOKUP($K105,TS4L4_GPU,11,FALSE),VLOOKUP($K105,TS4L4_PCI,11,FALSE)))) -> 0 | V105: =IF(AND($AA$11<>"GPUREADY",K105="Nvidia A30"),"",IF(AND($AA$11<>"GPUREADY",K105="Nvidia A40"),"",IF($AA$11="GPUReady",VLOOKUP($K105,TS4L4_GPU,12,FALSE),VLOOKUP($K105,TS4L4_PCI,12,FALSE)))) -> 
J107: =IF($X$82="SW","GPU Slot",IF($X$82="DW","GPU Slot","")) ->  | K107: PCI Slot 8 Processor 2 x8 PCIe Gen4 for HL/FH | L107: =IF($X$82="SW","GPU Slot",IF($X$82="DW","GPU Slot","")) -> 
K108: Slot Non Utilizzato | M108: =IF(AND(AA11="GPUReady",K108<>"Slot non utilizzato"),"",VLOOKUP($K108,TS4L4_PCI,13,FALSE)) ->  | N108: =IF(AND(AA11="GPUReady",K108<>"Slot non utilizzato"),"",VLOOKUP($K108,TS4L4_PCI,7,FALSE)) ->  | P108: =T108+U108 -> 0 | T108: =IF(AND(AA11="GPUReady",K108<>"Slot non utilizzato"),0,VLOOKUP($K108,TS4L4_PCI,10,FALSE)) -> 0 | U108: =IF(AND(AA11="GPUReady",K108<>"Slot non utilizzato"),0,VLOOKUP($K108,TS4L4_PCI,11,FALSE)) -> 0 | V108: =IF(AND(AA11="GPUReady",K108<>"Slot non utilizzato"),"",VLOOKUP($K108,TS4L4_PCI,12,FALSE)) -> 
P109: =IF(V108="L4N33",IF($W$108>1,"ERRORE: SOLO UNA BOSS CARD PUO' ESSERE CONFIGURATA",""),"") -> 
P111: =IF(V110="L4N33",IF($W$108>1,"ERRORE: SOLO UNA BOSS CARD PUO' ESSERE CONFIGURATA",""),"") -> 
I113: Transceiver per Schede LAN 20% (Mellanox HDR, Broadcom 57508) | K113: SFP+ Transceivers 10 Gbps
K114: =ConfigurationTS4L4!A136 -> SFP+ SR Optic for all SFP+ ports except High temperature Cards | M114: =VLOOKUP($K114,TS4L4_SFP,13,FALSE) -> TS4L4-OT10GB | N114: 0 | P114: =T114+U114 -> 0 | T114: =VLOOKUP($K114,TS4L4_SFP,10,FALSE) -> 0 | U114: =VLOOKUP($K114,TS4L4_SFP,11,FALSE)*ConfigurationTS4L4!G136*N114 -> 0 | V114: =VLOOKUP($K114,TS4L4_SFP,12,FALSE) -> L4N109
K116: SFP28 - 25GbE
K117: =ConfigurationTS4L4!A137 -> SFP28 SR Optic, 25GbE, 85C, for all SFP28 ports | M117: =VLOOKUP($K117,TS4L4_SFP,13,FALSE) -> TS4L4-OT25GB | N117: 0 | P117: =T117+U117 -> 0 | T117: =VLOOKUP($K117,TS4L4_SFP,10,FALSE) -> 0 | U117: =VLOOKUP($K117,TS4L4_SFP,11,FALSE)*N117 -> 0 | V117: =VLOOKUP($K117,TS4L4_SFP,12,FALSE) -> L4N110
K119: QSFP28 Transceivers
K120: =ConfigurationTS4L4!A138 -> Dell EMC PowerEdge QSFP28 SR4 100GbE 85C optic | M120: =VLOOKUP($K120,TS4L4_SFP,13,FALSE) -> TS4L4-OT100GB | N120: 0 | P120: =T120+U120 -> 0 | T120: =VLOOKUP($K120,TS4L4_SFP,10,FALSE) -> 0 | U120: =VLOOKUP($K120,TS4L4_SFP,11,FALSE)*N120 -> 0 | V120: =VLOOKUP($K120,TS4L4_SFP,12,FALSE) -> L4N111
K123: Enclosure JBOD da 12 Slot 3,5'' e dishi SAS da inserire nell'Enclosure. Una volta selezionato il JBOD e i dischi a corredo si deve obbligatoriamente compilare uno slot PCI a scelta tra lo Slot 3 e lo Slot 6 dove inserire il controller H840 compreso nel Kit JBOD
I126: Enclosure JBOD Esterno 2 RU comprensivo di connessione con Controller RAID H840 (solo per JBOD) Installabile su Slot PCI low Profile (Slot 3-6). I dischi da 12TB, 16TB e 20TB possono essere installati ESCLUSIVAMENTE nel JBOD | K126: Opz JBOD (NO DISK) | M126: =IF(AND(N127<>0,SUM(S102,S93)=0),"Selezionare Controller H840 negli slot PCI a scelta a tra 3 e 6",IF(AND(N127=0,SUM(N130:N136)>0),"Selezionare JBOD per aggiugere dischi SAS JBOD",IF(AND(N127<> 0,SUM(N130:N136)=0),"Il JBOD non ha dischi al suo interno, selezionare dischi da 12TB, 16TB o 20TB per un massimo di 12 dischi.",IF(AND(N127=1,SUM(N130:N136)>12),"Superato Numero dischi disponibili per JBOD","")))) -> 
K127: =Tabella_prezzi!H80 -> Enclosure di espansione JBOD 12 slot 3,5'' + HBA (H840) | M127: =VLOOKUP($K127,TS4L4_20X100,13,FALSE) -> TS4L4-JBOD | N127: 0 | P127: =T127+U127 -> 0 | T127: =VLOOKUP($K127,TS4L4_20X100,10,FALSE)*N127 -> 0 | U127: =VLOOKUP($K127,TS4L4_20X100,11,FALSE)*N127 -> 0 | V127: =VLOOKUP($K127,TS4L4_20X100,12,FALSE) -> L4N122
K129: Opz 12TB 7,2 RPM - per JBOD
K130: =Tabella_prezzi!H81 -> 12TB 7.2K RPM NLSAS ISE 12Gbps 512e 3.5in Hot-plug Hard Drive | M130: =VLOOKUP($K130,TS4L4_20X100,13,FALSE) -> TS4L4-12TBNLSAS | N130: 0 | P130: =T130+U130 -> 0 | T130: =VLOOKUP($K130,TS4L4_20X100,10,FALSE)*N130 -> 0 | U130: =IF(M126<>"",0,VLOOKUP($K130,TS4L4_20X100,11,FALSE)*N130) -> 0 | V130: =VLOOKUP($K130,TS4L4_20X100,12,FALSE) -> L4N123
K132: Opz 16TB 7,2 RPM - per JBOD
K133: =Tabella_prezzi!H82 -> 16TB Hard Drive SAS ISE 12Gbps 7.2K 512e 3.5in Hot-Plug | M133: =VLOOKUP($K133,TS4L4_20X100,13,FALSE) -> TS4L4-16TBSAS | N133: 0 | P133: =T133+U133 -> 0 | T133: =VLOOKUP($K133,TS4L4_20X100,10,FALSE)*N133 -> 0 | U133: =IF(M126<>"",0,VLOOKUP($K133,TS4L4_20X100,11,FALSE)*N133) -> 0 | V133: =VLOOKUP($K133,TS4L4_20X100,12,FALSE) -> L4N124
K135: Opz 20TB 7,2 RPM - per JBOD
K136: =Tabella_prezzi!H83 -> 20TB HDD SAS ISE 12Gbps 7.2K 512e 3.5in Hot-Plug | M136: =VLOOKUP($K136,TS4L4_20X100,13,FALSE) -> TS4L4-20TBSAS | N136: 0 | P136: =T136+U136 -> 0 | T136: =VLOOKUP($K136,TS4L4_20X100,10,FALSE)*N136 -> 0 | U136: =IF(M126<>"",0,VLOOKUP($K136,TS4L4_20X100,11,FALSE)*N136) -> 0 | V136: =VLOOKUP($K136,TS4L4_20X100,12,FALSE) -> L4N125
K139: Estensione di Garanzia e Hard Disk Retention
K142: Garanzia
K143: Manutenzione in garanzia (36 mesi) | M143: =VLOOKUP($K143,TS4L4_WARR,13,FALSE) ->  | N143: =VLOOKUP($K143,TS4L4_WARR,7,FALSE) ->  | P143: =T143 -> 0 | T143: =VLOOKUP($K143,TS4L4_WARR,10,FALSE) -> 0 | U143: =VLOOKUP($K143,TS4L4_WARR,11,FALSE) -> 0 | V143: =VLOOKUP($K143,TS4L4_WARR,12,FALSE) -> 
K145: Hard Disk Retention | N145: =IF(AND($K$146="Hard Disk Retention 60 mesi",$N$143=""),"Selezionare Estensione di Garanzia 24 Mesi","") -> 
K146: No Hard Disk Retention | M146: =VLOOKUP(K146,TS4L4_HDDRET,13,FALSE) ->  | N146: =IF(K146="No Hard Disk Retention","",1) ->  | P146: =T146 -> 0 | T146: =IF(AND(K146="Hard Disk Retention 60 mesi",N143=""),"",VLOOKUP(K146,TS4L4_HDDRET,10,FALSE)) -> 0 | U146: =IFERROR(Z146,VLOOKUP(K146,TS4L4_HDDRET,11,FALSE)) -> 0 | V146: =IF(AND(K146="Hard Disk Retention 60 mesi",N143=""),"",VLOOKUP(K146,TS4L4_HDDRET,12,FALSE)) -> 
M148: Configurazione | N148: =SUM(T11:T146)*N8 -> 0 | T148: =IF(AND($N$146=1,$N$143=""),"Selezionare Estensione di Garanzia 24 Mesi","") -> 
M149: 0.2 | N149: =SUM(U11:U146)*N8 -> 0
M150: Totale | N150: =SUM(N148:N149) -> 0
K152: NOTE

Sheet Altre Opzioni
I2: Altre Opzioni | L2: Totale altre opzioni
L3: =SUM(P6:Q34) -> 0 | AD3: =IF(L3<>0,1,0) -> 0
I6: OpzRack DELL
I7: =Tabella_prezzi!H74 -> Rack 42RU DellEmc | K7: =VLOOKUP(I7,TS4L4_20X100,13,FALSE) -> TS4L4-RACK-D | L7: 0 | N7: =P7+Q7 -> 0 | P7: =VLOOKUP($I7,TS4L4_20X100,10,FALSE)*L7 -> 0 | Q7: =VLOOKUP($I7,TS4L4_20X100,11,FALSE)*L7 -> 0 | R7: =VLOOKUP($I7,TS4L4_20X100,12,FALSE) -> L4N116
I9: OpzPDU Mono
I10: =Tabella_prezzi!H75 -> PDU 220 mono output 20-C13 + 4-C19 IEC 320, input C20 | K10: =VLOOKUP($I10,TS4L4_20X100,13,FALSE) -> TS4L4-PDU-M | L10: 0 | N10: =P10+Q10 -> 0 | P10: =VLOOKUP($I10,TS4L4_20X100,10,FALSE)*L10 -> 0 | Q10: =VLOOKUP($I10,TS4L4_20X100,11,FALSE)*L10 -> 0 | R10: =VLOOKUP($I10,TS4L4_20X100,12,FALSE) -> L4N117
I12: OpzPDU Trifase
I13: =Tabella_prezzi!H76 -> PDU 220 Trifase output 6-C19 e 36-C13, input Spina 3P+T 400V 16A | K13: =VLOOKUP($I13,TS4L4_20X100,13,FALSE) -> TS4L4-PDU-T | L13: 0 | N13: =P13+Q13 -> 0 | P13: =VLOOKUP($I13,TS4L4_20X100,10,FALSE)*L13 -> 0 | Q13: =VLOOKUP($I13,TS4L4_20X100,11,FALSE)*L13 -> 0 | R13: =VLOOKUP($I13,TS4L4_20X100,12,FALSE) -> L4N118
I15: OpzKVM DELL
I16: =Tabella_prezzi!H77 -> Dell KVM + Switch 8 porte + cavi | K16: =VLOOKUP($I16,TS4L4_20X100,13,FALSE) -> TS4L4-KVM-D | L16: 0 | N16: =P16+Q16 -> 0 | P16: =VLOOKUP($I16,TS4L4_20X100,10,FALSE)*L16 -> 0 | Q16: =VLOOKUP($I16,TS4L4_20X100,11,FALSE)*L16 -> 0 | R16: =VLOOKUP($I16,TS4L4_20X100,12,FALSE) -> L4N119
I18: Opz CMA
I19: =Tabella_prezzi!H79 -> Cable Management Arm for PowerEdge Systems | K19: =VLOOKUP($I19,TS4L4_20X100,13,FALSE) -> TS4L4-CMA | L19: 0 | N19: =P19+Q19 -> 0 | P19: =VLOOKUP($I19,TS4L4_20X100,10,FALSE)*L19 -> 0 | Q19: =VLOOKUP($I19,TS4L4_20X100,11,FALSE)*L19 -> 0 | R19: =VLOOKUP($I19,TS4L4_20X100,12,FALSE) -> L4N121
I22: OpzRack
I23: =ConfigurationTS4L4!A121 -> Armadio Rack 42U | K23: =VLOOKUP($I23,ConfigurationTS4L4!1:1048576,13,FALSE) -> TS4L4-RACK | L23: 0 | N23: =P23 -> 0 | P23: =VLOOKUP($I23,ConfigurationTS4L4!1:1048576,10,FALSE)*L23 -> 0 | Q23: =VLOOKUP($I23,ConfigurationTS4L4!1:1048576,11,FALSE) -> 0 | R23: =VLOOKUP($I23,ConfigurationTS4L4!1:1048576,12,FALSE) -> L4N31
I25: OpzUps (3000VA)
I26: =ConfigurationTS4L4!A125 -> UPS PowerMe RPMM/9K - 3000VA | K26: =VLOOKUP($I26,ConfigurationTS4L4!1:1048576,13,FALSE) -> TS4L4-UPS | L26: 0 | N26: =P26 -> 0 | P26: =VLOOKUP($I26,ConfigurationTS4L4!1:1048576,10,FALSE)*L26 -> 0 | Q26: =VLOOKUP($I26,ConfigurationTS4L4!1:1048576,11,FALSE)*M26 -> 0 | R26: =VLOOKUP($I26,ConfigurationTS4L4!1:1048576,12,FALSE) -> L4N19
I29: OpzGUI
I30: =ConfigurationTS4L4!A129 -> Unità KVM - monitor 17", cavo combi PS/2&USB | K30: =VLOOKUP($I30,ConfigurationTS4L4!1:1048576,13,FALSE) -> TS4L4-GUI | L30: 0 | N30: =P30 -> 0 | P30: =VLOOKUP($I30,ConfigurationTS4L4!1:1048576,10,FALSE)*L30 -> 0 | Q30: =VLOOKUP($I30,ConfigurationTS4L4!1:1048576,11,FALSE)*L30 -> 0 | R30: =VLOOKUP($I30,ConfigurationTS4L4!1:1048576,12,FALSE) -> L4N20
I33: OpzKVM
I34: =ConfigurationTS4L4!A133 -> KVM Switch IP per GUI 16P | K34: =VLOOKUP($I34,ConfigurationTS4L4!1:1048576,13,FALSE) -> TS4L4-KVM | L34: 0 | N34: =P34 -> 0 | P34: =VLOOKUP($I34,ConfigurationTS4L4!1:1048576,10,FALSE)*L34 -> 0 | Q34: =VLOOKUP($I34,ConfigurationTS4L4!1:1048576,11,FALSE)*L34 -> 0 | R34: =VLOOKUP($I34,ConfigurationTS4L4!1:1048576,12,FALSE) -> L4N21

Sheet Riepilogo_Ordine
F2: Convenzione Tecnologie Server 4 - Lotto 4 | I2: =IF(P8>0,"Compilare i Dati Necessari (*) all'Ordine o controllare le Configurazioni per Stampare in PDF","Dati Completi") -> Compilare i Dati Necessari (*) all'Ordine o controllare le Configurazioni per Stampare in PDF | Y2: SI
F3: Riepilogo Ordine Consip N° (*) | R3: =IF(Lotto4_R7525_1!N8>0,1,0) -> 0 | S3: =IF(Lotto4_R7525_2!N8>0,1,0) -> 0 | T3: =IF(Lotto4_R7525_3!N8>0,1,0) -> 0 | V3: =SUM(R3:T3) -> 0 | Y3: SI | AD3: 1
Y4: SI
F5: Ente Ordinante (*) | I5: Data Ordine (*) | P5: Ordine | Q5: Ente | R5: data | S5: Ref Cons | T5: mail | U5: tel | V5: Ref Inst | W5: mail | X5: Tel | Y5: SI
P6: =IF(F4>0,0,1) -> 1 | Q6: =IF(F6>0,0,1) -> 1 | R6: =IF(I6>0,0,1) -> 1 | S6: =IF(F8>0,0,1) -> 1 | T6: =IF(H8>0,0,1) -> 1 | U6: =IF(J8>0,0,1) -> 1 | V6: =IF(F10>0,0,1) -> 1 | W6: =IF(H10>0,0,1) -> 1 | X6: =IF(J10>0,0,1) -> 1 | Y6: SI
F7: Referente Consegna (*) | H7: Mail (*) | J7: Tel (*) | X7: 0.2 | Y7: SI
P8: =SUM(P6:X6)+SUM(R10:T10)+X8 -> 9 | R8: =IF(F11<>"",1,0) -> 0 | S8: =IF(H11<>"",1,0) -> 0 | T8: =IF(I11<>"",1,0) -> 0 | V8: =SUM(R8:T8) -> 0 | X8: =IF(F92<>"",1,0) -> 0 | Y8: SI
F9: Referente Installazione (*) | H9: Mail (*) | J9: Tel (*) | Y9: SI
R10: =IF(Lotto4_R7525_1!M4<>"",1,0) -> 0 | S10: =IF(Lotto4_R7525_2!M4<>"",1,0) -> 0 | T10: =IF(Lotto4_R7525_3!M4<>"",1,0) -> 0 | Y10: SI
F11: =IF(R10>0,"Errore nella Configurazione 1","") ->  | H11: =IF(S10>0,"Errore nella Configurazione 2","") ->  | I11: =IF(T10>0,"Errore nella Configurazione 3","") ->  | Y11: SI
F12: Articoli in convenzione | R12: Config 1 | S12: Config 2 | T12: Config 3 | U12: Totale | Y12: SI
F13: Codice Produttore | G13: Codice Convenzione | H13: Descrizione | I13: Qtà | J13: Costo unitario | K13: Costo Totale | P13: N° | Q13: Codice Convenzione | R13: =Lotto4_R7525_1!N8 -> 0 | S13: =Lotto4_R7525_2!N8 -> 0 | T13: =Lotto4_R7525_3!N8 -> 0 | Y13: SI
F14: =IF(I14="","",VLOOKUP(P14,Tabella_Prezzi,10,FALSE)) ->  | G14: =IF(I14="","",VLOOKUP(P14,Tabella_Prezzi,6,FALSE)) ->  | H14: =IF(I14="","",VLOOKUP(P14,Tabella_Prezzi,8,FALSE)) ->  | I14: =IF(U14>0,U14,"") ->  | J14: =IF(I14="","",VLOOKUP(P14,Tabella_Prezzi,4,FALSE)) ->  | K14: =IF(F14="","",J14*I14) ->  | O14: =VLOOKUP(P14,Tabella_Prezzi,11,FALSE) -> 210-AUVQ | P14: L4N01 | Q14: TS4L4-SRV | R14: =COUNTIF(TS4L4_1,P14)*$R$13 -> 0 | S14: =COUNTIF(TS4L4_2,P14)*$S$13 -> 0 | T14: =COUNTIF(TS4L4_3,P14)*$T$13 -> 0 | U14: =SUM(R14:T14) -> 0 | Y14: =IF(I14<>"","SI","NO") -> NO
I15: =IF(U15>0,U15,"") ->  | K15: =IF(F15="","",J15*I15) ->  | P15: L4N01-vSAN | Q15: TS4L4-SRV-vSAN | R15: =COUNTIF(TS4L4_1,P15)*$R$13 -> 0 | S15: =COUNTIF(TS4L4_2,P15)*$S$13 -> 0 | T15: =COUNTIF(TS4L4_3,P15)*$T$13 -> 0 | U15: 0 | Y15: =IF(I15<>"","SI","NO") -> NO
I16: =IF(U16>0,U16,"") ->  | K16: =IF(F16="","",J16*I16) ->  | O16: =VLOOKUP(P16,Tabella_Prezzi,11,FALSE) -> 338-BZSB | P16: L4N02 | Q16: TS4L4-CPU | R16: =IF($R$14>0,COUNTIF(TS4L4_1,P16)*$R$13,0) -> 0 | S16: =IF($S$14>0,COUNTIF(TS4L4_2,P16)*$S$13,0) -> 0 | T16: =IF($T$14>0,COUNTIF(TS4L4_3,P16)*$T$13,0) -> 0 | U16: 0 | Y16: =IF(I16<>"","SI","NO") -> NO
I17: =IF(U17>0,U17,"") ->  | K17: =IF(F17="","",J17*I17) ->  | O17: 370-AEVN | P17: L4N03 | Q17: TS4L4-RAM32 | R17: =IF($R$14>0,COUNTIF(TS4L4_1,P17)*Lotto4_R7525_1!N26*$R$13,0) -> 0 | S17: =IF($S$14>0,COUNTIF(TS4L4_2,P17)*Lotto4_R7525_2!N26*$S$13,0) -> 0 | T17: =IF($T$14>0,COUNTIF(TS4L4_3,P17)*Lotto4_R7525_2!N26*$T$13,0) -> 0 | U17: 0 | Y17: =IF(I17<>"","SI","NO") -> NO
O18: 370-AEVP | P18: L4N04 | Q18: TS4L4-RAM64 | R18: =IF($R$14>0,COUNTIF(TS4L4_1,P18)*Lotto4_R7525_1!N26*$R$13,0) -> 0 | S18: =IF($S$14>0,COUNTIF(TS4L4_2,P18)*Lotto4_R7525_2!N26*$S$13,0) -> 0 | T18: =IF($T$14>0,COUNTIF(TS4L4_3,P18)*Lotto4_R7525_2!N26*$T$13,0) -> 0 | U18: 0 | Y18: NO
O19: 540-BBCW | P19: L4N05 | Q19: TS4L4-LAN1 | R19: =IF($R$14>0,COUNTIF(TS4L4_1,P19)*$R$13,0) -> 0 | S19: =IF($S$14>0,COUNTIF(TS4L4_2,P19)*$S$13,0) -> 0 | T19: =IF($T$14>0,COUNTIF(TS4L4_3,P19)*$T$13,0) -> 0 | U19: 0 | Y19: NO
O20: 540-BBDF | P20: L4N75 | Q20: TS4L4-LAN1-L | R20: 0 | S20: 0 | T20: 0 | U20: 0 | Y20: NO
O21: 540-BDHF | P21: L4N06 | Q21: TS4L4-LAN10 | R21: 0 | S21: 0 | T21: 0 | U21: 0 | Y21: NO
O22: 540-BDGV | P22: L4N76 | Q22: TS4L4-LAN10-L | R22: 0 | S22: 0 | T22: 0 | U22: 0 | Y22: NO
O23: 540-BCDH | P23: L4N07 | Q23: TS4L4-LAN25 | R23: 0 | S23: 0 | T23: 0 | U23: 0 | Y23: NO
O24: 540-BCCM | P24: L4N77 | Q24: TS4L4-LAN25-L | R24: 0 | S24: 0 | T24: 0 | U24: 0 | Y24: NO
O25: 540-BBYL | P25: L4N08 | Q25: TS4L4-CNA10 | R25: 0 | S25: 0 | T25: 0 | U25: 0 | Y25: NO
O26: 540-BBZJ | P26: L4N78 | Q26: TS4L4-CNA10-L | R26: 0 | S26: 0 | T26: 0 | U26: 0 | Y26: NO
O27: 540-BCRO | P27: L4N09 | Q27: TS4L4-BaseT | R27: 0 | S27: 0 | T27: 0 | U27: 0 | Y27: NO
O28: 540-BCRO | P28: L4N79 | Q28: TS4L4-BaseT-L | R28: 0 | S28: 0 | T28: 0 | U28: 0 | Y28: NO
O29: 540-BDHC | P29: L4N10 | Q29: TS4L4- FibreChannel | R29: 0 | S29: 0 | T29: 0 | U29: 0 | Y29: NO
O30: 540-BDGU | P30: L4N101 | Q30: TS4L4- FibreChannel-L | R30: 0 | S30: 0 | T30: 0 | U30: 0 | V30: Quantità 1 | W30: Quantità 2 | X30: Quantità 3 | Y30: NO
O31: 400-AVEZ | P31: L4N11 | Q31: TS4L4-HDD2TB | R31: =IF($R$14>0,COUNTIF(TS4L4_1,P31)*V31*$R$13,0) -> 0 | S31: =IF($S$14>0,COUNTIF(TS4L4_2,P31)*W31*$S$13,0) -> 0 | T31: =IF($T$14>0,COUNTIF(TS4L4_3,P31)*X31*$T$13,0) -> 0 | U31: 0 | V31: =Lotto4_R7525_1!$N$46 -> 0 | W31: =Lotto4_R7525_2!N46 -> 0 | X31: =Lotto4_R7525_3!$N$46 -> 0 | Y31: NO
O32: 400-AVFE | P32: L4N12 | Q32: TS4L4-HDD1TB | R32: =IF($R$14>0,COUNTIF(TS4L4_1,P32)*V32*$R$13,0) -> 0 | S32: 0 | T32: 0 | U32: 0 | V32: =Lotto4_R7525_1!$N$48 -> 0 | W32: =Lotto4_R7525_2!N48 -> 0 | X32: =Lotto4_R7525_3!$N$48 -> 0 | Y32: NO
O33: 345-BCNU | P33: L4N13 | Q33: TS4L4-SSD-RI3,8TB | R33: 0 | S33: 0 | T33: 0 | U33: 0 | V33: =Lotto4_R7525_1!$N$50 -> 0 | W33: =Lotto4_R7525_2!N50 -> 0 | X33: =Lotto4_R7525_3!$N$50 -> 0 | Y33: NO
O34: 345-BBVC | P34: L4N14 | Q34: TS4L4-SSD-RI1,6TB | R34: 0 | S34: 0 | T34: 0 | U34: 0 | V34: =Lotto4_R7525_1!$N$52 -> 0 | W34: =Lotto4_R7525_2!N52 -> 0 | X34: =Lotto4_R7525_3!$N$52 -> 0 | Y34: NO
O35: 400-AZOY | P35: L4N15 | Q35: TS4L4-SSD-MU1,6TB | R35: 0 | S35: 0 | T35: 0 | U35: 0 | V35: =Lotto4_R7525_1!$N$54 -> 0 | W35: =Lotto4_R7525_2!N54 -> 0 | X35: =Lotto4_R7525_3!$N$54 -> 0 | Y35: NO
O36: 400-AXQU | P36: L4N16 | Q36: TS4L4-SSD-RI800GB | R36: 0 | S36: 0 | T36: 0 | U36: 0 | V36: =IF(Lotto4_R7525_1!$N$56<=2,0,Lotto4_R7525_1!$N$56-2) -> 0 | W36: =Lotto4_R7525_2!N56 -> 2 | X36: =IF(Lotto4_R7525_3!$N$56<=2,0,Lotto4_R7525_3!$N$56-2) -> 0 | Y36: NO
O37: 400-AZQO | P37: L4N17 | Q37: TS4L4-SSD-MU800GB | R37: 0 | S37: 0 | T37: 0 | U37: 0 | V37: =Lotto4_R7525_1!$N$58 -> 0 | W37: =Lotto4_R7525_2!N58 -> 0 | X37: =Lotto4_R7525_3!$N$58 -> 0 | Y37: NO
O38: 400-BMVM | P38: L4N18 | Q38: TS4L4-NVMe1,6TB | R38: 0 | S38: 0 | T38: 0 | U38: 0 | V38: =Lotto4_R7525_1!$N$64 -> 0 | W38: =Lotto4_R7525_2!N64 -> 0 | X38: =Lotto4_R7525_3!$N$64 -> 0 | Y38: NO
O39: RPMM9/3K | P39: L4N19 | Q39: TS4L4-UPS | U39: ='Altre Opzioni'!L26 -> 0 | Y39: NO
O40: F9857N | P40: L4N20 | Q40: TS4L4-GUI | U40: ='Altre Opzioni'!L30 -> 0 | Y40: NO
O41: T9816NIP | P41: L4N21 | Q41: TS4L4-KVM | U41: ='Altre Opzioni'!L34 -> 0 | Y41: NO
O42: 634-BYKR | P42: L4N22 | Q42: TS4L4-WINSRVSTD | R42: =IF($R$14>0,COUNTIF(TS4L4_1,P42)*V42*$R$13,0) -> 0 | S42: =IF($S$14>0,COUNTIF(TS4L4_2,P42)*W42*$S$13,0) -> 0 | T42: =IF($T$14>0,COUNTIF(TS4L4_3,P42)*X42*$T$13,0) -> 0 | U42: 0 | V42: =Lotto4_R7525_1!$N$29 -> 0 | W42: =Lotto4_R7525_2!$N$29 -> 0 | X42: =Lotto4_R7525_3!$N$29 -> 0 | Y42: NO
O43: 634-BYLD | P43: L4N23 | Q43: TS4L4-WINDEVCAL | R43: 0 | S43: 0 | T43: 0 | U43: 0 | V43: =Lotto4_R7525_1!$N$37 -> 0 | W43: =Lotto4_R7525_2!$N$37 -> 0 | X43: =Lotto4_R7525_3!$N$37 -> 0 | Y43: NO
O44: 634-BYKZ | P44: L4N24 | Q44: TS4L4-WINUSRCAL | R44: 0 | S44: 0 | T44: 0 | U44: 0 | V44: =Lotto4_R7525_1!$N$38 -> 0 | W44: =Lotto4_R7525_2!$N$38 -> 0 | X44: =Lotto4_R7525_3!$N$38 -> 0 | Y44: NO
F45: =IF(I45="","",VLOOKUP(P45,Tabella_Prezzi,10,FALSE)) ->  | H45: =IF(I45="","",VLOOKUP(P45,Tabella_Prezzi,8,FALSE)) ->  | J45: =IF(I45="","",VLOOKUP(P45,Tabella_Prezzi,4,FALSE)) ->  | O45: 634-BYKQ | P45: L4N25 | Q45: TS4L4-WINSRV2C | R45: 0 | S45: 0 | T45: 0 | U45: 0 | V45: =Lotto4_R7525_1!$N$30 -> 0 | W45: =Lotto4_R7525_2!$N$30 -> 0 | X45: =Lotto4_R7525_3!$N$30 -> 0 | Y45: NO
O46: 0 | P46: L4N26 | Q46: TS4L4-LINUX | R46: 0 | S46: 0 | T46: 0 | U46: 0 | V46: =Lotto4_R7525_1!N29 -> 0 | W46: =Lotto4_R7525_2!$N$29 -> 0 | X46: =Lotto4_R7525_3!$N$29 -> 0 | Y46: NO
O47: 634-BYLC | P47: L4N27 | Q47: TS4L4-WinServDC | R47: 0 | S47: 0 | T47: 0 | U47: 0 | V47: =Lotto4_R7525_1!N33 -> 0 | W47: =Lotto4_R7525_2!$N$33 -> 0 | X47: =Lotto4_R7525_3!$N$33 -> 0 | Y47: NO
O48: 634-BYKX | P48: L4N28 | Q48: TS4L4-WinServDC2core | R48: 0 | S48: 0 | T48: 0 | U48: 0 | V48: =Lotto4_R7525_1!$N$34 -> 0 | W48: =Lotto4_R7525_2!$N$34 -> 0 | X48: =Lotto4_R7525_3!$N$34 -> 0 | Y48: NO
O49: 785-10921 | P49: L4N29 | Q49: TS4L4-HDRTN36 | R49: =IF($R$14>0,COUNTIF(TS4L4_1,P49)*$R$13,0) -> 0 | S49: =IF($S$14>0,COUNTIF(TS4L4_2,P49)*$S$13,0) -> 0 | T49: =IF($T$14>0,COUNTIF(TS4L4_3,P49)*$T$13,0) -> 0 | U49: 0 | Y49: NO
O50: 785-10921 | P50: L4N29e | Q50: TS4L4-HDRTN60 | R50: =IF($R$14>0,COUNTIF(TS4L4_1,P50)*$R$13,0) -> 0 | S50: =IF($S$14>0,COUNTIF(TS4L4_2,P50)*$S$13,0) -> 0 | T50: =IF($T$14>0,COUNTIF(TS4L4_3,P50)*$T$13,0) -> 0 | U50: 0 | Y50: NO
O51: P6142NCONSIP | P51: L4N30 | Q51: TS4L4-OpzEst24 | R51: =IF($R$14>0,COUNTIF(TS4L4_1,P51)*$R$13,0) -> 0 | S51: =IF($S$14>0,COUNTIF(TS4L4_2,P51)*$S$13,0) -> 0 | T51: =IF($T$14>0,COUNTIF(TS4L4_3,P51)*$T$13,0) -> 0 | U51: 0 | Y51: NO
O52: P6142NCONSIP | P52: L4N31 | Q52: TS4L4-RACK | U52: ='Altre Opzioni'!L23 -> 0 | Y52: NO
F53: =IF(I53="","",VLOOKUP(P53,Tabella_Prezzi,10,FALSE)) ->  | G53: =IF(I53="","",VLOOKUP(P53,Tabella_Prezzi,6,FALSE)) ->  | H53: =IF(I53="","",VLOOKUP(P53,Tabella_Prezzi,8,FALSE)) ->  | I53: =IF(U53>0,U53,"") ->  | J53: =IF(I53="","",VLOOKUP(P53,Tabella_Prezzi,4,FALSE)) ->  | K53: =IF(F53="","",J53*I53) ->  | O53: =VLOOKUP(P53,Tabella_Prezzi,11,FALSE) -> 210-AUVQ | P53: L4N01-NVMe | Q53: TS4L4-SRV-NVMe | R53: =COUNTIF(TS4L4_1,P53)*$R$13 -> 0 | S53: =COUNTIF(TS4L4_2,P53)*$S$13 -> 0 | T53: =COUNTIF(TS4L4_3,P53)*$T$13 -> 0 | U53: =SUM(R53:T53) -> 0 | Y53: =IF(I53<>"","SI","NO") -> NO
G54: =IF(I54="","",VLOOKUP(P54,Tabella_Prezzi,13,FALSE)) ->  | I54: =IF(U54>0,U54,"") ->  | K54: =IF(F54="","",J54*I54) ->  | O54: =VLOOKUP(P54,Tabella_Prezzi,11,FALSE) -> 338-BZSB | P54: L4N02 | Q54: TS4L4-CPU-NVMe | R54: =IF(R53>0,COUNTIF(TS4L4_1,P54)*$R$13,0) -> 0 | S54: =IF(S53>0,COUNTIF(TS4L4_2,P54)*$S$13,0) -> 0 | T54: =IF(T53>0,COUNTIF(TS4L4_3,P54)*$T$13,0) -> 0 | U54: =SUM(R54:T54) -> 0 | Y54: =IF(I54<>"","SI","NO") -> NO
I55: =IF(U55>0,U55,"") ->  | K55: =IF(F55="","",J55*I55) ->  | O55: 370-AEVN | P55: L4N03 | Q55: TS4L4-RAM32-NVMe | R55: =IF($R$53>0,COUNTIF(TS4L4_1,P55)*Lotto4_R7525_1!N26*$R$13,0) -> 0 | S55: =IF($S$53>0,COUNTIF(TS4L4_2,P55)*Lotto4_R7525_2!N26*$S$13,0) -> 0 | T55: =IF($T$53>0,COUNTIF(TS4L4_3,P55)*Lotto4_R7525_3!N26*$T$13,0) -> 0 | U55: 0 | Y55: =IF(I55<>"","SI","NO") -> NO
O56: 370-AEVP | P56: L4N04 | Q56: TS4L4-RAM64-NVMe | R56: =IF($R$53>0,COUNTIF(TS4L4_1,P56)*Lotto4_R7525_1!N26*$R$13,0) -> 0 | S56: =IF($S$53>0,COUNTIF(TS4L4_2,P56)*Lotto4_R7525_2!N26*$S$13,0) -> 0 | T56: =IF($T$53>0,COUNTIF(TS4L4_3,P56)*Lotto4_R7525_3!N26*$T$13,0) -> 0 | U56: 0 | Y56: NO
O57: 540-BBCW | P57: L4N05 | Q57: TS4L4-LAN1-NVMe | R57: =IF($R$53>0,COUNTIF(TS4L4_1,P57)*$R$13,0) -> 0 | S57: =IF($S$53>0,COUNTIF(TS4L4_2,P57)*$S$13,0) -> 0 | T57: =IF($T$53>0,COUNTIF(TS4L4_3,P57)*$T$13,0) -> 0 | U57: 0 | Y57: NO
O58: 540-BBDF | P58: L4N75 | Q58: TS4L4-LAN1-L-NVMe | R58: 0 | S58: 0 | T58: 0 | U58: 0 | Y58: NO
O59: 540-BDHF | P59: L4N06 | Q59: TS4L4-LAN10-NVMe | R59: 0 | S59: 0 | T59: 0 | U59: 0 | Y59: NO
O60: 540-BDGV | P60: L4N76 | Q60: TS4L4-LAN10-L-NVMe | R60: 0 | S60: 0 | T60: 0 | U60: 0 | Y60: NO
O61: 540-BCDH | P61: L4N07 | Q61: TS4L4-LAN25-NVMe | R61: 0 | S61: 0 | T61: 0 | U61: 0 | Y61: NO
O62: 540-BCCM | P62: L4N77 | Q62: TS4L4-LAN25-L-NVMe | R62: 0 | S62: 0 | T62: 0 | U62: 0 | Y62: NO
O63: 540-BBYL | P63: L4N08 | Q63: TS4L4-CNA10-NVMe | R63: 0 | S63: 0 | T63: 0 | U63: 0 | Y63: NO
O64: 540-BBZJ | P64: L4N78 | Q64: TS4L4-CNA10-L-NVMe | R64: 0 | S64: 0 | T64: 0 | U64: 0 | Y64: NO
O65: 540-BCRO | P65: L4N09 | Q65: TS4L4-BaseT-NVMe | R65: 0 | S65: 0 | T65: 0 | U65: 0 | Y65: NO
O66: 540-BCRO | P66: L4N79 | Q66: TS4L4-BaseT-L-NVMe | R66: 0 | S66: 0 | T66: 0 | U66: 0 | Y66: NO
O67: 540-BDHC | P67: L4N10 | Q67: TS4L4- FibreChannel-NVMe | R67: 0 | S67: 0 | T67: 0 | U67: 0 | Y67: NO
O68: 540-BDGU | P68: L4N101 | Q68: TS4L4- FibreChannel-L-NVMe | R68: 0 | S68: 0 | T68: 0 | U68: 0 | V68: Quantità 1 | W68: Quantità 2 | X68: Quantità 3 | Y68: NO
O69: 400-AVEZ | P69: L4N11 | Q69: TS4L4-HDD2TB-NVMe | R69: =IF($R$53>0,COUNTIF(TS4L4_1,P69)*V69*$R$13,0) -> 0 | S69: =IF($S$53>0,COUNTIF(TS4L4_2,P69)*W69*$S$13,0) -> 0 | T69: =IF($T$53>0,COUNTIF(TS4L4_3,P69)*X69*$T$13,0) -> 0 | U69: 0 | V69: =Lotto4_R7525_1!$N$46 -> 0 | W69: =Lotto4_R7525_2!$N$46 -> 0 | X69: =Lotto4_R7525_3!$N$46 -> 0 | Y69: NO
O70: 400-AVFE | P70: L4N12 | Q70: TS4L4-HDD1TB-NVMe | R70: 0 | S70: 0 | T70: 0 | U70: 0 | V70: =Lotto4_R7525_1!$N$48 -> 0 | W70: =Lotto4_R7525_2!$N$48 -> 0 | X70: =Lotto4_R7525_3!$N$48 -> 0 | Y70: NO
O71: 345-BCNU | P71: L4N13 | Q71: TS4L4-SSD-RI3,8TB-NVMe | R71: 0 | S71: 0 | T71: 0 | U71: 0 | V71: =Lotto4_R7525_1!$N$50 -> 0 | W71: =Lotto4_R7525_2!N50 -> 0 | X71: =Lotto4_R7525_3!$N$50 -> 0 | Y71: NO
O72: 345-BBVC | P72: L4N14 | Q72: TS4L4-SSD-RI1,6TB-NVMe | R72: 0 | S72: 0 | T72: 0 | U72: 0 | V72: =Lotto4_R7525_1!$N$52 -> 0 | W72: =Lotto4_R7525_2!$N$52 -> 0 | X72: =Lotto4_R7525_3!$N$52 -> 0 | Y72: NO
O73: 400-AZOY | P73: L4N15 | Q73: TS4L4-SSD-MU1,6TB-NVMe | R73: 0 | S73: 0 | T73: 0 | U73: 0 | V73: =Lotto4_R7525_1!$N$54 -> 0 | W73: =Lotto4_R7525_2!$N$54 -> 0 | X73: =Lotto4_R7525_3!$N$54 -> 0 | Y73: NO
O74: 400-AXQU | P74: L4N16 | Q74: TS4L4-SSD-RI800GB-NVMe | R74: 0 | S74: 0 | T74: 0 | U74: 0 | V74: =IF(Lotto4_R7525_1!$N$56<=2,0,Lotto4_R7525_1!$N$56-2) -> 0 | W74: =IF(Lotto4_R7525_2!$N$56<=2,0,Lotto4_R7525_2!$N$56-2) -> 0 | X74: =IF(Lotto4_R7525_3!$N$56<=2,0,Lotto4_R7525_3!$N$56-2) -> 0 | Y74: NO
O75: 400-AZQO | P75: L4N17 | Q75: TS4L4-SSD-MU800GB-NVMe | R75: 0 | S75: 0 | T75: 0 | U75: 0 | V75: =Lotto4_R7525_1!$N$58 -> 0 | W75: =Lotto4_R7525_2!$N$58 -> 0 | X75: =Lotto4_R7525_3!$N$58 -> 0 | Y75: NO
O76: 400-BMVM | P76: L4N18 | Q76: TS4L4-NVMe1,6TB-NVMe | R76: 0 | S76: 0 | T76: 0 | U76: 0 | V76: =Lotto4_R7525_1!$N$64 -> 0 | W76: =Lotto4_R7525_2!$N$64 -> 0 | X76: =Lotto4_R7525_3!$N$64 -> 0 | Y76: NO
O77: RPMM9/3K | P77: L4N19 | Q77: TS4L4-UPS-NVMe | Y77: NO
F78: =IF(I78="","",VLOOKUP(P78,Tabella_Prezzi,10,FALSE)) ->  | H78: =IF(I78="","",VLOOKUP(P78,Tabella_Prezzi,8,FALSE)) ->  | J78: =IF(I78="","",VLOOKUP(P78,Tabella_Prezzi,4,FALSE)) ->  | O78: F9857N | P78: L4N20 | Q78: TS4L4-GUI-NVMe | Y78: NO
O79: T9816NIP | P79: L4N21 | Q79: TS4L4-KVM-NVMe | Y79: NO
O80: 634-BYKR | P80: L4N22 | Q80: TS4L4-WINSRVSTD-NVMe | R80: =IF($R$53>0,COUNTIF(TS4L4_1,P80)*V80*$R$13,0) -> 0 | S80: =IF($S$53>0,COUNTIF(TS4L4_2,P80)*W80*$S$13,0) -> 0 | T80: =IF($T$53>0,COUNTIF(TS4L4_3,P80)*X80*$T$13,0) -> 0 | U80: =SUM(R80:T80) -> 0 | V80: =Lotto4_R7525_1!$N$29 -> 0 | W80: =Lotto4_R7525_2!$N$29 -> 0 | X80: =Lotto4_R7525_3!$N$29 -> 0 | Y80: NO
O81: 634-BYLD | P81: L4N23 | Q81: TS4L4-WINDEVCAL-NVMe | R81: 0 | S81: 0 | T81: 0 | U81: 0 | V81: =Lotto4_R7525_1!$N$37 -> 0 | W81: =Lotto4_R7525_2!$N$37 -> 0 | X81: =Lotto4_R7525_3!$N$37 -> 0 | Y81: NO
O82: 634-BYKZ | P82: L4N24 | Q82: TS4L4-WINUSRCAL-NVMe | R82: 0 | S82: 0 | T82: 0 | U82: 0 | V82: =Lotto4_R7525_1!$N$38 -> 0 | W82: =Lotto4_R7525_2!$N$38 -> 0 | X82: =Lotto4_R7525_3!$N$38 -> 0 | Y82: NO
O83: 634-BYKQ | P83: L4N25 | Q83: TS4L4-WINSRV2C-NVMe | R83: 0 | S83: 0 | T83: 0 | U83: 0 | V83: =Lotto4_R7525_1!$N$30 -> 0 | W83: =Lotto4_R7525_2!$N$30 -> 0 | X83: =Lotto4_R7525_3!$N$30 -> 0 | Y83: NO
O84: 0 | P84: L4N26 | Q84: TS4L4-LINUX-NVMe | R84: 0 | S84: 0 | T84: 0 | U84: 0 | V84: =Lotto4_R7525_1!$N$33 -> 0 | W84: =Lotto4_R7525_2!$N$33 -> 0 | X84: =Lotto4_R7525_3!$N$33 -> 0 | Y84: NO
O85: 634-BYLC | P85: L4N27 | Q85: TS4L4-WinServDC-NVMe | R85: 0 | S85: 0 | T85: 0 | U85: 0 | V85: =Lotto4_R7525_1!$N$33 -> 0 | W85: =Lotto4_R7525_2!$N$33 -> 0 | X85: =Lotto4_R7525_3!$N$33 -> 0 | Y85: NO
O86: 634-BYKX | P86: L4N28 | Q86: TS4L4-WinServDC2core-NVMe | R86: 0 | S86: 0 | T86: 0 | U86: 0 | V86: =Lotto4_R7525_1!$N$34 -> 0 | W86: =Lotto4_R7525_2!$N$34 -> 0 | X86: =Lotto4_R7525_3!$N$34 -> 0 | Y86: NO
O87: 785-10921 | P87: L4N29 | Q87: TS4L4-HDRTN36-NVMe | R87: =IF($R$53>0,COUNTIF(TS4L4_1,P87)*$R$13,0) -> 0 | S87: =IF($S$53>0,COUNTIF(TS4L4_2,P87)*$S$13,0) -> 0 | T87: =IF($T$53>0,COUNTIF(TS4L4_3,P87)*$T$13,0) -> 0 | U87: 0 | Y87: NO
O88: 785-10921 | P88: L4N29e | Q88: TS4L4-HDRTN60-NVMe | R88: =IF($R$53>0,COUNTIF(TS4L4_1,P88)*$R$13,0) -> 0 | S88: =IF($S$53>0,COUNTIF(TS4L4_2,P88)*$S$13,0) -> 0 | T88: =IF($T$53>0,COUNTIF(TS4L4_3,P88)*$T$13,0) -> 0 | U88: 0 | Y88: NO
O89: P6142NCONSIP | P89: L4N30 | Q89: TS4L4-OpzEst24-NVMe | R89: =IF($R$53>0,COUNTIF(TS4L4_1,P89)*$R$13,0) -> 0 | S89: =IF($S$53>0,COUNTIF(TS4L4_2,P89)*$S$13,0) -> 0 | T89: =IF($T$53>0,COUNTIF(TS4L4_3,P89)*$T$13,0) -> 0 | U89: 0 | Y89: NO
O90: P6142NCONSIP | P90: L4N31 | Q90: TS4L4-RACK-NVMe | Y90: NO
Y91: SI
F92: =IF(G142<0,"Superata Quota 20%","") ->  | Y92: =IF($K$141>0,"SI","NO") -> NO
F93: Opzioni 20 % | R93: Config 1 | S93: Config 2 | T93: Config 3 | U93: Totale | Y93: =IF($K$141>0,"SI","NO") -> NO
F94: Codice Produttore | G94: Codice Convenzione | H94: Descrizione | I94: Qtà | J94: Costo unitario | K94: Costo Totale | P94: N° | Q94: Codice Convenzione | R94: =Lotto4_R7525_1!N8 -> 0 | S94: =Lotto4_R7525_2!N8 -> 0 | T94: =Lotto4_R7525_3!N8 -> 0 | U94: =SUM(R94:T94) -> 0 | V94: Quantità 1 | W94: Quantità 2 | X94: Quantità 3 | Y94: =IF($K$141>0,"SI","NO") -> NO
F95: =IF(I95="","",VLOOKUP(P95,Tabella_prezzi!$A$1:$K$142,10,FALSE)) ->  | G95: =IF(I95="","",VLOOKUP(P95,Tabella_Prezzi,6,FALSE)) ->  | H95: =IF(I95="","",VLOOKUP(P95,Tabella_prezzi!$A$1:$K$142,8,FALSE)) ->  | I95: =IF(U95>0,U95,"") ->  | J95: =IF(I95="","",VLOOKUP(P95,Tabella_prezzi!A43:D73,4,FALSE)) ->  | K95: =IF(F95="","",J95*I95) ->  | O95: =VLOOKUP(P95,Tabella_Prezzi,11,FALSE) -> 540-BBVM | P95: L4N32 | Q95: TS4L4-OpzSSD7,68 | R95: =IF($R$14>0,COUNTIF(TS4L4_1,P95)*$V$95*$R$13,0) -> 0 | S95: =IF($S$14>0,COUNTIF(TS4L4_2,P95)*$W$95*$S$13,0) -> 0 | T95: =IF($T$14>0,COUNTIF(TS4L4_3,P95)*$X$95*T94,0) -> 0 | U95: =SUM(R95:T95) -> 0 | V95: =Lotto4_R7525_1!$N$60 -> 0 | W95: =Lotto4_R7525_2!$N$60 -> 0 | X95: =Lotto4_R7525_3!$N$60 -> 0 | Y95: =IF($I95<>"","SI","NO") -> NO
F96: =IF(I96="","",VLOOKUP(P96,Tabella_prezzi!$A$1:$K$142,10,FALSE)) ->  | H96: =IF(I96="","",VLOOKUP(P96,Tabella_prezzi!$A$1:$K$142,8,FALSE)) ->  | I96: =IF(U96>0,U96,"") ->  | J96: =IF(I96="","",VLOOKUP(P96,Tabella_prezzi!A44:D73,4,FALSE)) ->  | K96: =IF(F96="","",J96*I96) ->  | O96: 403-BBVQ | P96: L4N33 | Q96: TS4L4-OpzNVMe3,2 | R96: =IF($R$14>0,COUNTIF(TS4L4_1,P96)*$V$96*$R$13,0) -> 0 | S96: =IF($S$14>0,COUNTIF(TS4L4_2,$P$96)*W96*$S$13,0) -> 0 | T96: =IF($T$14>0,COUNTIF(TS4L4_3,P96)*$X$96*T94,0) -> 0 | U96: 0 | V96: =Lotto4_R7525_1!$N$66 -> 0 | W96: =Lotto4_R7525_2!$N$66 -> 0 | X96: =Lotto4_R7525_3!$N$66 -> 0 | Y96: =IF($I96<>"","SI","NO") -> NO
F97: =IF(I97="","",VLOOKUP(P97,Tabella_prezzi!$A$1:$K$142,10,FALSE)) ->  | H97: =IF(I97="","",VLOOKUP(P97,Tabella_prezzi!$A$1:$K$142,8,FALSE)) ->  | J97: =IF(I97="","",VLOOKUP(P97,Tabella_prezzi!A45:D73,4,FALSE)) ->  | O97: 403-BBVQ | P97: L4N34 | Q97: TS4L4-OpzNVMe1,92 | R97: =IF($R$14>0,COUNTIF(TS4L4_1,P97)*$V$97*$R$13,0) -> 0 | S97: =IF($S$14>0,COUNTIF(TS4L4_2,P97)*W97*$S$13,0) -> 0 | T97: =IF($T$14>0,COUNTIF(TS4L4_3,P97)*$X$97*T94,0) -> 0 | U97: 0 | V97: =Lotto4_R7525_1!$N$68 -> 0 | W97: =Lotto4_R7525_2!$N$68 -> 0 | X97: =Lotto4_R7525_3!$N$68 -> 0 | Y97: NO
F98: =IF(I98="","",VLOOKUP(P98,Tabella_prezzi!$A$1:$K$142,10,FALSE)) ->  | H98: =IF(I98="","",VLOOKUP(P98,Tabella_prezzi!$A$1:$K$142,8,FALSE)) ->  | J98: =IF(I98="","",VLOOKUP(P98,Tabella_prezzi!A46:D73,4,FALSE)) ->  | O98: 403-BBVQ | P98: L4N35 | Q98: TS4L4-OpzNVMe3,84 | R98: =IF($R$14>0,COUNTIF(TS4L4_1,P98)*$V$98*$R$13,0) -> 0 | S98: =IF($S$14>0,COUNTIF(TS4L4_2,P98)*$W$98*$S$13,0) -> 0 | T98: =IF($T$14>0,COUNTIF(TS4L4_3,P98)*$X$98*T94,0) -> 0 | U98: 0 | V98: =Lotto4_R7525_1!$N$70 -> 0 | W98: =Lotto4_R7525_2!$N$70 -> 0 | X98: =Lotto4_R7525_3!$N$70 -> 0 | Y98: NO
F99: =IF(I99="","",VLOOKUP(P99,Tabella_prezzi!$A$1:$K$142,10,FALSE)) ->  | H99: =IF(I99="","",VLOOKUP(P99,Tabella_prezzi!$A$1:$K$142,8,FALSE)) ->  | I99: =IF(U99>0,U99,"") ->  | J99: =IF(I99="","",VLOOKUP(P99,Tabella_prezzi!A54:D73,4,FALSE)) ->  | K99: =IF(F99="","",J99*I99) ->  | O99: 405-AANM | P99: L4N36 | Q99: TS4L4-HBA355i-L | R99: =IF($R$14>0,COUNTIF(TS4L4_1,P99)*$R$94,0) -> 0 | S99: =IF($S$14>0,COUNTIF(TS4L4_2,P99)*$S$13,0) -> 0 | T99: =IF($T$14>0,COUNTIF(TS4L4_3,P99)*T94,0) -> 0 | U99: =SUM(R99:T99) -> 0 | Y99: =IF($I99<>"","SI","NO") -> NO
F100: =IF(I100="","",VLOOKUP(P100,Tabella_prezzi!$A$1:$K$142,10,FALSE)) ->  | H100: =IF(I100="","",VLOOKUP(P100,Tabella_prezzi!$A$1:$K$142,8,FALSE)) ->  | I100: =IF(U100>0,U100,"") ->  | J100: =IF(I100="","",VLOOKUP(P100,Tabella_prezzi!A48:D73,4,FALSE)) ->  | K100: =IF(F100="","",J100*I100) ->  | O100: 405-AAJW | P100: L4N37 | Q100: TS4L4-100GBs_B | R100: =IF($R$14>0,COUNTIF(TS4L4_1,P100)*$R$94,0) -> 0 | S100: =IF($S$14>0,COUNTIF(TS4L4_2,P100)*$S$13,0) -> 0 | T100: =IF($T$14>0,COUNTIF(TS4L4_3,P100)*T94,0) -> 0 | U100: =SUM(R100:T100) -> 0 | Y100: NO
F101: =IF(I101="","",VLOOKUP(P101,Tabella_prezzi!$A$1:$K$142,10,FALSE)) ->  | H101: =IF(I101="","",VLOOKUP(P101,Tabella_prezzi!$A$1:$K$142,8,FALSE)) ->  | J101: =IF(I101="","",VLOOKUP(P101,Tabella_prezzi!A49:D73,4,FALSE)) ->  | O101: 490-BEIX | P101: L4N38 | Q101: TS4L4-100GBs_M | R101: =IF($R$14>0,COUNTIF(TS4L4_1,P101)*$R$94,0) -> 0 | S101: =IF($S$14>0,COUNTIF(TS4L4_2,P101)*$S$13,0) -> 0 | T101: =IF($T$14>0,COUNTIF(TS4L4_3,P101)*T94,0) -> 0 | U101: 0 | Y101: NO
F102: =IF(I102="","",VLOOKUP(P102,Tabella_prezzi!$A$1:$K$142,10,FALSE)) ->  | H102: =IF(I102="","",VLOOKUP(P102,Tabella_prezzi!$A$1:$K$142,8,FALSE)) ->  | J102: =IF(I102="","",VLOOKUP(P102,Tabella_prezzi!A50:D73,4,FALSE)) ->  | O102: 540-BCNL | P102: L4N39 | Q102: TS4L4-100GBs_INF | R102: =IF($R$14>0,COUNTIF(TS4L4_1,P102)*$R$94,0) -> 0 | S102: =IF($S$14>0,COUNTIF(TS4L4_2,P102)*$S$13,0) -> 0 | T102: =IF($T$14>0,COUNTIF(TS4L4_3,P102)*T94,0) -> 0 | U102: 0 | Y102: NO
F103: =IF(I103="","",VLOOKUP(P103,Tabella_prezzi!$A$1:$K$142,10,FALSE)) ->  | H103: =IF(I103="","",VLOOKUP(P103,Tabella_prezzi!$A$1:$K$142,8,FALSE)) ->  | I103: =IF(U103>0,U103,"") ->  | J103: =IF(I103="","",VLOOKUP(P103,Tabella_prezzi!A47:D73,4,FALSE)) ->  | K103: =IF(F103="","",J103*I103) ->  | O103: 405-AAMX | P103: L4N40 | Q103: TS4L4-BOSS | R103: =IF($R$14>0,COUNTIF(TS4L4_1,P103)*$R$94,0) -> 0 | S103: =IF($S$14>0,COUNTIF(TS4L4_2,P103)*$S$13,0) -> 0 | T103: =IF($T$14>0,COUNTIF(TS4L4_3,P103)*T94,0) -> 0 | U103: =SUM(R103:T103) -> 0 | Y103: =IF($I103<>"","SI","NO") -> NO
F104: =IF(I104="","",VLOOKUP(P104,Tabella_prezzi!$A$1:$K$142,10,FALSE)) ->  | H104: =IF(I104="","",VLOOKUP(P104,Tabella_prezzi!$A$1:$K$142,8,FALSE)) ->  | I104: =IF(U104>0,U104,"") ->  | J104: =IF(I104="","",VLOOKUP(P104,Tabella_prezzi!A51:D73,4,FALSE)) ->  | K104: =IF(F104="","",J104*I104) ->  | O104: 407-BCBN | P104: L4N109 | Q104: TS4L4_OT10GB | R104: =IF($R$14>0,COUNTIF(TS4L4_1,P104)*V104*R13,0) -> 0 | S104: =IF($S$14>0,COUNTIF(TS4L4_2,P104)*W104*S94,0) -> 0 | T104: =IF($T$14>0,COUNTIF(TS4L4_3,P104)*X104*$T$94,0) -> 0 | U104: =SUM(R104:T104) -> 0 | V104: =Lotto4_R7525_1!$N$114 -> 0 | W104: =Lotto4_R7525_2!N114 -> 0 | X104: =Lotto4_R7525_3!$N$114 -> 0 | Y104: NO
F105: =IF(I105="","",VLOOKUP(P105,Tabella_prezzi!$A$1:$K$142,10,FALSE)) ->  | H105: =IF(I105="","",VLOOKUP(P105,Tabella_prezzi!$A$1:$K$142,8,FALSE)) ->  | J105: =IF(I105="","",VLOOKUP(P105,Tabella_prezzi!A52:D73,4,FALSE)) ->  | O105: 407-BCGJ | P105: L4N110 | Q105: TS4L4_OT25GB | R105: =IF($R$14>0,COUNTIF(TS4L4_1,P105)*V105*R13,0) -> 0 | S105: =IF($S$14>0,COUNTIF(TS4L4_2,P105)*W105*$S$94,0) -> 0 | T105: =IF($T$14>0,COUNTIF(TS4L4_3,P105)*X105*$T$94,0) -> 0 | U105: 0 | V105: =Lotto4_R7525_1!$N$117 -> 0 | W105: =Lotto4_R7525_2!$N$117 -> 0 | X105: =Lotto4_R7525_3!$N$117 -> 0 | Y105: NO
F106: =IF(I106="","",VLOOKUP(P106,Tabella_prezzi!$A$1:$K$142,10,FALSE)) ->  | H106: =IF(I106="","",VLOOKUP(P106,Tabella_prezzi!$A$1:$K$142,8,FALSE)) ->  | J106: =IF(I106="","",VLOOKUP(P106,Tabella_prezzi!A53:D73,4,FALSE)) ->  | O106: 407-BCEQ | P106: L4N111 | Q106: TS4L4-OT100GB | R106: =IF($R$14>0,COUNTIF(TS4L4_1,P106)*V106*R13,0) -> 0 | S106: =IF($S$14>0,COUNTIF(TS4L4_2,P106)*W106*$S$94,0) -> 0 | T106: =IF($T$14>0,COUNTIF(TS4L4_3,P106)*X106*$T$94,0) -> 0 | U106: 0 | V106: =Lotto4_R7525_1!$N$120 -> 0 | W106: =Lotto4_R7525_2!$N$120 -> 0 | X106: =Lotto4_R7525_3!$N$120 -> 0 | Y106: NO
F107: =IF(I107="","",VLOOKUP(P107,Tabella_prezzi!$A$1:$K$142,10,FALSE)) ->  | G107: =IF(I107="","",VLOOKUP(P107,Tabella_Prezzi,13,FALSE)) ->  | H107: =IF(I107="","",VLOOKUP(P107,Tabella_prezzi!$A$1:$K$142,8,FALSE)) ->  | I107: =IF(U107>0,U107,"") ->  | J107: =IF(I107="","",VLOOKUP(P107,Tabella_prezzi!A55:D85,4,FALSE)) ->  | K107: =IF(F107="","",J107*I107) ->  | O107: =VLOOKUP(P107,Tabella_Prezzi,11,FALSE) -> 540-BBVM | P107: L4N32 | Q107: TS4L4-OpzSSD7,68-NVMe | R107: =IF($R$53>0,COUNTIF(TS4L4_1,P107)*$V$95*$R$13,0) -> 0 | S107: =IF($S$53>0,COUNTIF(TS4L4_2,P107)*$W$95*$S$13,0) -> 0 | T107: =IF($T$53>0,COUNTIF(TS4L4_3,P107)*$X$95*$T$94,0) -> 0 | U107: 0 | V107: =Lotto4_R7525_1!$N$60 -> 0 | W107: =Lotto4_R7525_2!$N$60 -> 0 | X107: =Lotto4_R7525_3!$N$60 -> 0 | Y107: =IF($I107<>"","SI","NO") -> NO
F108: =IF(I108="","",VLOOKUP(P108,Tabella_prezzi!$A$1:$K$142,10,FALSE)) ->  | H108: =IF(I108="","",VLOOKUP(P108,Tabella_prezzi!$A$1:$K$142,8,FALSE)) ->  | I108: =IF(U108>0,U108,"") ->  | J108: =IF(I108="","",VLOOKUP(P108,Tabella_prezzi!A56:D85,4,FALSE)) ->  | K108: =IF(F108="","",J108*I108) ->  | O108: 403-BBVQ | P108: L4N33 | Q108: TS4L4-OpzNVMe3,2-NVMe | R108: =IF($R$53>0,COUNTIF(TS4L4_1,P108)*$V$96*$R$13,0) -> 0 | S108: =IF($S$53>0,COUNTIF(TS4L4_2,P108)*$W$96*$S$13,0) -> 0 | T108: =IF($T$53>0,COUNTIF(TS4L4_3,P108)*$X$96*$T$94,0) -> 0 | U108: 0 | V108: =Lotto4_R7525_1!$N$66 -> 0 | W108: =Lotto4_R7525_2!$N$66 -> 0 | X108: =Lotto4_R7525_3!$N$66 -> 0 | Y108: NO
F109: =IF(I109="","",VLOOKUP(P109,Tabella_prezzi!$A$1:$K$142,10,FALSE)) ->  | H109: =IF(I109="","",VLOOKUP(P109,Tabella_prezzi!$A$1:$K$142,8,FALSE)) ->  | J109: =IF(I109="","",VLOOKUP(P109,Tabella_prezzi!A57:D85,4,FALSE)) ->  | O109: 403-BBVQ | P109: L4N34 | Q109: TS4L4-OpzNVMe1,92-NVMe | R109: =IF($R$53>0,COUNTIF(TS4L4_1,P109)*$V$97*$R$13,0) -> 0 | S109: =IF($S$53>0,COUNTIF(TS4L4_2,P109)*$W$97*$S$13,0) -> 0 | T109: =IF($T$53>0,COUNTIF(TS4L4_3,P109)*$X$97*$T$94,0) -> 0 | U109: 0 | V109: =Lotto4_R7525_1!$N$68 -> 0 | W109: =Lotto4_R7525_2!$N$68 -> 0 | X109: =Lotto4_R7525_3!$N$68 -> 0 | Y109: NO
F110: =IF(I110="","",VLOOKUP(P110,Tabella_prezzi!$A$1:$K$142,10,FALSE)) ->  | H110: =IF(I110="","",VLOOKUP(P110,Tabella_prezzi!$A$1:$K$142,8,FALSE)) ->  | J110: =IF(I110="","",VLOOKUP(P110,Tabella_prezzi!A58:D85,4,FALSE)) ->  | O110: 403-BBVQ | P110: L4N35 | Q110: TS4L4-OpzNVMe3,84-NVMe | R110: =IF($R$53>0,COUNTIF(TS4L4_1,P110)*$V$98*$R$13,0) -> 0 | S110: =IF($S$53>0,COUNTIF(TS4L4_2,P110)*$W$98*$S$13,0) -> 0 | T110: =IF($T$53>0,COUNTIF(TS4L4_3,P110)*$X$98*$T$94,0) -> 0 | U110: 0 | V110: =Lotto4_R7525_1!$N$70 -> 0 | W110: =Lotto4_R7525_2!$N$70 -> 0 | X110: =Lotto4_R7525_3!$N$70 -> 0 | Y110: NO
F111: =IF(I111="","",VLOOKUP(P111,Tabella_prezzi!$A$1:$K$142,10,FALSE)) ->  | H111: =IF(I111="","",VLOOKUP(P111,Tabella_prezzi!$A$1:$K$142,8,FALSE)) ->  | J111: =IF(I111="","",VLOOKUP(P111,Tabella_prezzi!A1:D85,4,FALSE)) ->  | K111: =IF(F111="","",J111*I111) ->  | O111: 405-AANM | P111: L4N36 | Q111: TS4L4-HBA355i-L-NVMe | R111: =IF($R$53>0,COUNTIF(TS4L4_1,P111)*$R$94,0) -> 0 | S111: =IF($S$53>0,COUNTIF(TS4L4_2,P111)*$S$13,0) -> 0 | T111: =IF($T$14>0,COUNTIF(TS4L4_3,P111)*$T$94,0) -> 0 | U111: =SUM(R111:T111) -> 0 | Y111: =IF($I111<>"","SI","NO") -> NO
F112: =IF(I112="","",VLOOKUP(P112,Tabella_prezzi!$A$1:$K$142,10,FALSE)) ->  | H112: =IF(I112="","",VLOOKUP(P112,Tabella_prezzi!$A$1:$K$142,8,FALSE)) ->  | I112: =IF(U112>0,U112,"") ->  | J112: =IF(I112="","",VLOOKUP(P112,Tabella_prezzi!A60:D85,4,FALSE)) ->  | K112: =IF(F112="","",J112*I112) ->  | O112: 405-AAJW | P112: L4N37 | Q112: TS4L4-100GBs_B-NVMe | R112: =IF($R$53>0,COUNTIF(TS4L4_1,P112)*$R$94,0) -> 0 | S112: =IF($S$53>0,COUNTIF(TS4L4_2,P112)*$S$13,0) -> 0 | T112: =IF($T$14>0,COUNTIF(TS4L4_3,P112)*$T$94,0) -> 0 | U112: =SUM(R112:T112) -> 0 | Y112: NO
F113: =IF(I113="","",VLOOKUP(P113,Tabella_prezzi!$A$1:$K$142,10,FALSE)) ->  | H113: =IF(I113="","",VLOOKUP(P113,Tabella_prezzi!$A$1:$K$142,8,FALSE)) ->  | J113: =IF(I113="","",VLOOKUP(P113,Tabella_prezzi!A61:D85,4,FALSE)) ->  | O113: 490-BEIX | P113: L4N38 | Q113: TS4L4-100GBs_M-NVMe | R113: =IF($R$53>0,COUNTIF(TS4L4_1,P113)*$R$94,0) -> 0 | S113: =IF($S$53>0,COUNTIF(TS4L4_2,P113)*$S$13,0) -> 0 | T113: =IF($T$14>0,COUNTIF(TS4L4_3,P113)*$T$94,0) -> 0 | U113: 0 | Y113: NO
F114: =IF(I114="","",VLOOKUP(P114,Tabella_prezzi!$A$1:$K$142,10,FALSE)) ->  | H114: =IF(I114="","",VLOOKUP(P114,Tabella_prezzi!$A$1:$K$142,8,FALSE)) ->  | J114: =IF(I114="","",VLOOKUP(P114,Tabella_prezzi!A62:D85,4,FALSE)) ->  | O114: 540-BCNL | P114: L4N39 | Q114: TS4L4-100GBs_INF-NVMe | R114: =IF($R$53>0,COUNTIF(TS4L4_1,P114)*$R$94,0) -> 0 | S114: =IF($S$53>0,COUNTIF(TS4L4_2,P114)*$S$13,0) -> 0 | T114: =IF($T$14>0,COUNTIF(TS4L4_3,P114)*$T$94,0) -> 0 | U114: 0 | Y114: NO
F115: =IF(I115="","",VLOOKUP(P115,Tabella_prezzi!$A$1:$K$142,10,FALSE)) ->  | H115: =IF(I115="","",VLOOKUP(P115,Tabella_prezzi!$A$1:$K$142,8,FALSE)) ->  | J115: =IF(I115="","",VLOOKUP(P115,Tabella_prezzi!A59:D85,4,FALSE)) ->  | K115: =IF(F115="","",J115*I115) ->  | O115: 405-AAMX | P115: L4N40 | Q115: TS4L4-BOSS-NVMe | R115: =IF($R$53>0,COUNTIF(TS4L4_1,P115)*$R$94,0) -> 0 | S115: =IF($S$53>0,COUNTIF(TS4L4_2,P115)*$S$13,0) -> 0 | T115: =IF($T$14>0,COUNTIF(TS4L4_3,P115)*$T$94,0) -> 0 | U115: =SUM(R115:T115) -> 0 | Y115: =IF($I115<>"","SI","NO") -> NO
F116: =IF(I116="","",VLOOKUP(P116,Tabella_prezzi!$A$1:$K$142,10,FALSE)) ->  | H116: =IF(I116="","",VLOOKUP(P116,Tabella_prezzi!$A$1:$K$142,8,FALSE)) ->  | I116: =IF(U116>0,U116,"") ->  | J116: =IF(I116="","",VLOOKUP(P116,Tabella_prezzi!A63:D85,4,FALSE)) ->  | K116: =IF(F116="","",J116*I116) ->  | O116: 407-BCBN | P116: L4N109 | Q116: TS4L4_OT10GB-NVMe | R116: =IF($R$53>0,COUNTIF(TS4L4_1,P116)*V116*R13,0) -> 0 | S116: =IF($S$53>0,COUNTIF(TS4L4_2,P116)*W116*S94,0) -> 0 | T116: =IF($T$53>0,COUNTIF(TS4L4_3,P116)*X116*$T$94,0) -> 0 | U116: =SUM(R116:T116) -> 0 | V116: =Lotto4_R7525_1!$N$114 -> 0 | W116: =Lotto4_R7525_2!N114 -> 0 | X116: =Lotto4_R7525_3!$N$114 -> 0 | Y116: NO
F117: =IF(I117="","",VLOOKUP(P117,Tabella_prezzi!$A$1:$K$142,10,FALSE)) ->  | H117: =IF(I117="","",VLOOKUP(P117,Tabella_prezzi!$A$1:$K$142,8,FALSE)) ->  | J117: =IF(I117="","",VLOOKUP(P117,Tabella_prezzi!A64:D85,4,FALSE)) ->  | O117: 407-BCGJ | P117: L4N110 | Q117: TS4L4_OT25GB-NVMe | R117: =IF($R$53>0,COUNTIF(TS4L4_1,P117)*V117*R13,0) -> 0 | S117: =IF($S$53>0,COUNTIF(TS4L4_2,P117)*W117*S94,0) -> 0 | T117: =IF($T$53>0,COUNTIF(TS4L4_3,P117)*X117*$T$94,0) -> 0 | U117: 0 | V117: =Lotto4_R7525_1!$N$117 -> 0 | W117: =Lotto4_R7525_2!N117 -> 0 | X117: =Lotto4_R7525_3!$N$117 -> 0 | Y117: NO
F118: =IF(I118="","",VLOOKUP(P118,Tabella_prezzi!$A$1:$K$142,10,FALSE)) ->  | H118: =IF(I118="","",VLOOKUP(P118,Tabella_prezzi!$A$1:$K$142,8,FALSE)) ->  | J118: =IF(I118="","",VLOOKUP(P118,Tabella_prezzi!A65:D85,4,FALSE)) ->  | O118: 407-BCEQ | P118: L4N111 | Q118: TS4L4-OT100GB-NVMe | R118: =IF($R$53>0,COUNTIF(TS4L4_1,P118)*V118*R13,0) -> 0 | S118: =IF($S$53>0,COUNTIF(TS4L4_2,P118)*W118*S94,0) -> 0 | T118: =IF($T$53>0,COUNTIF(TS4L4_3,P118)*X118*$T$94,0) -> 0 | U118: 0 | V118: =Lotto4_R7525_1!$N$120 -> 0 | W118: =Lotto4_R7525_2!N120 -> 0 | X118: =Lotto4_R7525_3!$N$120 -> 0 | Y118: NO
F119: =IF(I119="","",VLOOKUP(P119,Tabella_prezzi!$A$1:$K$142,10,FALSE)) ->  | G119: =IF(I119="","",VLOOKUP(P119,Tabella_prezzi!$A$1:$K$142,6,FALSE)) ->  | H119: =IF(I119="","",VLOOKUP(P119,Tabella_prezzi!$A$1:$K$142,8,FALSE)) ->  | I119: =IF(U119>0,U119,"") ->  | J119: =IF(I119="","",VLOOKUP(P119,Tabella_prezzi!A51:D73,4,FALSE)) ->  | K119: =IF(F119="","",J119*I119) ->  | O119: 18219176 | P119: L4N112 | Q119: TS4L4-2CPU-vSAN-512GB | R119: =COUNTIF(TS4L4_1,P119)*R94 -> 0 | S119: =COUNTIF(TS4L4_2,P119)*S94 -> 0 | T119: =COUNTIF(TS4L4_3,P119)*T94 -> 0 | U119: =SUM(R119:T119) -> 0 | Y119: =IF($I119<>"","SI","NO") -> NO
F120: =IF(I120="","",VLOOKUP(P120,Tabella_prezzi!$A$1:$K$142,10,FALSE)) ->  | G120: =IF(I120="","",VLOOKUP(P120,Tabella_prezzi!$A$1:$K$142,6,FALSE)) ->  | H120: =IF(I120="","",VLOOKUP(P120,Tabella_prezzi!$A$1:$K$142,8,FALSE)) ->  | I120: =IF(U120>0,U120,"") ->  | J120: =IF(I120="","",VLOOKUP(P120,Tabella_prezzi!A55:D73,4,FALSE)) ->  | K120: =IF(F120="","",J120*I120) ->  | O120: 18219200-18219187 | P120: L4N113 | Q120: TS4L4-2CPU-vSAN-1TB | R120: =COUNTIF(TS4L4_1,P120)*R94 -> 0 | S120: =COUNTIF(TS4L4_2,P120)*S94 -> 0 | T120: =COUNTIF(TS4L4_3,P120)*T94 -> 0 | U120: =SUM(R120:T120) -> 0 | Y120: NO
F121: =IF(I121="","",VLOOKUP(P121,Tabella_prezzi!$A$1:$K$142,10,FALSE)) ->  | G121: =IF(I121="","",VLOOKUP(P121,Tabella_prezzi!$A$1:$K$142,6,FALSE)) ->  | H121: =IF(I121="","",VLOOKUP(P121,Tabella_prezzi!$A$1:$K$142,8,FALSE)) ->  | J121: =IF(I121="","",VLOOKUP(P121,Tabella_prezzi!A56:D73,4,FALSE)) ->  | O121: 18221537 | P121: L4N114 | Q121: TS4L4-2CPU-vSAN-2TB | R121: =COUNTIF(TS4L4_1,P121)*$R$94 -> 0 | S121: =COUNTIF(TS4L4_2,P121)*S94 -> 0 | T121: =COUNTIF(TS4L4_3,P121)*$T$94 -> 0 | U121: 0 | Y121: NO
F122: =IF(I122="","",VLOOKUP(P122,Tabella_prezzi!$A$1:$K$142,10,FALSE)) ->  | G122: =IF(I122="","",VLOOKUP(P122,Tabella_prezzi!$A$1:$K$142,6,FALSE)) ->  | H122: =IF(I122="","",VLOOKUP(P122,Tabella_prezzi!$A$1:$K$142,8,FALSE)) ->  | J122: =IF(I122="","",VLOOKUP(P122,Tabella_prezzi!A57:D73,4,FALSE)) ->  | O122: 18219226 | P122: L4N115 | Q122: TS4L4-2CPU-NUT | R122: =COUNTIF(TS4L4_1,P122)*R94 -> 0 | S122: =COUNTIF(TS4L4_2,P122)*S94 -> 0 | T122: =COUNTIF(TS4L4_3,P122)*T94 -> 0 | U122: 0 | Y122: NO
F123: =IF(I123="","",VLOOKUP(P123,Tabella_prezzi!$A$1:$K$142,10,FALSE)) ->  | G123: =IF(I123="","",VLOOKUP(P123,Tabella_Prezzi,6,FALSE)) ->  | H123: =IF(I123="","",VLOOKUP(P123,Tabella_prezzi!$A$1:$K$142,8,FALSE)) ->  | J123: =IF(I123="","",VLOOKUP(P123,Tabella_prezzi!A71:D94,4,FALSE)) ->  | O123: 0 | P123: L4N116 | Q123: TS4L4-RACK-D | U123: ='Altre Opzioni'!L7 -> 0 | Y123: NO
F124: =IF(I124="","",VLOOKUP(P124,Tabella_prezzi!$A$1:$K$142,10,FALSE)) ->  | H124: =IF(I124="","",VLOOKUP(P124,Tabella_prezzi!$A$1:$K$142,8,FALSE)) ->  | J124: =IF(I124="","",VLOOKUP(P124,Tabella_prezzi!A72:D94,4,FALSE)) ->  | O124: 0 | P124: L4N117 | Q124: TS4L4-PDU-M | U124: ='Altre Opzioni'!L10 -> 0 | Y124: NO
F125: =IF(I125="","",VLOOKUP(P125,Tabella_prezzi!$A$1:$K$142,10,FALSE)) ->  | H125: =IF(I125="","",VLOOKUP(P125,Tabella_prezzi!$A$1:$K$142,8,FALSE)) ->  | I125: =IF(U125>0,U125,"") ->  | J125: =IF(I125="","",VLOOKUP(P125,Tabella_prezzi!A69:D94,4,FALSE)) ->  | K125: =IF(F125="","",J125*I125) ->  | O125: 0 | P125: L4N118 | Q125: TS4L4-PDU-T | U125: ='Altre Opzioni'!L13 -> 0 | Y125: =IF($I125<>"","SI","NO") -> NO
F126: =IF(I126="","",VLOOKUP(P126,Tabella_prezzi!$A$1:$K$142,10,FALSE)) ->  | H126: =IF(I126="","",VLOOKUP(P126,Tabella_prezzi!$A$1:$K$142,8,FALSE)) ->  | I126: =IF(U126>0,U126,"") ->  | J126: =IF(I126="","",VLOOKUP(P126,Tabella_prezzi!A73:D94,4,FALSE)) ->  | K126: =IF(F126="","",J126*I126) ->  | O126: 0 | P126: L4N119 | Q126: TS4L4-KVM-D | U126: ='Altre Opzioni'!L16 -> 0 | Y126: NO
F127: =IF(I127="","",VLOOKUP(P127,Tabella_prezzi!$A$1:$K$142,10,FALSE)) ->  | H127: =IF(I127="","",VLOOKUP(P127,Tabella_prezzi!$A$1:$K$142,8,FALSE)) ->  | J127: =IF(I127="","",VLOOKUP(P127,Tabella_prezzi!A74:D94,4,FALSE)) ->  | O127: 0 | P127: L4N120 | Q127: TS4L4-ROCK | R127: =IF($R$13>0,COUNTIF(TS4L4_1,P127)*$R$94,0) -> 0 | S127: =IF($S$13>0,COUNTIF(TS4L4_2,P127)*$S$13,0) -> 0 | T127: =IF($T$13>0,COUNTIF(TS4L4_3,P127)*$T$94,0) -> 0 | U127: =SUM(R127:T127) -> 0 | Y127: NO
F128: =IF(I128="","",VLOOKUP(P128,Tabella_prezzi!$A$1:$K$142,10,FALSE)) ->  | H128: =IF(I128="","",VLOOKUP(P128,Tabella_prezzi!$A$1:$K$142,8,FALSE)) ->  | J128: =IF(I128="","",VLOOKUP(P128,Tabella_prezzi!A75:D94,4,FALSE)) ->  | O128: 0 | P128: L4N121 | Q128: TS4L4-CMA | U128: ='Altre Opzioni'!L19 -> 0 | Y128: NO
F129: =IF(I129="","",VLOOKUP(P129,Tabella_prezzi!$A$1:$K$142,10,FALSE)) ->  | H129: =IF(I129="","",VLOOKUP(P129,Tabella_prezzi!$A$1:$K$142,8,FALSE)) ->  | I129: =IF(U129>0,U129,"") ->  | J129: =IF(I129="","",VLOOKUP(P129,Tabella_prezzi!A61:D83,4,FALSE)) ->  | K129: =IF(F129="","",J129*I129) ->  | O129: =VLOOKUP(P129,Tabella_Prezzi,11,FALSE) -> 0 | P129: L4N122 | Q129: TS4L4-JBOD | R129: =IF($R$13>0,COUNTIF(TS4L4_1,P129)*V129*$R$94,0) -> 0 | S129: =IF($S$13>0,COUNTIF(TS4L4_2,P129)*W129*$S$94,0) -> 0 | T129: =IF($T$13>0,COUNTIF(TS4L4_3,P129)*X129*$T$94,0) -> 0 | U129: =SUM(R129:T129) -> 0 | V129: =Lotto4_R7525_1!N127 -> 0 | W129: =Lotto4_R7525_2!N127 -> 0 | X129: =Lotto4_R7525_3!N127 -> 0 | Y129: =IF($I129<>"","SI","NO") -> NO
F130: =IF(I130="","",VLOOKUP(P130,Tabella_prezzi!$A$1:$K$142,10,FALSE)) ->  | H130: =IF(I130="","",VLOOKUP(P130,Tabella_prezzi!$A$1:$K$142,8,FALSE)) ->  | I130: =IF(U130>0,U130,"") ->  | J130: =IF(I130="","",VLOOKUP(P130,Tabella_prezzi!A65:D83,4,FALSE)) ->  | K130: =IF(F130="","",J130*I130) ->  | O130: 0 | P130: L4N123 | Q130: TS4L4-12TBNLSAS | R130: =IF($R$13>0,COUNTIF(TS4L4_1,P130)*V130*$R$94,0) -> 0 | S130: =IF($S$13>0,COUNTIF(TS4L4_2,P130)*W130*$S$94,0) -> 0 | T130: =IF($T$13>0,COUNTIF(TS4L4_3,P130)*X130*$T$94,0) -> 0 | U130: =SUM(R130:T130) -> 0 | V130: =Lotto4_R7525_1!$N$130 -> 0 | W130: =Lotto4_R7525_2!N130 -> 0 | X130: =Lotto4_R7525_3!N130 -> 0 | Y130: NO
F131: =IF(I131="","",VLOOKUP(P131,Tabella_prezzi!$A$1:$K$142,10,FALSE)) ->  | H131: =IF(I131="","",VLOOKUP(P131,Tabella_prezzi!$A$1:$K$142,8,FALSE)) ->  | J131: =IF(I131="","",VLOOKUP(P131,Tabella_prezzi!A66:D83,4,FALSE)) ->  | O131: 0 | P131: L4N124 | Q131: TS4L4-16TBSAS | R131: =IF($R$13>0,COUNTIF(TS4L4_1,P131)*V131*$R$94,0) -> 0 | S131: =IF($S$13>0,COUNTIF(TS4L4_2,P131)*W131*$S$94,0) -> 0 | T131: =IF($T$13>0,COUNTIF(TS4L4_3,P131)*X131*$T$94,0) -> 0 | U131: 0 | V131: =Lotto4_R7525_1!N133 -> 0 | W131: =Lotto4_R7525_2!N133 -> 0 | X131: =Lotto4_R7525_3!N133 -> 0 | Y131: NO
F132: =IF(I132="","",VLOOKUP(P132,Tabella_prezzi!$A$1:$K$142,10,FALSE)) ->  | H132: =IF(I132="","",VLOOKUP(P132,Tabella_prezzi!$A$1:$K$142,8,FALSE)) ->  | J132: =IF(I132="","",VLOOKUP(P132,Tabella_prezzi!A67:D83,4,FALSE)) ->  | O132: 0 | P132: L4N125 | Q132: TS4L4-20TBSAS | R132: =IF($R$13>0,COUNTIF(TS4L4_1,P132)*V132*$R$94,0) -> 0 | S132: =IF($S$13>0,COUNTIF(TS4L4_2,P132)*W132*$S$94,0) -> 0 | T132: =IF($T$13>0,COUNTIF(TS4L4_3,P132)*X132*$T$94,0) -> 0 | U132: 0 | V132: =Lotto4_R7525_1!N136 -> 0 | W132: =Lotto4_R7525_2!N136 -> 0 | X132: =Lotto4_R7525_3!N136 -> 0 | Y132: NO
F133: =IF(I133="","",VLOOKUP(P133,Tabella_prezzi!$A$1:$K$142,10,FALSE)) ->  | G133: =IF(I133="","",VLOOKUP(P133,Tabella_Prezzi,6,FALSE)) ->  | H133: =IF(I133="","",VLOOKUP(P133,Tabella_prezzi!$A$1:$K$142,8,FALSE)) ->  | I133: =IF(U133>0,U133,"") ->  | J133: =IF(I133="","",VLOOKUP(P133,Tabella_prezzi!A68:D84,4,FALSE)) ->  | K133: =IF(F133="","",J133*I133) ->  | O133: =VLOOKUP(P133,Tabella_Prezzi,11,FALSE) -> 0 | P133: L4N126 | Q133: TS4L4-2CPU-GPUReady | R133: =COUNTIF(TS4L4_1,P133)*$R$94 -> 0 | S133: =COUNTIF(TS4L4_2,P133)*$S$94 -> 0 | T133: =COUNTIF(TS4L4_3,P133)*$T$94 -> 0 | U133: =SUM(R133:T133) -> 0 | Y133: NO
F134: =IF(I134="","",VLOOKUP(P134,Tabella_prezzi!$A$1:$K$142,10,FALSE)) ->  | G134: =IF(I134="","",VLOOKUP(P134,Tabella_Prezzi,6,FALSE)) ->  | H134: =IF(I134="","",VLOOKUP(P134,Tabella_prezzi!$A$1:$K$142,8,FALSE)) ->  | I134: =IF(U134>0,U134,"") ->  | J134: =IF(I134="","",VLOOKUP(P134,Tabella_prezzi!A69:D85,4,FALSE)) ->  | K134: =IF(F134="","",J134*I134) ->  | O134: =VLOOKUP(P134,Tabella_Prezzi,11,FALSE) -> 0 | P134: L4N127 | Q134: TS4L4-GPU-A30 | R134: =COUNTIF(TS4L4_1,P134)*$R$94 -> 0 | S134: =COUNTIF(TS4L4_2,P134)*$S$94 -> 0 | T134: =COUNTIF(TS4L4_3,P134)*$T$94 -> 0 | U134: =SUM(R134:T134) -> 0 | Y134: NO
F135: =IF(I135="","",VLOOKUP(P135,Tabella_prezzi!$A$1:$K$142,10,FALSE)) ->  | G135: =IF(I135="","",VLOOKUP(P135,Tabella_Prezzi,6,FALSE)) ->  | H135: =IF(I135="","",VLOOKUP(P135,Tabella_prezzi!$A$1:$K$142,8,FALSE)) ->  | I135: =IF(U135>0,U135,"") ->  | J135: =IF(I135="","",VLOOKUP(P135,Tabella_prezzi!A70:D86,4,FALSE)) ->  | K135: =IF(F135="","",J135*I135) ->  | O135: =VLOOKUP(P135,Tabella_Prezzi,11,FALSE) -> 0 | P135: L4N128 | Q135: TS4L4-GPU-A40 | R135: =COUNTIF(TS4L4_1,P135)*$R$94 -> 0 | S135: =COUNTIF(TS4L4_2,P135)*$S$94 -> 0 | T135: =COUNTIF(TS4L4_3,P135)*$T$94 -> 0 | U135: =SUM(R135:T135) -> 0 | Y135: NO
Y136: =IF($K$141>0,"SI","NO") -> NO
Y139: SI
I140: Totale Convenzione | K140: =SUM(K14:K90) -> 0 | Y140: SI
F141: Quota Massima 20% | G141: =K143*20% -> 0 | I141: Totale 20% | K141: =SUM(K95:K135) -> 0 | Y141: SI
F142: Quota Residua 20% | G142: =G141-K141 -> 0 | I142: Totale Iva Esclusa | K142: =K140+K141 -> 0 | Y142: SI
I143: Totale Ordine | K143: =K142+(K142*22%) -> 0 | Y143: SI
Y144: SI

Sheet Config (hidden)
D2: Informazioni di Servizio per processamento Ordine | R2: SI
R3: SI
D4: =Riepilogo_Ordine!F3 -> Riepilogo Ordine Consip N° (*) | R4: SI
D5: =Riepilogo_Ordine!F4 -> 0 | R5: SI
D6: =Riepilogo_Ordine!F5 -> Ente Ordinante (*) | G6: =Riepilogo_Ordine!I5 -> Data Ordine (*) | R6: SI
D7: =Riepilogo_Ordine!F6 -> 0 | G7: =Riepilogo_Ordine!I6 -> 00:00:00 | R7: SI
D8: =Riepilogo_Ordine!F7 -> Referente Consegna (*) | G8: =Riepilogo_Ordine!H7 -> Mail (*) | J8: =Riepilogo_Ordine!J7 -> Tel (*) | R8: SI
D9: =Riepilogo_Ordine!F8 -> 0 | G9: =Riepilogo_Ordine!I8 -> 0 | J9: =Riepilogo_Ordine!K8 -> 0 | R9: SI
D10: =Riepilogo_Ordine!F9 -> Referente Installazione (*) | G10: =Riepilogo_Ordine!H9 -> Mail (*) | J10: =Riepilogo_Ordine!J9 -> Tel (*) | R10: SI
D11: =Riepilogo_Ordine!F10 -> 0 | G11: =Riepilogo_Ordine!I10 -> 0 | J11: =Riepilogo_Ordine!K10 -> 0 | R11: SI
R12: SI
R13: SI
D17: =Lotto4_R7525_1!N8 -> 0 | E17: Configurazione 1 | G17: =#REF! ->  | H17: Configurazione 2 | J17: =#REF! ->  | K17: Configurazione 3 | R17: SI
N18: conf1 | O18: conf2 | P18: conf3 | Q18: tot
C19: =IF(D19<>"",1,0) -> 0 | D19: =IF(Riepilogo_Ordine!R14>0,Riepilogo_Ordine!R14,"") ->  | E19: =IF(E71<>"","",IF(D19="","",CONCATENATE(Riepilogo_Ordine!Q14))) ->  | F19: =IF(G19<>"",1,0) -> 0 | G19: =IF(Riepilogo_Ordine!S14>0,Riepilogo_Ordine!S14,"") ->  | H19: =IF(H71<>"","",IF(G19="","",CONCATENATE(Riepilogo_Ordine!Q14))) ->  | I19: =IF(J19<>"",1,0) -> 0 | J19: =IF(Riepilogo_Ordine!T14>0,Riepilogo_Ordine!T14,"") ->  | K19: =IF(K71<>"","",IF(J19="","",CONCATENATE(Riepilogo_Ordine!Q14))) ->  | N19: =IF(D19="",0,D19) -> 0 | O19: =IF(G19="",0,G19) -> 0 | P19: =IF(J19="",0,J19) -> 0 | Q19: =SUM(N19:P19) -> 0 | R19: =IF(Q19>0,"SI","NO") -> NO
C20: =IF(D20<>"",1,0) -> 0 | D20: =IF(SUM(D66:D69)>0,"",IF(D21<>"","",IF(Riepilogo_Ordine!R16>0,Riepilogo_Ordine!R16,""))) ->  | E20: =IF(E71<>"","",IF(E21<>"","",IF(D20="","",CONCATENATE(Riepilogo_Ordine!Q16)))) ->  | F20: =IF(G20<>"",1,0) -> 0 | G20: =IF(SUM(G66:G69)>0,"",IF(G21<>"","",IF(Riepilogo_Ordine!S16>0,Riepilogo_Ordine!S16,""))) ->  | H20: =IF(H71<>"","",IF(H21<>"","",IF(G20="","",CONCATENATE(Riepilogo_Ordine!Q16)))) ->  | I20: =IF(J20<>"",1,0) -> 0 | J20: =IF(SUM(J66:J69)>0,"",IF(J21<>"","",IF(Riepilogo_Ordine!T16>0,Riepilogo_Ordine!T16,""))) ->  | K20: =IF(K71<>"","",IF(K21<>"","",IF(J20="","",CONCATENATE(Riepilogo_Ordine!Q16)))) ->  | N20: =IF(D20="",0,D20) -> 0 | O20: =IF(G20="",0,G20) -> 0 | P20: =IF(J20="",0,J20) -> 0 | Q20: =SUM(N20:P20) -> 0 | R20: =IF(Q20>0,"SI","NO") -> NO
D21: =IF(SUM(D66:D69)>0,"",IF(Riepilogo_Ordine!R53>0,Riepilogo_Ordine!R53,"")) ->  | E21: =IF(D21="","",CONCATENATE(Riepilogo_Ordine!Q53)) ->  | G21: =IF(SUM(G66:G69)>0,"",IF(Riepilogo_Ordine!S53>0,Riepilogo_Ordine!S53,"")) ->  | H21: =IF(G21="","",CONCATENATE(Riepilogo_Ordine!Q53)) ->  | J21: =IF(SUM(J66:J69)>0,"",IF(Riepilogo_Ordine!T53>0,Riepilogo_Ordine!T53,"")) ->  | K21: =IF(J21="","",CONCATENATE(Riepilogo_Ordine!Q53)) ->  | N21: 0 | O21: 0 | P21: 0 | Q21: 0 | R21: NO
D22: =IF(SUM(D66:D69)>0,"",IF(Riepilogo_Ordine!R17>0,Riepilogo_Ordine!R17,"")) ->  | E22: =IF(D22="","",CONCATENATE(Riepilogo_Ordine!Q17)) ->  | G22: =IF(SUM(G66:G69)>0,"",IF(Riepilogo_Ordine!S17>0,Riepilogo_Ordine!S17,"")) ->  | H22: =IF(G22="","",CONCATENATE(Riepilogo_Ordine!Q17)) ->  | J22: =IF(SUM(J66:J69)>0,"",IF(Riepilogo_Ordine!T17>0,Riepilogo_Ordine!T17,"")) ->  | K22: =IF(J22="","",CONCATENATE(Riepilogo_Ordine!Q17)) ->  | N22: 0 | O22: 0 | P22: 0 | Q22: 0 | R22: NO
D23: =IF(SUM(D66:D69)>0,"",IF(Riepilogo_Ordine!R18>0,Riepilogo_Ordine!R18,"")) ->  | E23: =IF(D23="","",CONCATENATE(Riepilogo_Ordine!Q18)) ->  | G23: =IF(SUM(G66:G69)>0,"",IF(Riepilogo_Ordine!S18>0,Riepilogo_Ordine!S18,"")) ->  | H23: =IF(G23="","",CONCATENATE(Riepilogo_Ordine!Q18)) ->  | J23: =IF(SUM(J66:J69)>0,"",IF(Riepilogo_Ordine!T18>0,Riepilogo_Ordine!T18,"")) ->  | K23: =IF(J23="","",CONCATENATE(Riepilogo_Ordine!Q18)) ->  | N23: 0 | O23: 0 | P23: 0 | Q23: 0 | R23: NO
D24: =IF(Riepilogo_Ordine!R19>0,Riepilogo_Ordine!R19,"") ->  | E24: =IF(D24="","",CONCATENATE(Riepilogo_Ordine!Q19)) ->  | G24: =IF(Riepilogo_Ordine!S19>0,Riepilogo_Ordine!S19,"") ->  | H24: =IF(G24="","",CONCATENATE(Riepilogo_Ordine!Q19)) ->  | J24: =IF(Riepilogo_Ordine!T19>0,Riepilogo_Ordine!T19,"") ->  | K24: =IF(J24="","",CONCATENATE(Riepilogo_Ordine!Q19)) ->  | N24: 0 | O24: 0 | P24: 0 | Q24: 0 | R24: NO
D25: =IF(Riepilogo_Ordine!R20>0,Riepilogo_Ordine!R20,"") ->  | E25: =IF(D25="","",CONCATENATE(Riepilogo_Ordine!Q20)) ->  | G25: =IF(Riepilogo_Ordine!S20>0,Riepilogo_Ordine!S20,"") ->  | H25: =IF(G25="","",CONCATENATE(Riepilogo_Ordine!Q20)) ->  | J25: =IF(Riepilogo_Ordine!T20>0,Riepilogo_Ordine!T20,"") ->  | K25: =IF(J25="","",CONCATENATE(Riepilogo_Ordine!Q20)) ->  | N25: 0 | O25: 0 | P25: 0 | Q25: 0 | R25: NO
D26: =IF(Riepilogo_Ordine!R21>0,Riepilogo_Ordine!R21,"") ->  | E26: =IF(D26="","",CONCATENATE(Riepilogo_Ordine!Q21)) ->  | G26: =IF(Riepilogo_Ordine!S21>0,Riepilogo_Ordine!S21,"") ->  | H26: =IF(G26="","",CONCATENATE(Riepilogo_Ordine!Q21)) ->  | J26: =IF(Riepilogo_Ordine!T21>0,Riepilogo_Ordine!T21,"") ->  | K26: =IF(J26="","",CONCATENATE(Riepilogo_Ordine!Q21)) ->  | N26: 0 | O26: 0 | P26: 0 | Q26: 0 | R26: NO
D27: =IF(Riepilogo_Ordine!R22>0,Riepilogo_Ordine!R22,"") ->  | E27: =IF(D27="","",CONCATENATE(Riepilogo_Ordine!Q22)) ->  | G27: =IF(Riepilogo_Ordine!S22>0,Riepilogo_Ordine!S22,"") ->  | H27: =IF(G27="","",CONCATENATE(Riepilogo_Ordine!Q22)) ->  | J27: =IF(Riepilogo_Ordine!T22>0,Riepilogo_Ordine!T22,"") ->  | K27: =IF(J27="","",CONCATENATE(Riepilogo_Ordine!Q22)) ->  | N27: 0 | O27: 0 | P27: 0 | Q27: 0 | R27: NO
D28: =IF(Riepilogo_Ordine!R23>0,Riepilogo_Ordine!R23,"") ->  | E28: =IF(D28="","",CONCATENATE(Riepilogo_Ordine!Q23)) ->  | G28: =IF(Riepilogo_Ordine!S23>0,Riepilogo_Ordine!S23,"") ->  | H28: =IF(G28="","",CONCATENATE(Riepilogo_Ordine!Q23)) ->  | J28: =IF(Riepilogo_Ordine!T23>0,Riepilogo_Ordine!T23,"") ->  | K28: =IF(J28="","",CONCATENATE(Riepilogo_Ordine!Q23)) ->  | N28: 0 | O28: 0 | P28: 0 | Q28: 0 | R28: NO
D29: =IF(Riepilogo_Ordine!R24>0,Riepilogo_Ordine!R24,"") ->  | E29: =IF(D29="","",CONCATENATE(Riepilogo_Ordine!Q24)) ->  | G29: =IF(Riepilogo_Ordine!S24>0,Riepilogo_Ordine!S24,"") ->  | H29: =IF(G29="","",CONCATENATE(Riepilogo_Ordine!Q24)) ->  | J29: =IF(Riepilogo_Ordine!T24>0,Riepilogo_Ordine!T24,"") ->  | K29: =IF(J29="","",CONCATENATE(Riepilogo_Ordine!Q24)) ->  | N29: 0 | O29: 0 | P29: 0 | Q29: 0 | R29: NO
D30: =IF(Riepilogo_Ordine!R25>0,Riepilogo_Ordine!R25,"") ->  | E30: =IF(D30="","",CONCATENATE(Riepilogo_Ordine!Q25)) ->  | G30: =IF(Riepilogo_Ordine!S25>0,Riepilogo_Ordine!S25,"") ->  | H30: =IF(G30="","",CONCATENATE(Riepilogo_Ordine!Q25)) ->  | J30: =IF(Riepilogo_Ordine!T25>0,Riepilogo_Ordine!T25,"") ->  | K30: =IF(J30="","",CONCATENATE(Riepilogo_Ordine!Q25)) ->  | N30: 0 | O30: 0 | P30: 0 | Q30: 0 | R30: NO
D31: =IF(Riepilogo_Ordine!R26>0,Riepilogo_Ordine!R26,"") ->  | E31: =IF(D31="","",CONCATENATE(Riepilogo_Ordine!Q26)) ->  | G31: =IF(Riepilogo_Ordine!S26>0,Riepilogo_Ordine!S26,"") ->  | H31: =IF(G31="","",CONCATENATE(Riepilogo_Ordine!Q26)) ->  | J31: =IF(Riepilogo_Ordine!T26>0,Riepilogo_Ordine!T26,"") ->  | K31: =IF(J31="","",CONCATENATE(Riepilogo_Ordine!Q26)) ->  | N31: 0 | O31: 0 | P31: 0 | Q31: 0 | R31: NO
D32: =IF(Riepilogo_Ordine!R27>0,Riepilogo_Ordine!R27,"") ->  | E32: =IF(D32="","",CONCATENATE(Riepilogo_Ordine!Q27)) ->  | G32: =IF(Riepilogo_Ordine!S27>0,Riepilogo_Ordine!S27,"") ->  | H32: =IF(G32="","",CONCATENATE(Riepilogo_Ordine!Q27)) ->  | J32: =IF(Riepilogo_Ordine!T27>0,Riepilogo_Ordine!T27,"") ->  | K32: =IF(J32="","",CONCATENATE(Riepilogo_Ordine!Q27)) ->  | N32: 0 | O32: 0 | P32: 0 | Q32: 0 | R32: NO
D33: =IF(Riepilogo_Ordine!R28>0,Riepilogo_Ordine!R28,"") ->  | E33: =IF(D33="","",CONCATENATE(Riepilogo_Ordine!Q28)) ->  | G33: =IF(Riepilogo_Ordine!S28>0,Riepilogo_Ordine!S28,"") ->  | H33: =IF(G33="","",CONCATENATE(Riepilogo_Ordine!Q28)) ->  | J33: =IF(Riepilogo_Ordine!T28>0,Riepilogo_Ordine!T28,"") ->  | K33: =IF(J33="","",CONCATENATE(Riepilogo_Ordine!Q28)) ->  | N33: 0 | O33: 0 | P33: 0 | Q33: 0 | R33: NO
D34: =IF(Riepilogo_Ordine!R29>0,Riepilogo_Ordine!R29,"") ->  | E34: =IF(D34="","",CONCATENATE(Riepilogo_Ordine!Q29)) ->  | G34: =IF(Riepilogo_Ordine!S29>0,Riepilogo_Ordine!S29,"") ->  | H34: =IF(G34="","",CONCATENATE(Riepilogo_Ordine!Q29)) ->  | J34: =IF(Riepilogo_Ordine!T29>0,Riepilogo_Ordine!T29,"") ->  | K34: =IF(J34="","",CONCATENATE(Riepilogo_Ordine!Q29)) ->  | N34: 0 | O34: 0 | P34: 0 | Q34: 0 | R34: NO
D35: =IF(Riepilogo_Ordine!R30>0,Riepilogo_Ordine!R30,"") ->  | E35: =IF(D35="","",CONCATENATE(Riepilogo_Ordine!Q30)) ->  | G35: =IF(Riepilogo_Ordine!S30>0,Riepilogo_Ordine!S30,"") ->  | H35: =IF(G35="","",CONCATENATE(Riepilogo_Ordine!Q30)) ->  | J35: =IF(Riepilogo_Ordine!T30>0,Riepilogo_Ordine!T30,"") ->  | K35: =IF(J35="","",CONCATENATE(Riepilogo_Ordine!Q30)) ->  | N35: 0 | O35: 0 | P35: 0 | Q35: 0 | R35: NO
D36: =IF(Riepilogo_Ordine!R31>0,Riepilogo_Ordine!R31,"") ->  | E36: =IF(D36="","",CONCATENATE(Riepilogo_Ordine!Q31)) ->  | G36: =IF(Riepilogo_Ordine!S31>0,Riepilogo_Ordine!S31,"") ->  | H36: =IF(G36="","",CONCATENATE(Riepilogo_Ordine!Q31)) ->  | J36: =IF(Riepilogo_Ordine!T31>0,Riepilogo_Ordine!T31,"") ->  | K36: =IF(J36="","",CONCATENATE(Riepilogo_Ordine!Q31)) ->  | N36: 0 | O36: 0 | P36: 0 | Q36: 0 | R36: NO
D37: =IF(Riepilogo_Ordine!R32>0,Riepilogo_Ordine!R32,"") ->  | E37: =IF(D37="","",CONCATENATE(Riepilogo_Ordine!Q32)) ->  | G37: =IF(Riepilogo_Ordine!S32>0,Riepilogo_Ordine!S32,"") ->  | H37: =IF(G37="","",CONCATENATE(Riepilogo_Ordine!Q32)) ->  | J37: =IF(Riepilogo_Ordine!T32>0,Riepilogo_Ordine!T32,"") ->  | K37: =IF(J37="","",CONCATENATE(Riepilogo_Ordine!Q32)) ->  | N37: 0 | O37: 0 | P37: 0 | Q37: 0 | R37: NO
D38: =IF(Riepilogo_Ordine!R33>0,Riepilogo_Ordine!R33,"") ->  | E38: =IF(D38="","",CONCATENATE(Riepilogo_Ordine!Q33)) ->  | G38: =IF(Riepilogo_Ordine!S33>0,Riepilogo_Ordine!S33,"") ->  | H38: =IF(G38="","",CONCATENATE(Riepilogo_Ordine!Q33)) ->  | J38: =IF(Riepilogo_Ordine!T33>0,Riepilogo_Ordine!T33,"") ->  | K38: =IF(J38="","",CONCATENATE(Riepilogo_Ordine!Q33)) ->  | N38: 0 | O38: 0 | P38: 0 | Q38: 0 | R38: NO
D39: =IF(Riepilogo_Ordine!R34>0,Riepilogo_Ordine!R34,"") ->  | E39: =IF(D39="","",CONCATENATE(Riepilogo_Ordine!Q34)) ->  | G39: =IF(Riepilogo_Ordine!S34>0,Riepilogo_Ordine!S34,"") ->  | H39: =IF(G39="","",CONCATENATE(Riepilogo_Ordine!Q34)) ->  | J39: =IF(Riepilogo_Ordine!T34>0,Riepilogo_Ordine!T34,"") ->  | K39: =IF(J39="","",CONCATENATE(Riepilogo_Ordine!Q34)) ->  | N39: 0 | O39: 0 | P39: 0 | Q39: 0 | R39: NO
D40: =IF(Riepilogo_Ordine!R35>0,Riepilogo_Ordine!R35,"") ->  | E40: =IF(D40="","",CONCATENATE(Riepilogo_Ordine!Q35)) ->  | G40: =IF(Riepilogo_Ordine!S35>0,Riepilogo_Ordine!S35,"") ->  | H40: =IF(G40="","",CONCATENATE(Riepilogo_Ordine!Q35)) ->  | J40: =IF(Riepilogo_Ordine!T35>0,Riepilogo_Ordine!T35,"") ->  | K40: =IF(J40="","",CONCATENATE(Riepilogo_Ordine!Q35)) ->  | N40: 0 | O40: 0 | P40: 0 | Q40: 0 | R40: NO
D41: =IF(Riepilogo_Ordine!R36>0,Riepilogo_Ordine!R36,"") ->  | E41: =IF(D41="","",CONCATENATE(Riepilogo_Ordine!Q36)) ->  | G41: =IF(Riepilogo_Ordine!S36>0,Riepilogo_Ordine!S36,"") ->  | H41: =IF(G41="","",CONCATENATE(Riepilogo_Ordine!Q36)) ->  | J41: =IF(Riepilogo_Ordine!T36>0,Riepilogo_Ordine!T36,"") ->  | K41: =IF(J41="","",CONCATENATE(Riepilogo_Ordine!Q36)) ->  | N41: 0 | O41: 0 | P41: 0 | Q41: 0 | R41: NO
D42: =IF(Riepilogo_Ordine!R37>0,Riepilogo_Ordine!R37,"") ->  | E42: =IF(D42="","",CONCATENATE(Riepilogo_Ordine!Q37)) ->  | G42: =IF(Riepilogo_Ordine!S37>0,Riepilogo_Ordine!S37,"") ->  | H42: =IF(G42="","",CONCATENATE(Riepilogo_Ordine!Q37)) ->  | J42: =IF(Riepilogo_Ordine!T37>0,Riepilogo_Ordine!T37,"") ->  | K42: =IF(J42="","",CONCATENATE(Riepilogo_Ordine!Q37)) ->  | N42: 0 | O42: 0 | P42: 0 | Q42: 0 | R42: NO
D43: =IF(Riepilogo_Ordine!R38>0,Riepilogo_Ordine!R38,"") ->  | E43: =IF(D43="","",CONCATENATE(Riepilogo_Ordine!Q38)) ->  | G43: =IF(Riepilogo_Ordine!S38>0,Riepilogo_Ordine!S38,"") ->  | H43: =IF(G43="","",CONCATENATE(Riepilogo_Ordine!Q38)) ->  | J43: =IF(Riepilogo_Ordine!T38>0,Riepilogo_Ordine!T38,"") ->  | K43: =IF(J43="","",CONCATENATE(Riepilogo_Ordine!Q38)) ->  | N43: 0 | O43: 0 | P43: 0 | Q43: 0 | R43: NO
D44: =IF(Riepilogo_Ordine!R42>0,Riepilogo_Ordine!R42,"") ->  | E44: =IF(D44="","",CONCATENATE(Riepilogo_Ordine!Q42)) ->  | G44: =IF(Riepilogo_Ordine!S42>0,Riepilogo_Ordine!S42,"") ->  | H44: =IF(G44="","",CONCATENATE(Riepilogo_Ordine!Q42)) ->  | J44: =IF(Riepilogo_Ordine!T42>0,Riepilogo_Ordine!T42,"") ->  | K44: =IF(J44="","",CONCATENATE(Riepilogo_Ordine!Q42)) ->  | N44: 0 | O44: 0 | P44: 0 | Q44: 0 | R44: NO
D45: =IF(Riepilogo_Ordine!R43>0,Riepilogo_Ordine!R43,"") ->  | E45: =IF(D45="","",CONCATENATE(Riepilogo_Ordine!Q43)) ->  | G45: =IF(Riepilogo_Ordine!S43>0,Riepilogo_Ordine!S43,"") ->  | H45: =IF(G45="","",CONCATENATE(Riepilogo_Ordine!Q43)) ->  | J45: =IF(Riepilogo_Ordine!T43>0,Riepilogo_Ordine!T43,"") ->  | K45: =IF(J45="","",CONCATENATE(Riepilogo_Ordine!Q43)) ->  | N45: 0 | O45: 0 | P45: 0 | Q45: 0 | R45: NO
D46: =IF(Riepilogo_Ordine!R44>0,Riepilogo_Ordine!R44,"") ->  | E46: =IF(D46="","",CONCATENATE(Riepilogo_Ordine!Q44)) ->  | G46: =IF(Riepilogo_Ordine!S44>0,Riepilogo_Ordine!S44,"") ->  | H46: =IF(G46="","",CONCATENATE(Riepilogo_Ordine!Q44)) ->  | J46: =IF(Riepilogo_Ordine!T44>0,Riepilogo_Ordine!T44,"") ->  | K46: =IF(J46="","",CONCATENATE(Riepilogo_Ordine!Q44)) ->  | N46: 0 | O46: 0 | P46: 0 | Q46: 0 | R46: NO
D47: =IF(Riepilogo_Ordine!R45>0,Riepilogo_Ordine!R45,"") ->  | E47: =IF(D47="","",CONCATENATE(Riepilogo_Ordine!Q45)) ->  | G47: =IF(Riepilogo_Ordine!S45>0,Riepilogo_Ordine!S45,"") ->  | H47: =IF(G47="","",CONCATENATE(Riepilogo_Ordine!Q45)) ->  | J47: =IF(Riepilogo_Ordine!T45>0,Riepilogo_Ordine!T45,"") ->  | K47: =IF(J47="","",CONCATENATE(Riepilogo_Ordine!Q45)) ->  | N47: 0 | O47: 0 | P47: 0 | Q47: 0 | R47: NO
D48: =IF(Riepilogo_Ordine!R46>0,Riepilogo_Ordine!R46,"") ->  | E48: =IF(D48="","",CONCATENATE(Riepilogo_Ordine!Q46)) ->  | G48: =IF(Riepilogo_Ordine!S46>0,Riepilogo_Ordine!S46,"") ->  | H48: =IF(G48="","",CONCATENATE(Riepilogo_Ordine!Q46)) ->  | J48: =IF(Riepilogo_Ordine!T46>0,Riepilogo_Ordine!T46,"") ->  | K48: =IF(J48="","",CONCATENATE(Riepilogo_Ordine!Q46)) ->  | N48: 0 | O48: 0 | P48: 0 | Q48: 0 | R48: NO
D49: =IF(Riepilogo_Ordine!R47>0,Riepilogo_Ordine!R47,"") ->  | E49: =IF(D49="","",CONCATENATE(Riepilogo_Ordine!Q47)) ->  | G49: =IF(Riepilogo_Ordine!S47>0,Riepilogo_Ordine!S47,"") ->  | H49: =IF(G49="","",CONCATENATE(Riepilogo_Ordine!Q47)) ->  | J49: =IF(Riepilogo_Ordine!T47>0,Riepilogo_Ordine!T47,"") ->  | K49: =IF(J49="","",CONCATENATE(Riepilogo_Ordine!Q47)) ->  | N49: 0 | O49: 0 | P49: 0 | Q49: 0 | R49: NO
D50: =IF(Riepilogo_Ordine!R48>0,Riepilogo_Ordine!R48,"") ->  | E50: =IF(D50="","",CONCATENATE(Riepilogo_Ordine!Q48)) ->  | G50: =IF(Riepilogo_Ordine!S48>0,Riepilogo_Ordine!S48,"") ->  | H50: =IF(G50="","",CONCATENATE(Riepilogo_Ordine!Q48)) ->  | J50: =IF(Riepilogo_Ordine!T48>0,Riepilogo_Ordine!T48,"") ->  | K50: =IF(J50="","",CONCATENATE(Riepilogo_Ordine!Q48)) ->  | N50: 0 | O50: 0 | P50: 0 | Q50: 0 | R50: NO
D51: =IF(Riepilogo_Ordine!R49>0,Riepilogo_Ordine!R49,"") ->  | E51: =IF(D51="","",CONCATENATE(Riepilogo_Ordine!Q49)) ->  | G51: =IF(Riepilogo_Ordine!S49>0,Riepilogo_Ordine!S49,"") ->  | H51: =IF(G51="","",CONCATENATE(Riepilogo_Ordine!Q49)) ->  | J51: =IF(Riepilogo_Ordine!T49>0,Riepilogo_Ordine!T49,"") ->  | K51: =IF(J51="","",CONCATENATE(Riepilogo_Ordine!Q49)) ->  | N51: 0 | O51: 0 | P51: 0 | Q51: 0 | R51: NO
D52: =IF(Riepilogo_Ordine!R50>0,Riepilogo_Ordine!R50,"") ->  | E52: =IF(D52="","",CONCATENATE(Riepilogo_Ordine!Q50)) ->  | G52: =IF(Riepilogo_Ordine!S50>0,Riepilogo_Ordine!S50,"") ->  | H52: =IF(G52="","",CONCATENATE(Riepilogo_Ordine!Q50)) ->  | J52: =IF(Riepilogo_Ordine!T50>0,Riepilogo_Ordine!T50,"") ->  | K52: =IF(J52="","",CONCATENATE(Riepilogo_Ordine!Q50)) ->  | N52: 0 | O52: 0 | P52: 0 | Q52: 0 | R52: NO
D53: =IF(Riepilogo_Ordine!R51>0,Riepilogo_Ordine!R51,"") ->  | E53: =IF(D53="","",CONCATENATE(Riepilogo_Ordine!Q51)) ->  | G53: =IF(Riepilogo_Ordine!S51>0,Riepilogo_Ordine!S51,"") ->  | H53: =IF(G53="","",CONCATENATE(Riepilogo_Ordine!Q51)) ->  | J53: =IF(Riepilogo_Ordine!T51>0,Riepilogo_Ordine!T51,"") ->  | K53: =IF(J53="","",CONCATENATE(Riepilogo_Ordine!Q51)) ->  | N53: 0 | O53: 0 | P53: 0 | Q53: 0 | R53: NO
D54: =IF(Riepilogo_Ordine!R95>0,Riepilogo_Ordine!R95,"") ->  | E54: =IF(D54="","",CONCATENATE(Riepilogo_Ordine!Q95)) ->  | G54: =IF(Riepilogo_Ordine!S95>0,Riepilogo_Ordine!S95,"") ->  | H54: =IF(G54="","",CONCATENATE(Riepilogo_Ordine!Q95)) ->  | J54: =IF(Riepilogo_Ordine!T95>0,Riepilogo_Ordine!T95,"") ->  | K54: =IF(J54="","",CONCATENATE(Riepilogo_Ordine!Q95)) ->  | N54: 0 | O54: 0 | P54: 0 | Q54: 0 | R54: NO
D55: =IF(Riepilogo_Ordine!R96>0,Riepilogo_Ordine!R96,"") ->  | E55: =IF(D55="","",CONCATENATE(Riepilogo_Ordine!Q96)) ->  | G55: =IF(Riepilogo_Ordine!S96>0,Riepilogo_Ordine!S96,"") ->  | H55: =IF(G55="","",CONCATENATE(Riepilogo_Ordine!Q96)) ->  | J55: =IF(Riepilogo_Ordine!T96>0,Riepilogo_Ordine!T96,"") ->  | K55: =IF(J55="","",CONCATENATE(Riepilogo_Ordine!Q96)) ->  | N55: 0 | O55: 0 | P55: 0 | Q55: 0 | R55: NO
D56: =IF(Riepilogo_Ordine!R97>0,Riepilogo_Ordine!R97,"") ->  | E56: =IF(D56="","",CONCATENATE(Riepilogo_Ordine!Q97)) ->  | G56: =IF(Riepilogo_Ordine!S97>0,Riepilogo_Ordine!S97,"") ->  | H56: =IF(G56="","",CONCATENATE(Riepilogo_Ordine!Q97)) ->  | J56: =IF(Riepilogo_Ordine!T97>0,Riepilogo_Ordine!T97,"") ->  | K56: =IF(J56="","",CONCATENATE(Riepilogo_Ordine!Q97)) ->  | N56: 0 | O56: 0 | P56: 0 | Q56: 0 | R56: NO
D57: =IF(Riepilogo_Ordine!R98>0,Riepilogo_Ordine!R98,"") ->  | E57: =IF(D57="","",CONCATENATE(Riepilogo_Ordine!Q98)) ->  | G57: =IF(Riepilogo_Ordine!S98>0,Riepilogo_Ordine!S98,"") ->  | H57: =IF(G57="","",CONCATENATE(Riepilogo_Ordine!Q98)) ->  | J57: =IF(Riepilogo_Ordine!T98>0,Riepilogo_Ordine!T98,"") ->  | K57: =IF(J57="","",CONCATENATE(Riepilogo_Ordine!Q98)) ->  | N57: 0 | O57: 0 | P57: 0 | Q57: 0 | R57: NO
D58: =IF(Riepilogo_Ordine!R99>0,Riepilogo_Ordine!R99,"") ->  | E58: =IF(D58="","",CONCATENATE(Riepilogo_Ordine!Q99)) ->  | G58: =IF(Riepilogo_Ordine!S99>0,Riepilogo_Ordine!S99,"") ->  | H58: =IF(G58="","",CONCATENATE(Riepilogo_Ordine!Q99)) ->  | J58: =IF(Riepilogo_Ordine!T99>0,Riepilogo_Ordine!T99,"") ->  | K58: =IF(J58="","",CONCATENATE(Riepilogo_Ordine!Q99)) ->  | N58: 0 | O58: 0 | P58: 0 | Q58: 0 | R58: NO
D59: =IF(Riepilogo_Ordine!R100>0,Riepilogo_Ordine!R100,"") ->  | E59: =IF(D59="","",CONCATENATE(Riepilogo_Ordine!Q100)) ->  | G59: =IF(Riepilogo_Ordine!S100>0,Riepilogo_Ordine!S100,"") ->  | H59: =IF(G59="","",CONCATENATE(Riepilogo_Ordine!Q100)) ->  | J59: =IF(Riepilogo_Ordine!T100>0,Riepilogo_Ordine!T100,"") ->  | K59: =IF(J59="","",CONCATENATE(Riepilogo_Ordine!Q100)) ->  | N59: 0 | O59: 0 | P59: 0 | Q59: 0 | R59: NO
D60: =IF(Riepilogo_Ordine!R101>0,Riepilogo_Ordine!R101,"") ->  | E60: =IF(D60="","",CONCATENATE(Riepilogo_Ordine!Q101)) ->  | G60: =IF(Riepilogo_Ordine!S101>0,Riepilogo_Ordine!S101,"") ->  | H60: =IF(G60="","",CONCATENATE(Riepilogo_Ordine!Q101)) ->  | J60: =IF(Riepilogo_Ordine!T101>0,Riepilogo_Ordine!T101,"") ->  | K60: =IF(J60="","",CONCATENATE(Riepilogo_Ordine!Q101)) ->  | N60: 0 | O60: 0 | P60: 0 | Q60: 0 | R60: NO
D61: =IF(Riepilogo_Ordine!R102>0,Riepilogo_Ordine!R102,"") ->  | E61: =IF(D61="","",CONCATENATE(Riepilogo_Ordine!Q102)) ->  | G61: =IF(Riepilogo_Ordine!S102>0,Riepilogo_Ordine!S102,"") ->  | H61: =IF(G61="","",CONCATENATE(Riepilogo_Ordine!Q102)) ->  | J61: =IF(Riepilogo_Ordine!T102>0,Riepilogo_Ordine!T102,"") ->  | K61: =IF(J61="","",CONCATENATE(Riepilogo_Ordine!Q102)) ->  | N61: 0 | O61: 0 | P61: 0 | Q61: 0 | R61: NO
D62: =IF(Riepilogo_Ordine!R103>0,Riepilogo_Ordine!R103,"") ->  | E62: =IF(D62="","",CONCATENATE(Riepilogo_Ordine!Q103)) ->  | G62: =IF(Riepilogo_Ordine!S103>0,Riepilogo_Ordine!S103,"") ->  | H62: =IF(G62="","",CONCATENATE(Riepilogo_Ordine!Q103)) ->  | J62: =IF(Riepilogo_Ordine!T103>0,Riepilogo_Ordine!T103,"") ->  | K62: =IF(J62="","",CONCATENATE(Riepilogo_Ordine!Q103)) ->  | N62: 0 | O62: 0 | P62: 0 | Q62: 0 | R62: NO
D63: =IF(Riepilogo_Ordine!R104>0,Riepilogo_Ordine!R104,"") ->  | E63: =IF(D63="","",CONCATENATE(Riepilogo_Ordine!Q104)) ->  | G63: =IF(Riepilogo_Ordine!S104>0,Riepilogo_Ordine!S104,"") ->  | H63: =IF(G63="","",CONCATENATE(Riepilogo_Ordine!Q104)) ->  | J63: =IF(Riepilogo_Ordine!T104>0,Riepilogo_Ordine!T104,"") ->  | K63: =IF(J63="","",CONCATENATE(Riepilogo_Ordine!Q104)) ->  | N63: 0 | O63: 0 | P63: 0 | Q63: 0 | R63: NO
D64: =IF(Riepilogo_Ordine!R105>0,Riepilogo_Ordine!R105,"") ->  | E64: =IF(D64="","",CONCATENATE(Riepilogo_Ordine!Q105)) ->  | G64: =IF(Riepilogo_Ordine!S105>0,Riepilogo_Ordine!S105,"") ->  | H64: =IF(G64="","",CONCATENATE(Riepilogo_Ordine!Q105)) ->  | J64: =IF(Riepilogo_Ordine!T105>0,Riepilogo_Ordine!T105,"") ->  | K64: =IF(J64="","",CONCATENATE(Riepilogo_Ordine!Q105)) ->  | N64: 0 | O64: 0 | P64: 0 | Q64: 0 | R64: NO
D65: =IF(Riepilogo_Ordine!R106>0,Riepilogo_Ordine!R106,"") ->  | E65: =IF(D65="","",CONCATENATE(Riepilogo_Ordine!Q106)) ->  | G65: =IF(Riepilogo_Ordine!S106>0,Riepilogo_Ordine!S106,"") ->  | H65: =IF(G65="","",CONCATENATE(Riepilogo_Ordine!Q106)) ->  | J65: =IF(Riepilogo_Ordine!T106>0,Riepilogo_Ordine!T106,"") ->  | K65: =IF(J65="","",CONCATENATE(Riepilogo_Ordine!Q106)) ->  | N65: 0 | O65: 0 | P65: 0 | Q65: 0 | R65: NO
D66: =IF(Riepilogo_Ordine!R119>0,Riepilogo_Ordine!R119,"") ->  | E66: =IF(D66="","",CONCATENATE(Riepilogo_Ordine!Q119)) ->  | G66: =IF(Riepilogo_Ordine!S119>0,Riepilogo_Ordine!S119,"") ->  | H66: =IF(G66="","",CONCATENATE(Riepilogo_Ordine!Q119)) ->  | J66: =IF(Riepilogo_Ordine!T119>0,Riepilogo_Ordine!T119,"") ->  | K66: =IF(J66="","",CONCATENATE(Riepilogo_Ordine!Q119)) ->  | N66: 0 | O66: 0 | P66: 0 | Q66: 0 | R66: NO
D67: =IF(Riepilogo_Ordine!R120>0,Riepilogo_Ordine!R120,"") ->  | E67: =IF(D67="","",CONCATENATE(Riepilogo_Ordine!Q120)) ->  | G67: =IF(Riepilogo_Ordine!S120>0,Riepilogo_Ordine!S120,"") ->  | H67: =IF(G67="","",CONCATENATE(Riepilogo_Ordine!Q120)) ->  | J67: =IF(Riepilogo_Ordine!T120>0,Riepilogo_Ordine!T120,"") ->  | K67: =IF(J67="","",CONCATENATE(Riepilogo_Ordine!Q120)) ->  | N67: 0 | O67: 0 | P67: 0 | Q67: 0 | R67: NO
D68: =IF(Riepilogo_Ordine!R121>0,Riepilogo_Ordine!R121,"") ->  | E68: =IF(D68="","",CONCATENATE(Riepilogo_Ordine!Q121)) ->  | G68: =IF(Riepilogo_Ordine!S121>0,Riepilogo_Ordine!S121,"") ->  | H68: =IF(G68="","",CONCATENATE(Riepilogo_Ordine!Q121)) ->  | J68: =IF(Riepilogo_Ordine!T121>0,Riepilogo_Ordine!T121,"") ->  | K68: =IF(J68="","",CONCATENATE(Riepilogo_Ordine!Q121)) ->  | N68: 0 | O68: 0 | P68: 0 | Q68: 0 | R68: NO
D69: =IF(Riepilogo_Ordine!R122>0,Riepilogo_Ordine!R122,"") ->  | E69: =IF(D69="","",CONCATENATE(Riepilogo_Ordine!Q122)) ->  | G69: =IF(Riepilogo_Ordine!S122>0,Riepilogo_Ordine!S122,"") ->  | H69: =IF(G69="","",CONCATENATE(Riepilogo_Ordine!Q122)) ->  | J69: =IF(Riepilogo_Ordine!T122>0,Riepilogo_Ordine!T122,"") ->  | K69: =IF(J69="","",CONCATENATE(Riepilogo_Ordine!Q122)) ->  | N69: 0 | O69: 0 | P69: 0 | Q69: 0 | R69: NO
D70: =IF(Riepilogo_Ordine!R136>0,Riepilogo_Ordine!R136,"") ->  | E70: =IF(D70="","",CONCATENATE(Riepilogo_Ordine!Q136)) ->  | G70: =IF(Riepilogo_Ordine!S136>0,Riepilogo_Ordine!S136,"") ->  | H70: =IF(G70="","",CONCATENATE(Riepilogo_Ordine!Q136)) ->  | J70: =IF(Riepilogo_Ordine!T136>0,Riepilogo_Ordine!T136,"") ->  | K70: =IF(J70="","",CONCATENATE(Riepilogo_Ordine!Q136)) ->  | N70: =IF(D70="",0,D70) -> 0 | O70: =IF(G70="",0,G70) -> 0 | P70: =IF(J70="",0,J70) -> 0 | Q70: =SUM(N70:P70) -> 0 | R70: =IF(Q70>0,"SI","NO") -> NO
D71: =IF(SUM(C19:C20)=2,1*D17,"") ->  | E71: =IF(D71<>"","TS4L4-SRV + TS4L4-CPU","") ->  | G71: =IF(SUM(F19:F20)=2,1*G17,"") ->  | H71: =IF(G71<>"","TS4L4-SRV + TS4L4-CPU","") ->  | J71: =IF(SUM(I19:I20)=2,1*J17,"") ->  | K71: =IF(J71<>"","TS4L4-SRV + TS4L4-CPU","") ->  | Q71: =SUM(D138:D141) -> 0 | R71: NO
C72: =IF(D72<>"",1,0) -> 0 | D72: =IF(Riepilogo_Ordine!R67>0,Riepilogo_Ordine!R67,"") ->  | E72: =IF(E140<>"","",IF(D72="","",CONCATENATE(Riepilogo_Ordine!Q67))) ->  | F72: =IF(G72<>"",1,0) -> 0 | G72: =IF(Riepilogo_Ordine!S67>0,Riepilogo_Ordine!S67,"") ->  | H72: =IF(H140<>"","",IF(G72="","",CONCATENATE(Riepilogo_Ordine!Q67))) ->  | I72: =IF(J72<>"",1,0) -> 0 | J72: =IF(Riepilogo_Ordine!T67>0,Riepilogo_Ordine!T67,"") ->  | K72: =IF(K140<>"","",IF(J72="","",CONCATENATE(Riepilogo_Ordine!Q67))) ->  | N72: =IF(D72="",0,D72) -> 0 | O72: =IF(G72="",0,G72) -> 0 | P72: =IF(J72="",0,J72) -> 0 | Q72: =SUM(N72:P72) -> 0 | R72: =IF(Q72>0,"SI","NO") -> NO
C73: =IF(D73<>"",1,0) -> 0 | D73: =IF(SUM(D117:D138)>0,"",IF(D74<>"","",IF(Riepilogo_Ordine!R70>0,Riepilogo_Ordine!R70,""))) ->  | E73: =IF(E140<>"","",IF(E74<>"","",IF(D73="","",CONCATENATE(Riepilogo_Ordine!Q70)))) ->  | F73: =IF(G73<>"",1,0) -> 0 | G73: =IF(SUM(G117:G138)>0,"",IF(G74<>"","",IF(Riepilogo_Ordine!S70>0,Riepilogo_Ordine!S70,""))) ->  | H73: =IF(H140<>"","",IF(H74<>"","",IF(G73="","",CONCATENATE(Riepilogo_Ordine!Q70)))) ->  | I73: =IF(J73<>"",1,0) -> 0 | J73: =IF(SUM(J117:J138)>0,"",IF(J74<>"","",IF(Riepilogo_Ordine!T70>0,Riepilogo_Ordine!T70,""))) ->  | K73: =IF(K140<>"","",IF(K74<>"","",IF(J73="","",CONCATENATE(Riepilogo_Ordine!Q70)))) ->  | N73: =IF(D73="",0,D73) -> 0 | O73: =IF(G73="",0,G73) -> 0 | P73: =IF(J73="",0,J73) -> 0 | Q73: =SUM(N73:P73) -> 0 | R73: =IF(Q73>0,"SI","NO") -> NO
D74: =IF(SUM(D66:D69)>0,"",IF(D21<>"","",IF(Riepilogo_Ordine!R54>0,Riepilogo_Ordine!R54,""))) ->  | E74: =IF(D74="","",CONCATENATE(Riepilogo_Ordine!Q54)) ->  | G74: =IF(SUM(G66:G69)>0,"",IF(G21<>"","",IF(Riepilogo_Ordine!S54>0,Riepilogo_Ordine!S54,""))) ->  | H74: =IF(G74="","",CONCATENATE(Riepilogo_Ordine!Q54)) ->  | J74: =IF(SUM(J66:J69)>0,"",IF(J21<>"","",IF(Riepilogo_Ordine!T54>0,Riepilogo_Ordine!T54,""))) ->  | K74: =IF(J74="","",CONCATENATE(Riepilogo_Ordine!Q54)) ->  | N74: 0 | O74: 0 | P74: 0 | Q74: 0 | R74: NO
D75: =IF(SUM(D66:D69)>0,"",IF(Riepilogo_Ordine!R55>0,Riepilogo_Ordine!R55,"")) ->  | E75: =IF(D75="","",CONCATENATE(Riepilogo_Ordine!Q55)) ->  | G75: =IF(SUM(G66:G69)>0,"",IF(Riepilogo_Ordine!S55>0,Riepilogo_Ordine!S55,"")) ->  | H75: =IF(G75="","",CONCATENATE(Riepilogo_Ordine!Q55)) ->  | J75: =IF(SUM(J66:J69)>0,"",IF(Riepilogo_Ordine!T55>0,Riepilogo_Ordine!T55,"")) ->  | K75: =IF(J75="","",CONCATENATE(Riepilogo_Ordine!Q55)) ->  | N75: 0 | O75: 0 | P75: 0 | Q75: 0 | R75: NO
D76: =IF(SUM(D66:D69)>0,"",IF(Riepilogo_Ordine!R56>0,Riepilogo_Ordine!R56,"")) ->  | E76: =IF(D76="","",CONCATENATE(Riepilogo_Ordine!Q56)) ->  | G76: =IF(SUM(G66:G69)>0,"",IF(Riepilogo_Ordine!S56>0,Riepilogo_Ordine!S56,"")) ->  | H76: =IF(G76="","",CONCATENATE(Riepilogo_Ordine!Q56)) ->  | J76: =IF(SUM(J66:J69)>0,"",IF(Riepilogo_Ordine!T56>0,Riepilogo_Ordine!T56,"")) ->  | K76: =IF(J76="","",CONCATENATE(Riepilogo_Ordine!Q56)) ->  | N76: 0 | O76: 0 | P76: 0 | Q76: 0 | R76: NO
D77: =IF(Riepilogo_Ordine!R57>0,Riepilogo_Ordine!R57,"") ->  | E77: =IF(D77="","",CONCATENATE(Riepilogo_Ordine!Q57)) ->  | G77: =IF(Riepilogo_Ordine!S57>0,Riepilogo_Ordine!S57,"") ->  | H77: =IF(G77="","",CONCATENATE(Riepilogo_Ordine!Q57)) ->  | J77: =IF(Riepilogo_Ordine!T57>0,Riepilogo_Ordine!T57,"") ->  | K77: =IF(J77="","",CONCATENATE(Riepilogo_Ordine!Q57)) ->  | N77: 0 | O77: 0 | P77: 0 | Q77: 0 | R77: NO
D78: =IF(Riepilogo_Ordine!R58>0,Riepilogo_Ordine!R58,"") ->  | E78: =IF(D78="","",CONCATENATE(Riepilogo_Ordine!Q58)) ->  | G78: =IF(Riepilogo_Ordine!S58>0,Riepilogo_Ordine!S58,"") ->  | H78: =IF(G78="","",CONCATENATE(Riepilogo_Ordine!Q58)) ->  | J78: =IF(Riepilogo_Ordine!T58>0,Riepilogo_Ordine!T58,"") ->  | K78: =IF(J78="","",CONCATENATE(Riepilogo_Ordine!Q58)) ->  | N78: 0 | O78: 0 | P78: 0 | Q78: 0 | R78: NO
D79: =IF(Riepilogo_Ordine!R59>0,Riepilogo_Ordine!R59,"") ->  | E79: =IF(D79="","",CONCATENATE(Riepilogo_Ordine!Q59)) ->  | G79: =IF(Riepilogo_Ordine!S59>0,Riepilogo_Ordine!S59,"") ->  | H79: =IF(G79="","",CONCATENATE(Riepilogo_Ordine!Q59)) ->  | J79: =IF(Riepilogo_Ordine!T59>0,Riepilogo_Ordine!T59,"") ->  | K79: =IF(J79="","",CONCATENATE(Riepilogo_Ordine!Q59)) ->  | N79: 0 | O79: 0 | P79: 0 | Q79: 0 | R79: NO
D80: =IF(Riepilogo_Ordine!R60>0,Riepilogo_Ordine!R60,"") ->  | E80: =IF(D80="","",CONCATENATE(Riepilogo_Ordine!Q60)) ->  | G80: =IF(Riepilogo_Ordine!S60>0,Riepilogo_Ordine!S60,"") ->  | H80: =IF(G80="","",CONCATENATE(Riepilogo_Ordine!Q60)) ->  | J80: =IF(Riepilogo_Ordine!T60>0,Riepilogo_Ordine!T60,"") ->  | K80: =IF(J80="","",CONCATENATE(Riepilogo_Ordine!Q60)) ->  | N80: 0 | O80: 0 | P80: 0 | Q80: 0 | R80: NO
D81: =IF(Riepilogo_Ordine!R61>0,Riepilogo_Ordine!R61,"") ->  | E81: =IF(D81="","",CONCATENATE(Riepilogo_Ordine!Q61)) ->  | G81: =IF(Riepilogo_Ordine!S61>0,Riepilogo_Ordine!S61,"") ->  | H81: =IF(G81="","",CONCATENATE(Riepilogo_Ordine!Q61)) ->  | J81: =IF(Riepilogo_Ordine!T61>0,Riepilogo_Ordine!T61,"") ->  | K81: =IF(J81="","",CONCATENATE(Riepilogo_Ordine!Q61)) ->  | N81: 0 | O81: 0 | P81: 0 | Q81: 0 | R81: NO
D82: =IF(Riepilogo_Ordine!R62>0,Riepilogo_Ordine!R62,"") ->  | E82: =IF(D82="","",CONCATENATE(Riepilogo_Ordine!Q62)) ->  | G82: =IF(Riepilogo_Ordine!S62>0,Riepilogo_Ordine!S62,"") ->  | H82: =IF(G82="","",CONCATENATE(Riepilogo_Ordine!Q62)) ->  | J82: =IF(Riepilogo_Ordine!T62>0,Riepilogo_Ordine!T62,"") ->  | K82: =IF(J82="","",CONCATENATE(Riepilogo_Ordine!Q62)) ->  | N82: 0 | O82: 0 | P82: 0 | Q82: 0 | R82: NO
D83: =IF(Riepilogo_Ordine!R63>0,Riepilogo_Ordine!R63,"") ->  | E83: =IF(D83="","",CONCATENATE(Riepilogo_Ordine!Q63)) ->  | G83: =IF(Riepilogo_Ordine!S63>0,Riepilogo_Ordine!S63,"") ->  | H83: =IF(G83="","",CONCATENATE(Riepilogo_Ordine!Q63)) ->  | J83: =IF(Riepilogo_Ordine!T63>0,Riepilogo_Ordine!T63,"") ->  | K83: =IF(J83="","",CONCATENATE(Riepilogo_Ordine!Q63)) ->  | N83: 0 | O83: 0 | P83: 0 | Q83: 0 | R83: NO
D84: =IF(Riepilogo_Ordine!R64>0,Riepilogo_Ordine!R64,"") ->  | E84: =IF(D84="","",CONCATENATE(Riepilogo_Ordine!Q64)) ->  | G84: =IF(Riepilogo_Ordine!S64>0,Riepilogo_Ordine!S64,"") ->  | H84: =IF(G84="","",CONCATENATE(Riepilogo_Ordine!Q64)) ->  | J84: =IF(Riepilogo_Ordine!T64>0,Riepilogo_Ordine!T64,"") ->  | K84: =IF(J84="","",CONCATENATE(Riepilogo_Ordine!Q64)) ->  | N84: 0 | O84: 0 | P84: 0 | Q84: 0 | R84: NO
D85: =IF(Riepilogo_Ordine!R65>0,Riepilogo_Ordine!R65,"") ->  | E85: =IF(D85="","",CONCATENATE(Riepilogo_Ordine!Q65)) ->  | G85: =IF(Riepilogo_Ordine!S65>0,Riepilogo_Ordine!S65,"") ->  | H85: =IF(G85="","",CONCATENATE(Riepilogo_Ordine!Q65)) ->  | J85: =IF(Riepilogo_Ordine!T65>0,Riepilogo_Ordine!T65,"") ->  | K85: =IF(J85="","",CONCATENATE(Riepilogo_Ordine!Q65)) ->  | N85: 0 | O85: 0 | P85: 0 | Q85: 0 | R85: NO
D86: =IF(Riepilogo_Ordine!R66>0,Riepilogo_Ordine!R66,"") ->  | E86: =IF(D86="","",CONCATENATE(Riepilogo_Ordine!Q66)) ->  | G86: =IF(Riepilogo_Ordine!S66>0,Riepilogo_Ordine!S66,"") ->  | H86: =IF(G86="","",CONCATENATE(Riepilogo_Ordine!Q66)) ->  | J86: =IF(Riepilogo_Ordine!T66>0,Riepilogo_Ordine!T66,"") ->  | K86: =IF(J86="","",CONCATENATE(Riepilogo_Ordine!Q66)) ->  | N86: 0 | O86: 0 | P86: 0 | Q86: 0 | R86: NO
D87: =IF(Riepilogo_Ordine!R67>0,Riepilogo_Ordine!R67,"") ->  | E87: =IF(D87="","",CONCATENATE(Riepilogo_Ordine!Q67)) ->  | G87: =IF(Riepilogo_Ordine!S67>0,Riepilogo_Ordine!S67,"") ->  | H87: =IF(G87="","",CONCATENATE(Riepilogo_Ordine!Q67)) ->  | J87: =IF(Riepilogo_Ordine!T67>0,Riepilogo_Ordine!T67,"") ->  | K87: =IF(J87="","",CONCATENATE(Riepilogo_Ordine!Q67)) ->  | N87: 0 | O87: 0 | P87: 0 | Q87: 0 | R87: NO
D88: =IF(Riepilogo_Ordine!R68>0,Riepilogo_Ordine!R68,"") ->  | E88: =IF(D88="","",CONCATENATE(Riepilogo_Ordine!Q68)) ->  | G88: =IF(Riepilogo_Ordine!S68>0,Riepilogo_Ordine!S68,"") ->  | H88: =IF(G88="","",CONCATENATE(Riepilogo_Ordine!Q68)) ->  | J88: =IF(Riepilogo_Ordine!T68>0,Riepilogo_Ordine!T68,"") ->  | K88: =IF(J88="","",CONCATENATE(Riepilogo_Ordine!Q68)) ->  | N88: 0 | O88: 0 | P88: 0 | Q88: 0 | R88: NO
D89: =IF(Riepilogo_Ordine!R69>0,Riepilogo_Ordine!R69,"") ->  | E89: =IF(D89="","",CONCATENATE(Riepilogo_Ordine!Q69)) ->  | G89: =IF(Riepilogo_Ordine!S69>0,Riepilogo_Ordine!S69,"") ->  | H89: =IF(G89="","",CONCATENATE(Riepilogo_Ordine!Q69)) ->  | J89: =IF(Riepilogo_Ordine!T69>0,Riepilogo_Ordine!T69,"") ->  | K89: =IF(J89="","",CONCATENATE(Riepilogo_Ordine!Q69)) ->  | N89: 0 | O89: 0 | P89: 0 | Q89: 0 | R89: NO
D90: =IF(Riepilogo_Ordine!R70>0,Riepilogo_Ordine!R70,"") ->  | E90: =IF(D90="","",CONCATENATE(Riepilogo_Ordine!Q70)) ->  | G90: =IF(Riepilogo_Ordine!S70>0,Riepilogo_Ordine!S70,"") ->  | H90: =IF(G90="","",CONCATENATE(Riepilogo_Ordine!Q70)) ->  | J90: =IF(Riepilogo_Ordine!T70>0,Riepilogo_Ordine!T70,"") ->  | K90: =IF(J90="","",CONCATENATE(Riepilogo_Ordine!Q70)) ->  | N90: 0 | O90: 0 | P90: 0 | Q90: 0 | R90: NO
D91: =IF(Riepilogo_Ordine!R71>0,Riepilogo_Ordine!R71,"") ->  | E91: =IF(D91="","",CONCATENATE(Riepilogo_Ordine!Q71)) ->  | G91: =IF(Riepilogo_Ordine!S71>0,Riepilogo_Ordine!S71,"") ->  | H91: =IF(G91="","",CONCATENATE(Riepilogo_Ordine!Q71)) ->  | J91: =IF(Riepilogo_Ordine!T71>0,Riepilogo_Ordine!T71,"") ->  | K91: =IF(J91="","",CONCATENATE(Riepilogo_Ordine!Q71)) ->  | N91: 0 | O91: 0 | P91: 0 | Q91: 0 | R91: NO
D92: =IF(Riepilogo_Ordine!R72>0,Riepilogo_Ordine!R72,"") ->  | E92: =IF(D92="","",CONCATENATE(Riepilogo_Ordine!Q72)) ->  | G92: =IF(Riepilogo_Ordine!S72>0,Riepilogo_Ordine!S72,"") ->  | H92: =IF(G92="","",CONCATENATE(Riepilogo_Ordine!Q72)) ->  | J92: =IF(Riepilogo_Ordine!T72>0,Riepilogo_Ordine!T72,"") ->  | K92: =IF(J92="","",CONCATENATE(Riepilogo_Ordine!Q72)) ->  | N92: 0 | O92: 0 | P92: 0 | Q92: 0 | R92: NO
D93: =IF(Riepilogo_Ordine!R73>0,Riepilogo_Ordine!R73,"") ->  | E93: =IF(D93="","",CONCATENATE(Riepilogo_Ordine!Q73)) ->  | G93: =IF(Riepilogo_Ordine!S73>0,Riepilogo_Ordine!S73,"") ->  | H93: =IF(G93="","",CONCATENATE(Riepilogo_Ordine!Q73)) ->  | J93: =IF(Riepilogo_Ordine!T73>0,Riepilogo_Ordine!T73,"") ->  | K93: =IF(J93="","",CONCATENATE(Riepilogo_Ordine!Q73)) ->  | N93: 0 | O93: 0 | P93: 0 | Q93: 0 | R93: NO
D94: =IF(Riepilogo_Ordine!R74>0,Riepilogo_Ordine!R74,"") ->  | E94: =IF(D94="","",CONCATENATE(Riepilogo_Ordine!Q74)) ->  | G94: =IF(Riepilogo_Ordine!S74>0,Riepilogo_Ordine!S74,"") ->  | H94: =IF(G94="","",CONCATENATE(Riepilogo_Ordine!Q74)) ->  | J94: =IF(Riepilogo_Ordine!T74>0,Riepilogo_Ordine!T74,"") ->  | K94: =IF(J94="","",CONCATENATE(Riepilogo_Ordine!Q74)) ->  | N94: 0 | O94: 0 | P94: 0 | Q94: 0 | R94: NO
D95: =IF(Riepilogo_Ordine!R75>0,Riepilogo_Ordine!R75,"") ->  | E95: =IF(D95="","",CONCATENATE(Riepilogo_Ordine!Q75)) ->  | G95: =IF(Riepilogo_Ordine!S75>0,Riepilogo_Ordine!S75,"") ->  | H95: =IF(G95="","",CONCATENATE(Riepilogo_Ordine!Q75)) ->  | J95: =IF(Riepilogo_Ordine!T75>0,Riepilogo_Ordine!T75,"") ->  | K95: =IF(J95="","",CONCATENATE(Riepilogo_Ordine!Q75)) ->  | N95: 0 | O95: 0 | P95: 0 | Q95: 0 | R95: NO
D96: =IF(Riepilogo_Ordine!R76>0,Riepilogo_Ordine!R76,"") ->  | E96: =IF(D96="","",CONCATENATE(Riepilogo_Ordine!Q76)) ->  | G96: =IF(Riepilogo_Ordine!S76>0,Riepilogo_Ordine!S76,"") ->  | H96: =IF(G96="","",CONCATENATE(Riepilogo_Ordine!Q76)) ->  | J96: =IF(Riepilogo_Ordine!T76>0,Riepilogo_Ordine!T76,"") ->  | K96: =IF(J96="","",CONCATENATE(Riepilogo_Ordine!Q76)) ->  | N96: 0 | O96: 0 | P96: 0 | Q96: 0 | R96: NO
D97: =IF(Riepilogo_Ordine!R77>0,Riepilogo_Ordine!R77,"") ->  | E97: =IF(D97="","",CONCATENATE(Riepilogo_Ordine!Q77)) ->  | G97: =IF(Riepilogo_Ordine!S77>0,Riepilogo_Ordine!S77,"") ->  | H97: =IF(G97="","",CONCATENATE(Riepilogo_Ordine!Q77)) ->  | J97: =IF(Riepilogo_Ordine!T77>0,Riepilogo_Ordine!T77,"") ->  | K97: =IF(J97="","",CONCATENATE(Riepilogo_Ordine!Q77)) ->  | N97: 0 | O97: 0 | P97: 0 | Q97: 0 | R97: NO
D98: =IF(Riepilogo_Ordine!R78>0,Riepilogo_Ordine!R78,"") ->  | E98: =IF(D98="","",CONCATENATE(Riepilogo_Ordine!Q78)) ->  | G98: =IF(Riepilogo_Ordine!S78>0,Riepilogo_Ordine!S78,"") ->  | H98: =IF(G98="","",CONCATENATE(Riepilogo_Ordine!Q78)) ->  | J98: =IF(Riepilogo_Ordine!T78>0,Riepilogo_Ordine!T78,"") ->  | K98: =IF(J98="","",CONCATENATE(Riepilogo_Ordine!Q78)) ->  | N98: 0 | O98: 0 | P98: 0 | Q98: 0 | R98: NO
D99: =IF(Riepilogo_Ordine!R79>0,Riepilogo_Ordine!R79,"") ->  | E99: =IF(D99="","",CONCATENATE(Riepilogo_Ordine!Q79)) ->  | G99: =IF(Riepilogo_Ordine!S79>0,Riepilogo_Ordine!S79,"") ->  | H99: =IF(G99="","",CONCATENATE(Riepilogo_Ordine!Q79)) ->  | J99: =IF(Riepilogo_Ordine!T79>0,Riepilogo_Ordine!T79,"") ->  | K99: =IF(J99="","",CONCATENATE(Riepilogo_Ordine!Q79)) ->  | N99: 0 | O99: 0 | P99: 0 | Q99: 0 | R99: NO
D100: =IF(Riepilogo_Ordine!R80>0,Riepilogo_Ordine!R80,"") ->  | E100: =IF(D100="","",CONCATENATE(Riepilogo_Ordine!Q80)) ->  | G100: =IF(Riepilogo_Ordine!S80>0,Riepilogo_Ordine!S80,"") ->  | H100: =IF(G100="","",CONCATENATE(Riepilogo_Ordine!Q80)) ->  | J100: =IF(Riepilogo_Ordine!T80>0,Riepilogo_Ordine!T80,"") ->  | K100: =IF(J100="","",CONCATENATE(Riepilogo_Ordine!Q80)) ->  | N100: 0 | O100: 0 | P100: 0 | Q100: 0 | R100: NO
D101: =IF(Riepilogo_Ordine!R81>0,Riepilogo_Ordine!R81,"") ->  | E101: =IF(D101="","",CONCATENATE(Riepilogo_Ordine!Q81)) ->  | G101: =IF(Riepilogo_Ordine!S81>0,Riepilogo_Ordine!S81,"") ->  | H101: =IF(G101="","",CONCATENATE(Riepilogo_Ordine!Q81)) ->  | J101: =IF(Riepilogo_Ordine!T81>0,Riepilogo_Ordine!T81,"") ->  | K101: =IF(J101="","",CONCATENATE(Riepilogo_Ordine!Q81)) ->  | N101: 0 | O101: 0 | P101: 0 | Q101: 0 | R101: NO
D102: =IF(Riepilogo_Ordine!R82>0,Riepilogo_Ordine!R82,"") ->  | E102: =IF(D102="","",CONCATENATE(Riepilogo_Ordine!Q82)) ->  | G102: =IF(Riepilogo_Ordine!S82>0,Riepilogo_Ordine!S82,"") ->  | H102: =IF(G102="","",CONCATENATE(Riepilogo_Ordine!Q82)) ->  | J102: =IF(Riepilogo_Ordine!T82>0,Riepilogo_Ordine!T82,"") ->  | K102: =IF(J102="","",CONCATENATE(Riepilogo_Ordine!Q82)) ->  | N102: 0 | O102: 0 | P102: 0 | Q102: 0 | R102: NO
D103: =IF(Riepilogo_Ordine!R83>0,Riepilogo_Ordine!R83,"") ->  | E103: =IF(D103="","",CONCATENATE(Riepilogo_Ordine!Q83)) ->  | G103: =IF(Riepilogo_Ordine!S83>0,Riepilogo_Ordine!S83,"") ->  | H103: =IF(G103="","",CONCATENATE(Riepilogo_Ordine!Q83)) ->  | J103: =IF(Riepilogo_Ordine!T83>0,Riepilogo_Ordine!T83,"") ->  | K103: =IF(J103="","",CONCATENATE(Riepilogo_Ordine!Q83)) ->  | N103: 0 | O103: 0 | P103: 0 | Q103: 0 | R103: NO
D104: =IF(Riepilogo_Ordine!R84>0,Riepilogo_Ordine!R84,"") ->  | E104: =IF(D104="","",CONCATENATE(Riepilogo_Ordine!Q84)) ->  | G104: =IF(Riepilogo_Ordine!S84>0,Riepilogo_Ordine!S84,"") ->  | H104: =IF(G104="","",CONCATENATE(Riepilogo_Ordine!Q84)) ->  | J104: =IF(Riepilogo_Ordine!T84>0,Riepilogo_Ordine!T84,"") ->  | K104: =IF(J104="","",CONCATENATE(Riepilogo_Ordine!Q84)) ->  | N104: 0 | O104: 0 | P104: 0 | Q104: 0 | R104: NO
D105: =IF(Riepilogo_Ordine!R85>0,Riepilogo_Ordine!R85,"") ->  | E105: =IF(D105="","",CONCATENATE(Riepilogo_Ordine!Q85)) ->  | G105: =IF(Riepilogo_Ordine!S85>0,Riepilogo_Ordine!S85,"") ->  | H105: =IF(G105="","",CONCATENATE(Riepilogo_Ordine!Q85)) ->  | J105: =IF(Riepilogo_Ordine!T85>0,Riepilogo_Ordine!T85,"") ->  | K105: =IF(J105="","",CONCATENATE(Riepilogo_Ordine!Q85)) ->  | N105: 0 | O105: 0 | P105: 0 | Q105: 0 | R105: NO
D106: =IF(Riepilogo_Ordine!R86>0,Riepilogo_Ordine!R86,"") ->  | E106: =IF(D106="","",CONCATENATE(Riepilogo_Ordine!Q86)) ->  | G106: =IF(Riepilogo_Ordine!S86>0,Riepilogo_Ordine!S86,"") ->  | H106: =IF(G106="","",CONCATENATE(Riepilogo_Ordine!Q86)) ->  | J106: =IF(Riepilogo_Ordine!T86>0,Riepilogo_Ordine!T86,"") ->  | K106: =IF(J106="","",CONCATENATE(Riepilogo_Ordine!Q86)) ->  | N106: 0 | O106: 0 | P106: 0 | Q106: 0 | R106: NO
D107: =IF(Riepilogo_Ordine!R87>0,Riepilogo_Ordine!R87,"") ->  | E107: =IF(D107="","",CONCATENATE(Riepilogo_Ordine!Q87)) ->  | G107: =IF(Riepilogo_Ordine!S87>0,Riepilogo_Ordine!S87,"") ->  | H107: =IF(G107="","",CONCATENATE(Riepilogo_Ordine!Q87)) ->  | J107: =IF(Riepilogo_Ordine!T87>0,Riepilogo_Ordine!T87,"") ->  | K107: =IF(J107="","",CONCATENATE(Riepilogo_Ordine!Q87)) ->  | N107: 0 | O107: 0 | P107: 0 | Q107: 0 | R107: NO
D108: =IF(Riepilogo_Ordine!R88>0,Riepilogo_Ordine!R88,"") ->  | E108: =IF(D108="","",CONCATENATE(Riepilogo_Ordine!Q88)) ->  | G108: =IF(Riepilogo_Ordine!S88>0,Riepilogo_Ordine!S88,"") ->  | H108: =IF(G108="","",CONCATENATE(Riepilogo_Ordine!Q88)) ->  | J108: =IF(Riepilogo_Ordine!T88>0,Riepilogo_Ordine!T88,"") ->  | K108: =IF(J108="","",CONCATENATE(Riepilogo_Ordine!Q88)) ->  | N108: 0 | O108: 0 | P108: 0 | Q108: 0 | R108: NO
D109: =IF(Riepilogo_Ordine!R89>0,Riepilogo_Ordine!R89,"") ->  | E109: =IF(D109="","",CONCATENATE(Riepilogo_Ordine!Q89)) ->  | G109: =IF(Riepilogo_Ordine!S89>0,Riepilogo_Ordine!S89,"") ->  | H109: =IF(G109="","",CONCATENATE(Riepilogo_Ordine!Q89)) ->  | J109: =IF(Riepilogo_Ordine!T89>0,Riepilogo_Ordine!T89,"") ->  | K109: =IF(J109="","",CONCATENATE(Riepilogo_Ordine!Q89)) ->  | N109: 0 | O109: 0 | P109: 0 | Q109: 0 | R109: NO
D110: =IF(Riepilogo_Ordine!R90>0,Riepilogo_Ordine!R90,"") ->  | E110: =IF(D110="","",CONCATENATE(Riepilogo_Ordine!Q90)) ->  | G110: =IF(Riepilogo_Ordine!S90>0,Riepilogo_Ordine!S90,"") ->  | H110: =IF(G110="","",CONCATENATE(Riepilogo_Ordine!Q90)) ->  | J110: =IF(Riepilogo_Ordine!T90>0,Riepilogo_Ordine!T90,"") ->  | K110: =IF(J110="","",CONCATENATE(Riepilogo_Ordine!Q90)) ->  | N110: 0 | O110: 0 | P110: 0 | Q110: 0 | R110: NO
D111: =IF(Riepilogo_Ordine!R91>0,Riepilogo_Ordine!R91,"") ->  | E111: =IF(D111="","",CONCATENATE(Riepilogo_Ordine!Q91)) ->  | G111: =IF(Riepilogo_Ordine!S91>0,Riepilogo_Ordine!S91,"") ->  | H111: =IF(G111="","",CONCATENATE(Riepilogo_Ordine!Q91)) ->  | J111: =IF(Riepilogo_Ordine!T91>0,Riepilogo_Ordine!T91,"") ->  | K111: =IF(J111="","",CONCATENATE(Riepilogo_Ordine!Q91)) ->  | N111: 0 | O111: 0 | P111: 0 | Q111: 0 | R111: NO
D112: =IF(Riepilogo_Ordine!R92>0,Riepilogo_Ordine!R92,"") ->  | E112: =IF(D112="","",CONCATENATE(Riepilogo_Ordine!Q92)) ->  | G112: =IF(Riepilogo_Ordine!S92>0,Riepilogo_Ordine!S92,"") ->  | H112: =IF(G112="","",CONCATENATE(Riepilogo_Ordine!Q92)) ->  | J112: =IF(Riepilogo_Ordine!T92>0,Riepilogo_Ordine!T92,"") ->  | K112: =IF(J112="","",CONCATENATE(Riepilogo_Ordine!Q92)) ->  | N112: 0 | O112: 0 | P112: 0 | Q112: 0 | R112: NO
D113: =IF(Riepilogo_Ordine!R95>0,Riepilogo_Ordine!R95,"") ->  | E113: =IF(D113="","",CONCATENATE(Riepilogo_Ordine!Q95)) ->  | G113: =IF(Riepilogo_Ordine!S95>0,Riepilogo_Ordine!S95,"") ->  | H113: =IF(G113="","",CONCATENATE(Riepilogo_Ordine!Q95)) ->  | J113: =IF(Riepilogo_Ordine!T95>0,Riepilogo_Ordine!T95,"") ->  | K113: =IF(J113="","",CONCATENATE(Riepilogo_Ordine!Q95)) ->  | N113: 0 | O113: 0 | P113: 0 | Q113: 0 | R113: NO
D114: =IF(Riepilogo_Ordine!R96>0,Riepilogo_Ordine!R96,"") ->  | E114: =IF(D114="","",CONCATENATE(Riepilogo_Ordine!Q96)) ->  | G114: =IF(Riepilogo_Ordine!S96>0,Riepilogo_Ordine!S96,"") ->  | H114: =IF(G114="","",CONCATENATE(Riepilogo_Ordine!Q96)) ->  | J114: =IF(Riepilogo_Ordine!T96>0,Riepilogo_Ordine!T96,"") ->  | K114: =IF(J114="","",CONCATENATE(Riepilogo_Ordine!Q96)) ->  | N114: 0 | O114: 0 | P114: 0 | Q114: 0 | R114: NO
D115: =IF(Riepilogo_Ordine!R97>0,Riepilogo_Ordine!R97,"") ->  | E115: =IF(D115="","",CONCATENATE(Riepilogo_Ordine!Q97)) ->  | G115: =IF(Riepilogo_Ordine!S97>0,Riepilogo_Ordine!S97,"") ->  | H115: =IF(G115="","",CONCATENATE(Riepilogo_Ordine!Q97)) ->  | J115: =IF(Riepilogo_Ordine!T97>0,Riepilogo_Ordine!T97,"") ->  | K115: =IF(J115="","",CONCATENATE(Riepilogo_Ordine!Q97)) ->  | N115: 0 | O115: 0 | P115: 0 | Q115: 0 | R115: NO
D116: =IF(Riepilogo_Ordine!R98>0,Riepilogo_Ordine!R98,"") ->  | E116: =IF(D116="","",CONCATENATE(Riepilogo_Ordine!Q98)) ->  | G116: =IF(Riepilogo_Ordine!S98>0,Riepilogo_Ordine!S98,"") ->  | H116: =IF(G116="","",CONCATENATE(Riepilogo_Ordine!Q98)) ->  | J116: =IF(Riepilogo_Ordine!T98>0,Riepilogo_Ordine!T98,"") ->  | K116: =IF(J116="","",CONCATENATE(Riepilogo_Ordine!Q98)) ->  | N116: 0 | O116: 0 | P116: 0 | Q116: 0 | R116: NO
D117: =IF(Riepilogo_Ordine!R99>0,Riepilogo_Ordine!R99,"") ->  | E117: =IF(D117="","",CONCATENATE(Riepilogo_Ordine!Q99)) ->  | G117: =IF(Riepilogo_Ordine!S99>0,Riepilogo_Ordine!S99,"") ->  | H117: =IF(G117="","",CONCATENATE(Riepilogo_Ordine!Q99)) ->  | J117: =IF(Riepilogo_Ordine!T99>0,Riepilogo_Ordine!T99,"") ->  | K117: =IF(J117="","",CONCATENATE(Riepilogo_Ordine!Q99)) ->  | N117: 0 | O117: 0 | P117: 0 | Q117: 0 | R117: NO
D118: =IF(Riepilogo_Ordine!R100>0,Riepilogo_Ordine!R100,"") ->  | E118: =IF(D118="","",CONCATENATE(Riepilogo_Ordine!Q100)) ->  | G118: =IF(Riepilogo_Ordine!S100>0,Riepilogo_Ordine!S100,"") ->  | H118: =IF(G118="","",CONCATENATE(Riepilogo_Ordine!Q100)) ->  | J118: =IF(Riepilogo_Ordine!T100>0,Riepilogo_Ordine!T100,"") ->  | K118: =IF(J118="","",CONCATENATE(Riepilogo_Ordine!Q100)) ->  | N118: 0 | O118: 0 | P118: 0 | Q118: 0 | R118: NO
D119: =IF(Riepilogo_Ordine!R101>0,Riepilogo_Ordine!R101,"") ->  | E119: =IF(D119="","",CONCATENATE(Riepilogo_Ordine!Q101)) ->  | G119: =IF(Riepilogo_Ordine!S101>0,Riepilogo_Ordine!S101,"") ->  | H119: =IF(G119="","",CONCATENATE(Riepilogo_Ordine!Q101)) ->  | J119: =IF(Riepilogo_Ordine!T101>0,Riepilogo_Ordine!T101,"") ->  | K119: =IF(J119="","",CONCATENATE(Riepilogo_Ordine!Q101)) ->  | N119: 0 | O119: 0 | P119: 0 | Q119: 0 | R119: NO
D120: =IF(Riepilogo_Ordine!R102>0,Riepilogo_Ordine!R102,"") ->  | E120: =IF(D120="","",CONCATENATE(Riepilogo_Ordine!Q102)) ->  | G120: =IF(Riepilogo_Ordine!S102>0,Riepilogo_Ordine!S102,"") ->  | H120: =IF(G120="","",CONCATENATE(Riepilogo_Ordine!Q102)) ->  | J120: =IF(Riepilogo_Ordine!T102>0,Riepilogo_Ordine!T102,"") ->  | K120: =IF(J120="","",CONCATENATE(Riepilogo_Ordine!Q102)) ->  | N120: =IF(D120="",0,D120) -> 0 | O120: =IF(G120="",0,G120) -> 0 | P120: =IF(J120="",0,J120) -> 0 | Q120: =SUM(N120:P120) -> 0 | R120: =IF(Q120>0,"SI","NO") -> NO
D121: =IF(Riepilogo_Ordine!R103>0,Riepilogo_Ordine!R103,"") ->  | E121: =IF(D121="","",CONCATENATE(Riepilogo_Ordine!Q103)) ->  | G121: =IF(Riepilogo_Ordine!S103>0,Riepilogo_Ordine!S103,"") ->  | H121: =IF(G121="","",CONCATENATE(Riepilogo_Ordine!Q103)) ->  | J121: =IF(Riepilogo_Ordine!T103>0,Riepilogo_Ordine!T103,"") ->  | K121: =IF(J121="","",CONCATENATE(Riepilogo_Ordine!Q103)) ->  | N121: 0 | O121: 0 | P121: 0 | Q121: 0 | R121: NO
D122: =IF(Riepilogo_Ordine!R104>0,Riepilogo_Ordine!R104,"") ->  | E122: =IF(D122="","",CONCATENATE(Riepilogo_Ordine!Q104)) ->  | G122: =IF(Riepilogo_Ordine!S104>0,Riepilogo_Ordine!S104,"") ->  | H122: =IF(G122="","",CONCATENATE(Riepilogo_Ordine!Q104)) ->  | J122: =IF(Riepilogo_Ordine!T104>0,Riepilogo_Ordine!T104,"") ->  | K122: =IF(J122="","",CONCATENATE(Riepilogo_Ordine!Q104)) ->  | N122: 0 | O122: 0 | P122: 0 | Q122: 0 | R122: NO
D123: =IF(Riepilogo_Ordine!R105>0,Riepilogo_Ordine!R105,"") ->  | E123: =IF(D123="","",CONCATENATE(Riepilogo_Ordine!Q105)) ->  | G123: =IF(Riepilogo_Ordine!S105>0,Riepilogo_Ordine!S105,"") ->  | H123: =IF(G123="","",CONCATENATE(Riepilogo_Ordine!Q105)) ->  | J123: =IF(Riepilogo_Ordine!T105>0,Riepilogo_Ordine!T105,"") ->  | K123: =IF(J123="","",CONCATENATE(Riepilogo_Ordine!Q105)) ->  | N123: 0 | O123: 0 | P123: 0 | Q123: 0 | R123: NO
D124: =IF(Riepilogo_Ordine!R106>0,Riepilogo_Ordine!R106,"") ->  | E124: =IF(D124="","",CONCATENATE(Riepilogo_Ordine!Q106)) ->  | G124: =IF(Riepilogo_Ordine!S106>0,Riepilogo_Ordine!S106,"") ->  | H124: =IF(G124="","",CONCATENATE(Riepilogo_Ordine!Q106)) ->  | J124: =IF(Riepilogo_Ordine!T106>0,Riepilogo_Ordine!T106,"") ->  | K124: =IF(J124="","",CONCATENATE(Riepilogo_Ordine!Q106)) ->  | N124: 0 | O124: 0 | P124: 0 | Q124: 0 | R124: NO
D125: =IF(Riepilogo_Ordine!R107>0,Riepilogo_Ordine!R107,"") ->  | E125: =IF(D125="","",CONCATENATE(Riepilogo_Ordine!Q107)) ->  | G125: =IF(Riepilogo_Ordine!S107>0,Riepilogo_Ordine!S107,"") ->  | H125: =IF(G125="","",CONCATENATE(Riepilogo_Ordine!Q107)) ->  | J125: =IF(Riepilogo_Ordine!T107>0,Riepilogo_Ordine!T107,"") ->  | K125: =IF(J125="","",CONCATENATE(Riepilogo_Ordine!Q107)) ->  | N125: 0 | O125: 0 | P125: 0 | Q125: 0 | R125: NO
D126: =IF(Riepilogo_Ordine!R108>0,Riepilogo_Ordine!R108,"") ->  | E126: =IF(D126="","",CONCATENATE(Riepilogo_Ordine!Q108)) ->  | G126: =IF(Riepilogo_Ordine!S108>0,Riepilogo_Ordine!S108,"") ->  | H126: =IF(G126="","",CONCATENATE(Riepilogo_Ordine!Q108)) ->  | J126: =IF(Riepilogo_Ordine!T108>0,Riepilogo_Ordine!T108,"") ->  | K126: =IF(J126="","",CONCATENATE(Riepilogo_Ordine!Q108)) ->  | N126: 0 | O126: 0 | P126: 0 | Q126: 0 | R126: NO
D127: =IF(Riepilogo_Ordine!R109>0,Riepilogo_Ordine!R109,"") ->  | E127: =IF(D127="","",CONCATENATE(Riepilogo_Ordine!Q109)) ->  | G127: =IF(Riepilogo_Ordine!S109>0,Riepilogo_Ordine!S109,"") ->  | H127: =IF(G127="","",CONCATENATE(Riepilogo_Ordine!Q109)) ->  | J127: =IF(Riepilogo_Ordine!T109>0,Riepilogo_Ordine!T109,"") ->  | K127: =IF(J127="","",CONCATENATE(Riepilogo_Ordine!Q109)) ->  | N127: 0 | O127: 0 | P127: 0 | Q127: 0 | R127: NO
D128: =IF(Riepilogo_Ordine!R110>0,Riepilogo_Ordine!R110,"") ->  | E128: =IF(D128="","",CONCATENATE(Riepilogo_Ordine!Q110)) ->  | G128: =IF(Riepilogo_Ordine!S110>0,Riepilogo_Ordine!S110,"") ->  | H128: =IF(G128="","",CONCATENATE(Riepilogo_Ordine!Q110)) ->  | J128: =IF(Riepilogo_Ordine!T110>0,Riepilogo_Ordine!T110,"") ->  | K128: =IF(J128="","",CONCATENATE(Riepilogo_Ordine!Q110)) ->  | N128: 0 | O128: 0 | P128: 0 | Q128: 0 | R128: NO
D129: =IF(Riepilogo_Ordine!R111>0,Riepilogo_Ordine!R111,"") ->  | E129: =IF(D129="","",CONCATENATE(Riepilogo_Ordine!Q111)) ->  | G129: =IF(Riepilogo_Ordine!S111>0,Riepilogo_Ordine!S111,"") ->  | H129: =IF(G129="","",CONCATENATE(Riepilogo_Ordine!Q111)) ->  | J129: =IF(Riepilogo_Ordine!T111>0,Riepilogo_Ordine!T111,"") ->  | K129: =IF(J129="","",CONCATENATE(Riepilogo_Ordine!Q111)) ->  | N129: 0 | O129: 0 | P129: 0 | Q129: 0 | R129: NO
D130: =IF(Riepilogo_Ordine!R112>0,Riepilogo_Ordine!R112,"") ->  | E130: =IF(D130="","",CONCATENATE(Riepilogo_Ordine!Q112)) ->  | G130: =IF(Riepilogo_Ordine!S112>0,Riepilogo_Ordine!S112,"") ->  | H130: =IF(G130="","",CONCATENATE(Riepilogo_Ordine!Q112)) ->  | J130: =IF(Riepilogo_Ordine!T112>0,Riepilogo_Ordine!T112,"") ->  | K130: =IF(J130="","",CONCATENATE(Riepilogo_Ordine!Q112)) ->  | N130: 0 | O130: 0 | P130: 0 | Q130: 0 | R130: NO
D131: =IF(Riepilogo_Ordine!R113>0,Riepilogo_Ordine!R113,"") ->  | E131: =IF(D131="","",CONCATENATE(Riepilogo_Ordine!Q113)) ->  | G131: =IF(Riepilogo_Ordine!S113>0,Riepilogo_Ordine!S113,"") ->  | H131: =IF(G131="","",CONCATENATE(Riepilogo_Ordine!Q113)) ->  | J131: =IF(Riepilogo_Ordine!T113>0,Riepilogo_Ordine!T113,"") ->  | K131: =IF(J131="","",CONCATENATE(Riepilogo_Ordine!Q113)) ->  | N131: 0 | O131: 0 | P131: 0 | Q131: 0 | R131: NO
D132: =IF(Riepilogo_Ordine!R114>0,Riepilogo_Ordine!R114,"") ->  | E132: =IF(D132="","",CONCATENATE(Riepilogo_Ordine!Q114)) ->  | G132: =IF(Riepilogo_Ordine!S114>0,Riepilogo_Ordine!S114,"") ->  | H132: =IF(G132="","",CONCATENATE(Riepilogo_Ordine!Q114)) ->  | J132: =IF(Riepilogo_Ordine!T114>0,Riepilogo_Ordine!T114,"") ->  | K132: =IF(J132="","",CONCATENATE(Riepilogo_Ordine!Q114)) ->  | N132: =IF(D132="",0,D132) -> 0 | O132: =IF(G132="",0,G132) -> 0 | P132: =IF(J132="",0,J132) -> 0 | Q132: =SUM(N132:P132) -> 0 | R132: =IF(Q132>0,"SI","NO") -> NO
D133: =IF(Riepilogo_Ordine!R115>0,Riepilogo_Ordine!R115,"") ->  | E133: =IF(D133="","",CONCATENATE(Riepilogo_Ordine!Q115)) ->  | G133: =IF(Riepilogo_Ordine!S115>0,Riepilogo_Ordine!S115,"") ->  | H133: =IF(G133="","",CONCATENATE(Riepilogo_Ordine!Q115)) ->  | J133: =IF(Riepilogo_Ordine!T115>0,Riepilogo_Ordine!T115,"") ->  | K133: =IF(J133="","",CONCATENATE(Riepilogo_Ordine!Q115)) ->  | N133: 0 | O133: 0 | P133: 0 | Q133: 0 | R133: NO
D134: =IF(Riepilogo_Ordine!R116>0,Riepilogo_Ordine!R116,"") ->  | E134: =IF(D134="","",CONCATENATE(Riepilogo_Ordine!Q116)) ->  | G134: =IF(Riepilogo_Ordine!S116>0,Riepilogo_Ordine!S116,"") ->  | H134: =IF(G134="","",CONCATENATE(Riepilogo_Ordine!Q116)) ->  | J134: =IF(Riepilogo_Ordine!T116>0,Riepilogo_Ordine!T116,"") ->  | K134: =IF(J134="","",CONCATENATE(Riepilogo_Ordine!Q116)) ->  | N134: 0 | O134: 0 | P134: 0 | Q134: 0 | R134: NO
D135: =IF(Riepilogo_Ordine!R117>0,Riepilogo_Ordine!R117,"") ->  | E135: =IF(D135="","",CONCATENATE(Riepilogo_Ordine!Q117)) ->  | G135: =IF(Riepilogo_Ordine!S117>0,Riepilogo_Ordine!S117,"") ->  | H135: =IF(G135="","",CONCATENATE(Riepilogo_Ordine!Q117)) ->  | J135: =IF(Riepilogo_Ordine!T117>0,Riepilogo_Ordine!T117,"") ->  | K135: =IF(J135="","",CONCATENATE(Riepilogo_Ordine!Q117)) ->  | N135: 0 | O135: 0 | P135: 0 | Q135: 0 | R135: NO
D136: =IF(Riepilogo_Ordine!R118>0,Riepilogo_Ordine!R118,"") ->  | E136: =IF(D136="","",CONCATENATE(Riepilogo_Ordine!Q118)) ->  | G136: =IF(Riepilogo_Ordine!S118>0,Riepilogo_Ordine!S118,"") ->  | H136: =IF(G136="","",CONCATENATE(Riepilogo_Ordine!Q118)) ->  | J136: =IF(Riepilogo_Ordine!T118>0,Riepilogo_Ordine!T118,"") ->  | K136: =IF(J136="","",CONCATENATE(Riepilogo_Ordine!Q118)) ->  | N136: =IF(D136="",0,D136) -> 0 | O136: =IF(G136="",0,G136) -> 0 | P136: =IF(J136="",0,J136) -> 0 | Q136: =SUM(N136:P136) -> 0 | R136: =IF(Q136>0,"SI","NO") -> NO
D137: =IF(Riepilogo_Ordine!R127>0,Riepilogo_Ordine!R127,"") ->  | E137: =IF(D137="","",CONCATENATE(Riepilogo_Ordine!Q127)) ->  | G137: =IF(Riepilogo_Ordine!S119>0,Riepilogo_Ordine!S119,"") ->  | H137: =IF(G137="","",CONCATENATE(Riepilogo_Ordine!Q119)) ->  | J137: =IF(Riepilogo_Ordine!T119>0,Riepilogo_Ordine!T119,"") ->  | K137: =IF(J137="","",CONCATENATE(Riepilogo_Ordine!Q119)) ->  | N137: =IF(D137="",0,D137) -> 0 | O137: =IF(G137="",0,G137) -> 0 | P137: =IF(J137="",0,J137) -> 0 | Q137: =SUM(N137:P137) -> 0 | R137: =IF(Q137>0,"SI","NO") -> NO
E138: Altre Opzioni | Q138: =SUM(D139:D142) -> 0 | R138: NO
D139: =IF(Riepilogo_Ordine!U39>0,Riepilogo_Ordine!U39,"") ->  | E139: =IF(D139="","",CONCATENATE(Riepilogo_Ordine!Q39)) ->  | Q139: =IF(D139<>"",1,0) -> 0 | R139: NO
D140: =IF(Riepilogo_Ordine!U40>0,Riepilogo_Ordine!U40,"") ->  | E140: =IF(D140="","",CONCATENATE(Riepilogo_Ordine!Q40)) ->  | Q140: =IF(D140<>"",1,0) -> 0 | R140: NO
D141: =IF(Riepilogo_Ordine!U41>0,Riepilogo_Ordine!U41,"") ->  | E141: =IF(D141="","",CONCATENATE(Riepilogo_Ordine!Q41)) ->  | Q141: 0 | R141: NO
D142: =IF(Riepilogo_Ordine!U52>0,Riepilogo_Ordine!U52,"") ->  | E142: =IF(D142="","",CONCATENATE(Riepilogo_Ordine!Q52)) ->  | Q142: 0 | R142: NO
D143: =IF(Riepilogo_Ordine!U123>0,Riepilogo_Ordine!U123,"") ->  | E143: =IF(D143="","",CONCATENATE(Riepilogo_Ordine!Q123)) ->  | Q143: =IF(D143<>"",1,0) -> 0 | R143: =IF(Q143>0,"SI","NO") -> NO
D144: =IF(Riepilogo_Ordine!U124>0,Riepilogo_Ordine!U124,"") ->  | E144: =IF(D144="","",CONCATENATE(Riepilogo_Ordine!Q124)) ->  | Q144: =IF(D144<>"",1,0) -> 0 | R144: NO
D145: =IF(Riepilogo_Ordine!U125>0,Riepilogo_Ordine!U125,"") ->  | E145: =IF(D145="","",CONCATENATE(Riepilogo_Ordine!Q125)) ->  | Q145: 0 | R145: NO
D146: =IF(Riepilogo_Ordine!U126>0,Riepilogo_Ordine!U126,"") ->  | E146: =IF(D146="","",CONCATENATE(Riepilogo_Ordine!Q126)) ->  | Q146: 0 | R146: NO
D147: =IF(Riepilogo_Ordine!U127>0,Riepilogo_Ordine!U127,"") ->  | E147: =IF(D147="","",CONCATENATE(Riepilogo_Ordine!Q127)) ->  | Q147: =IF(D147<>"",1,0) -> 0 | R147: =IF(Q147>0,"SI","NO") -> NO
D148: =IF(Riepilogo_Ordine!U128>0,Riepilogo_Ordine!U128,"") ->  | E148: =IF(D148="","",CONCATENATE(Riepilogo_Ordine!Q128)) ->  | Q148: =IF(D148<>"",1,0) -> 0 | R148: NO
D149: =IF(Riepilogo_Ordine!U129>0,Riepilogo_Ordine!U129,"") ->  | E149: =IF(D149="","",CONCATENATE(Riepilogo_Ordine!Q129)) ->  | Q149: 0 | R149: NO
D150: =IF(Riepilogo_Ordine!U130>0,Riepilogo_Ordine!U130,"") ->  | E150: =IF(D150="","",CONCATENATE(Riepilogo_Ordine!Q130)) ->  | Q150: 0 | R150: NO
D151: =IF(Riepilogo_Ordine!U131>0,Riepilogo_Ordine!U131,"") ->  | E151: =IF(D151="","",CONCATENATE(Riepilogo_Ordine!Q131)) ->  | Q151: =IF(D151<>"",1,0) -> 0 | R151: NO
D152: =IF(Riepilogo_Ordine!U132>0,Riepilogo_Ordine!U132,"") ->  | E152: =IF(D152="","",CONCATENATE(Riepilogo_Ordine!Q132)) ->  | Q152: =IF(D152<>"",1,0) -> 0 | R152: NO
D153: =IF(Riepilogo_Ordine!U136>0,Riepilogo_Ordine!U136,"") ->  | E153: =IF(D153="","",CONCATENATE(Riepilogo_Ordine!Q136)) ->  | Q153: 0 | R153: NO
D154: =IF(Riepilogo_Ordine!U137>0,Riepilogo_Ordine!U137,"") ->  | E154: =IF(D154="","",CONCATENATE(Riepilogo_Ordine!Q137)) ->  | Q154: 0 | R154: NO

Sheet ConfigurationTS4L4 (hidden)
B2: Module Name | C2: Option ID | D2: Option Name | E2: Option List Price | F2: SKUs | G2: Qty | H2: SKU Customer Kit | I2: Attributo | J2: Valore inserito | L2: N° | M2: Codice Convenzione
A3: PowerEdge R7525 Server (General Purpose) | B3: Chassis with Up to 16 x 2.5 Hard Drives for 1CPU Configuration | C3: Chassis with Up to 16 x 2.5 Hard Drives for 2CPU Configuration | D3: =VLOOKUP(L3,Tabella_prezzi!$A$2:$L$73,8,FALSE) -> PowerEdge R7525 Server | H3: =VLOOKUP(L3,Tabella_prezzi!$A$2:$L$73,9,FALSE) -> PowerEdge R7525 Server | I3: TS4L4-Opz1CPU | J3: =VLOOKUP(L3,Tabella_prezzi!$A$2:$L$73,4,FALSE) -> 3637.17 | K3: TS4L4-Opz2CPU | L3: L4N01 | M3: =VLOOKUP(L3,Tabella_prezzi!$A$2:$L$73,6,FALSE) -> TS4L4-SRV
A4: PowerEdge R7525 Server (nVME) | B4: Chassis with Up to 16X 2.5 SAS/SATA + 8X 2.5 NVME for 2CPU Configuration | C4: Chassis with Up to 16X 2.5 SAS/SATA + 8X 2.5 NVME for 2CPU Configuration | D4: =VLOOKUP(L4,Tabella_prezzi!$A$2:$L$73,8,FALSE) -> PowerEdge R7525 Server NVMe | H4: =VLOOKUP(L4,Tabella_prezzi!$A$2:$L$73,9,FALSE) -> PowerEdge R7525 Server NVMe | I4: TS4L4-Opz2CPU_NVMe | J4: =VLOOKUP(L4,Tabella_prezzi!$A$2:$L$73,4,FALSE) -> 3782.6568 | K4: TS4L4-Opz2CPU_NVMe | L4: L4N01-NVME | M4: TS4L4-SRV-NVME
A5: PowerEdge R7525 Server (vSAN Ready 512 GB RAM) | B5: Chassis with Up to 16X 2.5 SAS/SATA + 8X 2.5 NVME for 2CPU Configuration | C5: Chassis with Up to 16X 2.5 SAS/SATA + 8X 2.5 NVME for 2CPU Configuration | D5: =VLOOKUP(L5,Tabella_prezzi!$A$2:$L$73,8,FALSE) -> PowerEdge R7525 Server NVMe | G5: 1 | H5: =VLOOKUP(L5,Tabella_prezzi!$A$2:$L$73,9,FALSE) -> PowerEdge R7525 Server NVMe | I5: TS4L4-Opz2CPU_vSAN | J5: =VLOOKUP(L5,Tabella_prezzi!$A$2:$L$73,4,FALSE) -> 3782.6568 | K5: TS4L4-Opz2CPU_vSAN | L5: L4N01-NVME | M5: TS4L4-SRV-NVME
A6: PowerEdge R7525 Server (vSAN Ready 1 TB RAM) | B6: Chassis with Up to 16X 2.5 SAS/SATA + 8X 2.5 NVME for 2CPU Configuration | C6: Chassis with Up to 16X 2.5 SAS/SATA + 8X 2.5 NVME for 2CPU Configuration | D6: =VLOOKUP(L6,Tabella_prezzi!$A$2:$L$73,8,FALSE) -> PowerEdge R7525 Server NVMe | G6: 1 | H6: =VLOOKUP(L6,Tabella_prezzi!$A$2:$L$73,9,FALSE) -> PowerEdge R7525 Server NVMe | I6: TS4L4-Opz2CPU_vSAN | J6: =VLOOKUP(L6,Tabella_prezzi!$A$2:$L$73,4,FALSE) -> 3782.6568 | K6: TS4L4-Opz2CPU_vSAN | L6: L4N01-NVME | M6: TS4L4-SRV-NVME
A7: PowerEdge R7525 Server (vSAN Ready 2 TB RAM) | B7: Chassis with Up to 16X 2.5 SAS/SATA + 8X 2.5 NVME for 2CPU Configuration | C7: Chassis with Up to 16X 2.5 SAS/SATA + 8X 2.5 NVME for 2CPU Configuration | D7: =VLOOKUP(L7,Tabella_prezzi!$A$2:$L$73,8,FALSE) -> PowerEdge R7525 Server NVMe | G7: 1 | H7: =VLOOKUP(L7,Tabella_prezzi!$A$2:$L$73,9,FALSE) -> PowerEdge R7525 Server NVMe | I7: TS4L4-Opz2CPU_vSAN | J7: =VLOOKUP(L7,Tabella_prezzi!$A$2:$L$73,4,FALSE) -> 3782.6568 | K7: TS4L4-Opz2CPU_vSAN | L7: L4N01-NVME | M7: TS4L4-SRV-NVME
A8: PowerEdge R7525 Server (Nutanix Ready) | B8: Chassis with Up to 16X 2.5 SAS/SATA + 8X 2.5 NVME for 2CPU Configuration | C8: Chassis with Up to 16X 2.5 SAS/SATA + 8X 2.5 NVME for 2CPU Configuration | D8: =VLOOKUP(L8,Tabella_prezzi!$A$2:$L$73,8,FALSE) -> PowerEdge R7525 Server NVMe | G8: 1 | H8: =VLOOKUP(L8,Tabella_prezzi!$A$2:$L$73,9,FALSE) -> PowerEdge R7525 Server NVMe | I8: =VLOOKUP(L8,Tabella_prezzi!$A$2:$L$73,3,FALSE) -> Server rackable bi-processore prest. | J8: =VLOOKUP(L8,Tabella_prezzi!$A$2:$L$73,4,FALSE) -> 3782.6568 | K8: TS4L4-Opz2CPU_NUT | L8: L4N01-NVME | M8: TS4L4-SRV-NVME
A9: PowerEdge R7525 Server (GPU Ready) | B9: =CONCATENATE("Chassis with Up to 16X 2.5 SAS/SATA + 8X 2.5 NVME for 2CPU Configuration + ",H9) -> Chassis with Up to 16X 2.5 SAS/SATA + 8X 2.5 NVME for 2CPU Configuration + PowerEdge R7525 Server NVMe | C9: =CONCATENATE("Chassis with Up to 16X 2.5 SAS/SATA + 8X 2.5 NVME for 2CPU Configuration + ",H9) -> Chassis with Up to 16X 2.5 SAS/SATA + 8X 2.5 NVME for 2CPU Configuration + PowerEdge R7525 Server NVMe | D9: =VLOOKUP(L9,Tabella_prezzi!$A$2:$L$84,8,FALSE) -> PowerEdge R7525 Server NVMe | G9: 1 | H9: =VLOOKUP(L9,Tabella_prezzi!$A$2:$L$84,9,FALSE) -> PowerEdge R7525 Server NVMe | I9: =VLOOKUP(L9,Tabella_Prezzi,10,FALSE) -> L4N01-ServerR7525-NVMe | J9: =VLOOKUP(L9,Tabella_prezzi!$A$2:$L$84,4,FALSE) -> 3782.6568 | K9: =VLOOKUP(L9,Tabella_Prezzi,6,FALSE) -> TS4L4-SRV-NVMe | L9: L4N01-NVME | M9: =VLOOKUP(L9,Tabella_prezzi!$A$2:$L$73,6,FALSE) -> TS4L4-SRV-NVMe
A11: TS4L4_Chassis
A12: PowerEdge R7525 Server (General Purpose) | B12: Chassis with Up to 16 x 2.5 Hard Drives for 1CPU Configuration | C12: Chassis with Up to 16 x 2.5 Hard Drives for 2CPU Configuration | D12: =VLOOKUP(L12,Tabella_prezzi!$A$2:$L$73,8,FALSE) -> PowerEdge R7525 Server | H12: =VLOOKUP(L12,Tabella_prezzi!$A$2:$L$73,9,FALSE) -> PowerEdge R7525 Server | I12: TS4L4-Opz1CPU | J12: =VLOOKUP(L12,Tabella_prezzi!$A$2:$L$73,4,FALSE) -> 3637.17 | K12: TS4L4-Opz2CPU | L12: L4N01 | M12: =VLOOKUP(L12,Tabella_prezzi!$A$2:$L$73,6,FALSE) -> TS4L4-SRV
A13: PowerEdge R7525 Server (nVME) | B13: Chassis with Up to 16X 2.5 SAS/SATA + 8X 2.5 NVME for 2CPU Configuration | C13: Chassis with Up to 16X 2.5 SAS/SATA + 8X 2.5 NVME for 2CPU Configuration | D13: =VLOOKUP(L13,Tabella_prezzi!$A$2:$L$73,8,FALSE) -> PowerEdge R7525 Server NVMe | H13: =VLOOKUP(L13,Tabella_prezzi!$A$2:$L$73,9,FALSE) -> PowerEdge R7525 Server NVMe | I13: TS4L4-Opz2CPU_NVMe | J13: =VLOOKUP(L13,Tabella_prezzi!$A$2:$L$73,4,FALSE) -> 3782.6568 | K13: TS4L4-Opz2CPU_NVMe | L13: L4N01-NVME | M13: TS4L4-SRV-NVME
A14: PowerEdge R7525 Server (vSAN Ready 512 GB RAM) | B14: =CONCATENATE("Chassis with Up to 16X 2.5 SAS/SATA + 8X 2.5 NVME for 2CPU Configuration + ",H14) -> Chassis with Up to 16X 2.5 SAS/SATA + 8X 2.5 NVME for 2CPU Configuration + Kit vSAN comprensivo di HBA 355 e BOSS Card | C14: =CONCATENATE("Chassis with Up to 16X 2.5 SAS/SATA + 8X 2.5 NVME for 2CPU Configuration + ",H14) -> Chassis with Up to 16X 2.5 SAS/SATA + 8X 2.5 NVME for 2CPU Configuration + Kit vSAN comprensivo di HBA 355 e BOSS Card | D14: =VLOOKUP(L14,Tabella_prezzi!$A$2:$L$73,8,FALSE) -> Kit vSAN comprensivo di HBA 355 in sostituzione di quello Base e BOSS Card | G14: 1 | H14: =VLOOKUP(L14,Tabella_prezzi!$A$2:$L$73,9,FALSE) -> Kit vSAN comprensivo di HBA 355 e BOSS Card | I14: =VLOOKUP(L14,Tabella_Prezzi,10,FALSE) -> L4N112-Opz2CPU-vSAN-512 | J14: =VLOOKUP(L14,Tabella_prezzi!$A$2:$L$73,4,FALSE) -> 512.16 | K14: =VLOOKUP(L14,Tabella_Prezzi,6,FALSE) -> TS4L4-2CPU-vSAN-512GB | L14: L4N112 | M14: =VLOOKUP(L14,Tabella_prezzi!$A$2:$L$73,6,FALSE) -> TS4L4-2CPU-vSAN-512GB
A15: PowerEdge R7525 Server (vSAN Ready 1 TB RAM) | B15: Chassis with Up to 16X 2.5 SAS/SATA + 8X 2.5 NVME for 2CPU Configuration + Kit vSAN comprensivo di HBA 355 e BOSS Card | C15: =CONCATENATE("Chassis with Up to 16X 2.5 SAS/SATA + 8X 2.5 NVME for 2CPU Configuration + ",H15) -> Chassis with Up to 16X 2.5 SAS/SATA + 8X 2.5 NVME for 2CPU Configuration + Kit vSAN comprensivo di HBA 355 e BOSS Card | D15: =VLOOKUP(L15,Tabella_prezzi!$A$2:$L$73,8,FALSE) -> Kit vSAN comprensivo di HBA 355 in sostituzione di quello Base e BOSS Card | G15: 1 | H15: =VLOOKUP(L15,Tabella_prezzi!$A$2:$L$73,9,FALSE) -> Kit vSAN comprensivo di HBA 355 e BOSS Card | I15: =VLOOKUP(L15,Tabella_Prezzi,10,FALSE) -> L4N113-Opz2CPU-vSAN-1TB | J15: =VLOOKUP(L15,Tabella_prezzi!$A$2:$L$73,4,FALSE) -> 1193.43 | K15: =VLOOKUP(L15,Tabella_Prezzi,6,FALSE) -> TS4L4-2CPU-vSAN-1TB | L15: L4N113 | M15: =VLOOKUP(L15,Tabella_prezzi!$A$2:$L$73,6,FALSE) -> TS4L4-2CPU-vSAN-1TB
A16: PowerEdge R7525 Server (vSAN Ready 2 TB RAM) | B16: Chassis with Up to 16X 2.5 SAS/SATA + 8X 2.5 NVME for 2CPU Configuration + Kit vSAN comprensivo di HBA 355 e BOSS Card | C16: Chassis with Up to 16X 2.5 SAS/SATA + 8X 2.5 NVME for 2CPU Configuration + Kit vSAN comprensivo di HBA 355 e BOSS Card | D16: =VLOOKUP(L16,Tabella_prezzi!$A$2:$L$73,8,FALSE) -> Kit vSAN comprensivo di HBA 355 in sostituzione di quello Base e BOSS Card | G16: 1 | H16: =VLOOKUP(L16,Tabella_prezzi!$A$2:$L$73,9,FALSE) -> Kit vSAN comprensivo di HBA 355 e BOSS Card | I16: =VLOOKUP(L16,Tabella_Prezzi,10,FALSE) -> L4N114-Opz2CPU-vSAN-2TB | J16: =VLOOKUP(L16,Tabella_prezzi!$A$2:$L$73,4,FALSE) -> 4028.4 | K16: =VLOOKUP(L16,Tabella_Prezzi,6,FALSE) -> TS4L4-2CPU-vSAN-2TB | L16: L4N114 | M16: =VLOOKUP(L16,Tabella_prezzi!$A$2:$L$73,6,FALSE) -> TS4L4-2CPU-vSAN-2TB
A17: PowerEdge R7525 Server (Nutanix Ready) | B17: Chassis with Up to 16X 2.5 SAS/SATA + 8X 2.5 NVME for 2CPU Configuration + Kit Nutanix comprensivo di HBA 355, BOSS Card e scheda Lan 10 GB | C17: Chassis with Up to 16X 2.5 SAS/SATA + 8X 2.5 NVME for 2CPU Configuration + Kit Nutanix comprensivo di HBA 355, BOSS Card e scheda Lan 10 GB | D17: =VLOOKUP(L17,Tabella_prezzi!$A$2:$L$73,8,FALSE) -> Kit Nutanix comprensivo di HBA 355 in sostituzione di quello Base, BOSS Card e scheda Lan 10 GB | G17: 1 | H17: =VLOOKUP(L17,Tabella_prezzi!$A$2:$L$73,9,FALSE) -> Kit Nutanix comprensivo di HBA 355, BOSS Card e scheda Lan 10 GB | I17: =VLOOKUP(L17,Tabella_Prezzi,10,FALSE) -> L4N115-Opz2CPU-NUT | J17: =VLOOKUP(L17,Tabella_prezzi!$A$2:$L$73,4,FALSE) -> 4290.46 | K17: =VLOOKUP(L17,Tabella_Prezzi,6,FALSE) -> TS4L4-2CPU-NUT | L17: L4N115 | M17: =VLOOKUP(L17,Tabella_prezzi!$A$2:$L$73,6,FALSE) -> TS4L4-2CPU-NUT
A18: PowerEdge R7525 Server (GPU Ready) | B18: =CONCATENATE("Chassis with Up to 16X 2.5 SAS/SATA + 8X 2.5 NVME for 2CPU Configuration + ",H18) -> Chassis with Up to 16X 2.5 SAS/SATA + 8X 2.5 NVME for 2CPU Configuration + Kit GPU Ready (Include il necessario a poter montare GPU su slot PCI Max 3 GPU, Acquisto contestuale all'ordine) | C18: =CONCATENATE("Chassis with Up to 16X 2.5 SAS/SATA + 8X 2.5 NVME for 2CPU Configuration + ",H18) -> Chassis with Up to 16X 2.5 SAS/SATA + 8X 2.5 NVME for 2CPU Configuration + Kit GPU Ready (Include il necessario a poter montare GPU su slot PCI Max 3 GPU, Acquisto contestuale all'ordine) | D18: =VLOOKUP(L18,Tabella_prezzi!$A$2:$L$84,8,FALSE) -> Kit GPU Ready (Include il necessario a poter montare GPU su slot PCI Max 3 GPU, Acquisto contestuale all'ordine) | G18: 1 | H18: =VLOOKUP(L18,Tabella_prezzi!$A$2:$L$84,9,FALSE) -> Kit GPU Ready (Include il necessario a poter montare GPU su slot PCI Max 3 GPU, Acquisto contestuale all'ordine) | I18: TS4L4-2CPU-GPUReady | J18: =VLOOKUP(L18,Tabella_prezzi!$A$2:$L$84,4,FALSE) -> 4807.22 | K18: =VLOOKUP(L18,Tabella_Prezzi,6,FALSE) -> TS4L4-2CPU-GPUReady | L18: L4N126 | M18: =VLOOKUP(L18,Tabella_prezzi!$A$2:$L$84,6,FALSE) -> TS4L4-2CPU-GPUReady
A19: TS4L4_CPU
A20: No Additional Processor | G20: ="" ->  | I20: ="" ->  | L20: ="" ->  | M20: ="" -> 
A21: AMD7413 2.65GHz,24C/48T,128M,180W,3200CK | D21: =VLOOKUP(L21,Tabella_prezzi!$A$2:$L$73,8,FALSE) -> AMD 7413 2.65GHz,24C/48T,128M,180W,3200 | G21: 1 | H21: =VLOOKUP(L21,Tabella_prezzi!$A$2:$L$73,9,FALSE) -> AMD 7413 2.65GHz,24C/48T,128M,180W,3200 | I21: =VLOOKUP(L21,Tabella_prezzi!$A$2:$L$73,3,FALSE) -> Kit n. 1 Processore aggiuntivo | J21: =VLOOKUP(L21,Tabella_prezzi!$A$2:$L$73,4,FALSE) -> 858.53 | L21: L4N02 | M21: =VLOOKUP(L21,Tabella_prezzi!$A$2:$L$73,6,FALSE) -> TS4L4-CPU
A23: TS4L4_RAM (1CPU)
A24: 256 | B24: Memory Capacity | D24: =D25 -> 32GB - 2Rx4 DDR4 RDIMM 3200MHz | F24: 370-AEVP | G24: 0 | H24: =H25 -> 32GB - 2Rx4 DDR4 RDIMM 3200MHz | L24: ="" ->  | M24: =M25 -> TS4L4-RAM32
A25: =(32*G25)+256 -> 384 | B25: Memory Capacity | D25: =VLOOKUP(L25,Tabella_prezzi!$A$2:$L$73,8,FALSE) -> 32GB - 2Rx4 DDR4 RDIMM 3200MHz | F25: 370-AEVP | G25: 4 | H25: =VLOOKUP(L25,Tabella_prezzi!$A$2:$L$73,9,FALSE) -> 32GB - 2Rx4 DDR4 RDIMM 3200MHz | I25: =VLOOKUP(L25,Tabella_prezzi!$A$2:$L$73,3,FALSE) -> OpzRAM32GB | J25: =VLOOKUP(L25,Tabella_prezzi!$A$2:$L$73,4,FALSE)*G25 -> 1048.48 | L25: L4N03 | M25: =VLOOKUP(L25,Tabella_prezzi!$A$2:$L$73,6,FALSE) -> TS4L4-RAM32
A26: =(32*G26)+256 -> 448 | B26: Memory Capacity | D26: =VLOOKUP(L26,Tabella_prezzi!$A$2:$L$73,8,FALSE) -> 32GB - 2Rx4 DDR4 RDIMM 3200MHz | F26: 370-AEVP | G26: 6 | H26: =VLOOKUP(L26,Tabella_prezzi!$A$2:$L$73,9,FALSE) -> 32GB - 2Rx4 DDR4 RDIMM 3200MHz | I26: =VLOOKUP(L26,Tabella_prezzi!$A$2:$L$73,3,FALSE) -> OpzRAM32GB | J26: =VLOOKUP(L26,Tabella_prezzi!$A$2:$L$73,4,FALSE)*G26 -> 1572.72 | L26: L4N03 | M26: =VLOOKUP(L26,Tabella_prezzi!$A$2:$L$73,6,FALSE) -> TS4L4-RAM32
A27: 512 | B27: Memory Capacity | D27: =VLOOKUP(L27,Tabella_prezzi!$A$2:$L$73,8,FALSE) -> 32GB - 2Rx4 DDR4 RDIMM 3200MHz | F27: 370-AEVP | G27: 8 | H27: =VLOOKUP(L27,Tabella_prezzi!$A$2:$L$73,9,FALSE) -> 32GB - 2Rx4 DDR4 RDIMM 3200MHz | I27: =VLOOKUP(L27,Tabella_prezzi!$A$2:$L$73,3,FALSE) -> OpzRAM32GB | J27: =VLOOKUP(L27,Tabella_prezzi!$A$2:$L$73,4,FALSE)*G27 -> 2096.96 | L27: L4N03 | M27: =VLOOKUP(L27,Tabella_prezzi!$A$2:$L$73,6,FALSE) -> TS4L4-RAM32
A28: 576 | B28: Memory Capacity | D28: =VLOOKUP(L28,Tabella_prezzi!$A$2:$L$73,8,FALSE) -> 32GB - 2Rx4 DDR4 RDIMM 3200MHz | F28: 370-AEVP | G28: 10 | H28: =VLOOKUP(L28,Tabella_prezzi!$A$2:$L$73,9,FALSE) -> 32GB - 2Rx4 DDR4 RDIMM 3200MHz | I28: =VLOOKUP(L28,Tabella_prezzi!$A$2:$L$73,3,FALSE) -> OpzRAM32GB | J28: =VLOOKUP(L28,Tabella_prezzi!$A$2:$L$73,4,FALSE)*G28 -> 2621.2 | L28: L4N03 | M28: =VLOOKUP(L28,Tabella_prezzi!$A$2:$L$73,6,FALSE) -> TS4L4-RAM32
A29: 640 | B29: Memory Capacity | D29: =VLOOKUP(L29,Tabella_prezzi!$A$2:$L$73,8,FALSE) -> 32GB - 2Rx4 DDR4 RDIMM 3200MHz | F29: 370-AEVP | G29: 12 | H29: =VLOOKUP(L29,Tabella_prezzi!$A$2:$L$73,9,FALSE) -> 32GB - 2Rx4 DDR4 RDIMM 3200MHz | I29: =VLOOKUP(L29,Tabella_prezzi!$A$2:$L$73,3,FALSE) -> OpzRAM32GB | J29: =VLOOKUP(L29,Tabella_prezzi!$A$2:$L$73,4,FALSE)*G29 -> 3145.44 | L29: L4N03 | M29: =VLOOKUP(L29,Tabella_prezzi!$A$2:$L$73,6,FALSE) -> TS4L4-RAM32
A30: 704 | B30: Memory Capacity | D30: =VLOOKUP(L30,Tabella_prezzi!$A$2:$L$73,8,FALSE) -> 32GB - 2Rx4 DDR4 RDIMM 3200MHz | F30: 370-AEVP | G30: 14 | H30: =VLOOKUP(L30,Tabella_prezzi!$A$2:$L$73,9,FALSE) -> 32GB - 2Rx4 DDR4 RDIMM 3200MHz | I30: =VLOOKUP(L30,Tabella_prezzi!$A$2:$L$73,3,FALSE) -> OpzRAM32GB | J30: =VLOOKUP(L30,Tabella_prezzi!$A$2:$L$73,4,FALSE)*G30 -> 3669.68 | L30: L4N03 | M30: =VLOOKUP(L30,Tabella_prezzi!$A$2:$L$73,6,FALSE) -> TS4L4-RAM32
A31: 768 | B31: Memory Capacity | D31: =VLOOKUP(L31,Tabella_prezzi!$A$2:$L$73,8,FALSE) -> 32GB - 2Rx4 DDR4 RDIMM 3200MHz | F31: 370-AEVP | G31: 16 | H31: =VLOOKUP(L31,Tabella_prezzi!$A$2:$L$73,9,FALSE) -> 32GB - 2Rx4 DDR4 RDIMM 3200MHz | I31: =VLOOKUP(L31,Tabella_prezzi!$A$2:$L$73,3,FALSE) -> OpzRAM32GB | J31: =VLOOKUP(L31,Tabella_prezzi!$A$2:$L$73,4,FALSE)*G31 -> 4193.92 | L31: L4N03 | M31: =VLOOKUP(L31,Tabella_prezzi!$A$2:$L$73,6,FALSE) -> TS4L4-RAM32
A32: 832 | B32: Memory Capacity | D32: =VLOOKUP(L32,Tabella_prezzi!$A$2:$L$73,8,FALSE) -> 32GB - 2Rx4 DDR4 RDIMM 3200MHz | F32: 370-AEVP | G32: 18 | H32: =VLOOKUP(L32,Tabella_prezzi!$A$2:$L$73,9,FALSE) -> 32GB - 2Rx4 DDR4 RDIMM 3200MHz | I32: =VLOOKUP(L32,Tabella_prezzi!$A$2:$L$73,3,FALSE) -> OpzRAM32GB | J32: =VLOOKUP(L32,Tabella_prezzi!$A$2:$L$73,4,FALSE)*G32 -> 4718.16 | L32: L4N03 | M32: =VLOOKUP(L32,Tabella_prezzi!$A$2:$L$73,6,FALSE) -> TS4L4-RAM32
A33: 896 | B33: Memory Capacity | D33: =VLOOKUP(L33,Tabella_prezzi!$A$2:$L$73,8,FALSE) -> 32GB - 2Rx4 DDR4 RDIMM 3200MHz | F33: 370-AEVP | G33: 20 | H33: =VLOOKUP(L33,Tabella_prezzi!$A$2:$L$73,9,FALSE) -> 32GB - 2Rx4 DDR4 RDIMM 3200MHz | I33: =VLOOKUP(L33,Tabella_prezzi!$A$2:$L$73,3,FALSE) -> OpzRAM32GB | J33: =VLOOKUP(L33,Tabella_prezzi!$A$2:$L$73,4,FALSE)*G33 -> 5242.4 | L33: L4N03 | M33: =VLOOKUP(L33,Tabella_prezzi!$A$2:$L$73,6,FALSE) -> TS4L4-RAM32
A34: 960 | B34: Memory Capacity | D34: =VLOOKUP(L34,Tabella_prezzi!$A$2:$L$73,8,FALSE) -> 32GB - 2Rx4 DDR4 RDIMM 3200MHz | F34: 370-AEVP | G34: 22 | H34: =VLOOKUP(L34,Tabella_prezzi!$A$2:$L$73,9,FALSE) -> 32GB - 2Rx4 DDR4 RDIMM 3200MHz | I34: =VLOOKUP(L34,Tabella_prezzi!$A$2:$L$73,3,FALSE) -> OpzRAM32GB | J34: =VLOOKUP(L34,Tabella_prezzi!$A$2:$L$73,4,FALSE)*G34 -> 5766.64 | L34: L4N03 | M34: =VLOOKUP(L34,Tabella_prezzi!$A$2:$L$73,6,FALSE) -> TS4L4-RAM32
A35: 1024 | B35: Memory Capacity | D35: =VLOOKUP(L35,Tabella_prezzi!$A$2:$L$73,8,FALSE) -> 32GB - 2Rx4 DDR4 RDIMM 3200MHz | F35: 370-AEVP | G35: 24 | H35: =VLOOKUP(L35,Tabella_prezzi!$A$2:$L$73,9,FALSE) -> 32GB - 2Rx4 DDR4 RDIMM 3200MHz | I35: =VLOOKUP(L35,Tabella_prezzi!$A$2:$L$73,3,FALSE) -> OpzRAM32GB | J35: =VLOOKUP(L35,Tabella_prezzi!$A$2:$L$73,4,FALSE)*G35 -> 6290.88 | L35: L4N03 | M35: =VLOOKUP(L35,Tabella_prezzi!$A$2:$L$73,6,FALSE) -> TS4L4-RAM32
A36: 1088 | B36: Memory Capacity | D36: =VLOOKUP(L36,Tabella_prezzi!$A$2:$L$73,8,FALSE) -> 32GB - 2Rx4 DDR4 RDIMM 3200MHz | F36: 370-AEVP | G36: 26 | H36: =VLOOKUP(L36,Tabella_prezzi!$A$2:$L$73,9,FALSE) -> 32GB - 2Rx4 DDR4 RDIMM 3200MHz | I36: =VLOOKUP(L36,Tabella_prezzi!$A$2:$L$73,3,FALSE) -> OpzRAM32GB | J36: =VLOOKUP(L36,Tabella_prezzi!$A$2:$L$73,4,FALSE)*G36 -> 6815.12 | L36: L4N03 | M36: =VLOOKUP(L36,Tabella_prezzi!$A$2:$L$73,6,FALSE) -> TS4L4-RAM32
A37: 1152 | B37: Memory Capacity | D37: =VLOOKUP(L37,Tabella_prezzi!$A$2:$L$73,8,FALSE) -> 32GB - 2Rx4 DDR4 RDIMM 3200MHz | F37: 370-AEVP | G37: 28 | H37: =VLOOKUP(L37,Tabella_prezzi!$A$2:$L$73,9,FALSE) -> 32GB - 2Rx4 DDR4 RDIMM 3200MHz | I37: =VLOOKUP(L37,Tabella_prezzi!$A$2:$L$73,3,FALSE) -> OpzRAM32GB | J37: =VLOOKUP(L37,Tabella_prezzi!$A$2:$L$73,4,FALSE)*G37 -> 7339.36 | L37: L4N03 | M37: =VLOOKUP(L37,Tabella_prezzi!$A$2:$L$73,6,FALSE) -> TS4L4-RAM32
A38: =(64*G38) -> 2048 | B38: Memory Capacity | D38: =VLOOKUP(L38,Tabella_prezzi!$A$2:$L$73,8,FALSE) -> 64GB - 2RX4 DDR4 RDIMM 3200MHz | F38: 370-AEVP | G38: 32 | H38: =VLOOKUP(L38,Tabella_prezzi!$A$2:$L$73,9,FALSE) -> 64GB - 2RX4 DDR4 RDIMM 3200MHz | I38: =VLOOKUP(L38,Tabella_prezzi!$A$2:$L$73,3,FALSE) -> OpzRAM64GB | J38: 0 | L38: L4N04 | M38: =VLOOKUP(L38,Tabella_prezzi!$A$2:$L$73,6,FALSE) -> TS4L4-RAM64
A39: TS4L4_RAM (vSAN)
A40: =(32*G40)+256 -> 512 | B40: Memory Capacity | D40: =D41 -> 32GB - 2Rx4 DDR4 RDIMM 3200MHz | F40: 370-AEVP | G40: 8 | H40: =H41 -> 32GB - 2Rx4 DDR4 RDIMM 3200MHz | I40: =VLOOKUP(L40,Tabella_prezzi!$A$2:$L$73,3,FALSE) -> OpzRAM32GB | J40: =VLOOKUP(L40,Tabella_prezzi!$A$2:$L$73,4,FALSE)*G40 -> 2096.96 | L40: L4N03 | M40: =M41 -> TS4L4-RAM32
A41: =(32*G41)+256 -> 1024 | B41: Memory Capacity | D41: =VLOOKUP(L41,Tabella_prezzi!$A$2:$L$73,8,FALSE) -> 32GB - 2Rx4 DDR4 RDIMM 3200MHz | F41: 370-AEVP | G41: 24 | H41: =VLOOKUP(L41,Tabella_prezzi!$A$2:$L$73,9,FALSE) -> 32GB - 2Rx4 DDR4 RDIMM 3200MHz | I41: =VLOOKUP(L41,Tabella_prezzi!$A$2:$L$73,3,FALSE) -> OpzRAM32GB | J41: =VLOOKUP(L41,Tabella_prezzi!$A$2:$L$73,4,FALSE)*G41 -> 6290.88 | L41: L4N03 | M41: =VLOOKUP(L41,Tabella_prezzi!$A$2:$L$73,6,FALSE) -> TS4L4-RAM32
A42: =(64*G42) -> 2048 | B42: Memory Capacity | D42: =VLOOKUP(L42,Tabella_prezzi!$A$2:$L$73,8,FALSE) -> 64GB - 2RX4 DDR4 RDIMM 3200MHz | F42: 370-AEVP | G42: 32 | H42: =VLOOKUP(L42,Tabella_prezzi!$A$2:$L$73,9,FALSE) -> 64GB - 2RX4 DDR4 RDIMM 3200MHz | I42: =VLOOKUP(L42,Tabella_prezzi!$A$2:$L$73,3,FALSE) -> OpzRAM64GB | J42: =VLOOKUP(L42,Tabella_prezzi!$A$2:$L$73,4,FALSE)*G42 -> 9502.08 | L42: L4N04 | M42: =VLOOKUP(L42,Tabella_prezzi!$A$2:$L$73,6,FALSE) -> TS4L4-RAM64
A43: TS4L4_RAM (2CPU)
A44: 256 | B44: Memory Capacity | D44: =VLOOKUP(L44,Tabella_prezzi!$A$2:$L$73,8,FALSE) -> 32GB - 2Rx4 DDR4 RDIMM 3200MHz | F44: 370-AEVP | G44: 0 | H44: =VLOOKUP(L44,Tabella_prezzi!$A$2:$L$73,9,FALSE) -> 32GB - 2Rx4 DDR4 RDIMM 3200MHz | I44: =VLOOKUP(L44,Tabella_prezzi!$A$2:$L$73,3,FALSE) -> OpzRAM32GB | J44: =VLOOKUP(L44,Tabella_prezzi!$A$2:$L$73,4,FALSE)*G44 -> 0 | L44: L4N03 | M44: =VLOOKUP(L44,Tabella_prezzi!$A$2:$L$73,6,FALSE) -> TS4L4-RAM32
A45: =(32*G45)+256 -> 384 | B45: Memory Capacity | D45: =VLOOKUP(L45,Tabella_prezzi!$A$2:$L$73,8,FALSE) -> 32GB - 2Rx4 DDR4 RDIMM 3200MHz | F45: 370-AEVP | G45: 4 | H45: =VLOOKUP(L45,Tabella_prezzi!$A$2:$L$73,9,FALSE) -> 32GB - 2Rx4 DDR4 RDIMM 3200MHz | I45: =VLOOKUP(L45,Tabella_prezzi!$A$2:$L$73,3,FALSE) -> OpzRAM32GB | J45: =VLOOKUP(L45,Tabella_prezzi!$A$2:$L$73,4,FALSE)*G45 -> 1048.48 | L45: L4N03 | M45: =VLOOKUP(L45,Tabella_prezzi!$A$2:$L$73,6,FALSE) -> TS4L4-RAM32
A46: 448 | B46: Memory Capacity | D46: =VLOOKUP(L46,Tabella_prezzi!$A$2:$L$73,8,FALSE) -> 32GB - 2Rx4 DDR4 RDIMM 3200MHz | F46: 370-AEVP | G46: 6 | H46: =VLOOKUP(L46,Tabella_prezzi!$A$2:$L$73,9,FALSE) -> 32GB - 2Rx4 DDR4 RDIMM 3200MHz | I46: =VLOOKUP(L46,Tabella_prezzi!$A$2:$L$73,3,FALSE) -> OpzRAM32GB | J46: =VLOOKUP(L46,Tabella_prezzi!$A$2:$L$73,4,FALSE)*G46 -> 1572.72 | L46: L4N03 | M46: =VLOOKUP(L46,Tabella_prezzi!$A$2:$L$73,6,FALSE) -> TS4L4-RAM32
A47: 512 | B47: Memory Capacity | D47: =VLOOKUP(L47,Tabella_prezzi!$A$2:$L$73,8,FALSE) -> 32GB - 2Rx4 DDR4 RDIMM 3200MHz | F47: 370-AEVP | G47: 8 | H47: =VLOOKUP(L47,Tabella_prezzi!$A$2:$L$73,9,FALSE) -> 32GB - 2Rx4 DDR4 RDIMM 3200MHz | I47: =VLOOKUP(L47,Tabella_prezzi!$A$2:$L$73,3,FALSE) -> OpzRAM32GB | J47: =VLOOKUP(L47,Tabella_prezzi!$A$2:$L$73,4,FALSE)*G47 -> 2096.96 | L47: L4N03 | M47: =VLOOKUP(L47,Tabella_prezzi!$A$2:$L$73,6,FALSE) -> TS4L4-RAM32
A48: 576 | B48: Memory Capacity | D48: =VLOOKUP(L48,Tabella_prezzi!$A$2:$L$73,8,FALSE) -> 32GB - 2Rx4 DDR4 RDIMM 3200MHz | F48: 370-AEVP | G48: 10 | H48: =VLOOKUP(L48,Tabella_prezzi!$A$2:$L$73,9,FALSE) -> 32GB - 2Rx4 DDR4 RDIMM 3200MHz | I48: =VLOOKUP(L48,Tabella_prezzi!$A$2:$L$73,3,FALSE) -> OpzRAM32GB | J48: =VLOOKUP(L48,Tabella_prezzi!$A$2:$L$73,4,FALSE)*G48 -> 2621.2 | L48: L4N03 | M48: =VLOOKUP(L48,Tabella_prezzi!$A$2:$L$73,6,FALSE) -> TS4L4-RAM32
A49: 640 | B49: Memory Capacity | D49: =VLOOKUP(L49,Tabella_prezzi!$A$2:$L$73,8,FALSE) -> 32GB - 2Rx4 DDR4 RDIMM 3200MHz | F49: 370-AEVP | G49: 12 | H49: =VLOOKUP(L49,Tabella_prezzi!$A$2:$L$73,9,FALSE) -> 32GB - 2Rx4 DDR4 RDIMM 3200MHz | I49: =VLOOKUP(L49,Tabella_prezzi!$A$2:$L$73,3,FALSE) -> OpzRAM32GB | J49: =VLOOKUP(L49,Tabella_prezzi!$A$2:$L$73,4,FALSE)*G49 -> 3145.44 | L49: L4N03 | M49: =VLOOKUP(L49,Tabella_prezzi!$A$2:$L$73,6,FALSE) -> TS4L4-RAM32
A50: 704 | B50: Memory Capacity | D50: =VLOOKUP(L50,Tabella_prezzi!$A$2:$L$73,8,FALSE) -> 32GB - 2Rx4 DDR4 RDIMM 3200MHz | F50: 370-AEVP | G50: 14 | H50: =VLOOKUP(L50,Tabella_prezzi!$A$2:$L$73,9,FALSE) -> 32GB - 2Rx4 DDR4 RDIMM 3200MHz | I50: =VLOOKUP(L50,Tabella_prezzi!$A$2:$L$73,3,FALSE) -> OpzRAM32GB | J50: =VLOOKUP(L50,Tabella_prezzi!$A$2:$L$73,4,FALSE)*G50 -> 3669.68 | L50: L4N03 | M50: =VLOOKUP(L50,Tabella_prezzi!$A$2:$L$73,6,FALSE) -> TS4L4-RAM32
A51: 768 | B51: Memory Capacity | D51: =VLOOKUP(L51,Tabella_prezzi!$A$2:$L$73,8,FALSE) -> 32GB - 2Rx4 DDR4 RDIMM 3200MHz | F51: 370-AEVP | G51: 16 | H51: =VLOOKUP(L51,Tabella_prezzi!$A$2:$L$73,9,FALSE) -> 32GB - 2Rx4 DDR4 RDIMM 3200MHz | I51: =VLOOKUP(L51,Tabella_prezzi!$A$2:$L$73,3,FALSE) -> OpzRAM32GB | J51: =VLOOKUP(L51,Tabella_prezzi!$A$2:$L$73,4,FALSE)*G51 -> 4193.92 | L51: L4N03 | M51: =VLOOKUP(L51,Tabella_prezzi!$A$2:$L$73,6,FALSE) -> TS4L4-RAM32
A52: 832 | B52: Memory Capacity | D52: =VLOOKUP(L52,Tabella_prezzi!$A$2:$L$73,8,FALSE) -> 32GB - 2Rx4 DDR4 RDIMM 3200MHz | F52: 370-AEVP | G52: 18 | H52: =VLOOKUP(L52,Tabella_prezzi!$A$2:$L$73,9,FALSE) -> 32GB - 2Rx4 DDR4 RDIMM 3200MHz | I52: =VLOOKUP(L52,Tabella_prezzi!$A$2:$L$73,3,FALSE) -> OpzRAM32GB | J52: =VLOOKUP(L52,Tabella_prezzi!$A$2:$L$73,4,FALSE)*G52 -> 4718.16 | L52: L4N03 | M52: =VLOOKUP(L52,Tabella_prezzi!$A$2:$L$73,6,FALSE) -> TS4L4-RAM32
A53: 896 | B53: Memory Capacity | D53: =VLOOKUP(L53,Tabella_prezzi!$A$2:$L$73,8,FALSE) -> 32GB - 2Rx4 DDR4 RDIMM 3200MHz | F53: 370-AEVP | G53: 20 | H53: =VLOOKUP(L53,Tabella_prezzi!$A$2:$L$73,9,FALSE) -> 32GB - 2Rx4 DDR4 RDIMM 3200MHz | I53: =VLOOKUP(L53,Tabella_prezzi!$A$2:$L$73,3,FALSE) -> OpzRAM32GB | J53: =VLOOKUP(L53,Tabella_prezzi!$A$2:$L$73,4,FALSE)*G53 -> 5242.4 | L53: L4N03 | M53: =VLOOKUP(L53,Tabella_prezzi!$A$2:$L$73,6,FALSE) -> TS4L4-RAM32
A54: 960 | B54: Memory Capacity | D54: =VLOOKUP(L54,Tabella_prezzi!$A$2:$L$73,8,FALSE) -> 32GB - 2Rx4 DDR4 RDIMM 3200MHz | F54: 370-AEVP | G54: 22 | H54: =VLOOKUP(L54,Tabella_prezzi!$A$2:$L$73,9,FALSE) -> 32GB - 2Rx4 DDR4 RDIMM 3200MHz | I54: =VLOOKUP(L54,Tabella_prezzi!$A$2:$L$73,3,FALSE) -> OpzRAM32GB | J54: =VLOOKUP(L54,Tabella_prezzi!$A$2:$L$73,4,FALSE)*G54 -> 5766.64 | L54: L4N03 | M54: =VLOOKUP(L54,Tabella_prezzi!$A$2:$L$73,6,FALSE) -> TS4L4-RAM32
A55: 1024 | B55: Memory Capacity | D55: =VLOOKUP(L55,Tabella_prezzi!$A$2:$L$73,8,FALSE) -> 32GB - 2Rx4 DDR4 RDIMM 3200MHz | F55: 370-AEVP | G55: 24 | H55: =VLOOKUP(L55,Tabella_prezzi!$A$2:$L$73,9,FALSE) -> 32GB - 2Rx4 DDR4 RDIMM 3200MHz | I55: =VLOOKUP(L55,Tabella_prezzi!$A$2:$L$73,3,FALSE) -> OpzRAM32GB | J55: =VLOOKUP(L55,Tabella_prezzi!$A$2:$L$73,4,FALSE)*G55 -> 6290.88 | L55: L4N03 | M55: =VLOOKUP(L55,Tabella_prezzi!$A$2:$L$73,6,FALSE) -> TS4L4-RAM32
A56: =(G56)*64 -> 1152 | B56: Memory Capacity | D56: =VLOOKUP(L56,Tabella_prezzi!$A$2:$L$73,8,FALSE) -> 64GB - 2RX4 DDR4 RDIMM 3200MHz | F56: 370-AEVP | G56: 18 | H56: =VLOOKUP(L56,Tabella_prezzi!$A$2:$L$73,9,FALSE) -> 64GB - 2RX4 DDR4 RDIMM 3200MHz | I56: =VLOOKUP(L56,Tabella_prezzi!$A$2:$L$73,3,FALSE) -> OpzRAM64GB | J56: =VLOOKUP(L56,Tabella_prezzi!$A$2:$L$73,4,FALSE)*(G56) -> 5344.92 | L56: L4N04 | M56: =VLOOKUP(L56,Tabella_prezzi!$A$2:$L$73,6,FALSE) -> TS4L4-RAM64
A57: =(G57)*64 -> 1280 | B57: Memory Capacity | D57: =VLOOKUP(L57,Tabella_prezzi!$A$2:$L$73,8,FALSE) -> 64GB - 2RX4 DDR4 RDIMM 3200MHz | F57: 370-AEVP | G57: 20 | H57: =VLOOKUP(L57,Tabella_prezzi!$A$2:$L$73,9,FALSE) -> 64GB - 2RX4 DDR4 RDIMM 3200MHz | I57: =VLOOKUP(L57,Tabella_prezzi!$A$2:$L$73,3,FALSE) -> OpzRAM64GB | J57: =VLOOKUP(L57,Tabella_prezzi!$A$2:$L$73,4,FALSE)*(G57) -> 5938.8 | L57: L4N04 | M57: =VLOOKUP(L57,Tabella_prezzi!$A$2:$L$73,6,FALSE) -> TS4L4-RAM64
A58: 1408 | B58: Memory Capacity | D58: =VLOOKUP(L58,Tabella_prezzi!$A$2:$L$73,8,FALSE) -> 64GB - 2RX4 DDR4 RDIMM 3200MHz | F58: 370-AEVP | G58: 22 | H58: =VLOOKUP(L58,Tabella_prezzi!$A$2:$L$73,9,FALSE) -> 64GB - 2RX4 DDR4 RDIMM 3200MHz | I58: =VLOOKUP(L58,Tabella_prezzi!$A$2:$L$73,3,FALSE) -> OpzRAM64GB | J58: =VLOOKUP(L58,Tabella_prezzi!$A$2:$L$73,4,FALSE)*(G58) -> 6532.68 | L58: L4N04 | M58: =VLOOKUP(L58,Tabella_prezzi!$A$2:$L$73,6,FALSE) -> TS4L4-RAM64
A59: 1536 | B59: Memory Capacity | D59: =VLOOKUP(L59,Tabella_prezzi!$A$2:$L$73,8,FALSE) -> 64GB - 2RX4 DDR4 RDIMM 3200MHz | F59: 370-AEVP | G59: 24 | H59: =VLOOKUP(L59,Tabella_prezzi!$A$2:$L$73,9,FALSE) -> 64GB - 2RX4 DDR4 RDIMM 3200MHz | I59: =VLOOKUP(L59,Tabella_prezzi!$A$2:$L$73,3,FALSE) -> OpzRAM64GB | J59: =VLOOKUP(L59,Tabella_prezzi!$A$2:$L$73,4,FALSE)*(G59) -> 7126.56 | L59: L4N04 | M59: =VLOOKUP(L59,Tabella_prezzi!$A$2:$L$73,6,FALSE) -> TS4L4-RAM64
A60: 1664 | B60: Memory Capacity | D60: =VLOOKUP(L60,Tabella_prezzi!$A$2:$L$73,8,FALSE) -> 64GB - 2RX4 DDR4 RDIMM 3200MHz | F60: 370-AEVP | G60: 26 | H60: =VLOOKUP(L60,Tabella_prezzi!$A$2:$L$73,9,FALSE) -> 64GB - 2RX4 DDR4 RDIMM 3200MHz | I60: =VLOOKUP(L60,Tabella_prezzi!$A$2:$L$73,3,FALSE) -> OpzRAM64GB | J60: =VLOOKUP(L60,Tabella_prezzi!$A$2:$L$73,4,FALSE)*G60 -> 7720.44 | L60: L4N04 | M60: =VLOOKUP(L60,Tabella_prezzi!$A$2:$L$73,6,FALSE) -> TS4L4-RAM64
A61: 1792 | B61: Memory Capacity | D61: =VLOOKUP(L61,Tabella_prezzi!$A$2:$L$73,8,FALSE) -> 64GB - 2RX4 DDR4 RDIMM 3200MHz | F61: 370-AEVP | G61: 28 | H61: =VLOOKUP(L61,Tabella_prezzi!$A$2:$L$73,9,FALSE) -> 64GB - 2RX4 DDR4 RDIMM 3200MHz | I61: =VLOOKUP(L61,Tabella_prezzi!$A$2:$L$73,3,FALSE) -> OpzRAM64GB | J61: =VLOOKUP(L61,Tabella_prezzi!$A$2:$L$73,4,FALSE)*(G61) -> 8314.32 | L61: L4N04 | M61: =VLOOKUP(L61,Tabella_prezzi!$A$2:$L$73,6,FALSE) -> TS4L4-RAM64
A62: 1920 | B62: Memory Capacity | D62: =VLOOKUP(L62,Tabella_prezzi!$A$2:$L$73,8,FALSE) -> 64GB - 2RX4 DDR4 RDIMM 3200MHz | F62: 370-AEVP | G62: 30 | H62: =VLOOKUP(L62,Tabella_prezzi!$A$2:$L$73,9,FALSE) -> 64GB - 2RX4 DDR4 RDIMM 3200MHz | I62: =VLOOKUP(L62,Tabella_prezzi!$A$2:$L$73,3,FALSE) -> OpzRAM64GB | J62: =VLOOKUP(L62,Tabella_prezzi!$A$2:$L$73,4,FALSE)*(G62) -> 8908.2 | L62: L4N04 | M62: =VLOOKUP(L62,Tabella_prezzi!$A$2:$L$73,6,FALSE) -> TS4L4-RAM64
A63: 2048 | B63: Memory Capacity | D63: =VLOOKUP(L63,Tabella_prezzi!$A$2:$L$73,8,FALSE) -> 64GB - 2RX4 DDR4 RDIMM 3200MHz | F63: 370-AEVP | G63: 32 | H63: =VLOOKUP(L63,Tabella_prezzi!$A$2:$L$73,9,FALSE) -> 64GB - 2RX4 DDR4 RDIMM 3200MHz | I63: =VLOOKUP(L63,Tabella_prezzi!$A$2:$L$73,3,FALSE) -> OpzRAM64GB | J63: =VLOOKUP(L63,Tabella_prezzi!$A$2:$L$73,4,FALSE)*(G63) -> 9502.08 | L63: L4N04 | M63: =VLOOKUP(L63,Tabella_prezzi!$A$2:$L$73,6,FALSE) -> TS4L4-RAM64
A64: 1 | B64: 2 | C64: 3 | D64: 4 | E64: 5 | F64: 6 | G64: 7 | H64: 8 | I64: 9 | J64: 10 | K64: 11 | L64: 12 | M64: 13 | N64: 14 | O64: 15 | P64: 16 | Q64: 17 | R64: 18 | S64: 19 | T64: 20 | U64: 21 | V64: 22 | W64: 23
A66: TS4L4_OS
A67: No Operating System | B67: Operating System | G67: 0 | I67: ="" ->  | L67: ="" ->  | M67: ="" ->  | N67: 0 | P67: ="" ->  | Q67: ="" ->  | S67: 0 | T67: 0 | W67: ="" -> 
A68: =D68 -> Ubuntu 22.04 LTS 64 Bit | B68: Operating System | D68: =VLOOKUP(L68,Tabella_prezzi!$A$2:$L$73,9,FALSE) -> Ubuntu 22.04 LTS 64 Bit | G68: 1 | H68: =VLOOKUP(L68,Tabella_prezzi!$A$2:$L$73,9,FALSE) -> Ubuntu 22.04 LTS 64 Bit | I68: =VLOOKUP(L68,Tabella_prezzi!$A$2:$L$73,3,FALSE) -> OpzOpenSource | J68: =VLOOKUP(L68,Tabella_prezzi!$A$2:$L$73,4,FALSE) -> 37.12 | L68: L4N26 | M68: =VLOOKUP(L68,Tabella_prezzi!$A$2:$L$73,6,FALSE) -> TS4L4-LINUX | N68: 16 | O68: =VLOOKUP(T68,Tabella_prezzi!$A$2:$L$73,9,FALSE) -> 1-pack of Windows Server 2022/2019 Device CALs (STD or DC) | P68: =VLOOKUP(T68,Tabella_prezzi!$A$2:$L$73,3,FALSE) -> OpzDeviceCal | Q68: =VLOOKUP(T68,Tabella_prezzi!$A$2:$L$73,4,FALSE)*N68 -> 427.52 | S68: 6 | T68: L4N23 | U68: =VLOOKUP(T68,Tabella_prezzi!$A$2:$L$73,4,FALSE)*S68 -> 160.32 | W68: =VLOOKUP(T68,Tabella_prezzi!$A$2:$L$73,6,FALSE) -> TS4L4-WINDEVCAL
A69: Windows Server 2022,Standard,ROK,16CORE | B69: Operating System | D69: =VLOOKUP(L69,Tabella_prezzi!$A$2:$L$73,9,FALSE) -> Windows Server 2022,Standard,ROK,16CORE | G69: 1 | H69: =VLOOKUP(L69,Tabella_prezzi!$A$2:$L$73,9,FALSE) -> Windows Server 2022,Standard,ROK,16CORE | I69: =VLOOKUP(L69,Tabella_prezzi!$A$2:$L$73,3,FALSE) -> OpzWinServSTD | J69: =VLOOKUP(L69,Tabella_prezzi!$A$2:$L$73,4,FALSE) -> 795.78 | L69: L4N22 | M69: =VLOOKUP(L69,Tabella_prezzi!$A$2:$L$73,6,FALSE) -> TS4L4-WINSRVSTD | N69: 16 | O69: =VLOOKUP(T69,Tabella_prezzi!$A$2:$L$73,9,FALSE) -> 1-pack of Windows Server 2022/2019 Device CALs (STD or DC) | P69: =VLOOKUP(T69,Tabella_prezzi!$A$2:$L$73,3,FALSE) -> OpzDeviceCal | Q69: =VLOOKUP(T69,Tabella_prezzi!$A$2:$L$73,4,FALSE)*N69 -> 427.52 | S69: 6 | T69: L4N23 | U69: =VLOOKUP(T69,Tabella_prezzi!$A$2:$L$73,4,FALSE)*S69 -> 160.32 | W69: =VLOOKUP(T69,Tabella_prezzi!$A$2:$L$73,6,FALSE) -> TS4L4-WINDEVCAL
A70: Windows Server 2022 Standard Edition, Add License,2CORE | B70: Operating System | D70: =VLOOKUP(L70,Tabella_prezzi!$A$2:$L$73,9,FALSE) -> Windows Server 2022 Standard Edition, Add License,2CORE | G70: 1 | H70: =VLOOKUP(L70,Tabella_prezzi!$A$2:$L$73,9,FALSE) -> Windows Server 2022 Standard Edition, Add License,2CORE | I70: =VLOOKUP(L70,Tabella_prezzi!$A$2:$L$73,3,FALSE) -> OpzWinServSTD2core | J70: =VLOOKUP(L70,Tabella_prezzi!$A$2:$L$73,4,FALSE) -> 96.51 | L70: L4N25 | M70: =VLOOKUP(L70,Tabella_prezzi!$A$2:$L$73,6,FALSE) -> TS4L4-WINSRV2C | N70: 16 | O70: =VLOOKUP(T70,Tabella_prezzi!$A$2:$L$73,9,FALSE) -> 1-pack of Windows Server 2022/2019 Device CALs (STD or DC) | P70: =VLOOKUP(T70,Tabella_prezzi!$A$2:$L$73,3,FALSE) -> OpzDeviceCal | Q70: =VLOOKUP(T70,Tabella_prezzi!$A$2:$L$73,4,FALSE)*N70 -> 427.52 | S70: 6 | T70: L4N23 | U70: =VLOOKUP(T70,Tabella_prezzi!$A$2:$L$73,4,FALSE)*S70 -> 160.32 | W70: =VLOOKUP(T70,Tabella_prezzi!$A$2:$L$73,6,FALSE) -> TS4L4-WINDEVCAL
A71: Windows Server 2022 / 2019 Datacenter Edition,Add License,2CORE | B71: Operating System | D71: =VLOOKUP(L71,Tabella_prezzi!$A$2:$L$73,9,FALSE) -> Windows Server 2022 / 2019 Datacenter Edition,Add License,2CORE | G71: 1 | H71: =VLOOKUP(L71,Tabella_prezzi!$A$2:$L$73,9,FALSE) -> Windows Server 2022 / 2019 Datacenter Edition,Add License,2CORE | I71: =VLOOKUP(L71,Tabella_prezzi!$A$2:$L$73,3,FALSE) -> OpzWinServDC2core | J71: =VLOOKUP(L71,Tabella_prezzi!$A$2:$L$73,4,FALSE) -> 460.51 | L71: L4N28 | M71: =VLOOKUP(L71,Tabella_prezzi!$A$2:$L$73,6,FALSE) -> TS4L4-WinServDC2core | N71: 20 | O71: =VLOOKUP(T71,Tabella_prezzi!$A$2:$L$73,9,FALSE) -> 1-pack of Windows Server 2022/2019 User CALs (STD or DC) | P71: =VLOOKUP(T71,Tabella_prezzi!$A$2:$L$73,3,FALSE) -> OpzUserCal | Q71: =VLOOKUP(T71,Tabella_prezzi!$A$2:$L$73,4,FALSE)*N71 -> 735 | S71: 6 | T71: L4N24 | V71: =VLOOKUP(T71,Tabella_prezzi!$A$2:$L$73,4,FALSE)*S71 -> 220.5 | W71: =VLOOKUP(T71,Tabella_prezzi!$A$2:$L$73,6,FALSE) -> TS4L4-WINUSRCAL
A72: 1-pack of Windows Server 2022/2019 Device CALs (STD or DC) | B72: Operating System | D72: =VLOOKUP(L72,Tabella_prezzi!$A$2:$L$73,9,FALSE) -> 1-pack of Windows Server 2022/2019 Device CALs (STD or DC) | G72: 1 | H72: =VLOOKUP(L72,Tabella_prezzi!$A$2:$L$73,9,FALSE) -> 1-pack of Windows Server 2022/2019 Device CALs (STD or DC) | I72: =VLOOKUP(L72,Tabella_prezzi!$A$2:$L$73,3,FALSE) -> OpzDeviceCal | J72: =VLOOKUP(L72,Tabella_prezzi!$A$2:$L$73,4,FALSE) -> 26.72 | L72: L4N23 | M72: =VLOOKUP(L72,Tabella_prezzi!$A$2:$L$73,6,FALSE) -> TS4L4-WINDEVCAL | N72: 20 | O72: =VLOOKUP(T72,Tabella_prezzi!$A$2:$L$73,9,FALSE) -> 1-pack of Windows Server 2022/2019 User CALs (STD or DC) | P72: =VLOOKUP(T72,Tabella_prezzi!$A$2:$L$73,3,FALSE) -> OpzUserCal | Q72: =VLOOKUP(T72,Tabella_prezzi!$A$2:$L$73,4,FALSE)*N72 -> 735 | S72: 6 | T72: L4N24 | V72: =VLOOKUP(T72,Tabella_prezzi!$A$2:$L$73,4,FALSE)*S72 -> 220.5 | W72: =VLOOKUP(T72,Tabella_prezzi!$A$2:$L$73,6,FALSE) -> TS4L4-WINUSRCAL
A73: 1-pack of Windows Server 2022/2019 User CALs (STD or DC) | B73: Operating System | D73: =VLOOKUP(L73,Tabella_prezzi!$A$2:$L$73,9,FALSE) -> 1-pack of Windows Server 2022/2019 User CALs (STD or DC) | G73: 1 | H73: =VLOOKUP(L73,Tabella_prezzi!$A$2:$L$73,9,FALSE) -> 1-pack of Windows Server 2022/2019 User CALs (STD or DC) | I73: =VLOOKUP(L73,Tabella_prezzi!$A$2:$L$73,3,FALSE) -> OpzUserCal | J73: =VLOOKUP(L73,Tabella_prezzi!$A$2:$L$73,4,FALSE) -> 36.75 | L73: L4N24 | M73: =VLOOKUP(L73,Tabella_prezzi!$A$2:$L$73,6,FALSE) -> TS4L4-WINUSRCAL | N73: 0 | P73: ="" ->  | Q73: ="" ->  | S73: 0 | T73: 0 | W73: ="" -> 
A74: No Operating System | B74: Operating System | G74: 0 | I74: ="" ->  | L74: ="" ->  | M74: ="" ->  | N74: 0 | P74: ="" ->  | Q74: ="" ->  | S74: 0 | T74: 0 | W74: ="" -> 
A75: =D75 -> Windows Server 2022,Datacenter,ROK,16CORE | B75: Operating System | D75: =VLOOKUP(L75,Tabella_prezzi!$A$2:$L$73,9,FALSE) -> Windows Server 2022,Datacenter,ROK,16CORE | G75: 1 | H75: =VLOOKUP(L75,Tabella_prezzi!$A$2:$L$73,9,FALSE) -> Windows Server 2022,Datacenter,ROK,16CORE | I75: =VLOOKUP(L75,Tabella_prezzi!$A$2:$L$73,3,FALSE) -> OpzWinServDC | J75: =VLOOKUP(L75,Tabella_prezzi!$A$2:$L$73,4,FALSE) -> 3345.63 | L75: L4N27 | M75: =VLOOKUP(L75,Tabella_prezzi!$A$2:$L$73,6,FALSE) -> TS4L4-WinServDC | N75: 16 | O75: =VLOOKUP(T75,Tabella_prezzi!$A$2:$L$73,9,FALSE) -> 1-pack of Windows Server 2022/2019 Device CALs (STD or DC) | P75: =VLOOKUP(T75,Tabella_prezzi!$A$2:$L$73,3,FALSE) -> OpzDeviceCal | Q75: =VLOOKUP(T75,Tabella_prezzi!$A$2:$L$73,4,FALSE)*N75 -> 427.52 | S75: 6 | T75: L4N23 | U75: =VLOOKUP(T75,Tabella_prezzi!$A$2:$L$73,4,FALSE)*S75 -> 160.32 | W75: =VLOOKUP(T75,Tabella_prezzi!$A$2:$L$73,6,FALSE) -> TS4L4-WINDEVCAL
A77: TS4L4_HDD
A78: ="" ->  | G78: ="" ->  | I78: ="" ->  | L78: ="" ->  | M78: ="" -> 
A79: =VLOOKUP(L79,Tabella_prezzi!$A$2:$L$73,8,FALSE) -> 2.4TB 10k SAS ISE 12Gbps | B79: Hard Drives | D79: =VLOOKUP(L79,Tabella_prezzi!$A$2:$L$73,8,FALSE) -> 2.4TB 10k SAS ISE 12Gbps | G79: 1 | H79: =VLOOKUP(L79,Tabella_prezzi!$A$2:$L$73,9,FALSE) -> 2.4TB 10k 512e SAS ISE 12Gbps 2.5in Hot Plug Hard Drive | I79: =VLOOKUP(L79,Tabella_prezzi!$A$2:$L$73,3,FALSE) -> OpzHDD2TB | J79: =VLOOKUP(L79,Tabella_prezzi!$A$2:$L$73,4,FALSE) -> 144.76 | L79: L4N11 | M79: =VLOOKUP(L79,Tabella_prezzi!$A$2:$L$73,6,FALSE) -> TS4L4-HDD2TB
A80: =VLOOKUP(L80,Tabella_prezzi!$A$2:$L$73,8,FALSE) -> 1.2TB 10K RPM SAS ISE 12Gbps | B80: Hard Drives | D80: =VLOOKUP(L80,Tabella_prezzi!$A$2:$L$73,8,FALSE) -> 1.2TB 10K RPM SAS ISE 12Gbps | G80: 1 | H80: =VLOOKUP(L80,Tabella_prezzi!$A$2:$L$73,9,FALSE) -> 1.2TB 10K RPM SAS ISE 12Gbps 512n 2.5in Hot-plug Hard Drive | I80: =VLOOKUP(L80,Tabella_prezzi!$A$2:$L$73,3,FALSE) -> OpzHDD1TB | J80: =VLOOKUP(L80,Tabella_prezzi!$A$2:$L$73,4,FALSE) -> 83.51 | L80: L4N12 | M80: =VLOOKUP(L80,Tabella_prezzi!$A$2:$L$73,6,FALSE) -> TS4L4-HDD1TB
A81: =VLOOKUP(L81,Tabella_prezzi!$A$2:$L$73,8,FALSE) -> 3.84TB SSD SAS ISE RI 12Gbps | B81: Hard Drives | D81: =VLOOKUP(L81,Tabella_prezzi!$A$2:$L$73,8,FALSE) -> 3.84TB SSD SAS ISE RI 12Gbps | G81: 1 | H81: =VLOOKUP(L81,Tabella_prezzi!$A$2:$L$73,9,FALSE) -> 3.84TB SSD SAS ISE RI 12Gbps 512e 2.5in PM6 Hot-Plug 1 DWPD | I81: =VLOOKUP(L81,Tabella_prezzi!$A$2:$L$73,3,FALSE) -> OpzSSD-RI3,8TB | J81: =VLOOKUP(L81,Tabella_prezzi!$A$2:$L$73,4,FALSE) -> 991.57 | L81: L4N13 | M81: =VLOOKUP(L81,Tabella_prezzi!$A$2:$L$73,6,FALSE) -> TS4L4-SSD-RI3,8TB
A82: =VLOOKUP(L82,Tabella_prezzi!$A$2:$L$73,8,FALSE) -> 1.92TB SSD SAS ISE RI 12Gbps | B82: Hard Drives | D82: =VLOOKUP(L82,Tabella_prezzi!$A$2:$L$73,8,FALSE) -> 1.92TB SSD SAS ISE RI 12Gbps | G82: 1 | H82: =VLOOKUP(L82,Tabella_prezzi!$A$2:$L$73,9,FALSE) -> 1.92TB SSD SAS ISE RI 12Gbps 512e 2.5in Hot-Plug 1 DWP | I82: =VLOOKUP(L82,Tabella_prezzi!$A$2:$L$73,3,FALSE) -> OpzSSD-RI1,6TB | J82: =VLOOKUP(L82,Tabella_prezzi!$A$2:$L$73,4,FALSE) -> 489.95 | L82: L4N14 | M82: =VLOOKUP(L82,Tabella_prezzi!$A$2:$L$73,6,FALSE) -> TS4L4-SSD-RI1,6TB
A83: =VLOOKUP(L83,Tabella_prezzi!$A$2:$L$73,8,FALSE) -> 1.6TB SSD SAS ISE MU 12Gbps | B83: Hard Drives | D83: =VLOOKUP(L83,Tabella_prezzi!$A$2:$L$73,8,FALSE) -> 1.6TB SSD SAS ISE MU 12Gbps | G83: 1 | H83: =VLOOKUP(L83,Tabella_prezzi!$A$2:$L$73,9,FALSE) -> 1.6TB SSD SAS ISE MU 12Gbps 512e 2.5in Hot-Plug PM6 3 DWPD | I83: =VLOOKUP(L83,Tabella_prezzi!$A$2:$L$73,3,FALSE) -> OpzSSD-MU1,6TB | J83: =VLOOKUP(L83,Tabella_prezzi!$A$2:$L$73,4,FALSE) -> 464.23 | L83: L4N15 | M83: =VLOOKUP(L83,Tabella_prezzi!$A$2:$L$73,6,FALSE) -> TS4L4-SSD-MU1,6TB
A84: =VLOOKUP(L84,Tabella_prezzi!$A$2:$L$73,8,FALSE) -> 960GB SSD SAS ISE RI 12Gbps | B84: Hard Drives | D84: =VLOOKUP(L84,Tabella_prezzi!$A$2:$L$73,8,FALSE) -> 960GB SSD SAS ISE RI 12Gbps | G84: 1 | H84: =VLOOKUP(L84,Tabella_prezzi!$A$2:$L$73,9,FALSE) -> 960GB SSD SAS ISE RI 12Gbps 512e 2.5in Hot-Plug 1 DWPD | I84: =VLOOKUP(L84,Tabella_prezzi!$A$2:$L$73,3,FALSE) -> OpzSSD-RI800GB | J84: =VLOOKUP(L84,Tabella_prezzi!$A$2:$L$73,4,FALSE) -> 278.38 | L84: L4N16 | M84: =VLOOKUP(L84,Tabella_prezzi!$A$2:$L$73,6,FALSE) -> TS4L4-SSD-RI800GB
A85: =VLOOKUP(L85,Tabella_prezzi!$A$2:$L$73,8,FALSE) -> 800GB SSD SAS ISE Mix Use 12Gbps | B85: Hard Drives | D85: =VLOOKUP(L85,Tabella_prezzi!$A$2:$L$73,8,FALSE) -> 800GB SSD SAS ISE Mix Use 12Gbps | G85: 1 | H85: =VLOOKUP(L85,Tabella_prezzi!$A$2:$L$73,9,FALSE) -> 800GB SSD SAS ISE Mix Use 12Gbps 512e 2.5in Hot-plug, 3 DWPD | I85: =VLOOKUP(L85,Tabella_prezzi!$A$2:$L$73,3,FALSE) -> OpzSSD-MU800GB | J85: =VLOOKUP(L85,Tabella_prezzi!$A$2:$L$73,4,FALSE) -> 289.52 | L85: L4N17 | M85: =VLOOKUP(L85,Tabella_prezzi!$A$2:$L$73,6,FALSE) -> TS4L4-SSD-MU800GB
A86: =VLOOKUP(L86,Tabella_prezzi!$A$2:$L$73,8,FALSE) -> 1.6TB Enterprise NVMe Mixed Use Drive U.2 | B86: Hard Drives | D86: =VLOOKUP(L86,Tabella_prezzi!$A$2:$L$73,8,FALSE) -> 1.6TB Enterprise NVMe Mixed Use Drive U.2 | G86: 1 | H86: =VLOOKUP(L86,Tabella_prezzi!$A$2:$L$73,9,FALSE) -> 1.6TB Enterprise NVMe Mixed Use AG SED Drive U.2 Gen4 with carrier, FIPS | I86: =VLOOKUP(L86,Tabella_prezzi!$A$2:$L$73,3,FALSE) -> OpzNVME1,6TB | J86: =VLOOKUP(L86,Tabella_prezzi!$A$2:$L$73,4,FALSE) -> 594.94 | L86: L4N18 | M86: =VLOOKUP(L86,Tabella_prezzi!$A$2:$L$73,6,FALSE) -> TS4L4-NVME1,6TB
A87: =D87 -> 7.68TB SSD RI SAS ISE 12Gbps | B87: Hard Drives | D87: =VLOOKUP(L87,Tabella_prezzi!$A$2:$L$73,8,FALSE) -> 7.68TB SSD RI SAS ISE 12Gbps | G87: 1 | H87: =VLOOKUP(L87,Tabella_prezzi!$A$2:$L$73,9,FALSE) -> 7.68TB SSD RI SAS ISE 12Gbps 512e 2.5in PM1643a Hot-Plug 1 DWPD | I87: =VLOOKUP(L87,Tabella_prezzi!$A$2:$L$73,3,FALSE) -> OpzSSD7,68 | K87: =VLOOKUP(L87,Tabella_prezzi!$A$2:$L$73,4,FALSE) -> 2844.45 | L87: L4N32 | M87: =VLOOKUP(L87,Tabella_prezzi!$A$2:$L$73,6,FALSE) -> TS4L4-SSD7.68RI
A88: =D88 -> 3.2TB, Enterprise, NVMe, Mixed Use | B88: Hard Drives | D88: =VLOOKUP(L88,Tabella_prezzi!$A$2:$L$73,8,FALSE) -> 3.2TB, Enterprise, NVMe, Mixed Use | G88: 1 | H88: =VLOOKUP(L88,Tabella_prezzi!$A$2:$L$73,9,FALSE) -> 3.2TB, Enterprise, NVMe, Mixed Use, U2, G4, P5600 with carrier | I88: =VLOOKUP(L88,Tabella_prezzi!$A$2:$L$73,3,FALSE) -> OpzNVMe3,2 | K88: =VLOOKUP(L88,Tabella_prezzi!$A$2:$L$73,4,FALSE) -> 1578.15 | L88: L4N33 | M88: =VLOOKUP(L88,Tabella_prezzi!$A$2:$L$73,6,FALSE) -> TS4L4-NVMe3.2MU
A89: =D89 -> 1.92TB, Enterprise, NVMe, Read Intensive | B89: Hard Drives | D89: =VLOOKUP(L89,Tabella_prezzi!$A$2:$L$73,8,FALSE) -> 1.92TB, Enterprise, NVMe, Read Intensive | G89: 1 | H89: =VLOOKUP(L89,Tabella_prezzi!$A$2:$L$73,9,FALSE) -> 1.92TB, Enterprise, NVMe, Read Intensive, U2, G4, P5500 with carrier | I89: =VLOOKUP(L89,Tabella_prezzi!$A$2:$L$73,3,FALSE) -> OpzNVMe1,92 | K89: =VLOOKUP(L89,Tabella_prezzi!$A$2:$L$73,4,FALSE) -> 938.25 | L89: L4N34 | M89: =VLOOKUP(L89,Tabella_prezzi!$A$2:$L$73,6,FALSE) -> TS4L4-NVMe1.92RI
A90: =D90 -> 3.84TB, Enterprise, NVMe, Read Intensive | B90: Hard Drives | D90: =VLOOKUP(L90,Tabella_prezzi!$A$2:$L$73,8,FALSE) -> 3.84TB, Enterprise, NVMe, Read Intensive | G90: 1 | H90: =VLOOKUP(L90,Tabella_prezzi!$A$2:$L$73,9,FALSE) -> 3.84TB, Enterprise, NVMe, Read Intensive, U2, G4, P5500 with carrier, CK | I90: =VLOOKUP(L90,Tabella_prezzi!$A$2:$L$73,3,FALSE) -> OpzNVMe3,84 | K90: =VLOOKUP(L90,Tabella_prezzi!$A$2:$L$73,4,FALSE) -> 1576.8 | L90: L4N35 | M90: =VLOOKUP(L90,Tabella_prezzi!$A$2:$L$73,6,FALSE) -> TS4L4-NVMe3.84RI
A92: TS4L4_PSU
A93: Dual, Hot-plug Power Supply (1+1), 1400W | B93: Power Supply | D93: =VLOOKUP(L93,Tabella_prezzi!$A$2:$L$73,8,FALSE) -> Dual, Hot-plug Power Supply (1+1), 1400W in sostituzione di quelli in configurazione BASE | G93: 1 | H93: =VLOOKUP(L93,Tabella_prezzi!$A$2:$L$73,9,FALSE) -> Dual, Hot-plug Power Supply (1+1), 1400W in sostituzione di quelli in configurazione BASE | I93: =VLOOKUP(L93,Tabella_prezzi!$A$2:$L$73,3,FALSE) -> OpzPSU1400W | K93: =VLOOKUP(L93,Tabella_prezzi!$A$2:$L$73,4,FALSE) -> 0 | L93: L4N49 | M93: =VLOOKUP(L93,Tabella_prezzi!$A$2:$L$73,6,FALSE) -> TS4L4-PSU1400W
A95: TS4L4_CTRL
G96: ="" ->  | I96: ="" ->  | L96: ="" ->  | M96: ="" -> 
A97: =D97 -> PERC H745 Controller | B97: =D97 -> PERC H745 Controller | D97: =VLOOKUP(L97,Tabella_prezzi!$A$2:$L$73,9,FALSE) -> PERC H745 Controller | G97: ="" ->  | H97: =VLOOKUP(L97,Tabella_prezzi!$A$2:$L$73,9,FALSE) -> PERC H745 Controller | I97: ="" ->  | L97: L4N44 | M97: =VLOOKUP(L97,Tabella_prezzi!$A$2:$L$73,6,FALSE) -> 
A98: =D98 -> HBA355 Controller Adapter, Front (NO HW RAID) | B98: =D98 -> HBA355 Controller Adapter, Front (NO HW RAID) | D98: =VLOOKUP(L98,Tabella_Prezzi,8,FALSE) -> HBA355 Controller Adapter, Front (NO HW RAID) | G98: 1 | H98: =VLOOKUP(L98,Tabella_prezzi!$A$2:$L$73,9,FALSE) -> HBA355 Controller Adapter, Front, Cust Kit | I98: =VLOOKUP(L98,Tabella_prezzi!$A$2:$L$73,3,FALSE) -> 0 | K98: =VLOOKUP(L98,Tabella_prezzi!$A$2:$L$73,4,FALSE) -> 0 | L98: L4N36 | M98: =VLOOKUP(L98,Tabella_prezzi!$A$2:$L$73,6,FALSE) -> TS4L4-HBA355i-L
A101: TS4L4_GPU
A102: Slot non utilizzato | G102: ="" ->  | I102: ="" ->  | L102: ="" ->  | M102: ="" -> 
A103: =D103 -> Nvidia A30 | B103: =D103 -> Nvidia A30 | D103: =VLOOKUP(L103,Tabella_prezzi!$A$2:$L$100,9,FALSE) -> Nvidia A30 | G103: 1 | H103: =VLOOKUP(L103,Tabella_prezzi!$A$2:$L$100,9,FALSE) -> Nvidia A30 | I103: ="" ->  | K103: =VLOOKUP(L103,Tabella_prezzi!$A$2:$L$100,4,FALSE) -> 6129 | L103: L4N127 | M103: =VLOOKUP(L103,Tabella_prezzi!$A$2:$L$100,6,FALSE) -> TS4L4-GPU-A30
A104: =D104 -> Nvidia A40 | B104: =D104 -> Nvidia A40 | D104: =VLOOKUP(L104,Tabella_Prezzi,8,FALSE) -> Nvidia A40 | G104: 1 | H104: =VLOOKUP(L104,Tabella_prezzi!$A$2:$L$100,9,FALSE) -> Nvidia A40 | I104: =VLOOKUP(L104,Tabella_prezzi!$A$2:$L$100,3,FALSE) -> OpzGPU-A40 | K104: =VLOOKUP(L104,Tabella_prezzi!$A$2:$L$100,4,FALSE) -> 6858 | L104: L4N128 | M104: =VLOOKUP(L104,Tabella_prezzi!$A$2:$L$100,6,FALSE) -> TS4L4-GPU-A40
A106: TS4L4_BOSS
A107: No Boss card | G107: ="" ->  | I107: ="" ->  | L107: ="" ->  | M107: ="" -> 
A108: =D108 -> BOSS-S2 controller + 2x 480GB M2BOSS-S2 controller card + with 2 M.2 480GB (RAID 1) | D108: =VLOOKUP(L108,Tabella_prezzi!$A$2:$L$73,8,FALSE) -> BOSS-S2 controller + 2x 480GB M2BOSS-S2 controller card + with 2 M.2 480GB (RAID 1) | G108: 1 | H108: =VLOOKUP(L108,Tabella_prezzi!$A$2:$L$73,9,FALSE) -> BOSS-S2 controller | I108: =VLOOKUP(L108,Tabella_prezzi!$A$2:$L$73,3,FALSE) -> OpzBoss | K108: =VLOOKUP(L108,Tabella_prezzi!$A$2:$L$73,4,FALSE) -> 0 | L108: L4N40 | M108: =VLOOKUP(L108,Tabella_prezzi!$A$2:$L$73,6,FALSE) -> TS4L4-BOSS
A110: TS4L4_WARRANTY
A111: Manutenzione in garanzia (36 mesi) | B111: Dell Services: Extended Service | D111: RESTRICTED:ProSupport One Data Center and Next Business Day Onsite Service Volume Low, 39 Month(s) | G111: ="" ->  | I111: ="" ->  | L111: ="" ->  | M111: ="" -> 
A112: =D112 -> Estensione della manutenzione in garanzia per ulteriori 24 mesi | B112: Dell Services: Extended Service | D112: =VLOOKUP(L112,Tabella_prezzi!$A$2:$L$73,8,FALSE) -> Estensione della manutenzione in garanzia per ulteriori 24 mesi | G112: 1 | H112: =VLOOKUP(L112,Tabella_prezzi!$A$2:$L$223,9,FALSE) -> Estensione della manutenzione in garanzia per ulteriori 24 mesi | I112: =VLOOKUP(L112,Tabella_prezzi!$A$2:$L$223,3,FALSE) -> OpzEstensione24 | J112: =VLOOKUP(L112,Tabella_prezzi!$A$2:$L$223,4,FALSE) -> 155.91 | L112: L4N30 | M112: =VLOOKUP(L112,Tabella_prezzi!$A$2:$L$73,6,FALSE) -> TS4L4-OpzEst24
A114: TS4L4_HDDRET
A115: No Hard Disk Retention | G115: ="" ->  | I115: ="" ->  | L115: ="" ->  | M115: ="" -> 
A116: =D116 -> Hard Disk Retention 36 mesi | B116: Keep Your Hard Drive | D116: =VLOOKUP(L116,Tabella_prezzi!$A$2:$L$73,8,FALSE) -> Hard Disk Retention 36 mesi | G116: 1 | H116: =VLOOKUP(L116,Tabella_prezzi!$A$2:$L$223,9,FALSE) -> Hard Disk Retention 36 mesi | I116: =VLOOKUP(L116,Tabella_prezzi!$A$2:$L$223,3,FALSE) -> OpzHDDRetention36 | J116: =VLOOKUP(L116,Tabella_prezzi!$A$2:$L$223,4,FALSE) -> 33.14 | L116: L4N29 | M116: =VLOOKUP(L116,Tabella_prezzi!$A$2:$L$73,6,FALSE) -> TS4L4-HDRTN36
A117: Hard Disk Retention 60 mesi | B117: Keep Your Hard Drive | D117: =VLOOKUP(L117,Tabella_prezzi!$A$2:$L$73,8,FALSE) -> Hard Disk Retention 60 mesi | G117: 1 | H117: =VLOOKUP(L117,Tabella_prezzi!$A$2:$L$223,9,FALSE) -> Hard Disk Retention 60 mesi | I117: =VLOOKUP(L117,Tabella_prezzi!$A$2:$L$223,3,FALSE) -> OpzHDDRetention60 | J117: =VLOOKUP(L117,Tabella_prezzi!$A$2:$L$223,4,FALSE) -> 55.23 | L117: L4N29e | M117: =VLOOKUP(L117,Tabella_prezzi!$A$2:$L$73,6,FALSE) -> TS4L4-HDRTN60
A119: TS4L4_Rack
A120: ="" ->  | G120: ="" ->  | I120: ="" ->  | L120: ="" ->  | M120: ="" -> 
A121: =D121 -> Armadio Rack 42U | D121: =VLOOKUP(L121,Tabella_prezzi!$A$2:$L$73,8,FALSE) -> Armadio Rack 42U | G121: 1 | H121: =VLOOKUP(L121,Tabella_prezzi!$A$2:$L$223,9,FALSE) -> Armadio Rack 42U | I121: =VLOOKUP(L121,Tabella_prezzi!$A$2:$L$223,3,FALSE) -> OpzRack | J121: =VLOOKUP(L121,Tabella_prezzi!$A$2:$L$223,4,FALSE) -> 579.63 | L121: L4N31 | M121: =VLOOKUP(L121,Tabella_prezzi!$A$2:$L$73,6,FALSE) -> TS4L4-RACK
A123: TS4L4_UPS
A124: ="" ->  | G124: ="" ->  | I124: ="" ->  | L124: ="" ->  | M124: ="" -> 
A125: UPS PowerMe RPMM/9K - 3000VA | D125: =VLOOKUP(L125,Tabella_prezzi!$A$2:$L$73,8,FALSE) -> Dispositivo UPS di tipo On-line doppia conversione, strutturato per il montaggio a rack da 19” | G125: 1 | H125: =VLOOKUP(L125,Tabella_prezzi!$A$2:$L$223,9,FALSE) -> Dispositivo UPS di tipo On-line doppia conversione, strutturato per il montaggio a rack da 19” | I125: =VLOOKUP(L125,Tabella_prezzi!$A$2:$L$223,3,FALSE) -> OpzUps (3000VA) | J125: =VLOOKUP(L125,Tabella_prezzi!$A$2:$L$223,4,FALSE) -> 386.02 | L125: L4N19 | M125: =VLOOKUP(L125,Tabella_prezzi!$A$2:$L$73,6,FALSE) -> TS4L4-UPS
A127: TS4L4_GUI
A128: ="" ->  | G128: ="" ->  | I128: ="" ->  | L128: ="" ->  | M128: ="" -> 
A129: Unità KVM - monitor 17", cavo combi PS/2&USB | D129: =VLOOKUP(L129,Tabella_prezzi!$A$2:$L$73,8,FALSE) -> Unità KVM - monitor 17", cavo combi PS/2&USB da 1,8mt, tastiera italiana, touch pad | G129: 1 | H129: =VLOOKUP(L129,Tabella_prezzi!$A$2:$L$223,9,FALSE) -> Unità KVM - monitor 17", cavo combi PS/2&USB da 1,8mt, tastiera italiana, touch pad | I129: =VLOOKUP(L129,Tabella_prezzi!$A$2:$L$223,3,FALSE) -> OpzGUI | J129: =VLOOKUP(L129,Tabella_prezzi!$A$2:$L$223,4,FALSE) -> 491.62 | L129: L4N20 | M129: =VLOOKUP(L129,Tabella_prezzi!$A$2:$L$73,6,FALSE) -> TS4L4-GUI
A131: TS4L4_KVM
A132: ="" ->  | G132: ="" ->  | I132: ="" ->  | L132: ="" ->  | M132: ="" -> 
A133: =D133 -> KVM Switch IP per GUI 16P | D133: =VLOOKUP(L133,Tabella_prezzi!$A$2:$L$73,8,FALSE) -> KVM Switch IP per GUI 16P | G133: 1 | H133: =VLOOKUP(L133,Tabella_prezzi!$A$2:$L$223,9,FALSE) -> KVM Switch IP per GUI 16P | I133: =VLOOKUP(L133,Tabella_prezzi!$A$2:$L$223,3,FALSE) -> OpzKVM | J133: =VLOOKUP(L133,Tabella_prezzi!$A$2:$L$223,4,FALSE) -> 552.47 | L133: L4N21 | M133: =VLOOKUP(L133,Tabella_prezzi!$A$2:$L$73,6,FALSE) -> TS4L4-KVM
A135: SFP+ Transceivers
A136: =D136 -> SFP+ SR Optic for all SFP+ ports except High temperature Cards | D136: =VLOOKUP(L136,Tabella_prezzi!$A$2:$L$73,8,FALSE) -> SFP+ SR Optic for all SFP+ ports except High temperature Cards | G136: 1 | H136: =VLOOKUP(L136,Tabella_prezzi!$A$2:$L$223,9,FALSE) -> SFP+ SR Optic for all SFP+ ports except High temperature Cards | I136: =VLOOKUP(L136,Tabella_prezzi!$A$2:$L$223,3,FALSE) -> 0 | K136: =VLOOKUP(L136,Tabella_prezzi!$A$2:$L$73,4,FALSE) -> 17.55 | L136: L4N109 | M136: =VLOOKUP(L136,Tabella_prezzi!$A$2:$L$73,6,FALSE) -> TS4L4-OT10GB
A137: =D137 -> SFP28 SR Optic, 25GbE, 85C, for all SFP28 ports | D137: =VLOOKUP(L137,Tabella_prezzi!$A$2:$L$73,8,FALSE) -> SFP28 SR Optic, 25GbE, 85C, for all SFP28 ports | G137: 1 | H137: =VLOOKUP(L137,Tabella_prezzi!$A$2:$L$223,9,FALSE) -> SFP28 SR Optic, 25GbE, 85C, for all SFP28 ports | I137: =VLOOKUP(L137,Tabella_prezzi!$A$2:$L$223,3,FALSE) -> 0 | K137: =VLOOKUP(L137,Tabella_prezzi!$A$2:$L$73,4,FALSE) -> 112.05 | L137: L4N110 | M137: =VLOOKUP(L137,Tabella_prezzi!$A$2:$L$73,6,FALSE) -> TS4L4-OT25GB
A138: =D138 -> Dell EMC PowerEdge QSFP28 SR4 100GbE 85C optic | D138: =VLOOKUP(L138,Tabella_prezzi!$A$2:$L$73,8,FALSE) -> Dell EMC PowerEdge QSFP28 SR4 100GbE 85C optic | G138: 1 | H138: =VLOOKUP(L138,Tabella_prezzi!$A$2:$L$223,9,FALSE) -> Dell EMC PowerEdge QSFP28 SR4 100GbE 85C optic | I138: =VLOOKUP(L138,Tabella_prezzi!$A$2:$L$223,3,FALSE) -> 0 | K138: =VLOOKUP(L138,Tabella_prezzi!$A$2:$L$73,4,FALSE) -> 484.65 | L138: L4N111 | M138: =VLOOKUP(L138,Tabella_prezzi!$A$2:$L$73,6,FALSE) -> TS4L4-OT100GB
A141: TS4L4_PCI_A
A142: Slot Non Utilizzato | G142: ="" ->  | I142: ="" ->  | L142: ="" ->  | M142: ="" -> 
A143: =D143 -> Broadcom 5719 Quad Port 1Gb Network Interface Card, Full Height | D143: =VLOOKUP(L143,Tabella_prezzi!$A$2:$L$73,9,FALSE) -> Broadcom 5719 Quad Port 1Gb Network Interface Card, Full Height | F143: 540-BBCX | G143: 1 | H143: =VLOOKUP(L143,Tabella_prezzi!$A$2:$L$73,9,FALSE) -> Broadcom 5719 Quad Port 1Gb Network Interface Card, Full Height | I143: =VLOOKUP(L143,Tabella_prezzi!$A$2:$L$73,3,FALSE) -> OpzGigabit | J143: =VLOOKUP(L143,Tabella_prezzi!$A$2:$L$73,4,FALSE) -> 28.63 | L143: L4N05 | M143: =VLOOKUP(L143,Tabella_prezzi!$A$2:$L$73,6,FALSE) -> TS4L4-LAN1
A144: Broadcom 57414 Dual Port 10Gb, SFP28, PCIe Adapter, Full Height + Optics | D144: =VLOOKUP(L144,Tabella_prezzi!$A$2:$L$73,9,FALSE) -> Broadcom 57414 Dual Port 10Gb, SFP28, PCIe Adapter, Full Height + Optics | F144: 540-BBCX | G144: 1 | H144: =VLOOKUP(L144,Tabella_prezzi!$A$2:$L$73,9,FALSE) -> Broadcom 57414 Dual Port 10Gb, SFP28, PCIe Adapter, Full Height + Optics | I144: =VLOOKUP(L144,Tabella_prezzi!$A$2:$L$73,3,FALSE) -> OpzGigabit10Gbps | J144: =VLOOKUP(L144,Tabella_prezzi!$A$2:$L$73,4,FALSE) -> 157.48 | L144: L4N06 | M144: =VLOOKUP(L144,Tabella_prezzi!$A$2:$L$73,6,FALSE) -> TS4L4-LAN10
A145: Intel Ethernet XXV710 Dual Port 25GbE SFP28 Adapter, PCIe Full Height + Optics | D145: =VLOOKUP(L145,Tabella_prezzi!$A$2:$L$73,9,FALSE) -> Intel Ethernet XXV710 Dual Port 25GbE SFP28 Adapter, PCIe Full Height + Optics | F145: 540-BBCX | G145: 1 | H145: =VLOOKUP(L145,Tabella_prezzi!$A$2:$L$73,9,FALSE) -> Intel Ethernet XXV710 Dual Port 25GbE SFP28 Adapter, PCIe Full Height + Optics | I145: =VLOOKUP(L145,Tabella_prezzi!$A$2:$L$73,3,FALSE) -> OpzGigabit25Gbps | J145: =VLOOKUP(L145,Tabella_prezzi!$A$2:$L$73,4,FALSE) -> 244.98 | L145: L4N07 | M145: =VLOOKUP(L145,Tabella_prezzi!$A$2:$L$73,6,FALSE) -> TS4L4-LAN25
A146: CNA QLogic 41262 Dual Port 10Gb SFP28 Adapter, Full Height + 10 Gbps Optics | D146: =VLOOKUP(L146,Tabella_prezzi!$A$2:$L$73,9,FALSE) -> CNA QLogic 41262 Dual Port 10Gb SFP28 Adapter, Full Height + 10 Gbps Optics | F146: 540-BBCX | G146: 1 | H146: =VLOOKUP(L146,Tabella_prezzi!$A$2:$L$73,9,FALSE) -> CNA QLogic 41262 Dual Port 10Gb SFP28 Adapter, Full Height + 10 Gbps Optics | I146: =VLOOKUP(L146,Tabella_prezzi!$A$2:$L$73,3,FALSE) -> OpzGigabit10Gbps CNA | J146: =VLOOKUP(L146,Tabella_prezzi!$A$2:$L$73,4,FALSE) -> 150.33 | L146: L4N08 | M146: =VLOOKUP(L146,Tabella_prezzi!$A$2:$L$73,6,FALSE) -> TS4L4-CNA10
A147: Intel X710-T2L Dual Port 10GbE BASE-T Adapter, PCIe Full Height | D147: =VLOOKUP(L147,Tabella_prezzi!$A$2:$L$73,9,FALSE) -> Intel X710-T2L Dual Port 10GbE BASE-T Adapter, PCIe Full Height | F147: 540-BBCX | G147: 1 | H147: =VLOOKUP(L147,Tabella_prezzi!$A$2:$L$73,9,FALSE) -> Intel X710-T2L Dual Port 10GbE BASE-T Adapter, PCIe Full Height | I147: =VLOOKUP(L147,Tabella_prezzi!$A$2:$L$73,3,FALSE) -> Opz10Gigabit BaseT | J147: =VLOOKUP(L147,Tabella_prezzi!$A$2:$L$73,4,FALSE) -> 144.76 | L147: L4N09 | M147: =VLOOKUP(L147,Tabella_prezzi!$A$2:$L$73,6,FALSE) -> TS4L4-BaseT
A148: QLogic 2772 Dual Port 32GbE Fibre Channel HBA, PCIe Full Height + Optics | D148: =VLOOKUP(L148,Tabella_prezzi!$A$2:$L$73,9,FALSE) -> QLogic 2772 Dual Port 32GbE Fibre Channel HBA, PCIe Full Height + Optics | F148: 540-BBCX | G148: 1 | H148: =VLOOKUP(L148,Tabella_prezzi!$A$2:$L$73,9,FALSE) -> QLogic 2772 Dual Port 32GbE Fibre Channel HBA, PCIe Full Height + Optics | I148: =VLOOKUP(L148,Tabella_prezzi!$A$2:$L$73,3,FALSE) -> OpzFibreChannel | J148: =VLOOKUP(L148,Tabella_prezzi!$A$2:$L$73,4,FALSE) -> 426.11 | L148: L4N10 | M148: =VLOOKUP(L148,Tabella_prezzi!$A$2:$L$73,6,FALSE) -> TS4L4- FibreChannel
A150: Slot Non Utilizzato | G150: ="" ->  | I150: ="" ->  | J150: 0 | K150: 0 | L150: ="" ->  | M150: ="" -> 
A151: Aggiungere Processore | B151: ="" ->  | C151: ="" ->  | D151: ="" ->  | E151: ="" ->  | F151: ="" ->  | G151: ="" ->  | H151: ="" ->  | I151: ="" ->  | J151: 0 | K151: 0 | M151: ="" -> 
K152: 0
A153: TS4L4_PCI_A_LP | K153: ="" -> 
A154: Slot Non Utilizzato | G154: ="" ->  | I154: ="" ->  | J154: 0 | K154: 0 | L154: 0 | M154: ="" -> 
A155: =D155 -> Broadcom 57414 Dual Port 10Gb, SFP28, PCIe Adapter, LOW PROFILE + Optics | D155: =VLOOKUP(L155,Tabella_prezzi!$A$2:$L$73,9,FALSE) -> Broadcom 57414 Dual Port 10Gb, SFP28, PCIe Adapter, LOW PROFILE + Optics | G155: 1 | I155: =VLOOKUP(L155,Tabella_prezzi!$A$2:$L$73,3,FALSE) -> OpzGigabit10Gbps | J155: =VLOOKUP(L155,Tabella_prezzi!$A$2:$L$73,4,FALSE) -> 157.48 | L155: L4N76 | M155: =VLOOKUP(L155,Tabella_prezzi!$A$2:$L$73,6,FALSE) -> TS4L4-LAN10-L
A156: =D156 -> Intel Ethernet XXV710 Dual Port 25GbE SFP28 Adapter, PCIe Low Profile + Optics | D156: =VLOOKUP(L156,Tabella_prezzi!$A$2:$L$73,9,FALSE) -> Intel Ethernet XXV710 Dual Port 25GbE SFP28 Adapter, PCIe Low Profile + Optics | G156: 1 | H156: =VLOOKUP(L156,Tabella_prezzi!$A$2:$L$73,9,FALSE) -> Intel Ethernet XXV710 Dual Port 25GbE SFP28 Adapter, PCIe Low Profile + Optics | I156: =VLOOKUP(L156,Tabella_prezzi!$A$2:$L$73,3,FALSE) -> OpzGigabit25Gbps | J156: =VLOOKUP(L156,Tabella_prezzi!$A$2:$L$73,4,FALSE) -> 244.98 | L156: L4N77 | M156: =VLOOKUP(L156,Tabella_prezzi!$A$2:$L$73,6,FALSE) -> TS4L4-LAN25-L
A157: =D157 -> CNA QLogic 41262 Dual Port 10Gb SFP28 Adapter, Low Profile + 10 Gbps Optics | D157: =VLOOKUP(L157,Tabella_prezzi!$A$2:$L$73,9,FALSE) -> CNA QLogic 41262 Dual Port 10Gb SFP28 Adapter, Low Profile + 10 Gbps Optics | G157: 1 | I157: =VLOOKUP(L157,Tabella_prezzi!$A$2:$L$73,3,FALSE) -> OpzGigabit10Gbps CNA | J157: =VLOOKUP(L157,Tabella_prezzi!$A$2:$L$73,4,FALSE) -> 150.33 | L157: L4N78 | M157: =VLOOKUP(L157,Tabella_prezzi!$A$2:$L$73,6,FALSE) -> TS4L4-CNA10-L
A158: =D158 -> Intel X710-T2L Dual Port 10GbE BASE-T Adapter, PCIe LP | D158: =VLOOKUP(L158,Tabella_prezzi!$A$2:$L$73,9,FALSE) -> Intel X710-T2L Dual Port 10GbE BASE-T Adapter, PCIe LP | G158: 1 | I158: =VLOOKUP(L158,Tabella_prezzi!$A$2:$L$73,3,FALSE) -> Opz10Gigabit BaseT | J158: =VLOOKUP(L158,Tabella_prezzi!$A$2:$L$73,4,FALSE) -> 144.76 | L158: L4N79 | M158: =VLOOKUP(L158,Tabella_prezzi!$A$2:$L$73,6,FALSE) -> TS4L4-BaseT-L
A159: =D159 -> QLogic 2772 Dual Port 32GbE Fibre Channel HBA, PCIe Low Profile + Optics | D159: =VLOOKUP(L159,Tabella_prezzi!$A$2:$L$73,9,FALSE) -> QLogic 2772 Dual Port 32GbE Fibre Channel HBA, PCIe Low Profile + Optics | G159: 1 | H159: =VLOOKUP(L159,Tabella_prezzi!$A$2:$L$73,9,FALSE) -> QLogic 2772 Dual Port 32GbE Fibre Channel HBA, PCIe Low Profile + Optics | I159: =VLOOKUP(L159,Tabella_prezzi!$A$2:$L$73,3,FALSE) -> OpzFibreChannel-L | J159: =VLOOKUP(L159,Tabella_prezzi!$A$2:$L$73,4,FALSE) -> 426.11 | L159: L4N101 | M159: =VLOOKUP(L159,Tabella_prezzi!$A$2:$L$73,6,FALSE) -> TS4L4- FibreChannel-L
A160: ="" ->  | B160: ="" ->  | C160: ="" ->  | D160: ="" ->  | E160: ="" ->  | F160: ="" ->  | G160: ="" ->  | H160: ="" ->  | I160: ="" ->  | J160: ="" ->  | K160: ="" ->  | L160: ="" ->  | M160: ="" -> 
A161: Opzioni 20%
A162: ="" ->  | B162: ="" ->  | C162: ="" ->  | D162: ="" ->  | E162: ="" ->  | F162: ="" ->  | G162: ="" ->  | H162: ="" ->  | I162: ="" ->  | J162: ="" ->  | K162: ="" ->  | L162: ="" ->  | M162: ="" -> 
A163: =D163 -> Mellanox ConnectX-6 Single Port HDR VPI Infiniband Adapter, PCIe Low Profile | D163: =VLOOKUP(L163,Tabella_prezzi!$A$2:$L$73,9,FALSE) -> Mellanox ConnectX-6 Single Port HDR VPI Infiniband Adapter, PCIe Low Profile | F163: 540-BBCX | G163: 1 | H163: =VLOOKUP(L163,Tabella_prezzi!$A$2:$L$73,9,FALSE) -> Mellanox ConnectX-6 Single Port HDR VPI Infiniband Adapter, PCIe Low Profile | I163: =VLOOKUP(L163,Tabella_prezzi!$A$2:$L$73,3,FALSE) -> Opz100GBs | K163: =VLOOKUP(L163,Tabella_prezzi!$A$2:$L$73,4,FALSE) -> 1305.45 | L163: L4N39 | M163: =VLOOKUP(L163,Tabella_prezzi!$A$2:$L$73,6,FALSE) -> TS4L4-100GBs-INF
A164: =D164 -> Broadcom 57508 Dual Port 100GbE QSFP Adapter, PCIe Low Profile | D164: =VLOOKUP(L164,Tabella_prezzi!$A$2:$L$73,9,FALSE) -> Broadcom 57508 Dual Port 100GbE QSFP Adapter, PCIe Low Profile | F164: 540-BBCX | G164: 1 | H164: =VLOOKUP(L164,Tabella_prezzi!$A$2:$L$73,9,FALSE) -> Broadcom 57508 Dual Port 100GbE QSFP Adapter, PCIe Low Profile | I164: =VLOOKUP(L164,Tabella_prezzi!$A$2:$L$73,3,FALSE) -> Opz100GBs | K164: =VLOOKUP(L164,Tabella_prezzi!$A$2:$L$73,4,FALSE) -> 683.1 | L164: L4N37 | M164: =VLOOKUP(L164,Tabella_prezzi!$A$2:$L$73,6,FALSE) -> TS4L4-100GBs-B
A165: =D165 -> ROCK Port 100Gbs (include scheda pci e manutenzione) | D165: =VLOOKUP(L165,Tabella_prezzi!$A$2:$L$100,9,FALSE) -> ROCK Port 100Gbs (include scheda pci e manutenzione) | F165: 540-BBCX | G165: 1 | H165: =VLOOKUP(L165,Tabella_prezzi!$A$2:$L$100,9,FALSE) -> ROCK Port 100Gbs (include scheda pci e manutenzione) | I165: =VLOOKUP(L165,Tabella_prezzi!$A$2:$L$100,3,FALSE) -> 0 | K165: =VLOOKUP(L165,Tabella_prezzi!$A$2:$L$100,4,FALSE) -> 3300 | L165: L4N120 | M165: =VLOOKUP(L165,Tabella_prezzi!$A$2:$L$100,6,FALSE) -> TS4L4-ROCK
A166: =D166 -> PERC H840 RAID Adapter for External JBOD Only | D166: =VLOOKUP(L166,Tabella_prezzi!$A$2:$L$99,9,FALSE) -> PERC H840 RAID Adapter for External JBOD Only | F166: 540-BBCX | G166: 1 | H166: =VLOOKUP(L166,Tabella_prezzi!$A$2:$L$99,9,FALSE) -> PERC H840 RAID Adapter for External JBOD Only | I166: =VLOOKUP(L166,Tabella_prezzi!$A$2:$L$99,3,FALSE) ->  | K166: =VLOOKUP(L166,Tabella_prezzi!$A$2:$L$99,4,FALSE) -> 0 | L166: L4N129 | M166: =VLOOKUP(L166,Tabella_prezzi!$A$2:$L$99,6,FALSE) -> 
A167: ="" ->  | G167: ="" ->  | I167: ="" ->  | J167: 0 | K167: 0 | L167: 0 | M167: 0
A168: TS4L4_PCI_NUT
A169: Slot Non Utilizzato | G169: ="" ->  | I169: ="" ->  | L169: ="" ->  | M169: ="" -> 
A170: =D170 -> Broadcom 57414 Dual Port 10Gb, SFP28, PCIe Adapter, Full Height + Optics | D170: =VLOOKUP(L170,Tabella_prezzi!$A$2:$L$73,9,FALSE) -> Broadcom 57414 Dual Port 10Gb, SFP28, PCIe Adapter, Full Height + Optics | F170: 540-BBCX | G170: 1 | H170: =VLOOKUP(L170,Tabella_prezzi!$A$2:$L$73,9,FALSE) -> Broadcom 57414 Dual Port 10Gb, SFP28, PCIe Adapter, Full Height + Optics | I170: =VLOOKUP(L170,Tabella_prezzi!$A$2:$L$73,3,FALSE) -> OpzGigabit10Gbps | J170: =VLOOKUP(L170,Tabella_prezzi!$A$2:$L$73,4,FALSE) -> 157.48 | L170: L4N06 | M170: =VLOOKUP(L170,Tabella_prezzi!$A$2:$L$73,6,FALSE) -> TS4L4-LAN10
A171: Intel Ethernet XXV710 Dual Port 25GbE SFP28 Adapter, PCIe Full Height + Optics | D171: =VLOOKUP(L171,Tabella_prezzi!$A$2:$L$73,9,FALSE) -> Intel Ethernet XXV710 Dual Port 25GbE SFP28 Adapter, PCIe Full Height + Optics | F171: 540-BBCX | G171: 1 | H171: =VLOOKUP(L171,Tabella_prezzi!$A$2:$L$73,9,FALSE) -> Intel Ethernet XXV710 Dual Port 25GbE SFP28 Adapter, PCIe Full Height + Optics | I171: =VLOOKUP(L171,Tabella_prezzi!$A$2:$L$73,3,FALSE) -> OpzGigabit25Gbps | J171: =VLOOKUP(L171,Tabella_prezzi!$A$2:$L$73,4,FALSE) -> 244.98 | L171: L4N07 | M171: =VLOOKUP(L171,Tabella_prezzi!$A$2:$L$73,6,FALSE) -> TS4L4-LAN25
A172: Intel X710-T2L Dual Port 10GbE BASE-T Adapter, PCIe Full Height | D172: =VLOOKUP(L172,Tabella_prezzi!$A$2:$L$73,9,FALSE) -> Intel X710-T2L Dual Port 10GbE BASE-T Adapter, PCIe Full Height | F172: 540-BBCX | G172: 1 | H172: =VLOOKUP(L172,Tabella_prezzi!$A$2:$L$73,9,FALSE) -> Intel X710-T2L Dual Port 10GbE BASE-T Adapter, PCIe Full Height | I172: =VLOOKUP(L172,Tabella_prezzi!$A$2:$L$73,3,FALSE) -> Opz10Gigabit BaseT | J172: =VLOOKUP(L172,Tabella_prezzi!$A$2:$L$73,4,FALSE) -> 144.76 | L172: L4N09 | M172: =VLOOKUP(L172,Tabella_prezzi!$A$2:$L$73,6,FALSE) -> TS4L4-BaseT
A173: ="" ->  | B173: ="" ->  | C173: ="" ->  | D173: ="" ->  | E173: ="" ->  | F173: ="" ->  | G173: ="" ->  | H173: ="" ->  | I173: ="" ->  | J173: ="" ->  | K173: ="" ->  | L173: ="" ->  | M173: ="" -> 
A174: Opzioni 20%
A175: ="" ->  | G175: ="" ->  | I175: ="" ->  | L175: ="" ->  | M175: ="" -> 
A176: =D176 -> Rack 42RU DellEmc | D176: =VLOOKUP(L176,Tabella_prezzi!$A$2:$L$149,9,FALSE) -> Rack 42RU DellEmc | F176: 540-BBCX | G176: 1 | H176: =VLOOKUP(L176,Tabella_prezzi!$A$2:$L$149,9,FALSE) -> Rack 42RU DellEmc | I176: =VLOOKUP(L176,Tabella_prezzi!$A$2:$L$149,3,FALSE) -> 0 | K176: =VLOOKUP(L176,Tabella_prezzi!$A$2:$L$149,4,FALSE) -> 2929.5 | L176: L4N116 | M176: =VLOOKUP(L176,Tabella_Prezzi,6,FALSE) -> TS4L4-RACK-D
A177: =D177 -> PDU 220 mono output 20-C13 + 4-C19 IEC 320, input C20 | D177: =VLOOKUP(L177,Tabella_prezzi!$A$2:$L$149,9,FALSE) -> PDU 220 mono output 20-C13 + 4-C19 IEC 320, input C20 | F177: 540-BBCX | G177: 2 | H177: =VLOOKUP(L177,Tabella_prezzi!$A$2:$L$149,9,FALSE) -> PDU 220 mono output 20-C13 + 4-C19 IEC 320, input C20 | I177: =VLOOKUP(L177,Tabella_prezzi!$A$2:$L$149,3,FALSE) -> 0 | K177: =VLOOKUP(L177,Tabella_prezzi!$A$2:$L$149,4,FALSE) -> 540 | L177: L4N117 | M177: TS4L4-PDU-M
A178: PDU 220 Trifase output 6-C19 e 36-C13, input Spina 3P+T 400V 16A | D178: =VLOOKUP(L178,Tabella_prezzi!$A$2:$L$149,9,FALSE) -> PDU 220 Trifase output 6-C19 e 36-C13, input Spina 3P+T 400V 16A | F178: 540-BBCX | G178: 3 | H178: =VLOOKUP(L178,Tabella_prezzi!$A$2:$L$149,9,FALSE) -> PDU 220 Trifase output 6-C19 e 36-C13, input Spina 3P+T 400V 16A | I178: =VLOOKUP(L178,Tabella_prezzi!$A$2:$L$149,3,FALSE) -> 0 | K178: =VLOOKUP(L178,Tabella_prezzi!$A$2:$L$149,4,FALSE) -> 1080 | L178: L4N118 | M178: TS4L4-PDU-T
A179: Dell KVM + Switch 8 porte + cavi | D179: =VLOOKUP(L179,Tabella_prezzi!$A$2:$L$149,9,FALSE) -> Dell KVM + Switch 8 porte + cavi | F179: 540-BBCX | G179: 4 | H179: =VLOOKUP(L179,Tabella_prezzi!$A$2:$L$149,9,FALSE) -> Dell KVM + Switch 8 porte + cavi | I179: =VLOOKUP(L179,Tabella_prezzi!$A$2:$L$149,3,FALSE) -> 0 | K179: =VLOOKUP(L179,Tabella_prezzi!$A$2:$L$149,4,FALSE) -> 3300.75 | L179: L4N119 | M179: TS4L4-KVM-D
A180: Cable Management Arm for PowerEdge Systems | D180: =VLOOKUP(L180,Tabella_prezzi!$A$2:$L$149,9,FALSE) -> Cable Management Arm for PowerEdge Systems | F180: 540-BBCX | G180: 5 | H180: =VLOOKUP(L180,Tabella_prezzi!$A$2:$L$149,9,FALSE) -> Cable Management Arm for PowerEdge Systems | I180: =VLOOKUP(L180,Tabella_prezzi!$A$2:$L$149,3,FALSE) -> OpzCMA | K180: =VLOOKUP(L180,Tabella_prezzi!$A$2:$L$149,4,FALSE) -> 33.75 | L180: L4N121 | M180: TS4L4-CMA
A181: Enclosure di espansione JBOD 12 slot 3,5'' + HBA (H840) | D181: =VLOOKUP(L181,Tabella_prezzi!$A$2:$L$149,9,FALSE) -> Enclosure di espansione JBOD 12 slot 3,5'' + HBA (H840) | F181: 540-BBCX | G181: 6 | H181: =VLOOKUP(L181,Tabella_prezzi!$A$2:$L$149,9,FALSE) -> Enclosure di espansione JBOD 12 slot 3,5'' + HBA (H840) | I181: =VLOOKUP(L181,Tabella_prezzi!$A$2:$L$149,3,FALSE) -> OpzJBOD | K181: =VLOOKUP(L181,Tabella_prezzi!$A$2:$L$149,4,FALSE) -> 5719.95 | L181: L4N122 | M181: TS4L4-JBOD
A182: 12TB 7.2K RPM NLSAS ISE 12Gbps 512e 3.5in Hot-plug Hard Drive | D182: =VLOOKUP(L182,Tabella_prezzi!$A$2:$L$149,9,FALSE) -> 12TB 7.2K RPM NLSAS ISE 12Gbps 512e 3.5in Hot-plug Hard Drive | F182: 540-BBCX | G182: 7 | H182: =VLOOKUP(L182,Tabella_prezzi!$A$2:$L$149,9,FALSE) -> 12TB 7.2K RPM NLSAS ISE 12Gbps 512e 3.5in Hot-plug Hard Drive | I182: =VLOOKUP(L182,Tabella_prezzi!$A$2:$L$149,3,FALSE) -> Opz12TBNLSAS | K182: =VLOOKUP(L182,Tabella_prezzi!$A$2:$L$149,4,FALSE) -> 405 | L182: L4N123 | M182: TS4L4-12TBNLSAS
A183: 16TB Hard Drive SAS ISE 12Gbps 7.2K 512e 3.5in Hot-Plug | D183: =VLOOKUP(L183,Tabella_prezzi!$A$2:$L$149,9,FALSE) -> 16TB Hard Drive SAS ISE 12Gbps 7.2K 512e 3.5in Hot-Plug | F183: 540-BBCX | G183: 8 | H183: =VLOOKUP(L183,Tabella_prezzi!$A$2:$L$149,9,FALSE) -> 16TB Hard Drive SAS ISE 12Gbps 7.2K 512e 3.5in Hot-Plug | I183: =VLOOKUP(L183,Tabella_prezzi!$A$2:$L$149,3,FALSE) -> Opz16TBSAS | K183: =VLOOKUP(L183,Tabella_prezzi!$A$2:$L$149,4,FALSE) -> 438.75 | L183: L4N124 | M183: TS4L4-16TBSAS
A184: 20TB HDD SAS ISE 12Gbps 7.2K 512e 3.5in Hot-Plug | D184: =VLOOKUP(L184,Tabella_prezzi!$A$2:$L$149,9,FALSE) -> 20TB HDD SAS ISE 12Gbps 7.2K 512e 3.5in Hot-Plug | F184: 540-BBCX | G184: 9 | H184: =VLOOKUP(L184,Tabella_prezzi!$A$2:$L$149,9,FALSE) -> 20TB HDD SAS ISE 12Gbps 7.2K 512e 3.5in Hot-Plug | I184: =VLOOKUP(L184,Tabella_prezzi!$A$2:$L$149,3,FALSE) -> Opz20TBSAS | K184: =VLOOKUP(L184,Tabella_prezzi!$A$2:$L$149,4,FALSE) -> 594 | L184: L4N125 | M184: TS4L4-20TBSAS
A185: Slot Non Utilizzato
A186: Aggiungere Processore | G186: ="" ->  | I186: ="" ->  | J186: 0 | K186: 0 | L186: ="" ->  | M186: ="" -> 
A188: 0 | C188: 0
A189: 2 | C189: 1
A190: 4
A191: 6
A192: Illimitate
A195: 1 | B195: 3
A196: 3 | B196: 6
A197: 4 | B197: 9 | C197: 1CPU | D197: 2CPU
A199: 1 | C199: 4 | D199: 16 | E199: =16+(C199*2) -> 24 | F199: =16+(D199*2) -> 48
A200: 2 | C200: 16 | D200: 28 | E200: =16+(C200*2) -> 48 | F200: =16+(D200*2) -> 72
A201: 3 | C201: 28 | D201: 40 | E201: =16+(C201*2) -> 72 | F201: 96
A202: 4
A203: 5
A204: 6
A205: 7
A206: 8
A207: 9
A208: 10
A209: 11
A210: 12
A211: 13
A212: 14
A213: 15
A214: 16
A217: Slot PCI | B217: 1 | C217: 2 | D217: 3 | E217: 4 | F217: 5 | G217: 6 | H217: 7 | I217: 8 | K217: Slot PCI | L217: 1 | M217: 2 | N217: 3 | O217: 4 | P217: 5 | Q217: 6 | R217: 7 | S217: 8 | U217: Slot PCI | V217: 1 | W217: 2 | X217: 3 | Y217: 4 | Z217: 5 | AA217: 6 | AB217: 7 | AC217: 8
A218: Conf 1 | B218: =Lotto4_R7525_1!M87 ->  | C218: =Lotto4_R7525_1!M90 ->  | D218: =Lotto4_R7525_1!M93 ->  | E218: =Lotto4_R7525_1!M96 ->  | F218: =Lotto4_R7525_1!M99 ->  | G218: =Lotto4_R7525_1!M102 ->  | H218: =Lotto4_R7525_1!M105 ->  | I218: =Lotto4_R7525_1!M108 ->  | K218: Conf 2 | L218: =#REF! ->  | M218: =#REF! ->  | N218: =#REF! ->  | O218: =#REF! ->  | P218: =#REF! ->  | Q218: =#REF! ->  | R218: =#REF! ->  | S218: =#REF! ->  | U218: Conf 2 | V218: =#REF! ->  | W218: =#REF! ->  | X218: =#REF! ->  | Y218: =#REF! ->  | Z218: =#REF! ->  | AA218: =#REF! ->  | AB218: =#REF! ->  | AC218: =#REF! -> 
A222: TS4L4-LAN1 | B222: =IF($A222=$B$218,1,"") ->  | C222: =IF($A222=$C$218,2,"") ->  | D222: =IF($A222=$D$218,3,"") ->  | E222: =IF($A222=$E$218,4,"") ->  | F222: =IF($A222=$F$218,5,"") ->  | G222: =IF($A222=$G$218,6,"") ->  | H222: =IF($A222=$H$218,7,"") ->  | I222: =IF($A222=$I$218,8,"") ->  | J222: =IF(SUM(B222:I222)=0,"",CONCATENATE(" PCI Slot ",B222,"-",C222,"-",D222,"-",E222,"-",F222,"-",G222,"-",H222,"-",I222,"")) ->  | K222: TS4L4-LAN1 | L222: =IF($A222=$L$218,1,"") ->  | M222: =IF($A222=$M$218,2,"") ->  | N222: =IF($A222=$N$218,3,"") ->  | O222: =IF($A222=$O$218,4,"") ->  | P222: =IF($A222=$P$218,5,"") ->  | Q222: =IF($A222=$Q$218,6,"") ->  | R222: =IF($A222=$R$218,7,"") ->  | S222: =IF($A222=$S$218,8,"") ->  | T222: =IF(SUM(L222:S222)=0,"",CONCATENATE(" PCI Slot ",L222,"-",M222,"-",N222,"-",O222,"-",P222,"-",Q222,"-",R222,"-",S222,"")) ->  | U222: TS4L4-LAN1 | V222: =IF($A222=$V$218,1,"") ->  | W222: =IF($A222=$W$218,2,"") ->  | X222: =IF($A222=$X$218,3,"") ->  | Y222: =IF($A222=$Y$218,4,"") ->  | Z222: =IF($A222=$Z$218,5,"") ->  | AA222: =IF($A222=$AA$218,6,"") ->  | AB222: =IF($A222=$AB$218,7,"") ->  | AC222: =IF($A222=$AC$218,8,"") ->  | AD222: =IF(SUM(V222:AC222)=0,"",CONCATENATE(" PCI Slot ",V222,"-",W222,"-",X222,"-",Y222,"-",Z222,"-",AA222,"-",AB222,"-",AC222,"")) -> 
A223: TS4L4-LAN1-L | B223: =IF($A223=$B$218,1,"") ->  | C223: =IF($A223=$C$218,2,"") ->  | D223: =IF($A223=$D$218,3,"") ->  | E223: =IF($A223=$E$218,4,"") ->  | F223: =IF($A223=$F$218,5,"") ->  | G223: =IF($A223=$G$218,6,"") ->  | H223: =IF($A223=$H$218,7,"") ->  | I223: =IF($A223=$I$218,8,"") ->  | J223: =IF(SUM(B223:I223)=0,"",CONCATENATE(" PCI Slot ",B223,"-",C223,"-",D223,"-",E223,"-",F223,"-",G223,"-",H223,"-",I223,"")) ->  | K223: TS4L4-LAN1-L | L223: =IF($A223=$L$218,1,"") ->  | M223: =IF($A223=$M$218,2,"") ->  | N223: =IF($A223=$N$218,3,"") ->  | O223: =IF($A223=$O$218,4,"") ->  | P223: =IF($A223=$P$218,5,"") ->  | Q223: =IF($A223=$Q$218,6,"") ->  | R223: =IF($A223=$R$218,7,"") ->  | S223: =IF($A223=$S$218,8,"") ->  | T223: =IF(SUM(L223:S223)=0,"",CONCATENATE(" PCI Slot ",L223,"-",M223,"-",N223,"-",O223,"-",P223,"-",Q223,"-",R223,"-",S223,"")) ->  | U223: TS4L4-LAN1-L | V223: =IF($A223=$V$218,1,"") ->  | W223: =IF($A223=$W$218,2,"") ->  | X223: =IF($A223=$X$218,3,"") ->  | Y223: =IF($A223=$Y$218,4,"") ->  | Z223: =IF($A223=$Z$218,5,"") ->  | AA223: =IF($A223=$AA$218,6,"") ->  | AB223: =IF($A223=$AB$218,7,"") ->  | AC223: =IF($A223=$AC$218,8,"") ->  | AD223: =IF(SUM(V223:AC223)=0,"",CONCATENATE(" PCI Slot ",V223,"-",W223,"-",X223,"-",Y223,"-",Z223,"-",AA223,"-",AB223,"-",AC223,"")) -> 
A224: TS4L4-LAN10 | K224: TS4L4-LAN10 | U224: TS4L4-LAN10
A225: TS4L4-LAN10-L | K225: TS4L4-LAN10-L | U225: TS4L4-LAN10-L
A226: TS4L4-LAN25 | K226: TS4L4-LAN25 | U226: TS4L4-LAN25
A227: TS4L4-LAN25-L | K227: TS4L4-LAN25-L | U227: TS4L4-LAN25-L
A228: TS4L4-CNA10 | K228: TS4L4-CNA10 | U228: TS4L4-CNA10
A229: TS4L4-CNA10-L | K229: TS4L4-CNA10-L | U229: TS4L4-CNA10-L
... 7 more rows

Sheet Tabella_prezzi (hidden)
A1: N° | C1: Attributo | D1: Valore inserito | E1: N° | F1: Codice Convenzione | G1: Qty: | I1: Description: | J1: Manufacturer Part | K1: Sku Number: | L1: Brand
A2: L4N01 | B2: 1 | C2: Server rackable bi-processore prest. | D2: 3637.17 | E2: L4N01 | F2: TS4L4-SRV | G2: 1 | H2: PowerEdge R7525 Server | I2: PowerEdge R7525 Server | J2: L4N01-ServerR7525 | K2: 210-AUVQ | L2: DELL | Q2: 210-321-BCPX | R2: -
A3: L4N01-NVME | B3: 1 | C3: Server rackable bi-processore prest. | D3: =D2+(D2*4%) -> 3782.6568 | E3: L4N01-NVME | F3: TS4L4-SRV-NVMe | G3: 1 | H3: PowerEdge R7525 Server NVMe | I3: PowerEdge R7525 Server NVMe | J3: L4N01-ServerR7525-NVMe | K3: 210-AUVQ | L3: DELL | Q3: 210-321-BCPX | R3: -
A4: L4N01-NVME | B4: 1 | C4: Server rackable bi-processore prest. | D4: =D2+(D2*4%) -> 3782.6568 | E4: L4N01-vSAN | F4: TS4L4-SRV-vSAN | G4: 1 | H4: PowerEdge R7525 Server vSAN | I4: PowerEdge R7525 Server vSAN NVMe | J4: L4N01-ServerR7525-vSAN | K4: 210-AUVQ | L4: DELL | Q4: 210-321-BCPX | R4: -
A5: L4N01-NVME | B5: 1 | C5: Server rackable bi-processore prest. | D5: =D2+(D2*4%) -> 3782.6568 | E5: L4N01-NUT | F5: TS4L4-SRV-NUT | G5: 1 | H5: PowerEdge R7525 Server Nutanix | I5: PowerEdge R7525 Server Nutanix NVMe | J5: L4N01-ServerR7525-NUT | K5: 210-AUVQ | L5: DELL | Q5: 210-321-BCPX | R5: -
A6: L4N02 | B6: 2 | C6: Kit n. 1 Processore aggiuntivo | D6: 858.53 | E6: L4N02 | F6: TS4L4-CPU | G6: 1 | H6: AMD 7413 2.65GHz,24C/48T,128M,180W,3200 | I6: AMD 7413 2.65GHz,24C/48T,128M,180W,3200 | J6: L4N02-OpzCPU | K6: 338-BZSB | L6: DELL | M6: =CONCATENATE(F6,"-NVME") -> TS4L4-CPU-NVME | Q6: 338-BZSB | R6: WX6G7
G7: 1 | H7: L Shape Heatsink for 2nd CPU equal to or greater than 180W,PowerEdge R6525/R7525, Customer Install | I7: L Shape Heatsink for 2nd CPU equal to or greater than 180W,PowerEdge R6525/R7525, Customer Install | K7: 412-AASW | L7: DELL | Q7: 412-AASW | R7: 4RCGC
G8: 1 | H8: PowerEdge R7525 High Performance Fan Customer Kit V3 | I8: PowerEdge R7525 High Performance Fan Customer Kit V3 | K8: 121-BBBI | L8: DELL | Q8: 121-BBBI | R8: HVVRP
G9: 1 | H9: Riser with Two x8(x16 connector) PCIe Gen4 (Slots 4 & 5), Customer Install | I9: Riser with Two x8(x16 connector) PCIe Gen4 (Slots 4 & 5), Customer Install | K9: 330-BBTM | L9: DELL | Q9: 330-BBTM | R9: 234T7
G10: 1 | H10: Riser 4B, PCIe Gen4 1x16 (x16 connector), Half Length, PowerEdge R7525, CK | I10: Riser 4B, PCIe Gen4 1x16 (x16 connector), Half Length, PowerEdge R7525, CK | K10: 330-BBPR | L10: DELL | Q10: 330-BBPR
G11: 1 | H11: Riser 1B, PCIe Gen4 2x8 (x16 connector), Half Length, PowerEdge R7525, CK | I11: Riser 1B, PCIe Gen4 2x8 (x16 connector), Half Length, PowerEdge R7525, CK | K11: 330-BBPV | L11: DELL | Q11: 330-BBPV | R11: R80PP
G12: 1 | H12: Riser 2A, PCIe Gen4 2x16 (x16 connector), PowerEdge R7525, CK | I12: Riser 2A, PCIe Gen4 2x16 (x16 connector), PowerEdge R7525, CK | K12: 330-BBPO | L12: DELL | Q12: 330-BBPO
A13: L4N03 | B13: 3 | C13: OpzRAM32GB | D13: 262.12 | E13: L4N03 | F13: TS4L4-RAM32 | G13: 1 | H13: 32GB - 2Rx4 DDR4 RDIMM 3200MHz | I13: 32GB - 2Rx4 DDR4 RDIMM 3200MHz | J13: L4N03-OpzRAM32GB | K13: 370-AEVN | L13: DELL | M13: =CONCATENATE(F13,"-NVME") -> TS4L4-RAM32-NVME | Q13: AA79SNP75X1VC/32G | R13: SNP75X1VC/32G
A14: L4N04 | B14: 4 | C14: OpzRAM64GB | D14: 296.94 | E14: L4N04 | F14: TS4L4-RAM64 | G14: 1 | H14: 64GB - 2RX4 DDR4 RDIMM 3200MHz | I14: 64GB - 2RX4 DDR4 RDIMM 3200MHz | J14: L4N04-OpzRAM64GB | K14: 370-AEVP | L14: DELL | M14: =CONCATENATE(F14,"-NVME") -> TS4L4-RAM64-NVME | Q14: AA79SNPP2MYXC/64G | R14: SNPP2MYXC/64G
A15: L4N05 | B15: 5 | C15: OpzGigabit | D15: 28.63 | E15: L4N05 | F15: TS4L4-LAN1 | G15: 1 | H15: Broadcom 5719 Quad Port 1Gb Network Interface Card, Full Height | I15: Broadcom 5719 Quad Port 1Gb Network Interface Card, Full Height | J15: L4N05-OpzGigabit | K15: 540-BBCW | L15: DELL | M15: TS4L4-LAN1-NVME | N15: 1 | O15: 2 | P15: 3 | Q15: 540-XF9VF | R15: XF9VF
A16: L4N75 | B16: 5 | C16: OpzGigabit | D16: 28.63 | E16: L4N05b | F16: TS4L4-LAN1-L | G16: 1 | H16: Broadcom 5719 Quad Port 1Gb Network Interface Card, Low Profile | I16: Broadcom 5719 Quad Port 1Gb Network Interface Card, Low Profile | J16: L4N75-OpzGigabitLP | K16: 540-BBDF | L16: DELL | M16: TS4L4-LAN1-L-NVME | N16: 4 | Q16: 540-W0N4T | R16: W0N4T
A17: L4N06 | B17: 6 | C17: OpzGigabit10Gbps | D17: 157.48 | E17: L4N06 | F17: TS4L4-LAN10 | G17: 1 | H17: Broadcom 57414 Dual Port 10Gb, SFP28, PCIe Adapter, Full Height + Optics | I17: Broadcom 57414 Dual Port 10Gb, SFP28, PCIe Adapter, Full Height + Optics | J17: L4N06-OpzGigabit10Gbps | K17: 540-BDHF | L17: DELL | M17: TS4L4-LAN10-NVME | N17: 1 | O17: 2 | P17: 3 | Q17: 540-H6N50 | R17: H6N50
G18: 2 | H18: Dell Networking, Transceiver, SFP+, 10GbE, SR, 850nm Wavelength, 300m Reach - Kit | I18: Dell Networking, Transceiver, SFP+, 10GbE, SR, 850nm Wavelength, 300m Reach - Kit | K18: 407-BCBE | L18: DELL | M18: -NVME | Q18: 407-4Y8DN | R18: 4Y8DN
A19: L4N76 | B19: 6 | C19: OpzGigabit10Gbps | D19: 157.48 | E19: L4N06b | F19: TS4L4-LAN10-L | G19: 1 | H19: Broadcom 57414 Dual Port 10Gb, SFP28, PCIe Adapter, LOW PROFILE + Optics | I19: Broadcom 57414 Dual Port 10Gb, SFP28, PCIe Adapter, LOW PROFILE + Optics | J19: L4N76-OpzGigabit10GbpsLP | K19: 540-BDGV | L19: DELL | M19: TS4L4-LAN10-L-NVME | N19: 4 | Q19: 540-N7R67 | R19: N7R67
G20: 2 | H20: Dell Networking, Transceiver, SFP+, 10GbE, SR, 850nm Wavelength, 300m Reach | I20: Dell Networking, Transceiver, SFP+, 10GbE, SR, 850nm Wavelength, 300m Reach | K20: 407-BCBE | L20: DELL | M20: -NVME | Q20: 407-4Y8DN | R20: 4Y8DN
A21: L4N07 | B21: 7 | C21: OpzGigabit25Gbps | D21: 244.98 | E21: L4N07 | F21: TS4L4-LAN25 | G21: 1 | H21: Intel Ethernet XXV710 Dual Port 10/25GbE SFP28 Adapter, PCIe Full Height + Optics | I21: Intel Ethernet XXV710 Dual Port 25GbE SFP28 Adapter, PCIe Full Height + Optics | J21: L4N07-OpzGigabit25Gbps | K21: 540-BCDH | L21: DELL | M21: TS4L4-LAN25-NVME | N21: 1 | O21: 2 | P21: 3 | Q21: 540-86P4V | R21: 86P4V
G22: 2 | H22: Dell Networking, Transceiver, 25GbE SFP28 SR, No FEC, MMF, Duplex LC | I22: Dell Networking, Transceiver, 25GbE SFP28 SR, No FEC, MMF, Duplex LC | K22: 407-BCGJ | L22: DELL | M22: -NVME | Q22: 407-PY7V9 | R22: PY7V9
A23: L4N77 | B23: 7 | C23: OpzGigabit25Gbps | D23: 244.98 | E23: L4N07b | F23: TS4L4-LAN25-L | G23: 1 | H23: Intel Ethernet XXV710 Dual Port 10/25GbE SFP28 Adapter, PCIe Low Profile + Optics | I23: Intel Ethernet XXV710 Dual Port 25GbE SFP28 Adapter, PCIe Low Profile + Optics | J23: L4N77-OpzGigabit25GbpsLP | K23: 540-BCCM | L23: DELL | M23: TS4L4-LAN25-L-NVME | N23: 4 | Q23: 540-9RVF0 | R23: 9RVF0
G24: 2 | H24: Dell Networking, Transceiver, 25GbE SFP28 SR, No FEC, MMF, Duplex LC | I24: Dell Networking, Transceiver, 25GbE SFP28 SR, No FEC, MMF, Duplex LC | K24: 407-BBXU | L24: DELL | M24: -NVME | Q24: 407-PY7V9 | R24: PY7V9
A25: L4N08 | B25: 8 | C25: OpzGigabit10Gbps CNA | D25: 150.33 | E25: L4N08 | F25: TS4L4-CNA10 | G25: 1 | H25: CNA QLogic 41262 Dual Port 10Gb SFP28 Adapter, Full Height + 10 Gbps Optics | I25: CNA QLogic 41262 Dual Port 10Gb SFP28 Adapter, Full Height + 10 Gbps Optics | J25: L4N08-OpzCNA10Gbps | K25: 540-BBYL | L25: DELL | M25: TS4L4-CNA10-NVME | N25: 1 | O25: 2 | P25: 3 | Q25: 540-42H35 | R25: 42H35
G26: 2 | H26: Dell Networking, Transceiver, SFP+, 10GbE, SR, 850nm Wavelength, 300m Reach - Kit | I26: Dell Networking, Transceiver, SFP+, 10GbE, SR, 850nm Wavelength, 300m Reach - Kit | K26: 407-BCBE | L26: DELL | M26: -NVME | Q26: 407-4Y8DN | R26: 4Y8DN
A27: L4N78 | B27: 8 | C27: OpzGigabit10Gbps CNA | D27: 150.33 | E27: L4N08b | F27: TS4L4-CNA10-L | G27: 1 | H27: CNA QLogic 41262 Dual Port 10Gb SFP28 Adapter, Low Profile + 10 Gbps Optics | I27: CNA QLogic 41262 Dual Port 10Gb SFP28 Adapter, Low Profile + 10 Gbps Optics | J27: L4N78-OpzCNA10GbpsLP | K27: 540-BBZJ | L27: DELL | M27: TS4L4-CNA10-L-NVME | N27: 4 | Q27: 540-01CN1 | R27: 01CN1
G28: 2 | H28: Dell Networking, Transceiver, SFP+, 10GbE, SR, 850nm Wavelength, 300m Reach - Kit | I28: Dell Networking, Transceiver, SFP+, 10GbE, SR, 850nm Wavelength, 300m Reach - Kit | K28: 407-BCBE | L28: DELL | M28: -NVME | Q28: 407-4Y8DN | R28: 4Y8DN
A29: L4N09 | B29: 9 | C29: Opz10Gigabit BaseT | D29: 144.76 | E29: L4N09 | F29: TS4L4-BaseT | G29: 1 | H29: Intel X710-T2L Dual Port 10GbE BASE-T Adapter, PCIe Full Height | I29: Intel X710-T2L Dual Port 10GbE BASE-T Adapter, PCIe Full Height | J29: L4N09-Opz-BaseT | K29: 540-BCRO | L29: DELL | M29: TS4L4-BaseT-NVME | N29: 1 | O29: 2 | P29: 3 | Q29: 403-YH1DK | R29: YH1DK
A30: L4N79 | B30: 9 | C30: Opz10Gigabit BaseT | D30: 144.76 | E30: L4N09b | F30: TS4L4-BaseT-L | G30: 1 | H30: Intel X710-T2L Dual Port 10GbE BASE-T Adapter, PCIe LP | I30: Intel X710-T2L Dual Port 10GbE BASE-T Adapter, PCIe LP | J30: L4N79-Opz-BaseT | K30: 540-BCRO | L30: DELL | M30: TS4L4-BaseT-L-NVME | N30: 4 | Q30: 403-P0TRP | R30: P0TRP
A31: L4N10 | B31: 10 | C31: OpzFibreChannel | D31: 426.11 | E31: L4N10 | F31: TS4L4- FibreChannel | G31: 1 | H31: QLogic 2772 Dual Port 32GbE Fibre Channel HBA, PCIe Full Height + Optics | I31: QLogic 2772 Dual Port 32GbE Fibre Channel HBA, PCIe Full Height + Optics | J31: L4N10-OpzFibreChannel | K31: 540-BDHC | L31: DELL | M31: TS4L4- FibreChannel-NVME | N31: 4 | Q31: 403-P0TRP | R31: P0TRP
A32: L4N101 | B32: 10 | C32: OpzFibreChannel-L | D32: 426.11 | E32: L4N10 | F32: TS4L4- FibreChannel-L | G32: 1 | H32: QLogic 2772 Dual Port 32GbE Fibre Channel HBA, PCIe Low Profile + Optics | I32: QLogic 2772 Dual Port 32GbE Fibre Channel HBA, PCIe Low Profile + Optics | J32: L4N10-OpzFibreChannel | K32: 540-BDGU | L32: DELL | M32: TS4L4- FibreChannel-L-NVME | N32: 4 | Q32: 403-P0TRP | R32: P0TRP
A33: L4N11 | B33: 11 | C33: OpzHDD2TB | D33: 144.76 | E33: L4N11 | F33: TS4L4-HDD2TB | G33: 1 | H33: 2.4TB 10k SAS ISE 12Gbps | I33: 2.4TB 10k 512e SAS ISE 12Gbps 2.5in Hot Plug Hard Drive | J33: L4N11-OpzHDD2TB | K33: 400-AVEZ | L33: DELL | M33: TS4L4-HDD2TB-NVME | Q33: 400-HTMGW | R33: HTMGW
A34: L4N12 | B34: 12 | C34: OpzHDD1TB | D34: 83.51 | E34: L4N12 | F34: TS4L4-HDD1TB | G34: 1 | H34: 1.2TB 10K RPM SAS ISE 12Gbps | I34: 1.2TB 10K RPM SAS ISE 12Gbps 512n 2.5in Hot-plug Hard Drive | J34: L4N12-OpzHDD1TB | K34: 400-AVFE | L34: DELL | M34: TS4L4-HDD1TB-NVME | Q34: 400-400-ATJL | R34: 400-ATJL
A35: L4N13 | B35: 13 | C35: OpzSSD-RI3,8TB | D35: 991.57 | E35: L4N13 | F35: TS4L4-SSD-RI3,8TB | G35: 1 | H35: 3.84TB SSD SAS ISE RI 12Gbps | I35: 3.84TB SSD SAS ISE RI 12Gbps 512e 2.5in PM6 Hot-Plug 1 DWPD | J35: L4N13-OpzSSD-RI3,8TB | K35: 345-BCNU | L35: DELL | M35: TS4L4-SSD-RI3,8TB-NVME | Q35: 400-PDNT1 | R35: PDNT1
A36: L4N14 | B36: 14 | C36: OpzSSD-RI1,6TB | D36: 489.95 | E36: L4N14 | F36: TS4L4-SSD-RI1,6TB | G36: 1 | H36: 1.92TB SSD SAS ISE RI 12Gbps | I36: 1.92TB SSD SAS ISE RI 12Gbps 512e 2.5in Hot-Plug 1 DWP | J36: L4N14-OpzSSD-RI1,6TB | K36: 345-BBVC | L36: DELL | M36: TS4L4-SSD-RI1,6TB-NVME | Q36: 400-2H59H | R36: 2H59H
A37: L4N15 | B37: 15 | C37: OpzSSD-MU1,6TB | D37: 464.23 | E37: L4N15 | F37: TS4L4-SSD-MU1,6TB | G37: 1 | H37: 1.6TB SSD SAS ISE MU 12Gbps | I37: 1.6TB SSD SAS ISE MU 12Gbps 512e 2.5in Hot-Plug PM6 3 DWPD | J37: L4N15-OpzSSD-MU1,6TB | K37: 400-AZOY | L37: DELL | M37: TS4L4-SSD-MU1,6TB-NVME | Q37: 400-CDPWY | R37: CDPWY
A38: L4N16 | B38: 16 | C38: OpzSSD-RI800GB | D38: 278.38 | E38: L4N16 | F38: TS4L4-SSD-RI800GB | G38: 1 | H38: 960GB SSD SAS ISE RI 12Gbps | I38: 960GB SSD SAS ISE RI 12Gbps 512e 2.5in Hot-Plug 1 DWPD | J38: L4N16-OpzSSD-RI800GB | K38: 400-AXQU | L38: DELL | M38: TS4L4-SSD-RI800GB-NVME | Q38: 400-VPV60 | R38: VPV60
A39: L4N17 | B39: 17 | C39: OpzSSD-MU800GB | D39: 289.52 | E39: L4N17 | F39: TS4L4-SSD-MU800GB | G39: 1 | H39: 800GB SSD SAS ISE Mix Use 12Gbps | I39: 800GB SSD SAS ISE Mix Use 12Gbps 512e 2.5in Hot-plug, 3 DWPD | J39: L4N17-OpzSSD-MU800GB | K39: 400-AZQO | L39: DELL | M39: TS4L4-SSD-MU800GB-NVME | Q39: 400-MW0DK | R39: MW0DK
A40: L4N18 | B40: 18 | C40: OpzNVME1,6TB | D40: 594.94 | E40: L4N18 | F40: TS4L4-NVME1,6TB | G40: 1 | H40: 1.6TB Enterprise NVMe Mixed Use Drive U.2 | I40: 1.6TB Enterprise NVMe Mixed Use AG SED Drive U.2 Gen4 with carrier, FIPS | J40: L4N18-OpzNVME1,6TB | K40: 400-BMVM | L40: DELL | M40: TS4L4-NVME1,6TB-NVME | Q40: 403-C359R | R40: C359R
A41: L4N19 | B41: 19 | C41: OpzUps (3000VA) | D41: 386.02 | E41: L4N19 | F41: TS4L4-UPS | G41: 1 | H41: Dispositivo UPS di tipo On-line doppia conversione, strutturato per il montaggio a rack da 19” | I41: Dispositivo UPS di tipo On-line doppia conversione, strutturato per il montaggio a rack da 19” | J41: L4N19-OpzUps | K41: RPMM9/3K | M41: TS4L4-UPS-NVME | Q41: RPMMRPMM9/3K | R41: RPMM9/3K
A42: L4N20 | B42: 20 | C42: OpzGUI | D42: 491.62 | E42: L4N20 | F42: TS4L4-GUI | G42: 1 | H42: Unità KVM - monitor 17", cavo combi PS/2&USB da 1,8mt, tastiera italiana, touch pad | I42: Unità KVM - monitor 17", cavo combi PS/2&USB da 1,8mt, tastiera italiana, touch pad | J42: L4N20-OpzGUI | K42: F9857N | M42: TS4L4-GUI-NVME | Q42: F985F9857N | R42: F9857N
A43: L4N21 | B43: 21 | C43: OpzKVM | D43: 552.47 | E43: L4N21 | F43: TS4L4-KVM | G43: 1 | H43: KVM Switch IP per GUI 16P | I43: KVM Switch IP per GUI 16P | J43: L4N21-OpzKVM | K43: T9816NIP | M43: TS4L4-KVM-NVME | Q43: T981T9816NIP | R43: T9816NIP
A44: L4N22 | B44: 22 | C44: OpzWinServSTD | D44: 795.78 | E44: L4N22 | F44: TS4L4-WINSRVSTD | G44: 1 | H44: Windows Server 2022,Standard,ROK,16CORE | I44: Windows Server 2022,Standard,ROK,16CORE | J44: L4N22-WinServSTD | K44: 634-BYKR | L44: DELL | M44: TS4L4-WINSRVSTD-NVME | Q44: 634-634-BSFX | R44: 634-BSFX
A45: L4N23 | B45: 23 | C45: OpzDeviceCal | D45: 26.72 | E45: L4N23 | F45: TS4L4-WINDEVCAL | G45: 1 | H45: 1-pack of Windows Server 2022/2019 Device CALs (STD or DC) | I45: 1-pack of Windows Server 2022/2019 Device CALs (STD or DC) | J45: L4N23-OpzDeviceCal | K45: 634-BYLD | L45: DELL | M45: TS4L4-WINDEVCAL-NVME | Q45: 623-623-BBCV | R45: 623-BBCV
A46: L4N24 | B46: 24 | C46: OpzUserCal | D46: 36.75 | E46: L4N24 | F46: TS4L4-WINUSRCAL | G46: 1 | H46: 1-pack of Windows Server 2022/2019 User CALs (STD or DC) | I46: 1-pack of Windows Server 2022/2019 User CALs (STD or DC) | J46: L4N24-OpzUserCal | K46: 634-BYKZ | L46: DELL | M46: TS4L4-WINUSRCAL-NVME | Q46: 623-623-BBCT | R46: 623-BBCT
A47: L4N25 | B47: 25 | C47: OpzWinServSTD2core | D47: 96.51 | E47: L4N25 | F47: TS4L4-WINSRV2C | G47: 1 | H47: Windows Server 2022 Standard Edition, Add License,2CORE | I47: Windows Server 2022 Standard Edition, Add License,2CORE | J47: L4N25-OpzWinServSTD2core | K47: 634-BYKQ | L47: DELL | M47: TS4L4-WINSRV2C-NVME | Q47: 634-634-BSGS | R47: 634-BSGS
A48: L4N26 | B48: 26 | C48: OpzOpenSource | D48: 37.12 | E48: L4N26 | F48: TS4L4-LINUX | G48: 1 | H48: Ubuntu Server 22.04 LTS 64 Bit | I48: Ubuntu 22.04 LTS 64 Bit | J48: L4N26-OpzOpenSource | M48: TS4L4-LINUX-NVME
A49: L4N27 | B49: 27 | C49: OpzWinServDC | D49: 3345.63 | E49: L4N27 | F49: TS4L4-WinServDC | G49: 1 | H49: Windows Server 2022,Datacenter,ROK,16CORE | I49: Windows Server 2022,Datacenter,ROK,16CORE | J49: L4N27-OpzWinServDC | K49: 634-BYLC | L49: DELL | M49: TS4L4-WinServDC-NVME | Q49: 785-785-10921 | R49: 785-10921
A50: L4N28 | B50: 28 | C50: OpzWinServDC2core | D50: 460.51 | E50: L4N28 | F50: TS4L4-WinServDC2core | G50: 1 | H50: Windows Server 2022 / 2019 Datacenter Edition,Add License,2CORE | I50: Windows Server 2022 / 2019 Datacenter Edition,Add License,2CORE | J50: L4N28-OpzWinServDC2core | K50: 634-BYKX | L50: DELL | M50: TS4L4-WinServDC2core-NVME | Q50: 742-742-10105 | R50: 742-10105
A51: L4N29 | B51: 29 | C51: OpzHDDRetention36 | D51: 33.14 | E51: L4N29 | F51: TS4L4-HDRTN36 | G51: 1 | H51: Hard Disk Retention 36 mesi | I51: Hard Disk Retention 36 mesi | J51: L4N29-OpzHDDRetention36 | K51: 785-10921 | L51: DELL | M51: TS4L4-HDRTN36-NVME | N51: 1 | O51: 2 | P51: 3 | Q51: 405-V5FKR | R51: V5FKR
A52: L4N29e | B52: 29 | C52: OpzHDDRetention60 | D52: 55.23 | E52: L4N29e | F52: TS4L4-HDRTN60 | G52: 1 | H52: Hard Disk Retention 60 mesi | I52: Hard Disk Retention 60 mesi | J52: L4N29b-OpzHDDRetention60 | K52: 785-10921 | L52: DELL | M52: TS4L4-HDRTN60-NVME | N52: 1 | O52: 2 | P52: 3 | Q52: 405-V5FKR | R52: V5FKR
A53: L4N30 | B53: 30 | C53: OpzEstensione24 | D53: 155.91 | E53: L4N30 | F53: TS4L4-OpzEst24 | G53: 1 | H53: Estensione della manutenzione in garanzia per ulteriori 24 mesi | I53: Estensione della manutenzione in garanzia per ulteriori 24 mesi | J53: L4N30-OpzEst24 | K53: P6142NCONSIP | M53: TS4L4-OpzEst24-NVME | Q53: P614P6142NCONSIP | R53: P6142NCONSIP
A54: L4N31 | B54: 31 | C54: OpzRack | D54: 579.63 | E54: L4N31 | F54: TS4L4-RACK | G54: 1 | H54: Armadio Rack 42U | I54: Armadio Rack 42U | J54: L4N31-OpzRack | K54: P6142NCONSIP | M54: TS4L4-RACK-NVME | Q54: P614P6142NCONSIP | R54: P6142NCONSIP
A55: L4N32 | B55: 32 | C55: OpzSSD7,68 | D55: 2844.45 | E55: L4N32 | F55: TS4L4-SSD7.68RI | G55: 1 | H55: 7.68TB SSD RI SAS ISE 12Gbps | I55: 7.68TB SSD RI SAS ISE 12Gbps 512e 2.5in PM1643a Hot-Plug 1 DWPD | J55: L4N32-OpzSSD7.68RI | K55: 540-BBVM | L55: DELL | M55: TS4L4-SSD7.68RI-NVME | N55: 4 | Q55: 540-MT69G | R55: MT69G
A56: L4N33 | B56: 33 | C56: OpzNVMe3,2 | D56: 1578.15 | E56: L4N33 | F56: TS4L4-NVMe3.2MU | G56: 1 | H56: 3.2TB, Enterprise, NVMe, Mixed Use | I56: 3.2TB, Enterprise, NVMe, Mixed Use, U2, G4, P5600 with carrier | J56: L4N33-OpzNVMe3.2MU | K56: 403-BBVQ | L56: DELL | M56: TS4L4-NVMe3.2MU-NVME | N56: 1 | O56: 2 | P56: 3 | Q56: 403-4FXXT | R56: 4FXXT
A57: L4N34 | B57: 34 | C57: OpzNVMe1,92 | D57: 938.25 | E57: L4N34 | F57: TS4L4-NVMe1.92RI | G57: 1 | H57: 1.92TB, Enterprise, NVMe, Read Intensive | I57: 1.92TB, Enterprise, NVMe, Read Intensive, U2, G4, P5500 with carrier | J57: L4N34-OpzNVMe1.92RI | K57: 403-BBVQ | L57: DELL | M57: TS4L4-NVMe1.92RI-NVME | N57: 1 | O57: 2 | P57: 3 | Q57: 403-4FXXT | R57: 4FXXT
A58: L4N35 | B58: 33 | C58: OpzNVMe3,84 | D58: 1576.8 | E58: L4N35 | F58: TS4L4-NVMe3.84RI | G58: 1 | H58: 3.84TB, Enterprise, NVMe, Read Intensive | I58: 3.84TB, Enterprise, NVMe, Read Intensive, U2, G4, P5500 with carrier, CK | J58: L4N35-OpzNVMe3.84RI | K58: 403-BBVQ | L58: DELL | M58: TS4L4-NVMe3.84RI-NVME | N58: 1 | O58: 2 | P58: 3 | Q58: 403-4FXXT | R58: 4FXXT
A59: L4N36 | B59: 34 | D59: 0 | E59: L4N36 | F59: TS4L4-HBA355i-L | G59: 1 | H59: HBA355 Controller Adapter, Front (NO HW RAID) | I59: HBA355 Controller Adapter, Front, Cust Kit | J59: L4N36-OpzHBA | K59: 405-AANM | L59: DELL | M59: TS4L4-HBA355i-L-NVME | N59: 4 | Q59: 405-Y29HF | R59: Y29HF
A60: L4N37 | B60: 35 | C60: Opz100GBs | D60: 683.1 | E60: L4N37 | F60: TS4L4-100GBs-B | G60: 1 | H60: Broadcom 57508 Dual Port 100GbE QSFP Adapter, PCIe Low Profile | I60: Broadcom 57508 Dual Port 100GbE QSFP Adapter, PCIe Low Profile | J60: L4N37-Opz100GBs-B | K60: 405-AAJW | L60: DELL | M60: TS4L4-100GBs-B-NVME | N60: int | Q60: 405-THN56 | R60: THN56
A61: L4N38 | B61: 36 | C61: Opz100GBs | D61: 742.5 | E61: L4N38 | F61: TS4L4-100GBs-M | G61: 1 | H61: Mellanox ConnectX-6 DX Dual Port 100GbE QSFP56 Network Adapter, Low Profile | I61: Mellanox ConnectX-6 DX Dual Port 100GbE QSFP56 Network Adapter | J61: L4N38-Opz100GBs-M | K61: 490-BEIX | L61: DELL | M61: TS4L4-100GBs-M-NVME | Q61: 490-JKFGX | R61: JKFGX
A62: L4N39 | B62: 37 | C62: Opz100GBs | D62: 1305.45 | E62: L4N39 | F62: TS4L4-100GBs-INF | G62: 1 | H62: Mellanox ConnectX-6 Single Port HDR VPI Infiniband Adapter, PCIe Low Profile | I62: Mellanox ConnectX-6 Single Port HDR VPI Infiniband Adapter, PCIe Low Profile | J62: L4N39-Opz100GBs-INF | K62: 540-BCNL | L62: DELL | M62: TS4L4-100GBs-INF-NVME | Q62: 490-JKFGX | R62: JKFGX
A63: L4N105 | B63: 105 | E63: L4N105 | F63: TS4L4_2cpuChassis | G63: 1 | H63: Kit upgrade chassies for 2 CPU | I63: Kit upgrade chassies for 2 CPU | J63: L4N105-OpzOpz2CPU | L63: DELL | M63: TS4L4_2cpuChassis-NVME | Q63: 490-JKFGX | R63: JKFGX
A64: L4N40 | B64: 40 | C64: OpzBoss | D64: 0 | E64: L4N44 | F64: TS4L4-BOSS | G64: 1 | H64: BOSS-S2 controller + 2x 480GB M2BOSS-S2 controller card + with 2 M.2 480GB (RAID 1) | I64: BOSS-S2 controller | J64: L4N40-OpzOpzBOSS | K64: 405-AAMX | L64: DELL | M64: TS4L4-BOSS-NVME | N64: 4 | Q64: 405-39M19 | R64: 39M19
A65: L4N44 | B65: 44 | E65: L4N44 | F65: ="" ->  | G65: 1 | H65: PERC H745 Controller | I65: PERC H745 Controller | K65: 405-AAMX | L65: DELL | M65: -NVME | N65: 4 | Q65: 405-39M19 | R65: 39M19
A66: L4N49 | B66: 49 | C66: OpzPSU1400W | D66: 0 | E66: L4N49 | F66: TS4L4-PSU1400W | G66: 1 | H66: Dual, Hot-plug Power Supply (1+1), 1400W in sostituzione di quelli in configurazione BASE | I66: Dual, Hot-plug Power Supply (1+1), 1400W in sostituzione di quelli in configurazione BASE | J66: TS4-OpzA201100W | K66: 450-AEBL | L66: DELL | M66: TS4L4-PSU1400W-NVME | Q66: 450-T4RTF | R66: T4RTF
A67: L4N109 | B67: 109 | D67: 17.55 | E67: L4N109 | F67: TS4L4-OT10GB | G67: 2 | H67: SFP+ SR Optic for all SFP+ ports except High temperature Cards | I67: SFP+ SR Optic for all SFP+ ports except High temperature Cards | J67: L4N109-OpzOT10GB | K67: 407-BCBN | L67: DELL | M67: TS4L4-OT10GB-NVME
A68: L4N110 | B68: 110 | D68: 112.05 | E68: L4N110 | F68: TS4L4-OT25GB | G68: 2 | H68: SFP28 SR Optic, 25GbE, 85C, for all SFP28 ports | I68: SFP28 SR Optic, 25GbE, 85C, for all SFP28 ports | J68: L4N110-OpzOT25GB | K68: 407-BCGJ | L68: DELL | M68: TS4L4-OT25GB-NVME
A69: L4N111 | B69: 111 | D69: 484.65 | E69: L4N111 | F69: TS4L4-OT100GB | G69: 2 | H69: Dell EMC PowerEdge QSFP28 SR4 100GbE 85C optic | I69: Dell EMC PowerEdge QSFP28 SR4 100GbE 85C optic | J69: L4N111-OpzOT100GB | K69: 407-BCEQ | L69: DELL | M69: TS4L4-OT100GB-NVME
A70: L4N112 | B70: 112 | D70: 512.16 | E70: L4N112 | F70: TS4L4-2CPU-vSAN-512GB | G70: 1 | H70: Kit vSAN comprensivo di HBA 355 in sostituzione di quello Base e BOSS Card | I70: Kit vSAN comprensivo di HBA 355 e BOSS Card | J70: L4N112-Opz2CPU-vSAN-512 | K70: 18219176 | L70: DELL | M70: TS4L4-2CPU-vSAN-512GB-NVME | Q70: 450-T4RTF | R70: T4RTF
A71: L4N113 | B71: 113 | D71: 1193.43 | E71: L4N113 | F71: TS4L4-2CPU-vSAN-1TB | G71: 1 | H71: Kit vSAN comprensivo di HBA 355 in sostituzione di quello Base e BOSS Card | I71: Kit vSAN comprensivo di HBA 355 e BOSS Card | J71: L4N113-Opz2CPU-vSAN-1TB | K71: 18219200-18219187 | L71: DELL | M71: TS4L4-2CPU-vSAN-1TB-NVME
A72: L4N114 | B72: 114 | D72: 4028.4 | E72: L4N114 | F72: TS4L4-2CPU-vSAN-2TB | G72: 1 | H72: Kit vSAN comprensivo di HBA 355 in sostituzione di quello Base e BOSS Card | I72: Kit vSAN comprensivo di HBA 355 e BOSS Card | J72: L4N114-Opz2CPU-vSAN-2TB | K72: 18221537 | L72: DELL | M72: TS4L4-2CPU-vSAN-2TB-NVME
A73: L4N115 | B73: 115 | D73: 4290.46 | E73: L4N115 | F73: TS4L4-2CPU-NUT | G73: 1 | H73: Kit Nutanix comprensivo di HBA 355 in sostituzione di quello Base, BOSS Card e scheda Lan 10 GB | I73: Kit Nutanix comprensivo di HBA 355, BOSS Card e scheda Lan 10 GB | J73: L4N115-Opz2CPU-NUT | K73: 18219226 | L73: DELL | M73: TS4L4-2CPU-NUT-NVME
A74: L4N116 | D74: 2929.5 | F74: TS4L4-RACK-D | H74: Rack 42RU DellEmc | I74: Rack 42RU DellEmc | J74: L4N116-OpzRACKD | M74: TS4L4-RACK-D-NVME
A75: L4N117 | D75: 540 | F75: TS4L4-PDU-M | H75: PDU 220 mono output 20-C13 + 4-C19 IEC 320, input C20 | I75: PDU 220 mono output 20-C13 + 4-C19 IEC 320, input C20 | J75: L4N117-OpzPDUT | M75: TS4L4-PDU-M-NVME
A76: L4N118 | D76: 1080 | F76: TS4L4-PDU-T | H76: PDU 220 Trifase output 6-C19 e 36-C13, input Spina 3P+T 400V 16A | I76: PDU 220 Trifase output 6-C19 e 36-C13, input Spina 3P+T 400V 16A | J76: L4N118-OpzPDUT | M76: TS4L4-PDU-T-NVME
A77: L4N119 | D77: 3300.75 | F77: TS4L4-KVM-D | H77: Dell KVM + Switch 8 porte + cavi | I77: Dell KVM + Switch 8 porte + cavi | J77: L4N119-OpzKVMD | M77: TS4L4-KVM-D-NVME
A78: L4N120 | D78: 3300 | F78: TS4L4-ROCK | H78: ROCK Port 100Gbs (include scheda pci e manutenzione) | I78: ROCK Port 100Gbs (include scheda pci e manutenzione) | J78: L4N120-OpzROCK | M78: =CONCATENATE(F78,"-NVME") -> TS4L4-ROCK-NVME
A79: L4N121 | C79: =CONCATENATE("Opz",MID(F79,7,LEN(F79)-6)) -> OpzCMA | D79: 33.75 | F79: TS4L4-CMA | H79: Cable Management Arm for PowerEdge Systems | I79: Cable Management Arm for PowerEdge Systems | J79: L4N121-OpzCMA | M79: TS4L4-CMA-NVME
A80: L4N122 | C80: =CONCATENATE("Opz",MID(F80,7,LEN(F80)-6)) -> OpzJBOD | D80: 5719.95 | F80: TS4L4-JBOD | H80: Enclosure di espansione JBOD 12 slot 3,5'' + HBA (H840) | I80: Enclosure di espansione JBOD 12 slot 3,5'' + HBA (H840) | J80: L4N122-OpzJBOD | M80: TS4L4-JBOD-NVME
A81: L4N123 | C81: Opz12TBNLSAS | D81: 405 | F81: TS4L4-12TBNLSAS | H81: 12TB 7.2K RPM NLSAS ISE 12Gbps 512e 3.5in Hot-plug Hard Drive | I81: 12TB 7.2K RPM NLSAS ISE 12Gbps 512e 3.5in Hot-plug Hard Drive | J81: L4N123-Opz12TBNLSAS | M81: TS4L4-12TBNLSAS-NVME
A82: L4N124 | C82: Opz16TBSAS | D82: 438.75 | F82: TS4L4-16TBSAS | H82: 16TB Hard Drive SAS ISE 12Gbps 7.2K 512e 3.5in Hot-Plug | I82: 16TB Hard Drive SAS ISE 12Gbps 7.2K 512e 3.5in Hot-Plug | J82: L4N124-Opz16TBSAS | M82: TS4L4-16TBSAS-NVME
A83: L4N125 | C83: Opz20TBSAS | D83: 594 | F83: TS4L4-20TBSAS | H83: 20TB HDD SAS ISE 12Gbps 7.2K 512e 3.5in Hot-Plug | I83: 20TB HDD SAS ISE 12Gbps 7.2K 512e 3.5in Hot-Plug | J83: L4N125-Opz20TBSAS | M83: TS4L4-20TBSAS-NVME
A84: L4N126 | C84: Opz2CPU-GPUReady | D84: 4807.22 | F84: TS4L4-2CPU-GPUReady | H84: Kit GPU Ready (Include il necessario a poter montare GPU su slot PCI Max 3 GPU, Acquisto contestuale all'ordine) | I84: Kit GPU Ready (Include il necessario a poter montare GPU su slot PCI Max 3 GPU, Acquisto contestuale all'ordine) | J84: L4N126-2CPU-GPUReady | M84: TS4L4-2CPU-GPUReady-NVME
A85: L4N127 | C85: OpzGPU-A30 | D85: 6129 | F85: TS4L4-GPU-A30 | H85: Nvidia A30 | I85: Nvidia A30 | J85: L4N127-GPU-A30 | M85: TS4L4-GPU-A30-NVME
A86: L4N128 | C86: OpzGPU-A40 | D86: 6858 | F86: TS4L4-GPU-A40 | H86: Nvidia A40 | I86: Nvidia A40 | J86: L4N128-GPU-A40 | M86: TS4L4-GPU-A40-NVME
A87: L4N129 | D87: 0 | F87: ="" ->  | H87: PERC H840 RAID Adapter for External JBOD Only | I87: PERC H840 RAID Adapter for External JBOD Only | J87: ="" ->  | M87: -NVME
